Workbook

Sheet CONTROL (hidden)

Sheet Index
A2: An Official Statistics publication detailing statistics on volumes of criminal cases calling at Scottish courts.
A4: Table | B4: Charts | C4: Description | E4: Geography | F4: Frequency
A6: 1a | B6: 1b | C6: Overview of Criminal Courts: A time series of business volumes | E6: National data | F6: Quarterly
A8: 1c | B8: N/A | C8: Overview of Criminal Courts: A time series of monthly business volumes calling at Scottish courts during the Coronavirus pandemic and the recovery period | E8: National data | F8: Quarterly
A10: 2a | B10: 2b | C10: High Court of Justiciary: A time series of business volumes for the High Court of Justiciary - Scotland's Supreme Court for Criminal cases | E10: National data | F10: Quarterly
A12: 3a | B12: 3b | C12: Sheriff Court - Solemn: A time series of business volumes for solemn criminal cases calling in Scotland's Sheriff Courts. | E12: National and Court level data | F12: Quarterly
A14: 4a | B14: 4b | C14: Sheriff Court - Summary: A time series of business volumes for summary criminal cases calling in Scotland's Sheriff Courts. Includes domestic abuse volumes. | E14: National and Court level data | F14: Quarterly
A16: 5a | B16: 5b | C16: Justice of the Peace Court: A time series of business volumes for summary criminal cases calling in Scotland's Justice of the Peace Courts. | E16: National and Court level data | F16: Quarterly
A18: 6 | B18: N/A | C18: Overview of Criminal court cases registered in Scotland: A time series of Crime or Offence Type percentages | E18: National data | F18: Annual
A20: 7 | B20: N/A | C20: Overview of Criminal court cases registered in Scotland: A time series of Protected Characteristic percentages | E20: National and Court level data | F20: Annual
A22: 8 | B22: N/A | C22: Arrival and Liberty status for Criminal new business and warranted cases including 'Remanded from Police Custody Rate' | E22: National data | F22: Annual
A24: N/A | B24: 9 | C24: Tracking the recovery of criminal trial backlogs caused by Covid-19 | E24: National data | F24: Quarterly
A26: 10a | B26: 10b | C26: Overview of Criminal Appeal Courts: A time series of business volumes for Scotland's two criminal appeal courts. | E26: National Data | F26: Annual
A28: Worksheet
A29: 11 | C29: Criminal case flowcharts | E29: N/A | F29: N/A
A31: 12 | C31: Glossary: Explanation of Scottish court terminology | E31: N/A | F31: N/A
A33: 13 | C33: Notes on data and definitions | E33: N/A | F33: N/A
A35: 14 | C35: Chart instructions and Sheriffdom breakdown | E35: N/A | F35: N/A

Sheet 1a
F1: Back to Index
B4: National overview of criminal court cases in Scotland | D4: 2014/15 | E4: 2015/16 | F4: 2016/17 | G4: 2017/18 | H4: 2018/19 | I4: 2019/20 | J4: 2020/21 | K4: 2021/22 | L4: 2022/23 | M4: 2023/24 YTD
B5: All Criminal courts | C5: National total of cases registered (not including petitions) | D5: =SUM(D17,D29,D40,D51) -> 145792 | E5: 134198 | F5: 118605 | G5: 109881 | H5: 102825 | I5: 105548 | J5: 76660 | K5: 85567 | L5: 85859 | M5: =SUM(M17,M29,M40,M51) -> 68965
C6: National total of cases that called at a first hearing | D6: =SUM(D18,D30,D41,D52) -> 136267 | E6: 125355 | F6: 110737 | G6: 103629 | H6: 98039 | I6: 100922 | J6: 69491 | K6: 80988 | L6: 83392 | M6: =SUM(M18,M30,M41,M52) -> 65687
C7: National total of cases that called at a continued first hearing | D7: =SUM(D19,D31,D42,D53) -> 45367 | E7: 41352 | F7: 39674 | G7: 37001 | H7: 35098 | I7: 36514 | J7: 59984 | K7: 66227 | L7: 49166 | M7: =SUM(M19,M31,M42,M53) -> 36861
C8: National total of Section 76 (Solemn business only) | D8: =SUM(D20,D32) -> 1369 | E8: 1201 | F8: 1188 | G8: 1108 | H8: 1207 | I8: 1142 | J8: 1029 | K8: 1185 | L8: 1239 | M8: =SUM(M20,M32) -> 1094
C9: National total of intermediate diets called (Summary business only) | D9: =SUM(D43,D54) -> 119883 | E9: 125669 | F9: 111794 | G9: 97450 | H9: 89344 | I9: 89847 | J9: 75546 | K9: 109127 | L9: 115099 | M9: =SUM(M43,M54) -> 73833
C10: National total of trials called | D10: =SUM(D21,D33,D44,D55) -> 70306 | E10: 78559 | F10: 72135 | G10: 67227 | H10: 58786 | I10: 54744 | J10: 30217 | K10: 65297 | L10: 81105 | M10: =SUM(M21,M33,M44,M55) -> 49548
C11: National total of trials called where evidence was led | D11: =SUM(D22,D34,D45,D56) -> 13936 | E11: 14583 | F11: 13549 | G11: 11779 | H11: 11142 | I11: 10121 | J11: 3545 | K11: 7505 | L11: 9051 | M11: =SUM(M22,M34,M45,M56) -> 6261
C12: National total of trials adjourned due to lack of court time | D12: =SUM(D23,D35,D46,D57) -> 3951 | E12: 4304 | F12: 3331 | G12: 2770 | H12: 2050 | I12: 1574 | J12: 371 | K12: 1259 | L12: 1713 | M12: =SUM(M23,M35,M46,M57) -> 1204
C13: Percentage of trials adjourned due to lack of court time | D13: =SUM(D12/D10) -> 0.05619719512 | E13: 0.0547868481 | F13: 0.04617730644 | G13: 0.04120368304 | H13: 0.03487224849 | I13: 0.02875200935 | J13: =SUM(J12/J10) -> 0.01227785684 | K13: =SUM(K12/K10) -> 0.01928113083 | L13: =SUM(L12/L10) -> 0.02112076937 | M13: =SUM(M12/M10) -> 0.02429966901
C14: National total of trials scheduled at end of period | D14: =SUM(D25,D37,D48,D59) -> 33206 | E14: 29962 | F14: 22118 | G14: 18173 | H14: 16011 | I14: 18355 | J14: 37801 | K14: 40923 | L14: 27406 | M14: =SUM(M25,M37,M48,M59) -> 27565
C15: National total of cases concluded | D15: =SUM(D26,D38,D49,D60) -> 130982 | E15: 125070 | F15: 115970 | G15: 104105 | H15: 97394 | I15: 101790 | J15: 48975 | K15: 86351 | L15: 99671 | M15: =SUM(M26,M38,M49,M60) -> 67602
B17: High Court | C17: Indictments registered | D17: =SUMIFS('High Court Raw Data'!$E:$E,'High Court Raw Data'!$A:$A,"2014/15") -> 703 | E17: =SUMIFS('High Court Raw Data'!$E:$E,'High Court Raw Data'!$A:$A,"2015/16") -> 639 | F17: =SUMIFS('High Court Raw Data'!$E:$E,'High Court Raw Data'!$A:$A,"2016/17") -> 587 | G17: =SUMIFS('High Court Raw Data'!$E:$E,'High Court Raw Data'!$A:$A,"2017/18") -> 718 | H17: =SUMIFS('High Court Raw Data'!$E:$E,'High Court Raw Data'!$A:$A,"2018/19") -> 911 | I17: =SUMIFS('High Court Raw Data'!$E:$E,'High Court Raw Data'!$A:$A,"2019/20") -> 1024 | J17: =SUMIFS('High Court Raw Data'!$E:$E,'High Court Raw Data'!$A:$A,"2020/21") -> 767 | K17: =SUMIFS('High Court Raw Data'!$E:$E,'High Court Raw Data'!$A:$A,"2021/22") -> 745 | L17: =SUMIFS('High Court Raw Data'!$E:$E,'High Court Raw Data'!$A:$A,"2022/23") -> 939 | M17: =SUMIFS('High Court Raw Data'!$E:$E,'High Court Raw Data'!$A:$A,"2023/24") -> 673
C18: Indictments called at Preliminary Hearing | D18: =SUMIFS('High Court Raw Data'!$F:$F,'High Court Raw Data'!$A:$A,"2014/15") -> 744 | E18: =SUMIFS('High Court Raw Data'!$F:$F,'High Court Raw Data'!$A:$A,"2015/16") -> 683 | F18: =SUMIFS('High Court Raw Data'!$F:$F,'High Court Raw Data'!$A:$A,"2016/17") -> 615 | G18: =SUMIFS('High Court Raw Data'!$F:$F,'High Court Raw Data'!$A:$A,"2017/18") -> 598 | H18: =SUMIFS('High Court Raw Data'!$F:$F,'High Court Raw Data'!$A:$A,"2018/19") -> 887 | I18: =SUMIFS('High Court Raw Data'!$F:$F,'High Court Raw Data'!$A:$A,"2019/20") -> 981 | J18: =SUMIFS('High Court Raw Data'!$F:$F,'High Court Raw Data'!$A:$A,"2020/21") -> 725 | K18: =SUMIFS('High Court Raw Data'!$F:$F,'High Court Raw Data'!$A:$A,"2021/22") -> 638 | L18: =SUMIFS('High Court Raw Data'!$F:$F,'High Court Raw Data'!$A:$A,"2022/23") -> 937 | M18: =SUMIFS('High Court Raw Data'!$F:$F,'High Court Raw Data'!$A:$A,"2023/24") -> 672
C19: Indictments called at Continued Preliminary Hearing | D19: =SUMIFS('High Court Raw Data'!$G:$G,'High Court Raw Data'!$A:$A,"2014/15") -> 431 | E19: =SUMIFS('High Court Raw Data'!$G:$G,'High Court Raw Data'!$A:$A,"2015/16") -> 249 | F19: =SUMIFS('High Court Raw Data'!$G:$G,'High Court Raw Data'!$A:$A,"2016/17") -> 251 | G19: =SUMIFS('High Court Raw Data'!$G:$G,'High Court Raw Data'!$A:$A,"2017/18") -> 273 | H19: =SUMIFS('High Court Raw Data'!$G:$G,'High Court Raw Data'!$A:$A,"2018/19") -> 434 | I19: =SUMIFS('High Court Raw Data'!$G:$G,'High Court Raw Data'!$A:$A,"2019/20") -> 437 | J19: =SUMIFS('High Court Raw Data'!$G:$G,'High Court Raw Data'!$A:$A,"2020/21") -> 791 | K19: =SUMIFS('High Court Raw Data'!$G:$G,'High Court Raw Data'!$A:$A,"2021/22") -> 716 | L19: =SUMIFS('High Court Raw Data'!$G:$G,'High Court Raw Data'!$A:$A,"2022/23") -> 508 | M19: =SUMIFS('High Court Raw Data'!$G:$G,'High Court Raw Data'!$A:$A,"2023/24") -> 332
C20: Section 76 Indictments | D20: =SUMIFS('High Court Raw Data'!$H:$H,'High Court Raw Data'!$A:$A,"2014/15") -> 109 | E20: =SUMIFS('High Court Raw Data'!$H:$H,'High Court Raw Data'!$A:$A,"2015/16") -> 109 | F20: =SUMIFS('High Court Raw Data'!$H:$H,'High Court Raw Data'!$A:$A,"2016/17") -> 84 | G20: =SUMIFS('High Court Raw Data'!$H:$H,'High Court Raw Data'!$A:$A,"2017/18") -> 74 | H20: =SUMIFS('High Court Raw Data'!$H:$H,'High Court Raw Data'!$A:$A,"2018/19") -> 88 | I20: =SUMIFS('High Court Raw Data'!$H:$H,'High Court Raw Data'!$A:$A,"2019/20") -> 94 | J20: =SUMIFS('High Court Raw Data'!$H:$H,'High Court Raw Data'!$A:$A,"2020/21") -> 84 | K20: =SUMIFS('High Court Raw Data'!$H:$H,'High Court Raw Data'!$A:$A,"2021/22") -> 78 | L20: =SUMIFS('High Court Raw Data'!$H:$H,'High Court Raw Data'!$A:$A,"2022/23") -> 99 | M20: =SUMIFS('High Court Raw Data'!$H:$H,'High Court Raw Data'!$A:$A,"2023/24") -> 86
C21: Trials called | D21: =SUMIFS('High Court Raw Data'!$I:$I,'High Court Raw Data'!$A:$A,"2014/15") -> 642 | E21: =SUMIFS('High Court Raw Data'!$I:$I,'High Court Raw Data'!$A:$A,"2015/16") -> 616 | F21: =SUMIFS('High Court Raw Data'!$I:$I,'High Court Raw Data'!$A:$A,"2016/17") -> 632 | G21: =SUMIFS('High Court Raw Data'!$I:$I,'High Court Raw Data'!$A:$A,"2017/18") -> 689 | H21: =SUMIFS('High Court Raw Data'!$I:$I,'High Court Raw Data'!$A:$A,"2018/19") -> 717 | I21: =SUMIFS('High Court Raw Data'!$I:$I,'High Court Raw Data'!$A:$A,"2019/20") -> 812 | J21: =SUMIFS('High Court Raw Data'!$I:$I,'High Court Raw Data'!$A:$A,"2020/21") -> 377 | K21: =SUMIFS('High Court Raw Data'!$I:$I,'High Court Raw Data'!$A:$A,"2021/22") -> 752 | L21: =SUMIFS('High Court Raw Data'!$I:$I,'High Court Raw Data'!$A:$A,"2022/23") -> 894 | M21: =SUMIFS('High Court Raw Data'!$I:$I,'High Court Raw Data'!$A:$A,"2023/24") -> 687
C22: Trials called where evidence was led | D22: =SUMIFS('High Court Raw Data'!$J:$J,'High Court Raw Data'!$A:$A,"2014/15") -> 443 | E22: =SUMIFS('High Court Raw Data'!$J:$J,'High Court Raw Data'!$A:$A,"2015/16") -> 403 | F22: =SUMIFS('High Court Raw Data'!$J:$J,'High Court Raw Data'!$A:$A,"2016/17") -> 443 | G22: =SUMIFS('High Court Raw Data'!$J:$J,'High Court Raw Data'!$A:$A,"2017/18") -> 461 | H22: =SUMIFS('High Court Raw Data'!$J:$J,'High Court Raw Data'!$A:$A,"2018/19") -> 507 | I22: =SUMIFS('High Court Raw Data'!$J:$J,'High Court Raw Data'!$A:$A,"2019/20") -> 498 | J22: =SUMIFS('High Court Raw Data'!$J:$J,'High Court Raw Data'!$A:$A,"2020/21") -> 278 | K22: =SUMIFS('High Court Raw Data'!$J:$J,'High Court Raw Data'!$A:$A,"2021/22") -> 577 | L22: =SUMIFS('High Court Raw Data'!$J:$J,'High Court Raw Data'!$A:$A,"2022/23") -> 611 | M22: =SUMIFS('High Court Raw Data'!$J:$J,'High Court Raw Data'!$A:$A,"2023/24") -> 512
C23: Trials adjourned due to lack of court time | D23: =SUMIFS('High Court Raw Data'!$K:$K,'High Court Raw Data'!$A:$A,"2014/15") -> 14 | E23: =SUMIFS('High Court Raw Data'!$K:$K,'High Court Raw Data'!$A:$A,"2015/16") -> 9 | F23: =SUMIFS('High Court Raw Data'!$K:$K,'High Court Raw Data'!$A:$A,"2016/17") -> 27 | G23: =SUMIFS('High Court Raw Data'!$K:$K,'High Court Raw Data'!$A:$A,"2017/18") -> 0 | H23: =SUMIFS('High Court Raw Data'!$K:$K,'High Court Raw Data'!$A:$A,"2018/19") -> 11 | I23: =SUMIFS('High Court Raw Data'!$K:$K,'High Court Raw Data'!$A:$A,"2019/20") -> 49 | J23: =SUMIFS('High Court Raw Data'!$K:$K,'High Court Raw Data'!$A:$A,"2020/21") -> 12 | K23: =SUMIFS('High Court Raw Data'!$K:$K,'High Court Raw Data'!$A:$A,"2021/22") -> 20 | L23: =SUMIFS('High Court Raw Data'!$K:$K,'High Court Raw Data'!$A:$A,"2022/23") -> 24 | M23: =SUMIFS('High Court Raw Data'!$K:$K,'High Court Raw Data'!$A:$A,"2023/24") -> 19
C24: Percentage of trials adjourned due to lack of court time | D24: =SUM(D23/D21) -> 0.02180685358 | E24: 0.01461038961 | F24: 0.04272151899 | G24: 0 | H24: 0.01534170153 | I24: 0.06034482759 | J24: =IFERROR(SUM(J23/J21),0) -> 0.03183023873 | K24: =IFERROR(SUM(K23/K21),0) -> 0.02659574468 | L24: =IFERROR(SUM(L23/L21),0) -> 0.02684563758 | M24: =IFERROR(SUM(M23/M21),0) -> 0.02765647744
C25: Trials scheduled at end of period | D25: Not Available | E25: Not Available | F25: Not Available | G25: Not Available | H25: =SUMIFS('High Court Raw Data'!$L:$L,'High Court Raw Data'!$A:$A,"2018/19",'High Court Raw Data'!$B:$B,"Q4") -> 268 | I25: =SUMIFS('High Court Raw Data'!$L:$L,'High Court Raw Data'!$A:$A,"2019/20",'High Court Raw Data'!$B:$B,"Q4") -> 390 | J25: =SUMIFS('High Court Raw Data'!$L:$L,'High Court Raw Data'!$A:$A,"2020/21",'High Court Raw Data'!$B:$B,"Q4") -> 267 | K25: =SUMIFS('High Court Raw Data'!$L:$L,'High Court Raw Data'!$A:$A,"2021/22",'High Court Raw Data'!$B:$B,"Q4") -> 560 | L25: =SUMIFS('High Court Raw Data'!$L:$L,'High Court Raw Data'!$A:$A,"2022/23",'High Court Raw Data'!$B:$B,"Q4") -> 687 | M25: =SUMIFS('High Court Raw Data'!$L:$L,'High Court Raw Data'!$A:$A,"2023/24",'High Court Raw Data'!$B:$B,"Q3") -> 649
C26: Indictments concluded | D26: 733 | E26: 702 | F26: 586 | G26: 630 | H26: =SUMIFS('High Court Raw Data'!$M:$M,'High Court Raw Data'!$A:$A,"2018/19") -> 822 | I26: =SUMIFS('High Court Raw Data'!$M:$M,'High Court Raw Data'!$A:$A,"2019/20") -> 806 | J26: =SUMIFS('High Court Raw Data'!$M:$M,'High Court Raw Data'!$A:$A,"2020/21") -> 455 | K26: =SUMIFS('High Court Raw Data'!$M:$M,'High Court Raw Data'!$A:$A,"2021/22") -> 756 | L26: =SUMIFS('High Court Raw Data'!$M:$M,'High Court Raw Data'!$A:$A,"2022/23") -> 815 | M26: =SUMIFS('High Court Raw Data'!$M:$M,'High Court Raw Data'!$A:$A,"2023/24") -> 759
B28: Sheriff Court - Solemn business | C28: Petitions registered | D28: =SUMIFS('JP SC Raw Data'!$G:$G,'JP SC Raw Data'!$F:$F,"S",'JP SC Raw Data'!$B:$B,"2014/15",'JP SC Raw Data'!$E:$E, "National") -> 10322 | E28: =SUMIFS('JP SC Raw Data'!$G:$G,'JP SC Raw Data'!$F:$F,"S",'JP SC Raw Data'!$B:$B,"2015/16",'JP SC Raw Data'!$E:$E,"National") -> 9694 | F28: =SUMIFS('JP SC Raw Data'!$G:$G,'JP SC Raw Data'!$F:$F,"S",'JP SC Raw Data'!$B:$B,"2016/17",'JP SC Raw Data'!$E:$E,"National") -> 8946 | G28: =SUMIFS('JP SC Raw Data'!$G:$G,'JP SC Raw Data'!$F:$F,"S",'JP SC Raw Data'!$B:$B,"2017/18",'JP SC Raw Data'!$E:$E,"National") -> 8539 | H28: =SUMIFS('JP SC Raw Data'!$G:$G,'JP SC Raw Data'!$F:$F,"S",'JP SC Raw Data'!$B:$B,"2018/19",'JP SC Raw Data'!$E:$E,"National") -> 9160 | I28: =SUMIFS('JP SC Raw Data'!$G:$G,'JP SC Raw Data'!$F:$F,"S",'JP SC Raw Data'!$B:$B,"2019/20",'JP SC Raw Data'!$E:$E,"National") -> 9780 | J28: =SUMIFS('JP SC Raw Data'!$G:$G,'JP SC Raw Data'!$F:$F,"S",'JP SC Raw Data'!$B:$B,"2020/21",'JP SC Raw Data'!$E:$E,"National") -> 11076 | K28: =SUMIFS('JP SC Raw Data'!$G:$G,'JP SC Raw Data'!$F:$F,"S",'JP SC Raw Data'!$B:$B,"2021/22",'JP SC Raw Data'!$E:$E,"National") -> 11769 | L28: =SUMIFS('JP SC Raw Data'!$G:$G,'JP SC Raw Data'!$F:$F,"S",'JP SC Raw Data'!$B:$B,"2022/23",'JP SC Raw Data'!$E:$E,"National") -> 11699 | M28: =SUMIFS('JP SC Raw Data'!$G:$G,'JP SC Raw Data'!$F:$F,"S",'JP SC Raw Data'!$B:$B,"2023/24",'JP SC Raw Data'!$E:$E,"National") -> 8394
C29: Indictments registered | D29: =SUMIFS('JP SC Raw Data'!$H:$H,'JP SC Raw Data'!$F:$F,"S",'JP SC Raw Data'!$B:$B,"2014/15",'JP SC Raw Data'!$E:$E,"National") -> 6920 | E29: =SUMIFS('JP SC Raw Data'!$H:$H,'JP SC Raw Data'!$F:$F,"S",'JP SC Raw Data'!$B:$B,"2015/16",'JP SC Raw Data'!$E:$E,"National") -> 6461 | F29: =SUMIFS('JP SC Raw Data'!$H:$H,'JP SC Raw Data'!$F:$F,"S",'JP SC Raw Data'!$B:$B,"2016/17",'JP SC Raw Data'!$E:$E,"National") -> 5899 | G29: =SUMIFS('JP SC Raw Data'!$H:$H,'JP SC Raw Data'!$F:$F,"S",'JP SC Raw Data'!$B:$B,"2017/18",'JP SC Raw Data'!$E:$E,"National") -> 4979 | H29: =SUMIFS('JP SC Raw Data'!$H:$H,'JP SC Raw Data'!$F:$F,"S",'JP SC Raw Data'!$B:$B,"2018/19",'JP SC Raw Data'!$E:$E,"National") -> 5182 | I29: =SUMIFS('JP SC Raw Data'!$H:$H,'JP SC Raw Data'!$F:$F,"S",'JP SC Raw Data'!$B:$B,"2019/20",'JP SC Raw Data'!$E:$E,"National") -> 5452 | J29: =SUMIFS('JP SC Raw Data'!$H:$H,'JP SC Raw Data'!$F:$F,"S",'JP SC Raw Data'!$B:$B,"2020/21",'JP SC Raw Data'!$E:$E,"National") -> 4851 | K29: =SUMIFS('JP SC Raw Data'!$H:$H,'JP SC Raw Data'!$F:$F,"S",'JP SC Raw Data'!$B:$B,"2021/22",'JP SC Raw Data'!$E:$E,"National") -> 5759 | L29: =SUMIFS('JP SC Raw Data'!$H:$H,'JP SC Raw Data'!$F:$F,"S",'JP SC Raw Data'!$B:$B,"2022/23",'JP SC Raw Data'!$E:$E,"National") -> 5938 | M29: =SUMIFS('JP SC Raw Data'!$H:$H,'JP SC Raw Data'!$F:$F,"S",'JP SC Raw Data'!$B:$B,"2023/24",'JP SC Raw Data'!$E:$E,"National") -> 5660
C30: Indictments called at First Diet | D30: =SUMIFS('JP SC Raw Data'!$I:$I,'JP SC Raw Data'!$F:$F,"S",'JP SC Raw Data'!$B:$B,"2014/15",'JP SC Raw Data'!$E:$E,"National") -> 9054 | E30: =SUMIFS('JP SC Raw Data'!$I:$I,'JP SC Raw Data'!$F:$F,"S",'JP SC Raw Data'!$B:$B,"2015/16",'JP SC Raw Data'!$E:$E,"National") -> 8772 | F30: =SUMIFS('JP SC Raw Data'!$I:$I,'JP SC Raw Data'!$F:$F,"S",'JP SC Raw Data'!$B:$B,"2016/17",'JP SC Raw Data'!$E:$E,"National") -> 7047 | G30: =SUMIFS('JP SC Raw Data'!$I:$I,'JP SC Raw Data'!$F:$F,"S",'JP SC Raw Data'!$B:$B,"2017/18",'JP SC Raw Data'!$E:$E,"National") -> 4922 | H30: =SUMIFS('JP SC Raw Data'!$I:$I,'JP SC Raw Data'!$F:$F,"S",'JP SC Raw Data'!$B:$B,"2018/19",'JP SC Raw Data'!$E:$E,"National") -> 4565 | I30: =SUMIFS('JP SC Raw Data'!$I:$I,'JP SC Raw Data'!$F:$F,"S",'JP SC Raw Data'!$B:$B,"2019/20",'JP SC Raw Data'!$E:$E,"National") -> 5114 | J30: =SUMIFS('JP SC Raw Data'!$I:$I,'JP SC Raw Data'!$F:$F,"S",'JP SC Raw Data'!$B:$B,"2020/21",'JP SC Raw Data'!$E:$E,"National") -> 4595 | K30: =SUMIFS('JP SC Raw Data'!$I:$I,'JP SC Raw Data'!$F:$F,"S",'JP SC Raw Data'!$B:$B,"2021/22",'JP SC Raw Data'!$E:$E,"National") -> 5633 | L30: =SUMIFS('JP SC Raw Data'!$I:$I,'JP SC Raw Data'!$F:$F,"S",'JP SC Raw Data'!$B:$B,"2022/23",'JP SC Raw Data'!$E:$E,"National") -> 6340 | M30: =SUMIFS('JP SC Raw Data'!$I:$I,'JP SC Raw Data'!$F:$F,"S",'JP SC Raw Data'!$B:$B,"2023/24",'JP SC Raw Data'!$E:$E,"National") -> 4950
C31: Indictments called at Continued First Diet | D31: =SUMIFS('JP SC Raw Data'!$J:$J,'JP SC Raw Data'!$F:$F,"S",'JP SC Raw Data'!$B:$B,"2014/15",'JP SC Raw Data'!$E:$E,"National") -> 4984 | E31: =SUMIFS('JP SC Raw Data'!$J:$J,'JP SC Raw Data'!$F:$F,"S",'JP SC Raw Data'!$B:$B,"2015/16",'JP SC Raw Data'!$E:$E,"National") -> 3998 | F31: =SUMIFS('JP SC Raw Data'!$J:$J,'JP SC Raw Data'!$F:$F,"S",'JP SC Raw Data'!$B:$B,"2016/17",'JP SC Raw Data'!$E:$E,"National") -> 2595 | G31: =SUMIFS('JP SC Raw Data'!$J:$J,'JP SC Raw Data'!$F:$F,"S",'JP SC Raw Data'!$B:$B,"2017/18",'JP SC Raw Data'!$E:$E,"National") -> 2420 | H31: =SUMIFS('JP SC Raw Data'!$J:$J,'JP SC Raw Data'!$F:$F,"S",'JP SC Raw Data'!$B:$B,"2018/19",'JP SC Raw Data'!$E:$E,"National") -> 2622 | I31: =SUMIFS('JP SC Raw Data'!$J:$J,'JP SC Raw Data'!$F:$F,"S",'JP SC Raw Data'!$B:$B,"2019/20",'JP SC Raw Data'!$E:$E,"National") -> 2963 | J31: =SUMIFS('JP SC Raw Data'!$J:$J,'JP SC Raw Data'!$F:$F,"S",'JP SC Raw Data'!$B:$B,"2020/21",'JP SC Raw Data'!$E:$E,"National") -> 6666 | K31: =SUMIFS('JP SC Raw Data'!$J:$J,'JP SC Raw Data'!$F:$F,"S",'JP SC Raw Data'!$B:$B,"2021/22",'JP SC Raw Data'!$E:$E,"National") -> 8967 | L31: =SUMIFS('JP SC Raw Data'!$J:$J,'JP SC Raw Data'!$F:$F,"S",'JP SC Raw Data'!$B:$B,"2022/23",'JP SC Raw Data'!$E:$E,"National") -> 5931 | M31: =SUMIFS('JP SC Raw Data'!$J:$J,'JP SC Raw Data'!$F:$F,"S",'JP SC Raw Data'!$B:$B,"2023/24",'JP SC Raw Data'!$E:$E,"National") -> 3093
C32: Section 76 indictments | D32: =SUMIFS('JP SC Raw Data'!$K:$K,'JP SC Raw Data'!$F:$F,"S",'JP SC Raw Data'!$B:$B,"2014/15",'JP SC Raw Data'!$E:$E,"National") -> 1260 | E32: =SUMIFS('JP SC Raw Data'!$K:$K,'JP SC Raw Data'!$F:$F,"S",'JP SC Raw Data'!$B:$B,"2015/16",'JP SC Raw Data'!$E:$E,"National") -> 1092 | F32: =SUMIFS('JP SC Raw Data'!$K:$K,'JP SC Raw Data'!$F:$F,"S",'JP SC Raw Data'!$B:$B,"2016/17",'JP SC Raw Data'!$E:$E,"National") -> 1104 | G32: =SUMIFS('JP SC Raw Data'!$K:$K,'JP SC Raw Data'!$F:$F,"S",'JP SC Raw Data'!$B:$B,"2017/18",'JP SC Raw Data'!$E:$E,"National") -> 1034 | H32: =SUMIFS('JP SC Raw Data'!$K:$K,'JP SC Raw Data'!$F:$F,"S",'JP SC Raw Data'!$B:$B,"2018/19",'JP SC Raw Data'!$E:$E,"National") -> 1119 | I32: =SUMIFS('JP SC Raw Data'!$K:$K,'JP SC Raw Data'!$F:$F,"S",'JP SC Raw Data'!$B:$B,"2019/20",'JP SC Raw Data'!$E:$E,"National") -> 1048 | J32: =SUMIFS('JP SC Raw Data'!$K:$K,'JP SC Raw Data'!$F:$F,"S",'JP SC Raw Data'!$B:$B,"2020/21",'JP SC Raw Data'!$E:$E,"National") -> 945 | K32: =SUMIFS('JP SC Raw Data'!$K:$K,'JP SC Raw Data'!$F:$F,"S",'JP SC Raw Data'!$B:$B,"2021/22",'JP SC Raw Data'!$E:$E,"National") -> 1107 | L32: =SUMIFS('JP SC Raw Data'!$K:$K,'JP SC Raw Data'!$F:$F,"S",'JP SC Raw Data'!$B:$B,"2022/23",'JP SC Raw Data'!$E:$E,"National") -> 1140 | M32: =SUMIFS('JP SC Raw Data'!$K:$K,'JP SC Raw Data'!$F:$F,"S",'JP SC Raw Data'!$B:$B,"2023/24",'JP SC Raw Data'!$E:$E,"National") -> 1008
C33: Trials called | D33: =SUMIFS('JP SC Raw Data'!$L:$L,'JP SC Raw Data'!$F:$F,"S",'JP SC Raw Data'!$B:$B,"2014/15",'JP SC Raw Data'!$E:$E,"National") -> 5000 | E33: =SUMIFS('JP SC Raw Data'!$L:$L,'JP SC Raw Data'!$F:$F,"S",'JP SC Raw Data'!$B:$B,"2015/16",'JP SC Raw Data'!$E:$E,"National") -> 5562 | F33: =SUMIFS('JP SC Raw Data'!$L:$L,'JP SC Raw Data'!$F:$F,"S",'JP SC Raw Data'!$B:$B,"2016/17",'JP SC Raw Data'!$E:$E,"National") -> 4294 | G33: =SUMIFS('JP SC Raw Data'!$L:$L,'JP SC Raw Data'!$F:$F,"S",'JP SC Raw Data'!$B:$B,"2017/18",'JP SC Raw Data'!$E:$E,"National") -> 2833 | H33: =SUMIFS('JP SC Raw Data'!$L:$L,'JP SC Raw Data'!$F:$F,"S",'JP SC Raw Data'!$B:$B,"2018/19",'JP SC Raw Data'!$E:$E,"National") -> 2848 | I33: =SUMIFS('JP SC Raw Data'!$L:$L,'JP SC Raw Data'!$F:$F,"S",'JP SC Raw Data'!$B:$B,"2019/20",'JP SC Raw Data'!$E:$E,"National") -> 3142 | J33: =SUMIFS('JP SC Raw Data'!$L:$L,'JP SC Raw Data'!$F:$F,"S",'JP SC Raw Data'!$B:$B,"2020/21",'JP SC Raw Data'!$E:$E,"National") -> 1589 | K33: =SUMIFS('JP SC Raw Data'!$L:$L,'JP SC Raw Data'!$F:$F,"S",'JP SC Raw Data'!$B:$B,"2021/22",'JP SC Raw Data'!$E:$E,"National") -> 4459 | L33: =SUMIFS('JP SC Raw Data'!$L:$L,'JP SC Raw Data'!$F:$F,"S",'JP SC Raw Data'!$B:$B,"2022/23",'JP SC Raw Data'!$E:$E,"National") -> 5997 | M33: =SUMIFS('JP SC Raw Data'!$L:$L,'JP SC Raw Data'!$F:$F,"S",'JP SC Raw Data'!$B:$B,"2023/24",'JP SC Raw Data'!$E:$E,"National") -> 5121
C34: Trials called where evidence was led | D34: =SUMIFS('JP SC Raw Data'!$M:$M,'JP SC Raw Data'!$F:$F,"S",'JP SC Raw Data'!$B:$B,"2014/15",'JP SC Raw Data'!$E:$E,"National") -> 1430 | E34: =SUMIFS('JP SC Raw Data'!$M:$M,'JP SC Raw Data'!$F:$F,"S",'JP SC Raw Data'!$B:$B,"2015/16",'JP SC Raw Data'!$E:$E,"National") -> 1497 | F34: =SUMIFS('JP SC Raw Data'!$M:$M,'JP SC Raw Data'!$F:$F,"S",'JP SC Raw Data'!$B:$B,"2016/17",'JP SC Raw Data'!$E:$E,"National") -> 1314 | G34: =SUMIFS('JP SC Raw Data'!$M:$M,'JP SC Raw Data'!$F:$F,"S",'JP SC Raw Data'!$B:$B,"2017/18",'JP SC Raw Data'!$E:$E,"National") -> 1041 | H34: =SUMIFS('JP SC Raw Data'!$M:$M,'JP SC Raw Data'!$F:$F,"S",'JP SC Raw Data'!$B:$B,"2018/19",'JP SC Raw Data'!$E:$E,"National") -> 1119 | I34: =SUMIFS('JP SC Raw Data'!$M:$M,'JP SC Raw Data'!$F:$F,"S",'JP SC Raw Data'!$B:$B,"2019/20",'JP SC Raw Data'!$E:$E,"National") -> 1134 | J34: =SUMIFS('JP SC Raw Data'!$M:$M,'JP SC Raw Data'!$F:$F,"S",'JP SC Raw Data'!$B:$B,"2020/21",'JP SC Raw Data'!$E:$E,"National") -> 197 | K34: =SUMIFS('JP SC Raw Data'!$M:$M,'JP SC Raw Data'!$F:$F,"S",'JP SC Raw Data'!$B:$B,"2021/22",'JP SC Raw Data'!$E:$E,"National") -> 907 | L34: =SUMIFS('JP SC Raw Data'!$M:$M,'JP SC Raw Data'!$F:$F,"S",'JP SC Raw Data'!$B:$B,"2022/23",'JP SC Raw Data'!$E:$E,"National") -> 1061 | M34: =SUMIFS('JP SC Raw Data'!$M:$M,'JP SC Raw Data'!$F:$F,"S",'JP SC Raw Data'!$B:$B,"2023/24",'JP SC Raw Data'!$E:$E,"National") -> 959
C35: Trials adjourned due to lack of court time | D35: =SUMIFS('JP SC Raw Data'!$N:$N,'JP SC Raw Data'!$F:$F,"S",'JP SC Raw Data'!$B:$B,"2014/15",'JP SC Raw Data'!$E:$E,"National") -> 353 | E35: =SUMIFS('JP SC Raw Data'!$N:$N,'JP SC Raw Data'!$F:$F,"S",'JP SC Raw Data'!$B:$B,"2015/16",'JP SC Raw Data'!$E:$E,"National") -> 343 | F35: =SUMIFS('JP SC Raw Data'!$N:$N,'JP SC Raw Data'!$F:$F,"S",'JP SC Raw Data'!$B:$B,"2016/17",'JP SC Raw Data'!$E:$E,"National") -> 215 | G35: =SUMIFS('JP SC Raw Data'!$N:$N,'JP SC Raw Data'!$F:$F,"S",'JP SC Raw Data'!$B:$B,"2017/18",'JP SC Raw Data'!$E:$E,"National") -> 108 | H35: =SUMIFS('JP SC Raw Data'!$N:$N,'JP SC Raw Data'!$F:$F,"S",'JP SC Raw Data'!$B:$B,"2018/19",'JP SC Raw Data'!$E:$E,"National") -> 56 | I35: =SUMIFS('JP SC Raw Data'!$N:$N,'JP SC Raw Data'!$F:$F,"S",'JP SC Raw Data'!$B:$B,"2019/20",'JP SC Raw Data'!$E:$E,"National") -> 57 | J35: =SUMIFS('JP SC Raw Data'!$N:$N,'JP SC Raw Data'!$F:$F,"S",'JP SC Raw Data'!$B:$B,"2020/21",'JP SC Raw Data'!$E:$E,"National") -> 35 | K35: =SUMIFS('JP SC Raw Data'!$N:$N,'JP SC Raw Data'!$F:$F,"S",'JP SC Raw Data'!$B:$B,"2021/22",'JP SC Raw Data'!$E:$E,"National") -> 293 | L35: =SUMIFS('JP SC Raw Data'!$N:$N,'JP SC Raw Data'!$F:$F,"S",'JP SC Raw Data'!$B:$B,"2022/23",'JP SC Raw Data'!$E:$E,"National") -> 580 | M35: =SUMIFS('JP SC Raw Data'!$N:$N,'JP SC Raw Data'!$F:$F,"S",'JP SC Raw Data'!$B:$B,"2023/24",'JP SC Raw Data'!$E:$E,"National") -> 205
C36: Percentage of trials adjourned due to lack of court time | D36: =SUM(D35/D33) -> 0.0706 | E36: 0.06166846458 | F36: 0.05006986493 | G36: 0.03812213202 | H36: 0.01966292135 | I36: 0.01814131127 | J36: =SUM(J35/J33) -> 0.02202643172 | K36: =SUM(K35/K33) -> 0.0657098004 | L36: =SUM(L35/L33) -> 0.09671502418 | M36: =SUM(M35/M33) -> 0.0400312439
C37: Trials scheduled at end of period | D37: =SUMIFS('JP SC Raw Data'!$O:$O,'JP SC Raw Data'!$B:$B,"2014/15",'JP SC Raw Data'!$C:$C,"Q4",'JP SC Raw Data'!$D:$D,"0") -> 886 | E37: =SUMIFS('JP SC Raw Data'!$O:$O,'JP SC Raw Data'!$B:$B,"2015/16",'JP SC Raw Data'!$C:$C,"Q4",'JP SC Raw Data'!$D:$D,"0") -> 787 | F37: =SUMIFS('JP SC Raw Data'!$O:$O,'JP SC Raw Data'!$B:$B,"2016/17",'JP SC Raw Data'!$C:$C,"Q4",'JP SC Raw Data'!$D:$D,"0") -> 510 | G37: =SUMIFS('JP SC Raw Data'!$O:$O,'JP SC Raw Data'!$B:$B,"2017/18",'JP SC Raw Data'!$C:$C,"Q4",'JP SC Raw Data'!$D:$D,"0") -> 355 | H37: =SUMIFS('JP SC Raw Data'!$O:$O,'JP SC Raw Data'!$B:$B,"2018/19",'JP SC Raw Data'!$C:$C,"Q4",'JP SC Raw Data'!$D:$D,"0") -> 496 | I37: =SUMIFS('JP SC Raw Data'!$O:$O,'JP SC Raw Data'!$B:$B,"2019/20",'JP SC Raw Data'!$C:$C,"Q4",'JP SC Raw Data'!$D:$D,"0") -> 497 | J37: =SUMIFS('JP SC Raw Data'!$O:$O,'JP SC Raw Data'!$B:$B,"2020/21",'JP SC Raw Data'!$C:$C,"Q4",'JP SC Raw Data'!$D:$D,"0") -> 1329 | K37: =SUMIFS('JP SC Raw Data'!$O:$O,'JP SC Raw Data'!$B:$B,"2021/22",'JP SC Raw Data'!$C:$C,"Q4",'JP SC Raw Data'!$D:$D,"0") -> 2274 | L37: =SUMIFS('JP SC Raw Data'!$O:$O,'JP SC Raw Data'!$B:$B,"2022/23",'JP SC Raw Data'!$C:$C,"Q4",'JP SC Raw Data'!$D:$D,"0") -> 2389 | M37: =SUMIFS('JP SC Raw Data'!$O:$O,'JP SC Raw Data'!$B:$B,'JP SC Raw Data'!$BA$2,'JP SC Raw Data'!$C:$C,'JP SC Raw Data'!$BB$2,'JP SC Raw Data'!$D:$D,"0") -> 1945
C38: Indictments concluded | D38: =SUMIFS('JP SC Raw Data'!$P:$P,'JP SC Raw Data'!$F:$F,"S",'JP SC Raw Data'!$B:$B,"2014/15",'JP SC Raw Data'!$E:$E,"National") -> 5607 | E38: =SUMIFS('JP SC Raw Data'!$P:$P,'JP SC Raw Data'!$F:$F,"S",'JP SC Raw Data'!$B:$B,"2015/16",'JP SC Raw Data'!$E:$E,"National") -> 5701 | F38: =SUMIFS('JP SC Raw Data'!$P:$P,'JP SC Raw Data'!$F:$F,"S",'JP SC Raw Data'!$B:$B,"2016/17",'JP SC Raw Data'!$E:$E,"National") -> 5335 | G38: =SUMIFS('JP SC Raw Data'!$P:$P,'JP SC Raw Data'!$F:$F,"S",'JP SC Raw Data'!$B:$B,"2017/18",'JP SC Raw Data'!$E:$E,"National") -> 4533 | H38: =SUMIFS('JP SC Raw Data'!$P:$P,'JP SC Raw Data'!$F:$F,"S",'JP SC Raw Data'!$B:$B,"2018/19",'JP SC Raw Data'!$E:$E,"National") -> 4799 | I38: =SUMIFS('JP SC Raw Data'!$P:$P,'JP SC Raw Data'!$F:$F,"S",'JP SC Raw Data'!$B:$B,"2019/20",'JP SC Raw Data'!$E:$E,"National") -> 5841 | J38: =SUMIFS('JP SC Raw Data'!$P:$P,'JP SC Raw Data'!$F:$F,"S",'JP SC Raw Data'!$B:$B,"2020/21",'JP SC Raw Data'!$E:$E,"National") -> 3750 | K38: =SUMIFS('JP SC Raw Data'!$P:$P,'JP SC Raw Data'!$F:$F,"S",'JP SC Raw Data'!$B:$B,"2021/22",'JP SC Raw Data'!$E:$E,"National") -> 6172 | L38: =SUMIFS('JP SC Raw Data'!$P:$P,'JP SC Raw Data'!$F:$F,"S",'JP SC Raw Data'!$B:$B,"2022/23",'JP SC Raw Data'!$E:$E,"National") -> 6986 | M38: =SUMIFS('JP SC Raw Data'!$P:$P,'JP SC Raw Data'!$F:$F,"S",'JP SC Raw Data'!$B:$B,"2023/24",'JP SC Raw Data'!$E:$E,"National") -> 5971
B40: Sheriff Court -Summary business | C40: Complaints registered | D40: =SUMIFS('JP SC Raw Data'!$AD:$AD,'JP SC Raw Data'!$F:$F,"S",'JP SC Raw Data'!$B:$B,"2014/15",'JP SC Raw Data'!$E:$E,"National") -> 71350 | E40: =SUMIFS('JP SC Raw Data'!$AD:$AD,'JP SC Raw Data'!$F:$F,"S",'JP SC Raw Data'!$B:$B,"2015/16",'JP SC Raw Data'!$E:$E,"National") -> 72242 | F40: =SUMIFS('JP SC Raw Data'!$AD:$AD,'JP SC Raw Data'!$F:$F,"S",'JP SC Raw Data'!$B:$B,"2016/17",'JP SC Raw Data'!$E:$E,"National") -> 70717 | G40: =SUMIFS('JP SC Raw Data'!$AD:$AD,'JP SC Raw Data'!$F:$F,"S",'JP SC Raw Data'!$B:$B,"2017/18",'JP SC Raw Data'!$E:$E,"National") -> 65646 | H40: =SUMIFS('JP SC Raw Data'!$AD:$AD,'JP SC Raw Data'!$F:$F,"S",'JP SC Raw Data'!$B:$B,"2018/19",'JP SC Raw Data'!$E:$E,"National") -> 59777 | I40: =SUMIFS('JP SC Raw Data'!$AD:$AD,'JP SC Raw Data'!$F:$F,"S",'JP SC Raw Data'!$B:$B,"2019/20",'JP SC Raw Data'!$E:$E,"National") -> 65490 | J40: =SUMIFS('JP SC Raw Data'!$AD:$AD,'JP SC Raw Data'!$F:$F,"S",'JP SC Raw Data'!$B:$B,"2020/21",'JP SC Raw Data'!$E:$E,"National") -> 54110 | K40: =SUMIFS('JP SC Raw Data'!$AD:$AD,'JP SC Raw Data'!$F:$F,"S",'JP SC Raw Data'!$B:$B,"2021/22",'JP SC Raw Data'!$E:$E,"National") -> 55506 | L40: =SUMIFS('JP SC Raw Data'!$AD:$AD,'JP SC Raw Data'!$F:$F,"S",'JP SC Raw Data'!$B:$B,"2022/23",'JP SC Raw Data'!$E:$E,"National") -> 57226 | M40: =SUMIFS('JP SC Raw Data'!$AD:$AD,'JP SC Raw Data'!$F:$F,"S",'JP SC Raw Data'!$B:$B,"2023/24",'JP SC Raw Data'!$E:$E,"National") -> 48770
C41: Complaints called for first time | D41: =SUMIFS('JP SC Raw Data'!$AE:$AE,'JP SC Raw Data'!$F:$F,"S",'JP SC Raw Data'!$B:$B,"2014/15",'JP SC Raw Data'!$E:$E,"National") -> 62864 | E41: =SUMIFS('JP SC Raw Data'!$AE:$AE,'JP SC Raw Data'!$F:$F,"S",'JP SC Raw Data'!$B:$B,"2015/16",'JP SC Raw Data'!$E:$E,"National") -> 63996 | F41: =SUMIFS('JP SC Raw Data'!$AE:$AE,'JP SC Raw Data'!$F:$F,"S",'JP SC Raw Data'!$B:$B,"2016/17",'JP SC Raw Data'!$E:$E,"National") -> 63200 | G41: =SUMIFS('JP SC Raw Data'!$AE:$AE,'JP SC Raw Data'!$F:$F,"S",'JP SC Raw Data'!$B:$B,"2017/18",'JP SC Raw Data'!$E:$E,"National") -> 60290 | H41: =SUMIFS('JP SC Raw Data'!$AE:$AE,'JP SC Raw Data'!$F:$F,"S",'JP SC Raw Data'!$B:$B,"2018/19",'JP SC Raw Data'!$E:$E,"National") -> 55881 | I41: =SUMIFS('JP SC Raw Data'!$AE:$AE,'JP SC Raw Data'!$F:$F,"S",'JP SC Raw Data'!$B:$B,"2019/20",'JP SC Raw Data'!$E:$E,"National") -> 61761 | J41: =SUMIFS('JP SC Raw Data'!$AE:$AE,'JP SC Raw Data'!$F:$F,"S",'JP SC Raw Data'!$B:$B,"2020/21",'JP SC Raw Data'!$E:$E,"National") -> 49508 | K41: =SUMIFS('JP SC Raw Data'!$AE:$AE,'JP SC Raw Data'!$F:$F,"S",'JP SC Raw Data'!$B:$B,"2021/22",'JP SC Raw Data'!$E:$E,"National") -> 53357 | L41: =SUMIFS('JP SC Raw Data'!$AE:$AE,'JP SC Raw Data'!$F:$F,"S",'JP SC Raw Data'!$B:$B,"2022/23",'JP SC Raw Data'!$E:$E,"National") -> 53967 | M41: =SUMIFS('JP SC Raw Data'!$AE:$AE,'JP SC Raw Data'!$F:$F,"S",'JP SC Raw Data'!$B:$B,"2023/24",'JP SC Raw Data'!$E:$E,"National") -> 46247
C42: Complaints called for 'Continued Without Plea' hearing | D42: =SUMIFS('JP SC Raw Data'!$AF:$AF,'JP SC Raw Data'!$F:$F,"S",'JP SC Raw Data'!$B:$B,"2014/15",'JP SC Raw Data'!$E:$E,"National") -> 13380 | E42: =SUMIFS('JP SC Raw Data'!$AF:$AF,'JP SC Raw Data'!$F:$F,"S",'JP SC Raw Data'!$B:$B,"2015/16",'JP SC Raw Data'!$E:$E,"National") -> 13571 | F42: =SUMIFS('JP SC Raw Data'!$AF:$AF,'JP SC Raw Data'!$F:$F,"S",'JP SC Raw Data'!$B:$B,"2016/17",'JP SC Raw Data'!$E:$E,"National") -> 14800 | G42: =SUMIFS('JP SC Raw Data'!$AF:$AF,'JP SC Raw Data'!$F:$F,"S",'JP SC Raw Data'!$B:$B,"2017/18",'JP SC Raw Data'!$E:$E,"National") -> 13990 | H42: =SUMIFS('JP SC Raw Data'!$AF:$AF,'JP SC Raw Data'!$F:$F,"S",'JP SC Raw Data'!$B:$B,"2018/19",'JP SC Raw Data'!$E:$E,"National") -> 12163 | I42: =SUMIFS('JP SC Raw Data'!$AF:$AF,'JP SC Raw Data'!$F:$F,"S",'JP SC Raw Data'!$B:$B,"2019/20",'JP SC Raw Data'!$E:$E,"National") -> 14851 | J42: =SUMIFS('JP SC Raw Data'!$AF:$AF,'JP SC Raw Data'!$F:$F,"S",'JP SC Raw Data'!$B:$B,"2020/21",'JP SC Raw Data'!$E:$E,"National") -> 28932 | K42: =SUMIFS('JP SC Raw Data'!$AF:$AF,'JP SC Raw Data'!$F:$F,"S",'JP SC Raw Data'!$B:$B,"2021/22",'JP SC Raw Data'!$E:$E,"National") -> 27165 | L42: =SUMIFS('JP SC Raw Data'!$AF:$AF,'JP SC Raw Data'!$F:$F,"S",'JP SC Raw Data'!$B:$B,"2022/23",'JP SC Raw Data'!$E:$E,"National") -> 22284 | M42: =SUMIFS('JP SC Raw Data'!$AF:$AF,'JP SC Raw Data'!$F:$F,"S",'JP SC Raw Data'!$B:$B,"2023/24",'JP SC Raw Data'!$E:$E,"National") -> 21168
C43: Complaints called in Intermediate Diet court | D43: =SUMIFS('JP SC Raw Data'!$AG:$AG,'JP SC Raw Data'!$F:$F,"S",'JP SC Raw Data'!$B:$B,"2014/15",'JP SC Raw Data'!$E:$E,"National") -> 82076 | E43: =SUMIFS('JP SC Raw Data'!$AG:$AG,'JP SC Raw Data'!$F:$F,"S",'JP SC Raw Data'!$B:$B,"2015/16",'JP SC Raw Data'!$E:$E,"National") -> 87127 | F43: =SUMIFS('JP SC Raw Data'!$AG:$AG,'JP SC Raw Data'!$F:$F,"S",'JP SC Raw Data'!$B:$B,"2016/17",'JP SC Raw Data'!$E:$E,"National") -> 79245 | G43: =SUMIFS('JP SC Raw Data'!$AG:$AG,'JP SC Raw Data'!$F:$F,"S",'JP SC Raw Data'!$B:$B,"2017/18",'JP SC Raw Data'!$E:$E,"National") -> 73970 | H43: =SUMIFS('JP SC Raw Data'!$AG:$AG,'JP SC Raw Data'!$F:$F,"S",'JP SC Raw Data'!$B:$B,"2018/19",'JP SC Raw Data'!$E:$E,"National") -> 67979 | I43: =SUMIFS('JP SC Raw Data'!$AG:$AG,'JP SC Raw Data'!$F:$F,"S",'JP SC Raw Data'!$B:$B,"2019/20",'JP SC Raw Data'!$E:$E,"National") -> 70652 | J43: =SUMIFS('JP SC Raw Data'!$AG:$AG,'JP SC Raw Data'!$F:$F,"S",'JP SC Raw Data'!$B:$B,"2020/21",'JP SC Raw Data'!$E:$E,"National") -> 62227 | K43: =SUMIFS('JP SC Raw Data'!$AG:$AG,'JP SC Raw Data'!$F:$F,"S",'JP SC Raw Data'!$B:$B,"2021/22",'JP SC Raw Data'!$E:$E,"National") -> 90718 | L43: =SUMIFS('JP SC Raw Data'!$AG:$AG,'JP SC Raw Data'!$F:$F,"S",'JP SC Raw Data'!$B:$B,"2022/23",'JP SC Raw Data'!$E:$E,"National") -> 94023 | M43: =SUMIFS('JP SC Raw Data'!$AG:$AG,'JP SC Raw Data'!$F:$F,"S",'JP SC Raw Data'!$B:$B,"2023/24",'JP SC Raw Data'!$E:$E,"National") -> 60932
C44: Trials called | D44: =SUMIFS('JP SC Raw Data'!$AH:$AH,'JP SC Raw Data'!$F:$F,"S",'JP SC Raw Data'!$B:$B,"2014/15",'JP SC Raw Data'!$E:$E,"National") -> 46352 | E44: =SUMIFS('JP SC Raw Data'!$AH:$AH,'JP SC Raw Data'!$F:$F,"S",'JP SC Raw Data'!$B:$B,"2015/16",'JP SC Raw Data'!$E:$E,"National") -> 52366 | F44: =SUMIFS('JP SC Raw Data'!$AH:$AH,'JP SC Raw Data'!$F:$F,"S",'JP SC Raw Data'!$B:$B,"2016/17",'JP SC Raw Data'!$E:$E,"National") -> 49767 | G44: =SUMIFS('JP SC Raw Data'!$AH:$AH,'JP SC Raw Data'!$F:$F,"S",'JP SC Raw Data'!$B:$B,"2017/18",'JP SC Raw Data'!$E:$E,"National") -> 49259 | H44: =SUMIFS('JP SC Raw Data'!$AH:$AH,'JP SC Raw Data'!$F:$F,"S",'JP SC Raw Data'!$B:$B,"2018/19",'JP SC Raw Data'!$E:$E,"National") -> 43742 | I44: =SUMIFS('JP SC Raw Data'!$AH:$AH,'JP SC Raw Data'!$F:$F,"S",'JP SC Raw Data'!$B:$B,"2019/20",'JP SC Raw Data'!$E:$E,"National") -> 40729 | J44: =SUMIFS('JP SC Raw Data'!$AH:$AH,'JP SC Raw Data'!$F:$F,"S",'JP SC Raw Data'!$B:$B,"2020/21",'JP SC Raw Data'!$E:$E,"National") -> 23722 | K44: =SUMIFS('JP SC Raw Data'!$AH:$AH,'JP SC Raw Data'!$F:$F,"S",'JP SC Raw Data'!$B:$B,"2021/22",'JP SC Raw Data'!$E:$E,"National") -> 52452 | L44: =SUMIFS('JP SC Raw Data'!$AH:$AH,'JP SC Raw Data'!$F:$F,"S",'JP SC Raw Data'!$B:$B,"2022/23",'JP SC Raw Data'!$E:$E,"National") -> 62350 | M44: =SUMIFS('JP SC Raw Data'!$AH:$AH,'JP SC Raw Data'!$F:$F,"S",'JP SC Raw Data'!$B:$B,"2023/24",'JP SC Raw Data'!$E:$E,"National") -> 36818
C45: Trials called where evidence was led | D45: =SUMIFS('JP SC Raw Data'!$AI:$AI,'JP SC Raw Data'!$F:$F,"S",'JP SC Raw Data'!$B:$B,"2014/15",'JP SC Raw Data'!$E:$E,"National") -> 8912 | E45: =SUMIFS('JP SC Raw Data'!$AI:$AI,'JP SC Raw Data'!$F:$F,"S",'JP SC Raw Data'!$B:$B,"2015/16",'JP SC Raw Data'!$E:$E,"National") -> 9425 | F45: =SUMIFS('JP SC Raw Data'!$AI:$AI,'JP SC Raw Data'!$F:$F,"S",'JP SC Raw Data'!$B:$B,"2016/17",'JP SC Raw Data'!$E:$E,"National") -> 8982 | G45: =SUMIFS('JP SC Raw Data'!$AI:$AI,'JP SC Raw Data'!$F:$F,"S",'JP SC Raw Data'!$B:$B,"2017/18",'JP SC Raw Data'!$E:$E,"National") -> 8245 | H45: =SUMIFS('JP SC Raw Data'!$AI:$AI,'JP SC Raw Data'!$F:$F,"S",'JP SC Raw Data'!$B:$B,"2018/19",'JP SC Raw Data'!$E:$E,"National") -> 7731 | I45: =SUMIFS('JP SC Raw Data'!$AI:$AI,'JP SC Raw Data'!$F:$F,"S",'JP SC Raw Data'!$B:$B,"2019/20",'JP SC Raw Data'!$E:$E,"National") -> 6946 | J45: =SUMIFS('JP SC Raw Data'!$AI:$AI,'JP SC Raw Data'!$F:$F,"S",'JP SC Raw Data'!$B:$B,"2020/21",'JP SC Raw Data'!$E:$E,"National") -> 2721 | K45: =SUMIFS('JP SC Raw Data'!$AI:$AI,'JP SC Raw Data'!$F:$F,"S",'JP SC Raw Data'!$B:$B,"2021/22",'JP SC Raw Data'!$E:$E,"National") -> 5503 | L45: =SUMIFS('JP SC Raw Data'!$AI:$AI,'JP SC Raw Data'!$F:$F,"S",'JP SC Raw Data'!$B:$B,"2022/23",'JP SC Raw Data'!$E:$E,"National") -> 6380 | M45: =SUMIFS('JP SC Raw Data'!$AI:$AI,'JP SC Raw Data'!$F:$F,"S",'JP SC Raw Data'!$B:$B,"2023/24",'JP SC Raw Data'!$E:$E,"National") -> 4100
C46: Trials adjourned due to lack of court time | D46: =SUMIFS('JP SC Raw Data'!$AJ:$AJ,'JP SC Raw Data'!$F:$F,"S",'JP SC Raw Data'!$B:$B,"2014/15",'JP SC Raw Data'!$E:$E,"National") -> 2847 | E46: =SUMIFS('JP SC Raw Data'!$AJ:$AJ,'JP SC Raw Data'!$F:$F,"S",'JP SC Raw Data'!$B:$B,"2015/16",'JP SC Raw Data'!$E:$E,"National") -> 3218 | F46: =SUMIFS('JP SC Raw Data'!$AJ:$AJ,'JP SC Raw Data'!$F:$F,"S",'JP SC Raw Data'!$B:$B,"2016/17",'JP SC Raw Data'!$E:$E,"National") -> 2706 | G46: =SUMIFS('JP SC Raw Data'!$AJ:$AJ,'JP SC Raw Data'!$F:$F,"S",'JP SC Raw Data'!$B:$B,"2017/18",'JP SC Raw Data'!$E:$E,"National") -> 2331 | H46: =SUMIFS('JP SC Raw Data'!$AJ:$AJ,'JP SC Raw Data'!$F:$F,"S",'JP SC Raw Data'!$B:$B,"2018/19",'JP SC Raw Data'!$E:$E,"National") -> 1755 | I46: =SUMIFS('JP SC Raw Data'!$AJ:$AJ,'JP SC Raw Data'!$F:$F,"S",'JP SC Raw Data'!$B:$B,"2019/20",'JP SC Raw Data'!$E:$E,"National") -> 1230 | J46: =SUMIFS('JP SC Raw Data'!$AJ:$AJ,'JP SC Raw Data'!$F:$F,"S",'JP SC Raw Data'!$B:$B,"2020/21",'JP SC Raw Data'!$E:$E,"National") -> 287 | K46: =SUMIFS('JP SC Raw Data'!$AJ:$AJ,'JP SC Raw Data'!$F:$F,"S",'JP SC Raw Data'!$B:$B,"2021/22",'JP SC Raw Data'!$E:$E,"National") -> 883 | L46: =SUMIFS('JP SC Raw Data'!$AJ:$AJ,'JP SC Raw Data'!$F:$F,"S",'JP SC Raw Data'!$B:$B,"2022/23",'JP SC Raw Data'!$E:$E,"National") -> 996 | M46: =SUMIFS('JP SC Raw Data'!$AJ:$AJ,'JP SC Raw Data'!$F:$F,"S",'JP SC Raw Data'!$B:$B,"2023/24",'JP SC Raw Data'!$E:$E,"National") -> 899
C47: Percentage of trials adjourned due to lack of court time | D47: =SUM(D46/D44) -> 0.06142129789 | E47: 0.06145208723 | F47: 0.05437337995 | G47: 0.04732130169 | H47: 0.04012162224 | I47: 0.03019961207 | J47: =SUM(J46/J44) -> 0.01209847399 | K47: =SUM(K46/K44) -> 0.01683443911 | L47: =SUM(L46/L44) -> 0.01597433841 | M47: =SUM(M46/M44) -> 0.02441740453
C48: Trials scheduled at end of period | D48: =SUMIFS('JP SC Raw Data'!$AK:$AK,'JP SC Raw Data'!$B:$B,D4,'JP SC Raw Data'!$C:$C,"Q4",'JP SC Raw Data'!$D:$D,"0") -> 20298 | E48: =SUMIFS('JP SC Raw Data'!$AK:$AK,'JP SC Raw Data'!$B:$B,E4,'JP SC Raw Data'!$C:$C,"Q4",'JP SC Raw Data'!$D:$D,"0") -> 18297 | F48: =SUMIFS('JP SC Raw Data'!$AK:$AK,'JP SC Raw Data'!$B:$B,F4,'JP SC Raw Data'!$C:$C,"Q4",'JP SC Raw Data'!$D:$D,"0") -> 16013 | G48: =SUMIFS('JP SC Raw Data'!$AK:$AK,'JP SC Raw Data'!$B:$B,G4,'JP SC Raw Data'!$C:$C,"Q4",'JP SC Raw Data'!$D:$D,"0") -> 13839 | H48: =SUMIFS('JP SC Raw Data'!$AK:$AK,'JP SC Raw Data'!$B:$B,H4,'JP SC Raw Data'!$C:$C,"Q4",'JP SC Raw Data'!$D:$D,"0") -> 11272 | I48: =SUMIFS('JP SC Raw Data'!$AK:$AK,'JP SC Raw Data'!$B:$B,I4,'JP SC Raw Data'!$C:$C,"Q4",'JP SC Raw Data'!$D:$D,"0") -> 13971 | J48: =SUMIFS('JP SC Raw Data'!$AK:$AK,'JP SC Raw Data'!$B:$B,J4,'JP SC Raw Data'!$C:$C,"Q4",'JP SC Raw Data'!$D:$D,"0") -> 30645 | K48: =SUMIFS('JP SC Raw Data'!$AK:$AK,'JP SC Raw Data'!$B:$B,K4,'JP SC Raw Data'!$C:$C,"Q4",'JP SC Raw Data'!$D:$D,"0") -> 30520 | L48: =SUMIFS('JP SC Raw Data'!$AK:$AK,'JP SC Raw Data'!$B:$B,L4,'JP SC Raw Data'!$C:$C,"Q4",'JP SC Raw Data'!$D:$D,"0") -> 20064 | M48: =SUMIFS('JP SC Raw Data'!$AK:$AK,'JP SC Raw Data'!$B:$B,'JP SC Raw Data'!$BA$2,'JP SC Raw Data'!$C:$C,'JP SC Raw Data'!$BB$2,'JP SC Raw Data'!$D:$D,"0") -> 21611
C49: Complaints concluded | D49: =SUMIFS('JP SC Raw Data'!$AL:$AL,'JP SC Raw Data'!$F:$F,"S",'JP SC Raw Data'!$B:$B,"2014/15",'JP SC Raw Data'!$E:$E,"National") -> 66209 | E49: =SUMIFS('JP SC Raw Data'!$AL:$AL,'JP SC Raw Data'!$F:$F,"S",'JP SC Raw Data'!$B:$B,"2015/16",'JP SC Raw Data'!$E:$E,"National") -> 68907 | F49: =SUMIFS('JP SC Raw Data'!$AL:$AL,'JP SC Raw Data'!$F:$F,"S",'JP SC Raw Data'!$B:$B,"2016/17",'JP SC Raw Data'!$E:$E,"National") -> 67702 | G49: =SUMIFS('JP SC Raw Data'!$AL:$AL,'JP SC Raw Data'!$F:$F,"S",'JP SC Raw Data'!$B:$B,"2017/18",'JP SC Raw Data'!$E:$E,"National") -> 62675 | H49: =SUMIFS('JP SC Raw Data'!$AL:$AL,'JP SC Raw Data'!$F:$F,"S",'JP SC Raw Data'!$B:$B,"2018/19",'JP SC Raw Data'!$E:$E,"National") -> 57982 | I49: =SUMIFS('JP SC Raw Data'!$AL:$AL,'JP SC Raw Data'!$F:$F,"S",'JP SC Raw Data'!$B:$B,"2019/20",'JP SC Raw Data'!$E:$E,"National") -> 62041 | J49: =SUMIFS('JP SC Raw Data'!$AL:$AL,'JP SC Raw Data'!$F:$F,"S",'JP SC Raw Data'!$B:$B,"2020/21",'JP SC Raw Data'!$E:$E,"National") -> 34419 | K49: =SUMIFS('JP SC Raw Data'!$AL:$AL,'JP SC Raw Data'!$F:$F,"S",'JP SC Raw Data'!$B:$B,"2021/22",'JP SC Raw Data'!$E:$E,"National") -> 56721 | L49: =SUMIFS('JP SC Raw Data'!$AL:$AL,'JP SC Raw Data'!$F:$F,"S",'JP SC Raw Data'!$B:$B,"2022/23",'JP SC Raw Data'!$E:$E,"National") -> 66977 | M49: =SUMIFS('JP SC Raw Data'!$AL:$AL,'JP SC Raw Data'!$F:$F,"S",'JP SC Raw Data'!$B:$B,"2023/24",'JP SC Raw Data'!$E:$E,"National") -> 46444
B51: Justice of the Peace Court | C51: Complaints registered during period | D51: =SUMIFS('JP SC Raw Data'!$AD:$AD,'JP SC Raw Data'!$F:$F,"J",'JP SC Raw Data'!$B:$B,"2014/15",'JP SC Raw Data'!$E:$E,"National") -> 66819 | E51: =SUMIFS('JP SC Raw Data'!$AD:$AD,'JP SC Raw Data'!$F:$F,"J",'JP SC Raw Data'!$B:$B,"2015/16",'JP SC Raw Data'!$E:$E,"National") -> 54856 | F51: =SUMIFS('JP SC Raw Data'!$AD:$AD,'JP SC Raw Data'!$F:$F,"J",'JP SC Raw Data'!$B:$B,"2016/17",'JP SC Raw Data'!$E:$E,"National") -> 41402 | G51: =SUMIFS('JP SC Raw Data'!$AD:$AD,'JP SC Raw Data'!$F:$F,"J",'JP SC Raw Data'!$B:$B,"2017/18",'JP SC Raw Data'!$E:$E,"National") -> 38538 | H51: =SUMIFS('JP SC Raw Data'!$AD:$AD,'JP SC Raw Data'!$F:$F,"J",'JP SC Raw Data'!$B:$B,"2018/19",'JP SC Raw Data'!$E:$E,"National") -> 36955 | I51: =SUMIFS('JP SC Raw Data'!$AD:$AD,'JP SC Raw Data'!$F:$F,"J",'JP SC Raw Data'!$B:$B,"2019/20",'JP SC Raw Data'!$E:$E,"National") -> 33582 | J51: =SUMIFS('JP SC Raw Data'!$AD:$AD,'JP SC Raw Data'!$F:$F,"J",'JP SC Raw Data'!$B:$B,"2020/21",'JP SC Raw Data'!$E:$E,"National") -> 16932 | K51: =SUMIFS('JP SC Raw Data'!$AD:$AD,'JP SC Raw Data'!$F:$F,"J",'JP SC Raw Data'!$B:$B,"2021/22",'JP SC Raw Data'!$E:$E,"National") -> 23557 | L51: =SUMIFS('JP SC Raw Data'!$AD:$AD,'JP SC Raw Data'!$F:$F,"J",'JP SC Raw Data'!$B:$B,"2022/23",'JP SC Raw Data'!$E:$E,"National") -> 21756 | M51: =SUMIFS('JP SC Raw Data'!$AD:$AD,'JP SC Raw Data'!$F:$F,"J",'JP SC Raw Data'!$B:$B,"2023/24",'JP SC Raw Data'!$E:$E,"National") -> 13862
C52: Complaints called for first time | D52: =SUMIFS('JP SC Raw Data'!$AE:$AE,'JP SC Raw Data'!$F:$F,"J",'JP SC Raw Data'!$B:$B,"2014/15",'JP SC Raw Data'!$E:$E,"National") -> 63605 | E52: =SUMIFS('JP SC Raw Data'!$AE:$AE,'JP SC Raw Data'!$F:$F,"J",'JP SC Raw Data'!$B:$B,"2015/16",'JP SC Raw Data'!$E:$E,"National") -> 51904 | F52: =SUMIFS('JP SC Raw Data'!$AE:$AE,'JP SC Raw Data'!$F:$F,"J",'JP SC Raw Data'!$B:$B,"2016/17",'JP SC Raw Data'!$E:$E,"National") -> 39875 | G52: =SUMIFS('JP SC Raw Data'!$AE:$AE,'JP SC Raw Data'!$F:$F,"J",'JP SC Raw Data'!$B:$B,"2017/18",'JP SC Raw Data'!$E:$E,"National") -> 37819 | H52: =SUMIFS('JP SC Raw Data'!$AE:$AE,'JP SC Raw Data'!$F:$F,"J",'JP SC Raw Data'!$B:$B,"2018/19",'JP SC Raw Data'!$E:$E,"National") -> 36706 | I52: =SUMIFS('JP SC Raw Data'!$AE:$AE,'JP SC Raw Data'!$F:$F,"J",'JP SC Raw Data'!$B:$B,"2019/20",'JP SC Raw Data'!$E:$E,"National") -> 33066 | J52: =SUMIFS('JP SC Raw Data'!$AE:$AE,'JP SC Raw Data'!$F:$F,"J",'JP SC Raw Data'!$B:$B,"2020/21",'JP SC Raw Data'!$E:$E,"National") -> 14663 | K52: =SUMIFS('JP SC Raw Data'!$AE:$AE,'JP SC Raw Data'!$F:$F,"J",'JP SC Raw Data'!$B:$B,"2021/22",'JP SC Raw Data'!$E:$E,"National") -> 21360 | L52: =SUMIFS('JP SC Raw Data'!$AE:$AE,'JP SC Raw Data'!$F:$F,"J",'JP SC Raw Data'!$B:$B,"2022/23",'JP SC Raw Data'!$E:$E,"National") -> 22148 | M52: =SUMIFS('JP SC Raw Data'!$AE:$AE,'JP SC Raw Data'!$F:$F,"J",'JP SC Raw Data'!$B:$B,"2023/24",'JP SC Raw Data'!$E:$E,"National") -> 13818
C53: Complaints called for 'Continued Without Plea' hearing | D53: =SUMIFS('JP SC Raw Data'!$AF:$AF,'JP SC Raw Data'!$F:$F,"J",'JP SC Raw Data'!$B:$B,"2014/15",'JP SC Raw Data'!$E:$E,"National") -> 26572 | E53: =SUMIFS('JP SC Raw Data'!$AF:$AF,'JP SC Raw Data'!$F:$F,"J",'JP SC Raw Data'!$B:$B,"2015/16",'JP SC Raw Data'!$E:$E,"National") -> 23534 | F53: =SUMIFS('JP SC Raw Data'!$AF:$AF,'JP SC Raw Data'!$F:$F,"J",'JP SC Raw Data'!$B:$B,"2016/17",'JP SC Raw Data'!$E:$E,"National") -> 22028 | G53: =SUMIFS('JP SC Raw Data'!$AF:$AF,'JP SC Raw Data'!$F:$F,"J",'JP SC Raw Data'!$B:$B,"2017/18",'JP SC Raw Data'!$E:$E,"National") -> 20318 | H53: =SUMIFS('JP SC Raw Data'!$AF:$AF,'JP SC Raw Data'!$F:$F,"J",'JP SC Raw Data'!$B:$B,"2018/19",'JP SC Raw Data'!$E:$E,"National") -> 19879 | I53: =SUMIFS('JP SC Raw Data'!$AF:$AF,'JP SC Raw Data'!$F:$F,"J",'JP SC Raw Data'!$B:$B,"2019/20",'JP SC Raw Data'!$E:$E,"National") -> 18263 | J53: =SUMIFS('JP SC Raw Data'!$AF:$AF,'JP SC Raw Data'!$F:$F,"J",'JP SC Raw Data'!$B:$B,"2020/21",'JP SC Raw Data'!$E:$E,"National") -> 23595 | K53: =SUMIFS('JP SC Raw Data'!$AF:$AF,'JP SC Raw Data'!$F:$F,"J",'JP SC Raw Data'!$B:$B,"2021/22",'JP SC Raw Data'!$E:$E,"National") -> 29379 | L53: =SUMIFS('JP SC Raw Data'!$AF:$AF,'JP SC Raw Data'!$F:$F,"J",'JP SC Raw Data'!$B:$B,"2022/23",'JP SC Raw Data'!$E:$E,"National") -> 20443 | M53: =SUMIFS('JP SC Raw Data'!$AF:$AF,'JP SC Raw Data'!$F:$F,"J",'JP SC Raw Data'!$B:$B,"2023/24",'JP SC Raw Data'!$E:$E,"National") -> 12268
C54: Complaints called in Intermediate Diet court | D54: =SUMIFS('JP SC Raw Data'!$AG:$AG,'JP SC Raw Data'!$F:$F,"J",'JP SC Raw Data'!$B:$B,"2014/15",'JP SC Raw Data'!$E:$E,"National") -> 37807 | E54: =SUMIFS('JP SC Raw Data'!$AG:$AG,'JP SC Raw Data'!$F:$F,"J",'JP SC Raw Data'!$B:$B,"2015/16",'JP SC Raw Data'!$E:$E,"National") -> 38542 | F54: =SUMIFS('JP SC Raw Data'!$AG:$AG,'JP SC Raw Data'!$F:$F,"J",'JP SC Raw Data'!$B:$B,"2016/17",'JP SC Raw Data'!$E:$E,"National") -> 32549 | G54: =SUMIFS('JP SC Raw Data'!$AG:$AG,'JP SC Raw Data'!$F:$F,"J",'JP SC Raw Data'!$B:$B,"2017/18",'JP SC Raw Data'!$E:$E,"National") -> 23480 | H54: =SUMIFS('JP SC Raw Data'!$AG:$AG,'JP SC Raw Data'!$F:$F,"J",'JP SC Raw Data'!$B:$B,"2018/19",'JP SC Raw Data'!$E:$E,"National") -> 21365 | I54: =SUMIFS('JP SC Raw Data'!$AG:$AG,'JP SC Raw Data'!$F:$F,"J",'JP SC Raw Data'!$B:$B,"2019/20",'JP SC Raw Data'!$E:$E,"National") -> 19195 | J54: =SUMIFS('JP SC Raw Data'!$AG:$AG,'JP SC Raw Data'!$F:$F,"J",'JP SC Raw Data'!$B:$B,"2020/21",'JP SC Raw Data'!$E:$E,"National") -> 13319 | K54: =SUMIFS('JP SC Raw Data'!$AG:$AG,'JP SC Raw Data'!$F:$F,"J",'JP SC Raw Data'!$B:$B,"2021/22",'JP SC Raw Data'!$E:$E,"National") -> 18409 | L54: =SUMIFS('JP SC Raw Data'!$AG:$AG,'JP SC Raw Data'!$F:$F,"J",'JP SC Raw Data'!$B:$B,"2022/23",'JP SC Raw Data'!$E:$E,"National") -> 21076 | M54: =SUMIFS('JP SC Raw Data'!$AG:$AG,'JP SC Raw Data'!$F:$F,"J",'JP SC Raw Data'!$B:$B,"2023/24",'JP SC Raw Data'!$E:$E,"National") -> 12901
C55: Trials called | D55: =SUMIFS('JP SC Raw Data'!$AH:$AH,'JP SC Raw Data'!$F:$F,"J",'JP SC Raw Data'!$B:$B,"2014/15",'JP SC Raw Data'!$E:$E,"National") -> 18312 | E55: =SUMIFS('JP SC Raw Data'!$AH:$AH,'JP SC Raw Data'!$F:$F,"J",'JP SC Raw Data'!$B:$B,"2015/16",'JP SC Raw Data'!$E:$E,"National") -> 20015 | F55: =SUMIFS('JP SC Raw Data'!$AH:$AH,'JP SC Raw Data'!$F:$F,"J",'JP SC Raw Data'!$B:$B,"2016/17",'JP SC Raw Data'!$E:$E,"National") -> 17442 | G55: =SUMIFS('JP SC Raw Data'!$AH:$AH,'JP SC Raw Data'!$F:$F,"J",'JP SC Raw Data'!$B:$B,"2017/18",'JP SC Raw Data'!$E:$E,"National") -> 14446 | H55: =SUMIFS('JP SC Raw Data'!$AH:$AH,'JP SC Raw Data'!$F:$F,"J",'JP SC Raw Data'!$B:$B,"2018/19",'JP SC Raw Data'!$E:$E,"National") -> 11479 | I55: =SUMIFS('JP SC Raw Data'!$AH:$AH,'JP SC Raw Data'!$F:$F,"J",'JP SC Raw Data'!$B:$B,"2019/20",'JP SC Raw Data'!$E:$E,"National") -> 10061 | J55: =SUMIFS('JP SC Raw Data'!$AH:$AH,'JP SC Raw Data'!$F:$F,"J",'JP SC Raw Data'!$B:$B,"2020/21",'JP SC Raw Data'!$E:$E,"National") -> 4529 | K55: =SUMIFS('JP SC Raw Data'!$AH:$AH,'JP SC Raw Data'!$F:$F,"J",'JP SC Raw Data'!$B:$B,"2021/22",'JP SC Raw Data'!$E:$E,"National") -> 7634 | L55: =SUMIFS('JP SC Raw Data'!$AH:$AH,'JP SC Raw Data'!$F:$F,"J",'JP SC Raw Data'!$B:$B,"2022/23",'JP SC Raw Data'!$E:$E,"National") -> 11864 | M55: =SUMIFS('JP SC Raw Data'!$AH:$AH,'JP SC Raw Data'!$F:$F,"J",'JP SC Raw Data'!$B:$B,"2023/24",'JP SC Raw Data'!$E:$E,"National") -> 6922
C56: Trials called where evidence was led | D56: =SUMIFS('JP SC Raw Data'!$AI:$AI,'JP SC Raw Data'!$F:$F,"J",'JP SC Raw Data'!$B:$B,"2014/15",'JP SC Raw Data'!$E:$E,"National") -> 3151 | E56: =SUMIFS('JP SC Raw Data'!$AI:$AI,'JP SC Raw Data'!$F:$F,"J",'JP SC Raw Data'!$B:$B,"2015/16",'JP SC Raw Data'!$E:$E,"National") -> 3258 | F56: =SUMIFS('JP SC Raw Data'!$AI:$AI,'JP SC Raw Data'!$F:$F,"J",'JP SC Raw Data'!$B:$B,"2016/17",'JP SC Raw Data'!$E:$E,"National") -> 2810 | G56: =SUMIFS('JP SC Raw Data'!$AI:$AI,'JP SC Raw Data'!$F:$F,"J",'JP SC Raw Data'!$B:$B,"2017/18",'JP SC Raw Data'!$E:$E,"National") -> 2032 | H56: =SUMIFS('JP SC Raw Data'!$AI:$AI,'JP SC Raw Data'!$F:$F,"J",'JP SC Raw Data'!$B:$B,"2018/19",'JP SC Raw Data'!$E:$E,"National") -> 1785 | I56: =SUMIFS('JP SC Raw Data'!$AI:$AI,'JP SC Raw Data'!$F:$F,"J",'JP SC Raw Data'!$B:$B,"2019/20",'JP SC Raw Data'!$E:$E,"National") -> 1543 | J56: =SUMIFS('JP SC Raw Data'!$AI:$AI,'JP SC Raw Data'!$F:$F,"J",'JP SC Raw Data'!$B:$B,"2020/21",'JP SC Raw Data'!$E:$E,"National") -> 349 | K56: =SUMIFS('JP SC Raw Data'!$AI:$AI,'JP SC Raw Data'!$F:$F,"J",'JP SC Raw Data'!$B:$B,"2021/22",'JP SC Raw Data'!$E:$E,"National") -> 518 | L56: =SUMIFS('JP SC Raw Data'!$AI:$AI,'JP SC Raw Data'!$F:$F,"J",'JP SC Raw Data'!$B:$B,"2022/23",'JP SC Raw Data'!$E:$E,"National") -> 999 | M56: =SUMIFS('JP SC Raw Data'!$AI:$AI,'JP SC Raw Data'!$F:$F,"J",'JP SC Raw Data'!$B:$B,"2023/24",'JP SC Raw Data'!$E:$E,"National") -> 690
C57: Trials adjourned due to lack of court time | D57: =SUMIFS('JP SC Raw Data'!$AJ:$AJ,'JP SC Raw Data'!$F:$F,"J",'JP SC Raw Data'!$B:$B,"2014/15",'JP SC Raw Data'!$E:$E,"National") -> 737 | E57: =SUMIFS('JP SC Raw Data'!$AJ:$AJ,'JP SC Raw Data'!$F:$F,"J",'JP SC Raw Data'!$B:$B,"2015/16",'JP SC Raw Data'!$E:$E,"National") -> 734 | F57: =SUMIFS('JP SC Raw Data'!$AJ:$AJ,'JP SC Raw Data'!$F:$F,"J",'JP SC Raw Data'!$B:$B,"2016/17",'JP SC Raw Data'!$E:$E,"National") -> 383 | G57: =SUMIFS('JP SC Raw Data'!$AJ:$AJ,'JP SC Raw Data'!$F:$F,"J",'JP SC Raw Data'!$B:$B,"2017/18",'JP SC Raw Data'!$E:$E,"National") -> 331 | H57: =SUMIFS('JP SC Raw Data'!$AJ:$AJ,'JP SC Raw Data'!$F:$F,"J",'JP SC Raw Data'!$B:$B,"2018/19",'JP SC Raw Data'!$E:$E,"National") -> 228 | I57: =SUMIFS('JP SC Raw Data'!$AJ:$AJ,'JP SC Raw Data'!$F:$F,"J",'JP SC Raw Data'!$B:$B,"2019/20",'JP SC Raw Data'!$E:$E,"National") -> 238 | J57: =SUMIFS('JP SC Raw Data'!$AJ:$AJ,'JP SC Raw Data'!$F:$F,"J",'JP SC Raw Data'!$B:$B,"2020/21",'JP SC Raw Data'!$E:$E,"National") -> 37 | K57: =SUMIFS('JP SC Raw Data'!$AJ:$AJ,'JP SC Raw Data'!$F:$F,"J",'JP SC Raw Data'!$B:$B,"2021/22",'JP SC Raw Data'!$E:$E,"National") -> 63 | L57: =SUMIFS('JP SC Raw Data'!$AJ:$AJ,'JP SC Raw Data'!$F:$F,"J",'JP SC Raw Data'!$B:$B,"2022/23",'JP SC Raw Data'!$E:$E,"National") -> 113 | M57: =SUMIFS('JP SC Raw Data'!$AJ:$AJ,'JP SC Raw Data'!$F:$F,"J",'JP SC Raw Data'!$B:$B,"2023/24",'JP SC Raw Data'!$E:$E,"National") -> 81
C58: Percentage of trials adjourned due to lack of court time | D58: =SUM(D57/D55) -> 0.04024683268 | E58: 0.03667249563 | F58: 0.021958491 | G58: 0.02291291707 | H58: 0.01986235735 | I58: 0.02365570023 | J58: =SUM(J57/J55) -> 0.008169573857 | K58: =SUM(K57/K55) -> 0.008252554362 | L58: =SUM(L57/L55) -> 0.009524612272 | M58: =SUM(M57/M55) -> 0.01170182028
C59: Trials scheduled at end of period | D59: =SUMIFS('JP SC Raw Data'!$AK:$AK,'JP SC Raw Data'!$B:$B,D4,'JP SC Raw Data'!$C:$C,"Q4",'JP SC Raw Data'!$D:$D,"1") -> 12022 | E59: =SUMIFS('JP SC Raw Data'!$AK:$AK,'JP SC Raw Data'!$B:$B,E4,'JP SC Raw Data'!$C:$C,"Q4",'JP SC Raw Data'!$D:$D,"1") -> 10878 | F59: =SUMIFS('JP SC Raw Data'!$AK:$AK,'JP SC Raw Data'!$B:$B,F4,'JP SC Raw Data'!$C:$C,"Q4",'JP SC Raw Data'!$D:$D,"1") -> 5595 | G59: =SUMIFS('JP SC Raw Data'!$AK:$AK,'JP SC Raw Data'!$B:$B,G4,'JP SC Raw Data'!$C:$C,"Q4",'JP SC Raw Data'!$D:$D,"1") -> 3979 | H59: =SUMIFS('JP SC Raw Data'!$AK:$AK,'JP SC Raw Data'!$B:$B,H4,'JP SC Raw Data'!$C:$C,"Q4",'JP SC Raw Data'!$D:$D,"1") -> 3975 | I59: =SUMIFS('JP SC Raw Data'!$AK:$AK,'JP SC Raw Data'!$B:$B,I4,'JP SC Raw Data'!$C:$C,"Q4",'JP SC Raw Data'!$D:$D,"1") -> 3497 | J59: =SUMIFS('JP SC Raw Data'!$AK:$AK,'JP SC Raw Data'!$B:$B,J4,'JP SC Raw Data'!$C:$C,"Q4",'JP SC Raw Data'!$D:$D,"1") -> 5560 | K59: =SUMIFS('JP SC Raw Data'!$AK:$AK,'JP SC Raw Data'!$B:$B,K4,'JP SC Raw Data'!$C:$C,"Q4",'JP SC Raw Data'!$D:$D,"1") -> 7569 | L59: =SUMIFS('JP SC Raw Data'!$AK:$AK,'JP SC Raw Data'!$B:$B,L4,'JP SC Raw Data'!$C:$C,"Q4",'JP SC Raw Data'!$D:$D,"1") -> 4266 | M59: =SUMIFS('JP SC Raw Data'!$AK:$AK,'JP SC Raw Data'!$B:$B,'JP SC Raw Data'!$BA$2,'JP SC Raw Data'!$C:$C,'JP SC Raw Data'!$BB$2,'JP SC Raw Data'!$D:$D,"1") -> 3360
C60: Complaints concluded | D60: =SUMIFS('JP SC Raw Data'!$AL:$AL,'JP SC Raw Data'!$F:$F,"J",'JP SC Raw Data'!$B:$B,"2014/15",'JP SC Raw Data'!$E:$E,"National") -> 58433 | E60: =SUMIFS('JP SC Raw Data'!$AL:$AL,'JP SC Raw Data'!$F:$F,"J",'JP SC Raw Data'!$B:$B,"2015/16",'JP SC Raw Data'!$E:$E,"National") -> 49760 | F60: =SUMIFS('JP SC Raw Data'!$AL:$AL,'JP SC Raw Data'!$F:$F,"J",'JP SC Raw Data'!$B:$B,"2016/17",'JP SC Raw Data'!$E:$E,"National") -> 42347 | G60: =SUMIFS('JP SC Raw Data'!$AL:$AL,'JP SC Raw Data'!$F:$F,"J",'JP SC Raw Data'!$B:$B,"2017/18",'JP SC Raw Data'!$E:$E,"National") -> 36267 | H60: =SUMIFS('JP SC Raw Data'!$AL:$AL,'JP SC Raw Data'!$F:$F,"J",'JP SC Raw Data'!$B:$B,"2018/19",'JP SC Raw Data'!$E:$E,"National") -> 33791 | I60: =SUMIFS('JP SC Raw Data'!$AL:$AL,'JP SC Raw Data'!$F:$F,"J",'JP SC Raw Data'!$B:$B,"2019/20",'JP SC Raw Data'!$E:$E,"National") -> 33102 | J60: =SUMIFS('JP SC Raw Data'!$AL:$AL,'JP SC Raw Data'!$F:$F,"J",'JP SC Raw Data'!$B:$B,"2020/21",'JP SC Raw Data'!$E:$E,"National") -> 10351 | K60: =SUMIFS('JP SC Raw Data'!$AL:$AL,'JP SC Raw Data'!$F:$F,"J",'JP SC Raw Data'!$B:$B,"2021/22",'JP SC Raw Data'!$E:$E,"National") -> 22702 | L60: =SUMIFS('JP SC Raw Data'!$AL:$AL,'JP SC Raw Data'!$F:$F,"J",'JP SC Raw Data'!$B:$B,"2022/23",'JP SC Raw Data'!$E:$E,"National") -> 24893 | M60: =SUMIFS('JP SC Raw Data'!$AL:$AL,'JP SC Raw Data'!$F:$F,"J",'JP SC Raw Data'!$B:$B,"2023/24",'JP SC Raw Data'!$E:$E,"National") -> 14428

Sheet National Overview Chart Data (hidden)
A2: Count Type | B2: 2014/15 | C2: 2015/16 | D2: 2016/17 | E2: 2017/18 | F2: 2018/19 | G2: 2019/20 | H2: 2020/21 | I2: 2021/22 | J2: 2022/23 | K2: 2023/24 YTD
A3: National total of cases registered | B3: 142998 | C3: 134278 | D3: 118630 | E3: 109857 | F3: 102825 | G3: ='1a'!I5 -> 105548 | H3: ='1a'!J5 -> 76660 | I3: ='1a'!K5 -> 85567 | J3: ='1a'!L5 -> 85859 | K3: ='1a'!M5 -> 68965
A4: National total of cases that called at a first hearing | B4: 133558 | C4: 120992 | D4: 110760 | E4: 103679 | F4: 98039 | G4: ='1a'!I6 -> 100922 | H4: ='1a'!J6 -> 69491 | I4: ='1a'!K6 -> 80988 | J4: ='1a'!L6 -> 83392 | K4: ='1a'!M6 -> 65687
A5: National total of intermediate diets called (Summary business only) | B5: 119883 | C5: 125669 | D5: 111794 | E5: 97450 | F5: 89344 | G5: ='1a'!I9 -> 89847 | H5: ='1a'!J9 -> 75546 | I5: ='1a'!K9 -> 109127 | J5: ='1a'!L9 -> 115099 | K5: ='1a'!M9 -> 73833
A6: National total of trials called | B6: 70115 | C6: 78559 | D6: 72193 | E6: 67227 | F6: 58786 | G6: ='1a'!I10 -> 54744 | H6: ='1a'!J10 -> 30217 | I6: ='1a'!K10 -> 65297 | J6: ='1a'!L10 -> 81105 | K6: ='1a'!M10 -> 49548
A7: National total of cases concluded | B7: 103727 | C7: 95032 | D7: 90311 | E7: 81423 | F7: 97394 | G7: ='1a'!I15 -> 101790 | H7: ='1a'!J15 -> 48975 | I7: ='1a'!K15 -> 86351 | J7: ='1a'!L15 -> 99671 | K7: ='1a'!M15 -> 67602
A10: Count Type | B10: 2014/15 | C10: 2015/16 | D10: 2016/17 | E10: 2017/18 | F10: 2018/19 | G10: 2019/20 | H10: 2020/21 | I10: 2021/22 | J10: 2022/23 | K10: 2023/24 YTD
A11: National total of Section 76 (Solemn business only) | B11: 1369 | C11: 1125 | D11: 1188 | E11: 1108 | F11: 1207 | G11: ='1a'!I8 -> 1142 | H11: ='1a'!J8 -> 1029 | I11: ='1a'!K8 -> 1185 | J11: ='1a'!L8 -> 1239 | K11: ='1a'!M8 -> 1094
A12: National total of trials called where evidence was led | B12: 13936 | C12: 14548 | D12: 13522 | E12: 11764 | F12: 11142 | G12: ='1a'!I11 -> 10121 | H12: ='1a'!J11 -> 3545 | I12: ='1a'!K11 -> 7505 | J12: ='1a'!L11 -> 9051 | K12: ='1a'!M11 -> 6261
A13: National total of trials adjourned due to lack of court time | B13: 3951 | C13: 4304 | D13: 3331 | E13: 2770 | F13: 2050 | G13: ='1a'!I12 -> 1574 | H13: ='1a'!J12 -> 371 | I13: ='1a'!K12 -> 1259 | J13: ='1a'!L12 -> 1713 | K13: ='1a'!M12 -> 1204
A14: National total of trials scheduled at end of period | B14: 33206 | C14: 29962 | D14: 22118 | E14: 18173 | F14: 16011 | G14: ='1a'!I14 -> 18355 | H14: ='1a'!J14 -> 37801 | I14: ='1a'!K14 -> 40923 | J14: ='1a'!L14 -> 27406 | K14: ='1a'!M14 -> 27565
A17: Scheduled trials | B17: 2020/21 Q1 | C17: 2020/21 Q2 | D17: 2020/21 Q3 | E17: 2020/21 Q4 | F17: 2021/22 Q1 | G17: 2021/22 Q2 | H17: 2021/22 Q3 | I17: 2021/22 Q4 | J17: 2022/23 Q1 | K17: 2022/23 Q2 | L17: 2022/23 Q3 | M17: 2022/23 Q4 | N17: 2023/24 Q1 | O17: 2023/24 Q2 | P17: 2023/24 Q3
A18: National | B18: 22437 | C18: 30956 | D18: 34283 | E18: 37801 | F18: 42451 | G18: 42554 | H18: 43016 | I18: 40923 | J18: 37174 | K18: 33594 | L18: 30305 | M18: 27406 | N18: 28073 | O18: 27914 | P18: 27567
A19: Scheduled trials (efficiency) | B19: 20000 | C19: 20000 | D19: 20000 | E19: 20000 | F19: 20000 | G19: 20000 | H19: 20000 | I19: 20000 | J19: 20000 | K19: 20000 | L19: 20000 | M19: 20000 | N19: 20000 | O19: 20000 | P19: 20000
A20: Scheduled trials (backlog) | B20: =B18-B19 -> 2437 | C20: 10956 | D20: 14283 | E20: 17801 | F20: 22451 | G20: 22554 | H20: 23016 | I20: 20923 | J20: 17174 | K20: 13594 | L20: 10305 | M20: 7406 | N20: =N18-N19 -> 8073 | O20: 7914 | P20: 7567
A36: This data is only for The Scottish Courts and Tribunals Service Internal use. Please go to the index tab and navigate as required.

Sheet 1b
B2: Back to Index
D58: Notes:
D59: 1) Data for 2023/24 YTD is from 1st April 2023 - 31st December 2023

Sheet 1c
B1: Back to Index | H1: =HYPERLINK("#"&"1c!"&J1&1,"Latest Month") -> Latest Month | J1: AZ | AZ1: Back to Apr-20
D2: =MONTH(D4) -> 4 | E2: =MONTH(E4) -> 5 | F2: 6 | G2: 7 | H2: 8 | I2: 9 | J2: 10 | K2: 11 | L2: 12 | M2: 1 | N2: 2 | O2: 3 | P2: 4 | Q2: 5 | R2: 6 | S2: 7 | T2: 8 | U2: 9 | V2: 10 | W2: 11 | X2: 12 | Y2: 1 | Z2: 2 | AA2: 3 | AB2: 4 | AC2: 5 | AD2: 6 | AE2: 7 | AF2: 8 | AG2: 9 | AH2: 10 | AI2: 11 | AJ2: 12 | AK2: 1 | AL2: 2 | AM2: 3 | AN2: 4 | AO2: 5 | AP2: 6 | AQ2: 7 | AR2: 8 | AS2: 9 | AT2: 10 | AU2: 11 | AV2: =MONTH(AV4) -> 12
D3: =YEAR(D4) -> 2020 | E3: =YEAR(E4) -> 2020 | F3: 2020 | G3: 2020 | H3: 2020 | I3: 2020 | J3: 2020 | K3: 2020 | L3: 2020 | M3: 2021 | N3: 2021 | O3: 2021 | P3: 2021 | Q3: 2021 | R3: 2021 | S3: 2021 | T3: 2021 | U3: 2021 | V3: 2021 | W3: 2021 | X3: 2021 | Y3: 2022 | Z3: 2022 | AA3: 2022 | AB3: 2022 | AC3: 2022 | AD3: 2022 | AE3: 2022 | AF3: 2022 | AG3: 2022 | AH3: 2022 | AI3: 2022 | AJ3: 2022 | AK3: 2023 | AL3: 2023 | AM3: 2023 | AN3: 2023 | AO3: 2023 | AP3: 2023 | AQ3: 2023 | AR3: 2023 | AS3: 2023 | AT3: 2023 | AU3: 2023 | AV3: =YEAR(AV4) -> 2023
B4: National overview of criminal court cases in Scotland each month since April 2020 | D4: 2020-04-01 | E4: 2020-05-01 | F4: 2020-06-01 | G4: 2020-07-01 | H4: 2020-08-01 | I4: 2020-09-01 | J4: 2020-10-01 | K4: 2020-11-01 | L4: 2020-12-01 | M4: 2021-01-01 | N4: 2021-02-01 | O4: 2021-03-01 | P4: 2021-04-01 | Q4: 2021-05-01 | R4: 2021-06-01 | S4: 2021-07-01 | T4: 2021-08-01 | U4: 2021-09-01 | V4: 2021-10-01 | W4: 2021-11-01 | X4: 2021-12-01 | Y4: 2022-01-01 | Z4: 2022-02-01 | AA4: 2022-03-01 | AB4: 2022-04-01 | AC4: 2022-05-01 | AD4: 2022-06-01 | AE4: 2022-07-01 | AF4: 2022-08-01 | AG4: 2022-09-01 | AH4: 2022-10-01 | AI4: 2022-11-01 | AJ4: 2022-12-01 | AK4: 2023-01-01 | AL4: 2023-02-01 | AM4: 2023-03-01 | AN4: 2023-04-01 | AO4: 2023-05-01 | AP4: 2023-06-01 | AQ4: 2023-07-01 | AR4: 2023-08-01 | AS4: 2023-09-01 | AT4: 2023-10-01 | AU4: 2023-11-01 | AV4: 2023-12-01 | AW4: 2023/24 YTD | AY4: 2019/20 | AZ4: 2019/20 monthly average
B5: All Criminal courts | C5: National total of cases registered (not including petitions) | D5: 5306 | E5: 4561 | F5: 5720 | G5: 8558 | H5: 7643 | I5: 7333 | J5: 6903 | K5: 6050 | L5: 5858 | M5: 5703 | N5: 5465 | O5: 7560 | P5: 7505 | Q5: 6909 | R5: 7136 | S5: 6743 | T5: 7214 | U5: 7124 | V5: 7166 | W5: 7399 | X5: 7235 | Y5: 6894 | Z5: 6233 | AA5: 8009 | AB5: 6814 | AC5: 7686 | AD5: 8043 | AE5: 6869 | AF5: 7664 | AG5: 6234 | AH5: 6476 | AI5: 7701 | AJ5: 6060 | AK5: 7233 | AL5: 6871 | AM5: 8208 | AN5: 7217 | AO5: 7764 | AP5: 7661 | AQ5: 7104 | AR5: 8378 | AS5: 7801 | AT5: 7936 | AU5: 8665 | AV5: 6439 | AW5: 68965 | AY5: 105548 | AZ5: 8795.666667
C6: National total of cases that called at a first hearing | D6: 3401 | E6: 3843 | F6: 3864 | G6: 8401 | H6: 7799 | I6: 7040 | J6: 6641 | K6: 5861 | L6: 6020 | M6: 6013 | N6: 4012 | O6: 6596 | P6: 6058 | Q6: 5829 | R6: 6663 | S6: 7111 | T6: 6837 | U6: 6856 | V6: 7018 | W6: 7141 | X6: 7151 | Y6: 6998 | Z6: 5441 | AA6: 7885 | AB6: 6937 | AC6: 7565 | AD6: 7572 | AE6: 6874 | AF6: 7485 | AG6: 6436 | AH6: 5731 | AI6: 7337 | AJ6: 6449 | AK6: 6756 | AL6: 6148 | AM6: 8102 | AN6: 6961 | AO6: 7159 | AP6: 7381 | AQ6: 6780 | AR6: 7721 | AS6: 7553 | AT6: 7555 | AU6: 8190 | AV6: 6387 | AW6: 65687 | AY6: 100922 | AZ6: 8410.166667
C7: National total of cases that called at a continued first hearing | D7: 2023 | E7: 2320 | F7: 2724 | G7: 3896 | H7: 7105 | I7: 8751 | J7: 7686 | K7: 6799 | L7: 6372 | M7: 5434 | N7: 2421 | O7: 4453 | P7: 4541 | Q7: 6260 | R7: 7980 | S7: 8583 | T7: 6724 | U7: 5455 | V7: 4575 | W7: 4610 | X7: 4377 | Y7: 4252 | Z7: 4621 | AA7: 4249 | AB7: 4570 | AC7: 4601 | AD7: 4195 | AE7: 4455 | AF7: 4279 | AG7: 4378 | AH7: 3620 | AI7: 3727 | AJ7: 3893 | AK7: 3812 | AL7: 3710 | AM7: 3926 | AN7: 3827 | AO7: 4313 | AP7: 3987 | AQ7: 3809 | AR7: 4088 | AS7: 3747 | AT7: 4388 | AU7: 4398 | AV7: 4304 | AW7: 36861 | AY7: 36514 | AZ7: 3042.833333
C8: National total of Section 76 (Solemn business only) | D8: 55 | E8: 60 | F8: 77 | G8: 99 | H8: 108 | I8: 128 | J8: 98 | K8: 92 | L8: 82 | M8: 65 | N8: 84 | O8: 81 | P8: 88 | Q8: 108 | R8: 120 | S8: 101 | T8: 105 | U8: 93 | V8: 74 | W8: 97 | X8: 98 | Y8: 79 | Z8: 113 | AA8: 109 | AB8: 102 | AC8: 101 | AD8: 102 | AE8: 108 | AF8: 126 | AG8: 99 | AH8: 87 | AI8: 105 | AJ8: 105 | AK8: 90 | AL8: 102 | AM8: 112 | AN8: 84 | AO8: 115 | AP8: 122 | AQ8: 128 | AR8: 141 | AS8: 121 | AT8: 137 | AU8: 155 | AV8: 91 | AW8: 1094 | AY8: 1142 | AZ8: 95.16666667
C9: National total of intermediate diets called (Summary business only) | D9: 3402 | E9: 2356 | F9: 827 | G9: 2706 | H9: 8717 | I9: 9188 | J9: 9359 | K9: 8003 | L9: 7740 | M9: 9143 | N9: 6708 | O9: 7397 | P9: 6982 | Q9: 7182 | R9: 7983 | S9: 8482 | T9: 10084 | U9: 10501 | V9: 6398 | W9: 10059 | X9: 8927 | Y9: 10866 | Z9: 10420 | AA9: 11243 | AB9: 9742 | AC9: 10373 | AD9: 10062 | AE9: 9803 | AF9: 10598 | AG9: 10707 | AH9: 9423 | AI9: 9360 | AJ9: 7496 | AK9: 9799 | AL9: 9060 | AM9: 8676 | AN9: 7134 | AO9: 8996 | AP9: 8316 | AQ9: 7948 | AR9: 8803 | AS9: 8376 | AT9: 9015 | AU9: 8646 | AV9: 6599 | AW9: 73833 | AY9: 89847 | AZ9: 7487.25
C10: National total of trials called | D10: 1019 | E10: 476 | F10: 192 | G10: 355 | H10: 2811 | I10: 3950 | J10: 3980 | K10: 4386 | L10: 3868 | M10: 4882 | N10: 1200 | O10: 3101 | P10: 3167 | Q10: 3649 | R10: 4577 | S10: 5062 | T10: 5917 | U10: 6778 | V10: 5449 | W10: 4420 | X10: 5882 | Y10: 5648 | Z10: 6472 | AA10: 8276 | AB10: 6556 | AC10: 7431 | AD10: 6820 | AE10: 6134 | AF10: 7457 | AG10: 6901 | AH10: 6897 | AI10: 7273 | AJ10: 5307 | AK10: 6714 | AL10: 6423 | AM10: 7192 | AN10: 4931 | AO10: 5771 | AP10: 5759 | AQ10: 5135 | AR10: 5960 | AS10: 5322 | AT10: 6137 | AU10: 6112 | AV10: 4421 | AW10: 49548 | AY10: 54744 | AZ10: 4562
C11: National total of trials called where evidence was led | D11: 5 | E11: 9 | F11: 24 | G11: 84 | H11: 320 | I11: 526 | J11: 575 | K11: 627 | L11: 512 | M11: 276 | N11: 186 | O11: 401 | P11: 470 | Q11: 558 | R11: 622 | S11: 583 | T11: 664 | U11: 775 | V11: 626 | W11: 541 | X11: 549 | Y11: 536 | Z11: 754 | AA11: 827 | AB11: 691 | AC11: 830 | AD11: 696 | AE11: 620 | AF11: 791 | AG11: 716 | AH11: 775 | AI11: 842 | AJ11: 602 | AK11: 778 | AL11: 828 | AM11: 882 | AN11: 595 | AO11: 707 | AP11: 753 | AQ11: 641 | AR11: 795 | AS11: 681 | AT11: 705 | AU11: 825 | AV11: 559 | AW11: 6261 | AY11: 10121 | AZ11: 843.4166667
C12: National total of trials adjourned due to lack of court time | D12: 0 | E12: 0 | F12: 0 | G12: 8 | H12: 24 | I12: 50 | J12: 65 | K12: 63 | L12: 103 | M12: 15 | N12: 10 | O12: 33 | P12: 75 | Q12: 92 | R12: 116 | S12: 96 | T12: 130 | U12: 123 | V12: 140 | W12: 94 | X12: 100 | Y12: 71 | Z12: 121 | AA12: 101 | AB12: 129 | AC12: 139 | AD12: 132 | AE12: 95 | AF12: 152 | AG12: 144 | AH12: 125 | AI12: 167 | AJ12: 124 | AK12: 172 | AL12: 160 | AM12: 174 | AN12: 143 | AO12: 160 | AP12: 116 | AQ12: 123 | AR12: 158 | AS12: 129 | AT12: 103 | AU12: 132 | AV12: 140 | AW12: 1204 | AY12: 1574 | AZ12: 131.1666667
C13: Percentage of trials adjourned due to lack of court time | D13: 0 | E13: 0 | F13: 0 | G13: 0.02253521127 | H13: 0.008537886873 | I13: 0.01265822785 | J13: 0.01633165829 | K13: 0.01436388509 | L13: 0.02662874871 | M13: 0.003072511266 | N13: 0.008333333333 | O13: 0.01064172847 | P13: 0.02368171771 | Q13: 0.02521238696 | R13: 0.02534411186 | S13: 0.01896483603 | T13: 0.02197059321 | U13: 0.018146946 | V13: 0.02569278767 | W13: 0.02126696833 | X13: 0.01700102006 | Y13: 0.01257082153 | Z13: 0.01869592089 | AA13: 0.01220396327 | AB13: 0.01967663209 | AC13: 0.01870542323 | AD13: 0.01935483871 | AE13: 0.01548744702 | AF13: 0.02038353225 | AG13: 0.02086654108 | AH13: 0.01812382195 | AI13: 0.02296163894 | AJ13: 0.0233653665 | AK13: 0.02561811141 | AL13: 0.02491047797 | AM13: 0.02419354839 | AN13: 0.0290002028 | AO13: 0.02772483105 | AP13: 0.02014238583 | AQ13: 0.02395326193 | AR13: 0.02651006711 | AS13: 0.02423900789 | AT13: 0.01678344468 | AU13: 0.02159685864 | AV13: 0.03166704366 | AW13: 0.02429966901 | AY13: 0.02875200935 | AZ13: 0.02875200935
C14: National total of cases concluded | D14: 637 | E14: 1048 | F14: 1658 | G14: 3181 | H14: 6034 | I14: 7187 | J14: 6681 | K14: 6641 | L14: 6208 | M14: 3327 | N14: 2465 | O14: 3908 | P14: 4412 | Q14: 5274 | R14: 7444 | S14: 8283 | T14: 8330 | U14: 8558 | V14: 6990 | W14: 6961 | X14: 6875 | Y14: 6419 | Z14: 7642 | AA14: 9163 | AB14: 8057 | AC14: 9227 | AD14: 8576 | AE14: 8085 | AF14: 9098 | AG14: 8075 | AH14: 8045 | AI14: 8680 | AJ14: 6698 | AK14: 8149 | AL14: 7998 | AM14: 8983 | AN14: 6855 | AO14: 7829 | AP14: 7627 | AQ14: 7081 | AR14: 8056 | AS14: 7342 | AT14: 8144 | AU14: 8330 | AV14: 6338 | AW14: 67602 | AY14: 101790 | AZ14: 8482.5
C15: National total of trials scheduled at end of period | D15: 18074 | E15: 20236 | F15: 22437 | G15: 25900 | H15: 28351 | I15: 30956 | J15: 32427 | K15: 33590 | L15: 34283 | M15: 35067 | N15: 36037 | O15: 37801 | P15: 39488 | Q15: 40882 | R15: 42451 | S15: 43341 | T15: 43526 | U15: 42550 | V15: 42756 | W15: 43597 | X15: 43016 | Y15: 43606 | Z15: 42503 | AA15: 40923 | AB15: 39958 | AC15: 38499 | AD15: 37174 | AE15: 36184 | AF15: 34734 | AG15: 33594 | AH15: 31562 | AI15: 30588 | AJ15: 30305 | AK15: 29286 | AL15: 28029 | AM15: 27406 | AN15: 27725 | AO15: 28076 | AP15: 28073 | AQ15: 28042 | AR15: 27851 | AS15: 27911 | AT15: 27360 | AU15: 27262 | AV15: 27565 | AW15: 27565 | AY15: 18355 | AZ15: 18355
B17: High Court | C17: Indictments registered | D17: 77 | E17: 85 | F17: 69 | G17: 63 | H17: 46 | I17: 68 | J17: 60 | K17: 32 | L17: 48 | M17: 65 | N17: 64 | O17: 90 | P17: 55 | Q17: 43 | R17: 57 | S17: 66 | T17: 37 | U17: 57 | V17: 69 | W17: 54 | X17: 69 | Y17: 68 | Z17: 90 | AA17: 80 | AB17: 77 | AC17: 70 | AD17: 77 | AE17: 72 | AF17: 82 | AG17: 97 | AH17: 84 | AI17: 84 | AJ17: 69 | AK17: 66 | AL17: 67 | AM17: 94 | AN17: 59 | AO17: 55 | AP17: 89 | AQ17: 59 | AR17: 84 | AS17: 79 | AT17: 85 | AU17: 98 | AV17: 65 | AW17: 673 | AY17: 1024 | AZ17: 85.33333333
C18: Indictments called at Preliminary Hearing | D18: 12 | E18: 2 | F18: 78 | G18: 172 | H18: 77 | I18: 65 | J18: 60 | K18: 52 | L18: 38 | M18: 47 | N18: 56 | O18: 66 | P18: 69 | Q18: 49 | R18: 55 | S18: 35 | T18: 40 | U18: 37 | V18: 59 | W18: 29 | X18: 47 | Y18: 64 | Z18: 60 | AA18: 94 | AB18: 99 | AC18: 66 | AD18: 70 | AE18: 80 | AF18: 67 | AG18: 71 | AH18: 88 | AI18: 90 | AJ18: 78 | AK18: 67 | AL18: 70 | AM18: 91 | AN18: 70 | AO18: 81 | AP18: 73 | AQ18: 79 | AR18: 74 | AS18: 62 | AT18: 81 | AU18: 84 | AV18: 68 | AW18: 672 | AY18: 981 | AZ18: 81.75
C19: Indictments called at Continued Preliminary Hearing | D19: 5 | E19: 5 | F19: 30 | G19: 76 | H19: 98 | I19: 115 | J19: 97 | K19: 78 | L19: 72 | M19: 87 | N19: 66 | O19: 62 | P19: 62 | Q19: 57 | R19: 66 | S19: 57 | T19: 89 | U19: 82 | V19: 63 | W19: 57 | X19: 49 | Y19: 49 | Z19: 36 | AA19: 49 | AB19: 48 | AC19: 46 | AD19: 41 | AE19: 44 | AF19: 41 | AG19: 35 | AH19: 45 | AI19: 53 | AJ19: 38 | AK19: 42 | AL19: 39 | AM19: 36 | AN19: 35 | AO19: 33 | AP19: 36 | AQ19: 39 | AR19: 35 | AS19: 33 | AT19: 47 | AU19: 48 | AV19: 26 | AW19: 332 | AY19: 437 | AZ19: 36.41666667
C20: Section 76 Indictments | D20: 6 | E20: 6 | F20: 5 | G20: 6 | H20: 5 | I20: 15 | J20: 6 | K20: 9 | L20: 3 | M20: 7 | N20: 11 | O20: 5 | P20: 5 | Q20: 4 | R20: 10 | S20: 6 | T20: 7 | U20: 7 | V20: 4 | W20: 7 | X20: 6 | Y20: 5 | Z20: 8 | AA20: 9 | AB20: 7 | AC20: 9 | AD20: 8 | AE20: 5 | AF20: 15 | AG20: 4 | AH20: 7 | AI20: 6 | AJ20: 8 | AK20: 10 | AL20: 10 | AM20: 10 | AN20: 3 | AO20: 11 | AP20: 17 | AQ20: 7 | AR20: 12 | AS20: 15 | AT20: 8 | AU20: 7 | AV20: 6 | AW20: 86 | AY20: 94 | AZ20: 7.833333333
C21: Trials called | D21: 0 | E21: 0 | F21: 0 | G21: 4 | H21: 14 | I21: 26 | J21: 42 | K21: 58 | L21: 47 | M21: 56 | N21: 67 | O21: 66 | P21: 46 | Q21: 60 | R21: 67 | S21: 58 | T21: 74 | U21: 64 | V21: 65 | W21: 81 | X21: 38 | Y21: 62 | Z21: 64 | AA21: 73 | AB21: 73 | AC21: 87 | AD21: 83 | AE21: 64 | AF21: 82 | AG21: 86 | AH21: 92 | AI21: 79 | AJ21: 42 | AK21: 58 | AL21: 67 | AM21: 81 | AN21: 71 | AO21: 88 | AP21: 94 | AQ21: 70 | AR21: 76 | AS21: 84 | AT21: 82 | AU21: 82 | AV21: 40 | AW21: 687 | AY21: 812 | AZ21: 67.66666667
C22: Trials called where evidence was led | D22: 0 | E22: 0 | F22: 0 | G22: 4 | H22: 14 | I22: 18 | J22: 28 | K22: 49 | L22: 29 | M22: 43 | N22: 42 | O22: 51 | P22: 34 | Q22: 43 | R22: 47 | S22: 48 | T22: 55 | U22: 47 | V22: 54 | W22: 63 | X22: 30 | Y22: 47 | Z22: 54 | AA22: 55 | AB22: 50 | AC22: 56 | AD22: 53 | AE22: 42 | AF22: 56 | AG22: 48 | AH22: 51 | AI22: 55 | AJ22: 30 | AK22: 53 | AL22: 53 | AM22: 64 | AN22: 52 | AO22: 70 | AP22: 68 | AQ22: 49 | AR22: 62 | AS22: 57 | AT22: 60 | AU22: 62 | AV22: 32 | AW22: 512 | AY22: 498 | AZ22: 41.5
C23: Trials adjourned due to lack of court time | D23: 0 | E23: 0 | F23: 0 | G23: 0 | H23: 0 | I23: 0 | J23: 2 | K23: 1 | L23: 9 | M23: 0 | N23: 0 | O23: 0 | P23: 3 | Q23: 5 | R23: 3 | S23: 2 | T23: 2 | U23: 1 | V23: 0 | W23: 0 | X23: 0 | Y23: 0 | Z23: 0 | AA23: 4 | AB23: 6 | AC23: 4 | AD23: 3 | AE23: 1 | AF23: 1 | AG23: 2 | AH23: 1 | AI23: 0 | AJ23: 2 | AK23: 0 | AL23: 1 | AM23: 3 | AN23: 0 | AO23: 0 | AP23: 4 | AQ23: 0 | AR23: 1 | AS23: 12 | AT23: 0 | AU23: 0 | AV23: 2 | AW23: 19 | AY23: 49 | AZ23: 4.083333333
C24: Percentage of trials adjourned due to lack of court time | D24: 0 | E24: 0 | F24: 0 | G24: 0 | H24: 0 | I24: 0 | J24: 0.04761904762 | K24: 0.01724137931 | L24: 0.1914893617 | M24: 0 | N24: 0 | O24: 0 | P24: 0.0652173913 | Q24: 0.08333333333 | R24: 0.0447761194 | S24: 0.03448275862 | T24: 0.02702702703 | U24: 0.015625 | V24: 0 | W24: 0 | X24: 0 | Y24: 0 | Z24: 0 | AA24: 0.05479452055 | AB24: 0.08219178082 | AC24: 0.04597701149 | AD24: 0.03614457831 | AE24: 0.015625 | AF24: 0.01219512195 | AG24: 0.02325581395 | AH24: 0.01086956522 | AI24: 0 | AJ24: 0.04761904762 | AK24: 0 | AL24: 0.01492537313 | AM24: 0.03703703704 | AN24: 0 | AO24: 0 | AP24: 0.04255319149 | AQ24: 0 | AR24: 0.01315789474 | AS24: 0.1428571429 | AT24: 0 | AU24: 0 | AV24: 0.05 | AW24: 0.02765647744 | AY24: 0.06034482759 | AZ24: 0.06034482759
C25: Indictments concluded | D25: 7 | E25: 9 | F25: 14 | G25: 32 | H25: 35 | I25: 20 | J25: 39 | K25: 54 | L25: 54 | M25: 55 | N25: 72 | O25: 64 | P25: 53 | Q25: 58 | R25: 62 | S25: 58 | T25: 76 | U25: 62 | V25: 70 | W25: 82 | X25: 56 | Y25: 45 | Z25: 57 | AA25: 77 | AB25: 66 | AC25: 73 | AD25: 74 | AE25: 66 | AF25: 62 | AG25: 69 | AH25: 70 | AI25: 71 | AJ25: 54 | AK25: 57 | AL25: 66 | AM25: 87 | AN25: 71 | AO25: 92 | AP25: 110 | AQ25: 75 | AR25: 87 | AS25: 83 | AT25: 94 | AU25: 86 | AV25: 61 | AW25: 759 | AY25: 806 | AZ25: 67.16666667
C26: Average time between pleading diet and evidence led trial, where evidence led trial occurred in the period shown (weeks) | D26: 20 | E26: N/A | F26: N/A | G26: 21 | H26: 34 | I26: 35 | J26: 50 | K26: 52 | L26: 54 | M26: 52 | N26: 54 | O26: 66 | P26: 58 | Q26: 51 | R26: 50 | S26: 55 | T26: 51 | U26: 54 | V26: 50 | W26: 51 | X26: 57 | Y26: 62 | Z26: 48 | AA26: 48 | AB26: 49 | AC26: 53 | AD26: 46 | AE26: 46 | AF26: 49 | AG26: 46 | AH26: 52 | AI26: 43 | AJ26: 49 | AK26: 54 | AL26: 53 | AM26: 50 | AN26: 49 | AO26: 45 | AP26: 43 | AQ26: 43 | AR26: 46 | AS26: 48 | AT26: 39 | AU26: 48 | AV26: 46 | AW26: 46 | AZ26: 22.1
C27: Trials scheduled at end of period | D27: 390 | E27: 390 | F27: 390 | G27: 386 | H27: 375 | I27: 360 | J27: 335 | K27: 291 | L27: 250 | M27: 215 | N27: 247 | O27: 267 | P27: 292 | Q27: 304 | R27: 313 | S27: 325 | T27: 432 | U27: 385 | V27: 444 | W27: 476 | X27: 516 | Y27: 534 | Z27: 535 | AA27: 560 | AB27: 609 | AC27: 613 | AD27: 613 | AE27: 637 | AF27: 636 | AG27: 641 | AH27: 657 | AI27: 654 | AJ27: 698 | AK27: 703 | AL27: 681 | AM27: 687 | AN27: 673 | AO27: 680 | AP27: 654 | AQ27: 665 | AR27: 656 | AS27: 651 | AT27: 641 | AU27: 650 | AV27: 649 | AW27: 649 | AY27: 390 | AZ27: 390
B29: Sheriff Court - Solemn business | C29: Petitions registered | D29: 641 | E29: 844 | F29: 1032 | G29: 1068 | H29: 1081 | I29: 1061 | J29: 935 | K29: 890 | L29: 786 | M29: 771 | N29: 896 | O29: 1071 | P29: 1011 | Q29: 945 | R29: 953 | S29: 989 | T29: 1059 | U29: 944 | V29: 897 | W29: 1090 | X29: 848 | Y29: 1025 | Z29: 942 | AA29: 1066 | AB29: 952 | AC29: 984 | AD29: 997 | AE29: 904 | AF29: 1019 | AG29: 913 | AH29: 986 | AI29: 933 | AJ29: 822 | AK29: 981 | AL29: 1095 | AM29: 1113 | AN29: 907 | AO29: 987 | AP29: 1034 | AQ29: 1058 | AR29: 1018 | AS29: 847 | AT29: 877 | AU29: 871 | AV29: 795 | AW29: 8394 | AY29: 9780 | AZ29: 815
C30: Indictments registered | D30: 219 | E30: 319 | F30: 355 | G30: 467 | H30: 496 | I30: 494 | J30: 492 | K30: 414 | L30: 428 | M30: 379 | N30: 378 | O30: 410 | P30: 441 | Q30: 532 | R30: 471 | S30: 520 | T30: 447 | U30: 481 | V30: 479 | W30: 541 | X30: 450 | Y30: 425 | Z30: 525 | AA30: 447 | AB30: 421 | AC30: 535 | AD30: 439 | AE30: 547 | AF30: 505 | AG30: 460 | AH30: 458 | AI30: 522 | AJ30: 435 | AK30: 529 | AL30: 513 | AM30: 574 | AN30: 544 | AO30: 676 | AP30: 686 | AQ30: 619 | AR30: 665 | AS30: 590 | AT30: 699 | AU30: 635 | AV30: 546 | AW30: 5660 | AY30: 5452 | AZ30: 454.3333333
C31: Indictments called at First Diet | D31: 311 | E31: 234 | F31: 222 | G31: 322 | H31: 341 | I31: 538 | J31: 467 | K31: 424 | L31: 433 | M31: 464 | N31: 370 | O31: 469 | P31: 432 | Q31: 443 | R31: 496 | S31: 468 | T31: 485 | U31: 419 | V31: 450 | W31: 487 | X31: 428 | Y31: 481 | Z31: 430 | AA31: 614 | AB31: 450 | AC31: 492 | AD31: 566 | AE31: 532 | AF31: 608 | AG31: 529 | AH31: 491 | AI31: 558 | AJ31: 463 | AK31: 600 | AL31: 474 | AM31: 577 | AN31: 539 | AO31: 554 | AP31: 517 | AQ31: 530 | AR31: 683 | AS31: 568 | AT31: 549 | AU31: 548 | AV31: 462 | AW31: 4950 | AY31: 5114 | AZ31: 426.1666667
C32: Indictments called at Continued First Diet | D32: 125 | E32: 127 | F32: 119 | G32: 464 | H32: 486 | I32: 539 | J32: 525 | K32: 724 | L32: 828 | M32: 844 | N32: 868 | O32: 1017 | P32: 907 | Q32: 869 | R32: 898 | S32: 866 | T32: 771 | U32: 730 | V32: 681 | W32: 791 | X32: 564 | Y32: 573 | Z32: 630 | AA32: 687 | AB32: 628 | AC32: 662 | AD32: 511 | AE32: 520 | AF32: 575 | AG32: 527 | AH32: 463 | AI32: 494 | AJ32: 364 | AK32: 441 | AL32: 384 | AM32: 362 | AN32: 342 | AO32: 401 | AP32: 372 | AQ32: 315 | AR32: 366 | AS32: 346 | AT32: 383 | AU32: 347 | AV32: 221 | AW32: 3093 | AY32: 2963 | AZ32: 246.9166667
C33: Section 76 indictments | D33: 49 | E33: 54 | F33: 72 | G33: 93 | H33: 103 | I33: 113 | J33: 92 | K33: 83 | L33: 79 | M33: 58 | N33: 73 | O33: 76 | P33: 83 | Q33: 104 | R33: 110 | S33: 95 | T33: 98 | U33: 86 | V33: 70 | W33: 90 | X33: 92 | Y33: 74 | Z33: 105 | AA33: 100 | AB33: 95 | AC33: 92 | AD33: 94 | AE33: 103 | AF33: 111 | AG33: 95 | AH33: 80 | AI33: 99 | AJ33: 97 | AK33: 80 | AL33: 92 | AM33: 102 | AN33: 81 | AO33: 104 | AP33: 105 | AQ33: 121 | AR33: 129 | AS33: 106 | AT33: 129 | AU33: 148 | AV33: 85 | AW33: 1008 | AY33: 1048 | AZ33: 87.33333333
C34: Trials called | D34: 91 | E34: 33 | F34: 31 | G34: 37 | H34: 146 | I34: 119 | J34: 73 | K34: 147 | L34: 78 | M34: 161 | N34: 285 | O34: 388 | P34: 362 | Q34: 368 | R34: 383 | S34: 340 | T34: 392 | U34: 396 | V34: 393 | W34: 273 | X34: 263 | Y34: 368 | Z34: 433 | AA34: 488 | AB34: 425 | AC34: 487 | AD34: 458 | AE34: 426 | AF34: 537 | AG34: 498 | AH34: 548 | AI34: 571 | AJ34: 382 | AK34: 494 | AL34: 577 | AM34: 594 | AN34: 487 | AO34: 642 | AP34: 616 | AQ34: 592 | AR34: 624 | AS34: 536 | AT34: 653 | AU34: 593 | AV34: 378 | AW34: 5121 | AY34: 3142 | AZ34: 261.8333333
C35: Trials called where evidence was led | D35: 0 | E35: 0 | F35: 0 | G35: 0 | H35: 0 | I35: 0 | J35: 0 | K35: 0 | L35: 11 | M35: 30 | N35: 56 | O35: 100 | P35: 84 | Q35: 82 | R35: 88 | S35: 76 | T35: 83 | U35: 95 | V35: 70 | W35: 48 | X35: 52 | Y35: 56 | Z35: 78 | AA35: 95 | AB35: 75 | AC35: 94 | AD35: 73 | AE35: 70 | AF35: 93 | AG35: 100 | AH35: 72 | AI35: 117 | AJ35: 65 | AK35: 82 | AL35: 103 | AM35: 117 | AN35: 87 | AO35: 113 | AP35: 125 | AQ35: 100 | AR35: 121 | AS35: 116 | AT35: 116 | AU35: 114 | AV35: 67 | AW35: 959 | AY35: 1134 | AZ35: 94.5
C36: Trials adjourned due to lack of court time | D36: 0 | E36: 0 | F36: 0 | G36: 0 | H36: 0 | I36: 0 | J36: 0 | K36: 0 | L36: 0 | M36: 4 | N36: 9 | O36: 22 | P36: 29 | Q36: 30 | R36: 17 | S36: 25 | T36: 23 | U36: 21 | V36: 34 | W36: 18 | X36: 28 | Y36: 13 | Z36: 24 | AA36: 31 | AB36: 37 | AC36: 54 | AD36: 71 | AE36: 39 | AF36: 51 | AG36: 86 | AH36: 36 | AI36: 43 | AJ36: 40 | AK36: 42 | AL36: 23 | AM36: 58 | AN36: 27 | AO36: 31 | AP36: 17 | AQ36: 18 | AR36: 21 | AS36: 19 | AT36: 17 | AU36: 23 | AV36: 32 | AW36: 205 | AY36: 57 | AZ36: 4.75
C37: Percentage of trials adjourned due to lack of court time | D37: 0 | E37: 0 | F37: 0 | G37: 0 | H37: 0 | I37: 0 | J37: 0 | K37: 0 | L37: 0 | M37: 0.0248447205 | N37: 0.03157894737 | O37: 0.05670103093 | P37: 0.08011049724 | Q37: 0.08152173913 | R37: 0.04438642298 | S37: 0.07352941176 | T37: 0.05867346939 | U37: 0.05303030303 | V37: 0.08651399491 | W37: 0.06593406593 | X37: 0.1064638783 | Y37: 0.03532608696 | Z37: 0.05542725173 | AA37: 0.06352459016 | AB37: 0.08705882353 | AC37: 0.1108829569 | AD37: 0.1550218341 | AE37: 0.09154929577 | AF37: 0.09497206704 | AG37: 0.1726907631 | AH37: 0.06569343066 | AI37: 0.07530647986 | AJ37: 0.1047120419 | AK37: 0.08502024291 | AL37: 0.03986135182 | AM37: 0.09764309764 | AN37: 0.05544147844 | AO37: 0.04828660436 | AP37: 0.0275974026 | AQ37: 0.03040540541 | AR37: 0.03365384615 | AS37: 0.03544776119 | AT37: 0.02603369066 | AU37: 0.03878583474 | AV37: 0.08465608466 | AW37: 0.0400312439 | AY37: 0.01814131127 | AZ37: 0.01814131127
C38: Indictments concluded | D38: 158 | E38: 164 | F38: 196 | G38: 277 | H38: 300 | I38: 335 | J38: 321 | K38: 324 | L38: 321 | M38: 369 | N38: 425 | O38: 560 | P38: 516 | Q38: 511 | R38: 558 | S38: 518 | T38: 543 | U38: 523 | V38: 483 | W38: 497 | X38: 379 | Y38: 467 | Z38: 575 | AA38: 602 | AB38: 550 | AC38: 574 | AD38: 538 | AE38: 507 | AF38: 683 | AG38: 545 | AH38: 628 | AI38: 655 | AJ38: 417 | AK38: 606 | AL38: 641 | AM38: 642 | AN38: 608 | AO38: 723 | AP38: 633 | AQ38: 681 | AR38: 745 | AS38: 663 | AT38: 740 | AU38: 712 | AV38: 466 | AW38: 5971 | AY38: 5841 | AZ38: 486.75
C39: Average time between pleading diet and evidence led trial, where evidence led trial occurred in the period shown (weeks) | D39: N/A | E39: N/A | F39: N/A | G39: N/A | H39: N/A | I39: N/A | J39: N/A | K39: N/A | L39: 29.97545455 | M39: 32.183 | N39: 35.68375 | O39: 37 | P39: 38.31130952 | Q39: 43.99939024 | R39: 41.65818182 | S39: 41.36118421 | T39: 44.76650602 | U39: 42.94894737 | V39: 41.78485714 | W39: 48.34291667 | X39: 40.55134615 | Y39: 40.66160714 | Z39: 44.06320513 | AA39: 45.25136842 | AB39: 40.51426667 | AC39: 50.80712766 | AD39: 51.62821918 | AE39: 44.08957143 | AF39: 44.46505376 | AG39: 42.515 | AH39: 40.91708333 | AI39: 46.4657265 | AJ39: 46.27061538 | AK39: 41.0047561 | AL39: 42.74504854 | AM39: 45.06213675 | AN39: 43.69425287 | AO39: 44.58035398 | AP39: 43.93344 | AQ39: 41.3936 | AR39: 42.83338843 | AS39: 40.16732759 | AT39: 42.24508621 | AU39: 41.27982456 | AV39: 40.97298507 | AW39: 40.97298507 | AZ39: 11
C40: Trials scheduled at end of period | D40: 497 | E40: 497 | F40: 497 | G40: 497 | H40: 553 | I40: 613 | J40: 648 | K40: 738 | L40: 939 | M40: 1091 | N40: 1211 | O40: 1329 | P40: 1398 | Q40: 1479 | R40: 1595 | S40: 1684 | T40: 1781 | U40: 1842 | V40: 1923 | W40: 2053 | X40: 2170 | Y40: 2212 | Z40: 2196 | AA40: 2274 | AB40: 2267 | AC40: 2307 | AD40: 2325 | AE40: 2356 | AF40: 2340 | AG40: 2331 | AH40: 2305 | AI40: 2361 | AJ40: 2438 | AK40: 2472 | AL40: 2402 | AM40: 2389 | AN40: 2349 | AO40: 2295 | AP40: 2223 | AQ40: 2129 | AR40: 2109 | AS40: 2056 | AT40: 1982 | AU40: 1973 | AV40: 1945 | AW40: 1945 | AY40: 497 | AZ40: 497
B42: Sheriff Court -Summary business | C42: Complaints registered | D42: 3016 | E42: 3247 | F42: 4309 | G42: 6205 | H42: 6037 | I42: 5855 | J42: 4634 | K42: 4383 | L42: 3956 | M42: 3790 | N42: 3678 | O42: 5000 | P42: 5017 | Q42: 4603 | R42: 4544 | S42: 4440 | T42: 4718 | U42: 4453 | V42: 4510 | W42: 4770 | X42: 4860 | Y42: 4614 | Z42: 4007 | AA42: 4970 | AB42: 4423 | AC42: 4858 | AD42: 5048 | AE42: 4482 | AF42: 4963 | AG42: 4101 | AH42: 4484 | AI42: 5123 | AJ42: 4350 | AK42: 5106 | AL42: 4671 | AM42: 5617 | AN42: 5063 | AO42: 5517 | AP42: 5443 | AQ42: 5320 | AR42: 6008 | AS42: 5295 | AT42: 5659 | AU42: 5900 | AV42: 4565 | AW42: 48770 | AY42: 65490 | AZ42: 5457.5
C43: Complaints called for first time | D43: 1896 | E43: 2835 | F43: 3026 | G43: 6173 | H43: 5983 | I43: 5665 | J43: 4629 | K43: 4128 | L43: 3985 | M43: 3662 | N43: 3001 | O43: 4525 | P43: 4502 | Q43: 4565 | R43: 4455 | S43: 4549 | T43: 4383 | U43: 4362 | V43: 4366 | W43: 4477 | X43: 4744 | Y43: 4610 | Z43: 3690 | AA43: 4654 | AB43: 4253 | AC43: 4792 | AD43: 4519 | AE43: 4337 | AF43: 4781 | AG43: 4020 | AH43: 3832 | AI43: 4758 | AJ43: 4426 | AK43: 4753 | AL43: 4145 | AM43: 5351 | AN43: 4816 | AO43: 5092 | AP43: 5312 | AQ43: 4916 | AR43: 5668 | AS43: 5087 | AT43: 5284 | AU43: 5691 | AV43: 4381 | AW43: 46247 | AY43: 61761 | AZ43: 5146.75
C44: Complaints called for 'Continued Without Plea' hearing | D44: 899 | E44: 1252 | F44: 1675 | G44: 2216 | H44: 3243 | I44: 4258 | J44: 4078 | K44: 3231 | L44: 2951 | M44: 2376 | N44: 861 | O44: 1892 | P44: 2520 | Q44: 3591 | R44: 3495 | S44: 2534 | T44: 2020 | U44: 1860 | V44: 1693 | W44: 1702 | X44: 1770 | Y44: 1932 | Z44: 2142 | AA44: 1906 | AB44: 1982 | AC44: 1911 | AD44: 1830 | AE44: 1876 | AF44: 1796 | AG44: 1838 | AH44: 1430 | AI44: 1678 | AJ44: 1883 | AK44: 1990 | AL44: 2002 | AM44: 2068 | AN44: 2068 | AO44: 2451 | AP44: 2307 | AQ44: 2236 | AR44: 2398 | AS44: 2253 | AT44: 2388 | AU44: 2563 | AV44: 2504 | AW44: 21168 | AY44: 14851 | AZ44: 1237.583333
C45: Complaints called in Intermediate Diet court | D45: 2702 | E45: 1910 | F45: 721 | G45: 2341 | H45: 7152 | I45: 7350 | J45: 7563 | K45: 6499 | L45: 6293 | M45: 7369 | N45: 5777 | O45: 6550 | P45: 6324 | Q45: 6499 | R45: 6697 | S45: 7002 | T45: 8286 | U45: 8495 | V45: 5130 | W45: 8376 | X45: 7274 | Y45: 8940 | Z45: 8563 | AA45: 9132 | AB45: 7868 | AC45: 8401 | AD45: 8179 | AE45: 7923 | AF45: 8769 | AG45: 8797 | AH45: 7631 | AI45: 7669 | AJ45: 6127 | AK45: 8136 | AL45: 7455 | AM45: 7068 | AN45: 5823 | AO45: 7318 | AP45: 6732 | AQ45: 6577 | AR45: 7162 | AS45: 7019 | AT45: 7497 | AU45: 7223 | AV45: 5581 | AW45: 60932 | AY45: 70652 | AZ45: 5887.666667
C46: Trials called | D46: 802 | E46: 372 | F46: 154 | G46: 291 | H46: 2343 | I46: 3107 | J46: 3207 | K46: 3443 | L46: 3090 | M46: 3805 | N46: 737 | O46: 2371 | P46: 2657 | Q46: 3171 | R46: 3887 | S46: 4169 | T46: 4499 | U46: 5443 | V46: 4266 | W46: 3428 | X46: 4703 | Y46: 4537 | Z46: 5093 | AA46: 6599 | AB46: 5094 | AC46: 5768 | AD46: 5308 | AE46: 4758 | AF46: 5724 | AG46: 5256 | AH46: 5179 | AI46: 5461 | AJ46: 4110 | AK46: 5162 | AL46: 4943 | AM46: 5587 | AN46: 3698 | AO46: 4209 | AP46: 4218 | AQ46: 3778 | AR46: 4392 | AS46: 3921 | AT46: 4547 | AU46: 4605 | AV46: 3450 | AW46: 36818 | AY46: 40729 | AZ46: 3394.083333
C47: Trials called where evidence was led | D47: 5 | E47: 9 | F47: 24 | G47: 79 | H47: 283 | I47: 440 | J47: 479 | K47: 491 | L47: 399 | M47: 176 | N47: 86 | O47: 250 | P47: 352 | Q47: 433 | R47: 471 | S47: 408 | T47: 459 | U47: 551 | V47: 439 | W47: 385 | X47: 422 | Y47: 427 | Z47: 552 | AA47: 604 | AB47: 505 | AC47: 589 | AD47: 495 | AE47: 431 | AF47: 571 | AG47: 474 | AH47: 561 | AI47: 560 | AJ47: 437 | AK47: 560 | AL47: 592 | AM47: 605 | AN47: 396 | AO47: 437 | AP47: 462 | AQ47: 433 | AR47: 530 | AS47: 430 | AT47: 452 | AU47: 554 | AV47: 406 | AW47: 4100 | AY47: 6946 | AZ47: 578.8333333
C48: Trials adjourned due to lack of court time | D48: 0 | E48: 0 | F48: 0 | G48: 8 | H48: 21 | I48: 40 | J48: 50 | K48: 57 | L48: 90 | M48: 9 | N48: 1 | O48: 11 | P48: 43 | Q48: 57 | R48: 96 | S48: 67 | T48: 91 | U48: 94 | V48: 101 | W48: 68 | X48: 64 | Y48: 58 | Z48: 88 | AA48: 56 | AB48: 76 | AC48: 70 | AD48: 53 | AE48: 47 | AF48: 89 | AG48: 50 | AH48: 78 | AI48: 111 | AJ48: 78 | AK48: 114 | AL48: 128 | AM48: 102 | AN48: 113 | AO48: 117 | AP48: 87 | AQ48: 99 | AR48: 128 | AS48: 92 | AT48: 73 | AU48: 93 | AV48: 97 | AW48: 899 | AY48: 1230 | AZ48: 102.5
C49: Percentage of trials adjourned due to lack of court time | D49: 0 | E49: 0 | F49: 0 | G49: 0.02749140893 | H49: 0.008962868118 | I49: 0.01287415513 | J49: 0.01559089492 | K49: 0.01655532965 | L49: 0.02912621359 | M49: 0.002365308804 | N49: 0.001356852103 | O49: 0.004639392661 | P49: 0.01618366579 | Q49: 0.01797540208 | R49: 0.02469771032 | S49: 0.01607100024 | T49: 0.02022671705 | U49: 0.01726988793 | V49: 0.02367557431 | W49: 0.01983663944 | X49: 0.01360833511 | Y49: 0.01278377783 | Z49: 0.01727861771 | AA49: 0.008486134263 | AB49: 0.01491951315 | AC49: 0.01213592233 | AD49: 0.00998492841 | AE49: 0.009878100042 | AF49: 0.01554856744 | AG49: 0.009512937595 | AH49: 0.01506082255 | AI49: 0.02032594763 | AJ49: 0.01897810219 | AK49: 0.02208446339 | AL49: 0.02589520534 | AM49: 0.01825666726 | AN49: 0.03055705787 | AO49: 0.02779757662 | AP49: 0.02062588905 | AQ49: 0.02620434092 | AR49: 0.029143898 | AS49: 0.02346340219 | AT49: 0.01605454146 | AU49: 0.02019543974 | AV49: 0.02811594203 | AW49: 0.02441740453 | AY49: 0.03019961207 | AZ49: 0.03019961207
C50: Complaints concluded | D50: 457 | E50: 824 | F50: 1243 | G50: 2388 | H50: 4274 | I50: 4943 | J50: 4625 | K50: 4527 | L50: 4159 | M50: 2248 | N50: 1812 | O50: 2919 | P50: 3615 | Q50: 4374 | R50: 4781 | S50: 4649 | T50: 4874 | U50: 5426 | V50: 4346 | W50: 4392 | X50: 4578 | Y50: 4327 | Z50: 5189 | AA50: 6170 | AB50: 5251 | AC50: 6148 | AD50: 5571 | AE50: 5289 | AF50: 6045 | AG50: 5444 | AH50: 5359 | AI50: 5806 | AJ50: 4608 | AK50: 5750 | AL50: 5569 | AM50: 6137 | AN50: 4624 | AO50: 5286 | AP50: 5274 | AQ50: 4962 | AR50: 5614 | AS50: 4990 | AT50: 5574 | AU50: 5739 | AV50: 4381 | AW50: 46444 | AY50: 62041 | AZ50: 5170.083333
C51: Average time between pleading diet and evidence led trial, where evidence led trial occurred in the period shown (weeks) | D51: 7.084 | E51: 3.843333333 | F51: 11.475 | G51: 21.38050633 | H51: 34.06579505 | I51: 37.83834091 | J51: 35.17250522 | K51: 33.83321792 | L51: 34.1124812 | M51: 36.05914773 | N51: 35.49627907 | O51: 34.8928 | P51: 34.80360795 | Q51: 36.66076212 | R51: 41.73518047 | S51: 44.97041667 | T51: 45.60104575 | U51: 48.23023593 | V51: 47.25947608 | W51: 45.57033766 | X51: 46.96611374 | Y51: 49.67327869 | Z51: 52.4936413 | AA51: 50.4565894 | AB51: 52.718 | AC51: 50.10327674 | AD51: 49.93777778 | AE51: 44.44832947 | AF51: 49.13229422 | AG51: 49.65187764 | AH51: 46.87684492 | AI51: 44.62660714 | AJ51: 46.49684211 | AK51: 46.14867857 | AL51: 44.27106419 | AM51: 44.98512397 | AN51: 41.35747475 | AO51: 41.62148741 | AP51: 34.1969697 | AQ51: 37.88288684 | AR51: 39.59250943 | AS51: 37.57274419 | AT51: 39.01387168 | AU51: 38.61353791 | AV51: 39.76987685 | AW51: 39.76987685 | AZ51: 23
C52: Trials scheduled at end of period | D52: 13967 | E52: 15854 | F52: 17818 | G52: 20929 | H52: 22932 | I52: 25146 | J52: 26370 | K52: 27372 | L52: 27723 | M52: 28548 | N52: 29324 | O52: 30645 | P52: 31799 | Q52: 32778 | R52: 33598 | S52: 33602 | T52: 33369 | U52: 32433 | V52: 32448 | W52: 33015 | X52: 32394 | Y52: 32759 | Z52: 31904 | AA52: 30520 | AB52: 29793 | AC52: 28500 | AD52: 27525 | AE52: 26802 | AF52: 25595 | AG52: 24700 | AH52: 23214 | AI52: 22580 | AJ52: 22235 | AK52: 21569 | AL52: 20641 | AM52: 20064 | AN52: 20492 | AO52: 20990 | AP52: 21202 | AQ52: 21413 | AR52: 21554 | AS52: 21792 | AT52: 21445 | AU52: 21459 | AV52: 21611 | AW52: 21611 | AY52: 13971 | AZ52: 13971
B54: Justice of the Peace Court | C54: Complaints registered during period | D54: 1994 | E54: 910 | F54: 987 | G54: 1823 | H54: 1064 | I54: 916 | J54: 1717 | K54: 1221 | L54: 1426 | M54: 1469 | N54: 1345 | O54: 2060 | P54: 1992 | Q54: 1731 | R54: 2064 | S54: 1717 | T54: 2012 | U54: 2133 | V54: 2108 | W54: 2034 | X54: 1856 | Y54: 1787 | Z54: 1611 | AA54: 2512 | AB54: 1893 | AC54: 2223 | AD54: 2479 | AE54: 1768 | AF54: 2114 | AG54: 1576 | AH54: 1450 | AI54: 1972 | AJ54: 1206 | AK54: 1532 | AL54: 1620 | AM54: 1923 | AN54: 1551 | AO54: 1516 | AP54: 1443 | AQ54: 1106 | AR54: 1621 | AS54: 1837 | AT54: 1493 | AU54: 2032 | AV54: 1263 | AW54: 13862 | AY54: 33582 | AZ54: 2798.5
C55: Complaints called for first time | D55: 1182 | E55: 772 | F55: 538 | G55: 1734 | H55: 1398 | I55: 772 | J55: 1485 | K55: 1257 | L55: 1564 | M55: 1840 | N55: 585 | O55: 1536 | P55: 1055 | Q55: 772 | R55: 1657 | S55: 2059 | T55: 1929 | U55: 2038 | V55: 2143 | W55: 2148 | X55: 1932 | Y55: 1843 | Z55: 1261 | AA55: 2523 | AB55: 2135 | AC55: 2215 | AD55: 2417 | AE55: 1925 | AF55: 2029 | AG55: 1816 | AH55: 1320 | AI55: 1931 | AJ55: 1482 | AK55: 1336 | AL55: 1459 | AM55: 2083 | AN55: 1536 | AO55: 1432 | AP55: 1479 | AQ55: 1255 | AR55: 1296 | AS55: 1836 | AT55: 1641 | AU55: 1867 | AV55: 1476 | AW55: 13818 | AY55: 33066 | AZ55: 2755.5
C56: Complaints called for 'Continued Without Plea' hearing | D56: 994 | E56: 936 | F56: 900 | G56: 1140 | H56: 3278 | I56: 3839 | J56: 2986 | K56: 2766 | L56: 2521 | M56: 2127 | N56: 626 | O56: 1482 | P56: 1052 | Q56: 1743 | R56: 3521 | S56: 5126 | T56: 3844 | U56: 2783 | V56: 2138 | W56: 2060 | X56: 1994 | Y56: 1698 | Z56: 1813 | AA56: 1607 | AB56: 1912 | AC56: 1982 | AD56: 1813 | AE56: 2015 | AF56: 1867 | AG56: 1978 | AH56: 1682 | AI56: 1502 | AJ56: 1608 | AK56: 1339 | AL56: 1285 | AM56: 1460 | AN56: 1382 | AO56: 1428 | AP56: 1272 | AQ56: 1219 | AR56: 1289 | AS56: 1115 | AT56: 1570 | AU56: 1440 | AV56: 1553 | AW56: 12268 | AY56: 18263 | AZ56: 1521.916667
C57: Complaints called in Intermediate Diet court | D57: 700 | E57: 446 | F57: 106 | G57: 365 | H57: 1565 | I57: 1838 | J57: 1796 | K57: 1504 | L57: 1447 | M57: 1774 | N57: 931 | O57: 847 | P57: 658 | Q57: 683 | R57: 1286 | S57: 1480 | T57: 1798 | U57: 2006 | V57: 1268 | W57: 1683 | X57: 1653 | Y57: 1926 | Z57: 1857 | AA57: 2111 | AB57: 1874 | AC57: 1972 | AD57: 1883 | AE57: 1880 | AF57: 1829 | AG57: 1910 | AH57: 1792 | AI57: 1691 | AJ57: 1369 | AK57: 1663 | AL57: 1605 | AM57: 1608 | AN57: 1311 | AO57: 1678 | AP57: 1584 | AQ57: 1371 | AR57: 1641 | AS57: 1357 | AT57: 1518 | AU57: 1423 | AV57: 1018 | AW57: 12901 | AY57: 19195 | AZ57: 1599.583333
C58: Trials called | D58: 126 | E58: 71 | F58: 7 | G58: 23 | H58: 308 | I58: 698 | J58: 658 | K58: 738 | L58: 653 | M58: 860 | N58: 111 | O58: 276 | P58: 102 | Q58: 50 | R58: 240 | S58: 495 | T58: 952 | U58: 875 | V58: 725 | W58: 638 | X58: 878 | Y58: 681 | Z58: 882 | AA58: 1116 | AB58: 964 | AC58: 1089 | AD58: 971 | AE58: 886 | AF58: 1114 | AG58: 1061 | AH58: 1078 | AI58: 1162 | AJ58: 773 | AK58: 1000 | AL58: 836 | AM58: 930 | AN58: 675 | AO58: 832 | AP58: 831 | AQ58: 695 | AR58: 868 | AS58: 781 | AT58: 855 | AU58: 832 | AV58: 553 | AW58: 6922 | AY58: 10061 | AZ58: 838.4166667
C59: Trials called where evidence was led | D59: 0 | E59: 0 | F59: 0 | G59: 1 | H59: 23 | I59: 68 | J59: 68 | K59: 87 | L59: 73 | M59: 27 | N59: 2 | O59: 0 | P59: 0 | Q59: 0 | R59: 16 | S59: 51 | T59: 67 | U59: 82 | V59: 63 | W59: 45 | X59: 45 | Y59: 6 | Z59: 70 | AA59: 73 | AB59: 61 | AC59: 91 | AD59: 75 | AE59: 77 | AF59: 71 | AG59: 94 | AH59: 91 | AI59: 110 | AJ59: 70 | AK59: 83 | AL59: 80 | AM59: 96 | AN59: 60 | AO59: 87 | AP59: 98 | AQ59: 59 | AR59: 82 | AS59: 78 | AT59: 77 | AU59: 95 | AV59: 54 | AW59: 690 | AY59: 1543 | AZ59: 128.5833333
C60: Trials adjourned due to lack of court time | D60: 0 | E60: 0 | F60: 0 | G60: 0 | H60: 3 | I60: 10 | J60: 13 | K60: 5 | L60: 4 | M60: 2 | N60: 0 | O60: 0 | P60: 0 | Q60: 0 | R60: 0 | S60: 2 | T60: 14 | U60: 7 | V60: 5 | W60: 8 | X60: 8 | Y60: 0 | Z60: 9 | AA60: 10 | AB60: 10 | AC60: 11 | AD60: 5 | AE60: 8 | AF60: 11 | AG60: 6 | AH60: 10 | AI60: 13 | AJ60: 4 | AK60: 16 | AL60: 8 | AM60: 11 | AN60: 3 | AO60: 12 | AP60: 8 | AQ60: 6 | AR60: 8 | AS60: 6 | AT60: 13 | AU60: 16 | AV60: 9 | AW60: 81 | AY60: 238 | AZ60: 19.83333333
C61: Percentage of trials adjourned due to lack of court time | D61: 0 | E61: 0 | F61: 0 | G61: 0 | H61: 0.00974025974 | I61: 0.01432664756 | J61: 0.01975683891 | K61: 0.006775067751 | L61: 0.006125574273 | M61: 0.002325581395 | N61: 0 | O61: 0 | P61: 0 | Q61: 0 | R61: 0 | S61: 0.00404040404 | T61: 0.01470588235 | U61: 0.008 | V61: 0.006896551724 | W61: 0.01253918495 | X61: 0.009111617312 | Y61: 0 | Z61: 0.01020408163 | AA61: 0.008960573477 | AB61: 0.01037344398 | AC61: 0.0101010101 | AD61: 0.005149330587 | AE61: 0.009029345372 | AF61: 0.00987432675 | AG61: 0.005655042413 | AH61: 0.009276437848 | AI61: 0.01118760757 | AJ61: 0.005174644243 | AK61: 0.016 | AL61: 0.00956937799 | AM61: 0.01182795699 | AN61: 0.004444444444 | AO61: 0.01442307692 | AP61: 0.009626955475 | AQ61: 0.008633093525 | AR61: 0.009216589862 | AS61: 0.007682458387 | AT61: 0.01520467836 | AU61: 0.01923076923 | AV61: 0.01627486438 | AW61: 0.01170182028 | AY61: 0.02365570023 | AZ61: 0.02365570023
C62: Complaints concluded | D62: 15 | E62: 51 | F62: 205 | G62: 484 | H62: 1425 | I62: 1889 | J62: 1696 | K62: 1736 | L62: 1674 | M62: 655 | N62: 156 | O62: 365 | P62: 228 | Q62: 331 | R62: 2043 | S62: 3058 | T62: 2837 | U62: 2547 | V62: 2091 | W62: 1990 | X62: 1862 | Y62: 1580 | Z62: 1821 | AA62: 2314 | AB62: 2190 | AC62: 2432 | AD62: 2393 | AE62: 2223 | AF62: 2308 | AG62: 2017 | AH62: 1988 | AI62: 2148 | AJ62: 1619 | AK62: 1736 | AL62: 1722 | AM62: 2117 | AN62: 1552 | AO62: 1728 | AP62: 1610 | AQ62: 1363 | AR62: 1610 | AS62: 1606 | AT62: 1736 | AU62: 1793 | AV62: 1430 | AW62: 14428 | AY62: 33102 | AZ62: 2758.5
C63: Average time between pleading diet and evidence led trial, where evidence led trial occurred in the period shown (weeks) | D63: N/A | E63: N/A | F63: N/A | G63: 36.29 | H63: 34.07695652 | I63: 37.38691176 | J63: 36.72235294 | K63: 41.48229885 | L63: 37.75534247 | M63: 37.10444444 | N63: 54.93 | O63: N/A | P63: N/A | Q63: N/A | R63: 58.12625 | S63: 58.44862745 | T63: 58.65716418 | U63: 55.04036585 | V63: 59.37920635 | W63: 59.82888889 | X63: 58.78355556 | Y63: 59.025 | Z63: 56.40342857 | AA63: 54.1830137 | AB63: 53.93754098 | AC63: 56.98626374 | AD63: 54.5756 | AE63: 52.05363636 | AF63: 47.66084507 | AG63: 52.03319149 | AH63: 55.1132967 | AI63: 52.52054545 | AJ63: 41.86914286 | AK63: 50.39518072 | AL63: 46.227875 | AM63: 44.75364583 | AN63: 41.41583333 | AO63: 41.44931034 | AP63: 48.85163265 | AQ63: 43.57898305 | AR63: 38.1995122 | AS63: 40.26705128 | AT63: 45.14662338 | AU63: 42.81063158 | AV63: 30.05740741 | AW63: 30.05740741 | AZ63: 22
C64: Trials scheduled at end of period | D64: 3220 | E64: 3495 | F64: 3732 | G64: 4088 | H64: 4491 | I64: 4837 | J64: 5074 | K64: 5189 | L64: 5371 | M64: 5213 | N64: 5255 | O64: 5560 | P64: 5999 | Q64: 6321 | R64: 6945 | S64: 7730 | T64: 7944 | U64: 7890 | V64: 7941 | W64: 8053 | X64: 7936 | Y64: 8101 | Z64: 7868 | AA64: 7569 | AB64: 7289 | AC64: 7079 | AD64: 6711 | AE64: 6389 | AF64: 6163 | AG64: 5922 | AH64: 5386 | AI64: 4993 | AJ64: 4934 | AK64: 4542 | AL64: 4305 | AM64: 4266 | AN64: 4211 | AO64: 4111 | AP64: 3994 | AQ64: 3835 | AR64: 3532 | AS64: 3412 | AT64: 3292 | AU64: 3180 | AV64: 3360 | AW64: 3360 | AY64: 3497 | AZ64: 3497
B66: Notes 1. Coronavirus pandemic: To meet the needs of justice partners, court users and the media, the SCTS published monthly business volumes and trends for first instance criminal cases calling at Scottish courts during the pandemic and the recovery period. 2. All figures for 2019/20 are monthly averages except for the rows showing Trials Scheduled and Average time between pleading diet and evidence led trial where figures are as at the end of the period shown.

Sheet 2a
B1: Back to Index
D3: High Court
D4: Indictments registered | E4: Indictments called at Preliminary Hearing | F4: Indictments called at Continued Preliminary Hearing | G4: Section 76 Indictments | H4: Trials called | I4: Trials called where evidence was led | J4: Trials adjourned due to lack of court time | K4: Percentage of trials adjourned due to lack of court time | L4: Trials scheduled at end of period | M4: Indictments concluded
B5: 2014/15 | C5: Quarter 1 | D5: =SUMIFS('High Court Raw Data'!$E:$E,'High Court Raw Data'!$B:$B,"Q1",'High Court Raw Data'!$A:$A,"2014/15") -> 170 | E5: =SUMIFS('High Court Raw Data'!$F:$F,'High Court Raw Data'!$B:$B,"Q1",'High Court Raw Data'!$A:$A,"2014/15") -> 184 | F5: =SUMIFS('High Court Raw Data'!$G:$G,'High Court Raw Data'!$B:$B,"Q1",'High Court Raw Data'!$A:$A,"2014/15") -> 113 | G5: =SUMIFS('High Court Raw Data'!$H:$H,'High Court Raw Data'!$B:$B,"Q1",'High Court Raw Data'!$A:$A,"2014/15") -> 29 | H5: =SUMIFS('High Court Raw Data'!$I:$I,'High Court Raw Data'!$B:$B,"Q1",'High Court Raw Data'!$A:$A,"2014/15") -> 142 | I5: =SUMIFS('High Court Raw Data'!$J:$J,'High Court Raw Data'!$B:$B,"Q1",'High Court Raw Data'!$A:$A,"2014/15") -> 104 | J5: =SUMIFS('High Court Raw Data'!$K:$K,'High Court Raw Data'!$B:$B,"Q1",'High Court Raw Data'!$A:$A,"2014/15") -> 1 | K5: =IFERROR(SUM(J5/H5),"0.0%") -> 0.007042253521 | L5: Not Available | M5: 173.0769231
C6: Quarter 2 | D6: =SUMIFS('High Court Raw Data'!$E:$E,'High Court Raw Data'!$B:$B,"Q2",'High Court Raw Data'!$A:$A,"2014/15") -> 206 | E6: =SUMIFS('High Court Raw Data'!$F:$F,'High Court Raw Data'!$B:$B,"Q2",'High Court Raw Data'!$A:$A,"2014/15") -> 187 | F6: =SUMIFS('High Court Raw Data'!$G:$G,'High Court Raw Data'!$B:$B,"Q2",'High Court Raw Data'!$A:$A,"2014/15") -> 110 | G6: =SUMIFS('High Court Raw Data'!$H:$H,'High Court Raw Data'!$B:$B,"Q2",'High Court Raw Data'!$A:$A,"2014/15") -> 21 | H6: =SUMIFS('High Court Raw Data'!$I:$I,'High Court Raw Data'!$B:$B,"Q2",'High Court Raw Data'!$A:$A,"2014/15") -> 173 | I6: =SUMIFS('High Court Raw Data'!$J:$J,'High Court Raw Data'!$B:$B,"Q2",'High Court Raw Data'!$A:$A,"2014/15") -> 114 | J6: =SUMIFS('High Court Raw Data'!$K:$K,'High Court Raw Data'!$B:$B,"Q2",'High Court Raw Data'!$A:$A,"2014/15") -> 2 | K6: 0.01156069364 | L6: Not Available | M6: 176.9230769
C7: Quarter 3 | D7: =SUMIFS('High Court Raw Data'!$E:$E,'High Court Raw Data'!$B:$B,"Q3",'High Court Raw Data'!$A:$A,"2014/15") -> 164 | E7: =SUMIFS('High Court Raw Data'!$F:$F,'High Court Raw Data'!$B:$B,"Q3",'High Court Raw Data'!$A:$A,"2014/15") -> 186 | F7: =SUMIFS('High Court Raw Data'!$G:$G,'High Court Raw Data'!$B:$B,"Q3",'High Court Raw Data'!$A:$A,"2014/15") -> 115 | G7: =SUMIFS('High Court Raw Data'!$H:$H,'High Court Raw Data'!$B:$B,"Q3",'High Court Raw Data'!$A:$A,"2014/15") -> 34 | H7: =SUMIFS('High Court Raw Data'!$I:$I,'High Court Raw Data'!$B:$B,"Q3",'High Court Raw Data'!$A:$A,"2014/15") -> 148 | I7: =SUMIFS('High Court Raw Data'!$J:$J,'High Court Raw Data'!$B:$B,"Q3",'High Court Raw Data'!$A:$A,"2014/15") -> 100 | J7: =SUMIFS('High Court Raw Data'!$K:$K,'High Court Raw Data'!$B:$B,"Q3",'High Court Raw Data'!$A:$A,"2014/15") -> 8 | K7: 0.05405405405 | L7: Not Available | M7: 189.4230769
C8: Quarter 4 | D8: =SUMIFS('High Court Raw Data'!$E:$E,'High Court Raw Data'!$B:$B,"Q4",'High Court Raw Data'!$A:$A,"2014/15") -> 163 | E8: =SUMIFS('High Court Raw Data'!$F:$F,'High Court Raw Data'!$B:$B,"Q4",'High Court Raw Data'!$A:$A,"2014/15") -> 187 | F8: =SUMIFS('High Court Raw Data'!$G:$G,'High Court Raw Data'!$B:$B,"Q4",'High Court Raw Data'!$A:$A,"2014/15") -> 93 | G8: =SUMIFS('High Court Raw Data'!$H:$H,'High Court Raw Data'!$B:$B,"Q4",'High Court Raw Data'!$A:$A,"2014/15") -> 25 | H8: =SUMIFS('High Court Raw Data'!$I:$I,'High Court Raw Data'!$B:$B,"Q4",'High Court Raw Data'!$A:$A,"2014/15") -> 179 | I8: =SUMIFS('High Court Raw Data'!$J:$J,'High Court Raw Data'!$B:$B,"Q4",'High Court Raw Data'!$A:$A,"2014/15") -> 125 | J8: =SUMIFS('High Court Raw Data'!$K:$K,'High Court Raw Data'!$B:$B,"Q4",'High Court Raw Data'!$A:$A,"2014/15") -> 3 | K8: 0.01675977654 | L8: Not Available | M8: 193.2692308
C9: Full Year | D9: =SUM(D5:D8) -> 703 | E9: 744 | F9: 431 | G9: 109 | H9: 642 | I9: 443 | J9: 14 | K9: 0.02180685358 | L9: Not Available | M9: =SUM(M5:M8) -> 732.6923077
B10: 2015/16 | C10: Quarter 1 | D10: =SUMIFS('High Court Raw Data'!$E:$E,'High Court Raw Data'!$B:$B,"Q1",'High Court Raw Data'!$A:$A,"2015/16") -> 179 | E10: =SUMIFS('High Court Raw Data'!$F:$F,'High Court Raw Data'!$B:$B,"Q1",'High Court Raw Data'!$A:$A,"2015/16") -> 182 | F10: =SUMIFS('High Court Raw Data'!$G:$G,'High Court Raw Data'!$B:$B,"Q1",'High Court Raw Data'!$A:$A,"2015/16") -> 61 | G10: =SUMIFS('High Court Raw Data'!$H:$H,'High Court Raw Data'!$B:$B,"Q1",'High Court Raw Data'!$A:$A,"2015/16") -> 15 | H10: =SUMIFS('High Court Raw Data'!$I:$I,'High Court Raw Data'!$B:$B,"Q1",'High Court Raw Data'!$A:$A,"2015/16") -> 150 | I10: =SUMIFS('High Court Raw Data'!$J:$J,'High Court Raw Data'!$B:$B,"Q1",'High Court Raw Data'!$A:$A,"2015/16") -> 108 | J10: =SUMIFS('High Court Raw Data'!$K:$K,'High Court Raw Data'!$B:$B,"Q1",'High Court Raw Data'!$A:$A,"2015/16") -> 1 | K10: 0.006666666667 | L10: Not Available | M10: 186.5384615
C11: Quarter 2 | D11: =SUMIFS('High Court Raw Data'!$E:$E,'High Court Raw Data'!$B:$B,"Q2",'High Court Raw Data'!$A:$A,"2015/16") -> 143 | E11: =SUMIFS('High Court Raw Data'!$F:$F,'High Court Raw Data'!$B:$B,"Q2",'High Court Raw Data'!$A:$A,"2015/16") -> 147 | F11: =SUMIFS('High Court Raw Data'!$G:$G,'High Court Raw Data'!$B:$B,"Q2",'High Court Raw Data'!$A:$A,"2015/16") -> 60 | G11: =SUMIFS('High Court Raw Data'!$H:$H,'High Court Raw Data'!$B:$B,"Q2",'High Court Raw Data'!$A:$A,"2015/16") -> 32 | H11: =SUMIFS('High Court Raw Data'!$I:$I,'High Court Raw Data'!$B:$B,"Q2",'High Court Raw Data'!$A:$A,"2015/16") -> 172 | I11: =SUMIFS('High Court Raw Data'!$J:$J,'High Court Raw Data'!$B:$B,"Q2",'High Court Raw Data'!$A:$A,"2015/16") -> 112 | J11: =SUMIFS('High Court Raw Data'!$K:$K,'High Court Raw Data'!$B:$B,"Q2",'High Court Raw Data'!$A:$A,"2015/16") -> 3 | K11: 0.01744186047 | L11: Not Available | M11: 158.6538462
C12: Quarter 3 | D12: =SUMIFS('High Court Raw Data'!$E:$E,'High Court Raw Data'!$B:$B,"Q3",'High Court Raw Data'!$A:$A,"2015/16") -> 136 | E12: =SUMIFS('High Court Raw Data'!$F:$F,'High Court Raw Data'!$B:$B,"Q3",'High Court Raw Data'!$A:$A,"2015/16") -> 170 | F12: =SUMIFS('High Court Raw Data'!$G:$G,'High Court Raw Data'!$B:$B,"Q3",'High Court Raw Data'!$A:$A,"2015/16") -> 53 | G12: =SUMIFS('High Court Raw Data'!$H:$H,'High Court Raw Data'!$B:$B,"Q3",'High Court Raw Data'!$A:$A,"2015/16") -> 33 | H12: =SUMIFS('High Court Raw Data'!$I:$I,'High Court Raw Data'!$B:$B,"Q3",'High Court Raw Data'!$A:$A,"2015/16") -> 145 | I12: =SUMIFS('High Court Raw Data'!$J:$J,'High Court Raw Data'!$B:$B,"Q3",'High Court Raw Data'!$A:$A,"2015/16") -> 88 | J12: =SUMIFS('High Court Raw Data'!$K:$K,'High Court Raw Data'!$B:$B,"Q3",'High Court Raw Data'!$A:$A,"2015/16") -> 0 | K12: 0 | L12: Not Available | M12: 170.1923077
C13: Quarter 4 | D13: =SUMIFS('High Court Raw Data'!$E:$E,'High Court Raw Data'!$B:$B,"Q4",'High Court Raw Data'!$A:$A,"2015/16") -> 181 | E13: =SUMIFS('High Court Raw Data'!$F:$F,'High Court Raw Data'!$B:$B,"Q4",'High Court Raw Data'!$A:$A,"2015/16") -> 184 | F13: =SUMIFS('High Court Raw Data'!$G:$G,'High Court Raw Data'!$B:$B,"Q4",'High Court Raw Data'!$A:$A,"2015/16") -> 75 | G13: =SUMIFS('High Court Raw Data'!$H:$H,'High Court Raw Data'!$B:$B,"Q4",'High Court Raw Data'!$A:$A,"2015/16") -> 29 | H13: =SUMIFS('High Court Raw Data'!$I:$I,'High Court Raw Data'!$B:$B,"Q4",'High Court Raw Data'!$A:$A,"2015/16") -> 149 | I13: =SUMIFS('High Court Raw Data'!$J:$J,'High Court Raw Data'!$B:$B,"Q4",'High Court Raw Data'!$A:$A,"2015/16") -> 95 | J13: =SUMIFS('High Court Raw Data'!$K:$K,'High Court Raw Data'!$B:$B,"Q4",'High Court Raw Data'!$A:$A,"2015/16") -> 5 | K13: 0.03355704698 | L13: Not Available | M13: 186.5384615
C14: Full Year | D14: =SUM(D10:D13) -> 639 | E14: 683 | F14: 249 | G14: 109 | H14: 616 | I14: 403 | J14: 9 | K14: 0.01461038961 | L14: Not Available | M14: =SUM(M10:M13) -> 701.9230769
B15: 2016/17 | C15: Quarter 1 | D15: =SUMIFS('High Court Raw Data'!$E:$E,'High Court Raw Data'!$B:$B,"Q1",'High Court Raw Data'!$A:$A,"2016/17") -> 161 | E15: =SUMIFS('High Court Raw Data'!$F:$F,'High Court Raw Data'!$B:$B,"Q1",'High Court Raw Data'!$A:$A,"2016/17") -> 184 | F15: =SUMIFS('High Court Raw Data'!$G:$G,'High Court Raw Data'!$B:$B,"Q1",'High Court Raw Data'!$A:$A,"2016/17") -> 60 | G15: =SUMIFS('High Court Raw Data'!$H:$H,'High Court Raw Data'!$B:$B,"Q1",'High Court Raw Data'!$A:$A,"2016/17") -> 30 | H15: =SUMIFS('High Court Raw Data'!$I:$I,'High Court Raw Data'!$B:$B,"Q1",'High Court Raw Data'!$A:$A,"2016/17") -> 142 | I15: =SUMIFS('High Court Raw Data'!$J:$J,'High Court Raw Data'!$B:$B,"Q1",'High Court Raw Data'!$A:$A,"2016/17") -> 95 | J15: =SUMIFS('High Court Raw Data'!$K:$K,'High Court Raw Data'!$B:$B,"Q1",'High Court Raw Data'!$A:$A,"2016/17") -> 13 | K15: 0.09154929577 | L15: Not Available | M15: 136
C16: Quarter 2 | D16: =SUMIFS('High Court Raw Data'!$E:$E,'High Court Raw Data'!$B:$B,"Q2",'High Court Raw Data'!$A:$A,"2016/17") -> 133 | E16: =SUMIFS('High Court Raw Data'!$F:$F,'High Court Raw Data'!$B:$B,"Q2",'High Court Raw Data'!$A:$A,"2016/17") -> 139 | F16: =SUMIFS('High Court Raw Data'!$G:$G,'High Court Raw Data'!$B:$B,"Q2",'High Court Raw Data'!$A:$A,"2016/17") -> 71 | G16: =SUMIFS('High Court Raw Data'!$H:$H,'High Court Raw Data'!$B:$B,"Q2",'High Court Raw Data'!$A:$A,"2016/17") -> 16 | H16: =SUMIFS('High Court Raw Data'!$I:$I,'High Court Raw Data'!$B:$B,"Q2",'High Court Raw Data'!$A:$A,"2016/17") -> 156 | I16: =SUMIFS('High Court Raw Data'!$J:$J,'High Court Raw Data'!$B:$B,"Q2",'High Court Raw Data'!$A:$A,"2016/17") -> 100 | J16: =SUMIFS('High Court Raw Data'!$K:$K,'High Court Raw Data'!$B:$B,"Q2",'High Court Raw Data'!$A:$A,"2016/17") -> 13 | K16: 0.08333333333 | L16: Not Available | M16: 132
C17: Quarter 3 | D17: =SUMIFS('High Court Raw Data'!$E:$E,'High Court Raw Data'!$B:$B,"Q3",'High Court Raw Data'!$A:$A,"2016/17") -> 110 | E17: =SUMIFS('High Court Raw Data'!$F:$F,'High Court Raw Data'!$B:$B,"Q3",'High Court Raw Data'!$A:$A,"2016/17") -> 138 | F17: =SUMIFS('High Court Raw Data'!$G:$G,'High Court Raw Data'!$B:$B,"Q3",'High Court Raw Data'!$A:$A,"2016/17") -> 66 | G17: =SUMIFS('High Court Raw Data'!$H:$H,'High Court Raw Data'!$B:$B,"Q3",'High Court Raw Data'!$A:$A,"2016/17") -> 19 | H17: =SUMIFS('High Court Raw Data'!$I:$I,'High Court Raw Data'!$B:$B,"Q3",'High Court Raw Data'!$A:$A,"2016/17") -> 149 | I17: =SUMIFS('High Court Raw Data'!$J:$J,'High Court Raw Data'!$B:$B,"Q3",'High Court Raw Data'!$A:$A,"2016/17") -> 111 | J17: =SUMIFS('High Court Raw Data'!$K:$K,'High Court Raw Data'!$B:$B,"Q3",'High Court Raw Data'!$A:$A,"2016/17") -> 0 | K17: 0 | L17: Not Available | M17: 139
C18: Quarter 4 | D18: =SUMIFS('High Court Raw Data'!$E:$E,'High Court Raw Data'!$B:$B,"Q4",'High Court Raw Data'!$A:$A,"2016/17") -> 183 | E18: =SUMIFS('High Court Raw Data'!$F:$F,'High Court Raw Data'!$B:$B,"Q4",'High Court Raw Data'!$A:$A,"2016/17") -> 154 | F18: =SUMIFS('High Court Raw Data'!$G:$G,'High Court Raw Data'!$B:$B,"Q4",'High Court Raw Data'!$A:$A,"2016/17") -> 54 | G18: =SUMIFS('High Court Raw Data'!$H:$H,'High Court Raw Data'!$B:$B,"Q4",'High Court Raw Data'!$A:$A,"2016/17") -> 19 | H18: =SUMIFS('High Court Raw Data'!$I:$I,'High Court Raw Data'!$B:$B,"Q4",'High Court Raw Data'!$A:$A,"2016/17") -> 185 | I18: =SUMIFS('High Court Raw Data'!$J:$J,'High Court Raw Data'!$B:$B,"Q4",'High Court Raw Data'!$A:$A,"2016/17") -> 137 | J18: =SUMIFS('High Court Raw Data'!$K:$K,'High Court Raw Data'!$B:$B,"Q4",'High Court Raw Data'!$A:$A,"2016/17") -> 1 | K18: 0.005405405405 | L18: Not Available | M18: 179
C19: Full Year | D19: =SUM(D15:D18) -> 587 | E19: 615 | F19: 251 | G19: 84 | H19: 632 | I19: 443 | J19: 27 | K19: 0.04272151899 | L19: Not Available | M19: =SUM(M15:M18) -> 586
B20: 2017/18 | C20: Quarter 1 | D20: =SUMIFS('High Court Raw Data'!$E:$E,'High Court Raw Data'!$B:$B,"Q1",'High Court Raw Data'!$A:$A,"2017/18") -> 153 | E20: =SUMIFS('High Court Raw Data'!$F:$F,'High Court Raw Data'!$B:$B,"Q1",'High Court Raw Data'!$A:$A,"2017/18") -> 152 | F20: =SUMIFS('High Court Raw Data'!$G:$G,'High Court Raw Data'!$B:$B,"Q1",'High Court Raw Data'!$A:$A,"2017/18") -> 60 | G20: =SUMIFS('High Court Raw Data'!$H:$H,'High Court Raw Data'!$B:$B,"Q1",'High Court Raw Data'!$A:$A,"2017/18") -> 19 | H20: =SUMIFS('High Court Raw Data'!$I:$I,'High Court Raw Data'!$B:$B,"Q1",'High Court Raw Data'!$A:$A,"2017/18") -> 181 | I20: =SUMIFS('High Court Raw Data'!$J:$J,'High Court Raw Data'!$B:$B,"Q1",'High Court Raw Data'!$A:$A,"2017/18") -> 115 | J20: =SUMIFS('High Court Raw Data'!$K:$K,'High Court Raw Data'!$B:$B,"Q1",'High Court Raw Data'!$A:$A,"2017/18") -> 0 | K20: 0 | L20: Not Available | M20: 168
C21: Quarter 2 | D21: =SUMIFS('High Court Raw Data'!$E:$E,'High Court Raw Data'!$B:$B,"Q2",'High Court Raw Data'!$A:$A,"2017/18") -> 198 | E21: =SUMIFS('High Court Raw Data'!$F:$F,'High Court Raw Data'!$B:$B,"Q2",'High Court Raw Data'!$A:$A,"2017/18") -> 158 | F21: =SUMIFS('High Court Raw Data'!$G:$G,'High Court Raw Data'!$B:$B,"Q2",'High Court Raw Data'!$A:$A,"2017/18") -> 58 | G21: =SUMIFS('High Court Raw Data'!$H:$H,'High Court Raw Data'!$B:$B,"Q2",'High Court Raw Data'!$A:$A,"2017/18") -> 17 | H21: =SUMIFS('High Court Raw Data'!$I:$I,'High Court Raw Data'!$B:$B,"Q2",'High Court Raw Data'!$A:$A,"2017/18") -> 168 | I21: =SUMIFS('High Court Raw Data'!$J:$J,'High Court Raw Data'!$B:$B,"Q2",'High Court Raw Data'!$A:$A,"2017/18") -> 114 | J21: =SUMIFS('High Court Raw Data'!$K:$K,'High Court Raw Data'!$B:$B,"Q2",'High Court Raw Data'!$A:$A,"2017/18") -> 0 | K21: 0 | L21: Not Available | M21: 167
C22: Quarter 3 | D22: =SUMIFS('High Court Raw Data'!$E:$E,'High Court Raw Data'!$B:$B,"Q3",'High Court Raw Data'!$A:$A,"2017/18") -> 165 | E22: =SUMIFS('High Court Raw Data'!$F:$F,'High Court Raw Data'!$B:$B,"Q3",'High Court Raw Data'!$A:$A,"2017/18") -> 121 | F22: =SUMIFS('High Court Raw Data'!$G:$G,'High Court Raw Data'!$B:$B,"Q3",'High Court Raw Data'!$A:$A,"2017/18") -> 74 | G22: =SUMIFS('High Court Raw Data'!$H:$H,'High Court Raw Data'!$B:$B,"Q3",'High Court Raw Data'!$A:$A,"2017/18") -> 18 | H22: =SUMIFS('High Court Raw Data'!$I:$I,'High Court Raw Data'!$B:$B,"Q3",'High Court Raw Data'!$A:$A,"2017/18") -> 150 | I22: =SUMIFS('High Court Raw Data'!$J:$J,'High Court Raw Data'!$B:$B,"Q3",'High Court Raw Data'!$A:$A,"2017/18") -> 103 | J22: =SUMIFS('High Court Raw Data'!$K:$K,'High Court Raw Data'!$B:$B,"Q3",'High Court Raw Data'!$A:$A,"2017/18") -> 0 | K22: 0 | L22: Not Available | M22: 148
C23: Quarter 4 | D23: =SUMIFS('High Court Raw Data'!$E:$E,'High Court Raw Data'!$B:$B,"Q4",'High Court Raw Data'!$A:$A,"2017/18") -> 202 | E23: =SUMIFS('High Court Raw Data'!$F:$F,'High Court Raw Data'!$B:$B,"Q4",'High Court Raw Data'!$A:$A,"2017/18") -> 167 | F23: =SUMIFS('High Court Raw Data'!$G:$G,'High Court Raw Data'!$B:$B,"Q4",'High Court Raw Data'!$A:$A,"2017/18") -> 81 | G23: =SUMIFS('High Court Raw Data'!$H:$H,'High Court Raw Data'!$B:$B,"Q4",'High Court Raw Data'!$A:$A,"2017/18") -> 20 | H23: =SUMIFS('High Court Raw Data'!$I:$I,'High Court Raw Data'!$B:$B,"Q4",'High Court Raw Data'!$A:$A,"2017/18") -> 190 | I23: =SUMIFS('High Court Raw Data'!$J:$J,'High Court Raw Data'!$B:$B,"Q4",'High Court Raw Data'!$A:$A,"2017/18") -> 129 | J23: =SUMIFS('High Court Raw Data'!$K:$K,'High Court Raw Data'!$B:$B,"Q4",'High Court Raw Data'!$A:$A,"2017/18") -> 0 | K23: 0 | L23: Not Available | M23: 147
C24: Full Year | D24: =SUM(D20:D23) -> 718 | E24: 598 | F24: 273 | G24: 74 | H24: 689 | I24: 461 | J24: 0 | K24: 0 | L24: Not Available | M24: =SUM(M20:M23) -> 630
B25: 2018/19 | C25: Quarter 1 | D25: =SUMIFS('High Court Raw Data'!$E:$E,'High Court Raw Data'!$B:$B,"Q1",'High Court Raw Data'!$A:$A,"2018/19") -> 228 | E25: =SUMIFS('High Court Raw Data'!$F:$F,'High Court Raw Data'!$B:$B,"Q1",'High Court Raw Data'!$A:$A,"2018/19") -> 232 | F25: =SUMIFS('High Court Raw Data'!$G:$G,'High Court Raw Data'!$B:$B,"Q1",'High Court Raw Data'!$A:$A,"2018/19") -> 116 | G25: =SUMIFS('High Court Raw Data'!$H:$H,'High Court Raw Data'!$B:$B,"Q1",'High Court Raw Data'!$A:$A,"2018/19") -> 20 | H25: =SUMIFS('High Court Raw Data'!$I:$I,'High Court Raw Data'!$B:$B,"Q1",'High Court Raw Data'!$A:$A,"2018/19") -> 190 | I25: =SUMIFS('High Court Raw Data'!$J:$J,'High Court Raw Data'!$B:$B,"Q1",'High Court Raw Data'!$A:$A,"2018/19") -> 131 | J25: =SUMIFS('High Court Raw Data'!$K:$K,'High Court Raw Data'!$B:$B,"Q1",'High Court Raw Data'!$A:$A,"2018/19") -> 2 | K25: 0.01052631579 | L25: =SUMIFS('High Court Raw Data'!$L:$L,'High Court Raw Data'!$B:$B,"Q1",'High Court Raw Data'!$A:$A,"2018/19") -> 192 | M25: 183
C26: Quarter 2 | D26: =SUMIFS('High Court Raw Data'!$E:$E,'High Court Raw Data'!$B:$B,"Q2",'High Court Raw Data'!$A:$A,"2018/19") -> 240 | E26: =SUMIFS('High Court Raw Data'!$F:$F,'High Court Raw Data'!$B:$B,"Q2",'High Court Raw Data'!$A:$A,"2018/19") -> 228 | F26: =SUMIFS('High Court Raw Data'!$G:$G,'High Court Raw Data'!$B:$B,"Q2",'High Court Raw Data'!$A:$A,"2018/19") -> 101 | G26: =SUMIFS('High Court Raw Data'!$H:$H,'High Court Raw Data'!$B:$B,"Q2",'High Court Raw Data'!$A:$A,"2018/19") -> 24 | H26: =SUMIFS('High Court Raw Data'!$I:$I,'High Court Raw Data'!$B:$B,"Q2",'High Court Raw Data'!$A:$A,"2018/19") -> 183 | I26: =SUMIFS('High Court Raw Data'!$J:$J,'High Court Raw Data'!$B:$B,"Q2",'High Court Raw Data'!$A:$A,"2018/19") -> 142 | J26: =SUMIFS('High Court Raw Data'!$K:$K,'High Court Raw Data'!$B:$B,"Q2",'High Court Raw Data'!$A:$A,"2018/19") -> 3 | K26: 0.01639344262 | L26: =SUMIFS('High Court Raw Data'!$L:$L,'High Court Raw Data'!$B:$B,"Q2",'High Court Raw Data'!$A:$A,"2018/19") -> 215 | M26: =SUMIFS('High Court Raw Data'!$M:$M,'High Court Raw Data'!$B:$B,"Q2",'High Court Raw Data'!$A:$A,"2018/19") -> 240
C27: Quarter 3 | D27: =SUMIFS('High Court Raw Data'!$E:$E,'High Court Raw Data'!$B:$B,"Q3",'High Court Raw Data'!$A:$A,"2018/19") -> 210 | E27: =SUMIFS('High Court Raw Data'!$F:$F,'High Court Raw Data'!$B:$B,"Q3",'High Court Raw Data'!$A:$A,"2018/19") -> 204 | F27: =SUMIFS('High Court Raw Data'!$G:$G,'High Court Raw Data'!$B:$B,"Q3",'High Court Raw Data'!$A:$A,"2018/19") -> 92 | G27: =SUMIFS('High Court Raw Data'!$H:$H,'High Court Raw Data'!$B:$B,"Q3",'High Court Raw Data'!$A:$A,"2018/19") -> 23 | H27: =SUMIFS('High Court Raw Data'!$I:$I,'High Court Raw Data'!$B:$B,"Q3",'High Court Raw Data'!$A:$A,"2018/19") -> 163 | I27: =SUMIFS('High Court Raw Data'!$J:$J,'High Court Raw Data'!$B:$B,"Q3",'High Court Raw Data'!$A:$A,"2018/19") -> 113 | J27: =SUMIFS('High Court Raw Data'!$K:$K,'High Court Raw Data'!$B:$B,"Q3",'High Court Raw Data'!$A:$A,"2018/19") -> 0 | K27: 0 | L27: =SUMIFS('High Court Raw Data'!$L:$L,'High Court Raw Data'!$B:$B,"Q3",'High Court Raw Data'!$A:$A,"2018/19") -> 236 | M27: =SUMIFS('High Court Raw Data'!$M:$M,'High Court Raw Data'!$B:$B,"Q3",'High Court Raw Data'!$A:$A,"2018/19") -> 198
C28: Quarter 4 | D28: =SUMIFS('High Court Raw Data'!$E:$E,'High Court Raw Data'!$B:$B,"Q4",'High Court Raw Data'!$A:$A,"2018/19") -> 233 | E28: =SUMIFS('High Court Raw Data'!$F:$F,'High Court Raw Data'!$B:$B,"Q4",'High Court Raw Data'!$A:$A,"2018/19") -> 223 | F28: =SUMIFS('High Court Raw Data'!$G:$G,'High Court Raw Data'!$B:$B,"Q4",'High Court Raw Data'!$A:$A,"2018/19") -> 125 | G28: =SUMIFS('High Court Raw Data'!$H:$H,'High Court Raw Data'!$B:$B,"Q4",'High Court Raw Data'!$A:$A,"2018/19") -> 21 | H28: =SUMIFS('High Court Raw Data'!$I:$I,'High Court Raw Data'!$B:$B,"Q4",'High Court Raw Data'!$A:$A,"2018/19") -> 181 | I28: =SUMIFS('High Court Raw Data'!$J:$J,'High Court Raw Data'!$B:$B,"Q4",'High Court Raw Data'!$A:$A,"2018/19") -> 121 | J28: 6 | K28: 0.03314917127 | L28: =SUMIFS('High Court Raw Data'!$L:$L,'High Court Raw Data'!$B:$B,"Q4",'High Court Raw Data'!$A:$A,"2018/19") -> 268 | M28: =SUMIFS('High Court Raw Data'!$M:$M,'High Court Raw Data'!$B:$B,"Q4",'High Court Raw Data'!$A:$A,"2018/19") -> 201
C29: Full Year | D29: =SUM(D25:D28) -> 911 | E29: 887 | F29: 434 | G29: 88 | H29: 717 | I29: 507 | J29: 11 | K29: 0.01534170153 | L29: =L28 -> 268 | M29: =SUM(M25:M28) -> 822
B30: 2019/20 | C30: Quarter 1 | D30: =SUMIFS('High Court Raw Data'!$E:$E,'High Court Raw Data'!$B:$B,"Q1",'High Court Raw Data'!$A:$A,"2019/20") -> 248 | E30: =SUMIFS('High Court Raw Data'!$F:$F,'High Court Raw Data'!$B:$B,"Q1",'High Court Raw Data'!$A:$A,"2019/20") -> 253 | F30: =SUMIFS('High Court Raw Data'!$G:$G,'High Court Raw Data'!$B:$B,"Q1",'High Court Raw Data'!$A:$A,"2019/20") -> 100 | G30: =SUMIFS('High Court Raw Data'!$H:$H,'High Court Raw Data'!$B:$B,"Q1",'High Court Raw Data'!$A:$A,"2019/20") -> 25 | H30: =SUMIFS('High Court Raw Data'!$I:$I,'High Court Raw Data'!$B:$B,"Q1",'High Court Raw Data'!$A:$A,"2019/20") -> 168 | I30: =SUMIFS('High Court Raw Data'!$J:$J,'High Court Raw Data'!$B:$B,"Q1",'High Court Raw Data'!$A:$A,"2019/20") -> 107 | J30: =SUMIFS('High Court Raw Data'!$K:$K,'High Court Raw Data'!$B:$B,"Q1",'High Court Raw Data'!$A:$A,"2019/20") -> 5 | K30: 0.02976190476 | L30: =SUMIFS('High Court Raw Data'!$L:$L,'High Court Raw Data'!$B:$B,"Q1",'High Court Raw Data'!$A:$A,"2019/20") -> 315 | M30: =SUMIFS('High Court Raw Data'!$M:$M,'High Court Raw Data'!$B:$B,"Q1",'High Court Raw Data'!$A:$A,"2019/20") -> 182
C31: Quarter 2 | D31: =SUMIFS('High Court Raw Data'!$E:$E,'High Court Raw Data'!$B:$B,"Q2",'High Court Raw Data'!$A:$A,"2019/20") -> 272 | E31: =SUMIFS('High Court Raw Data'!$F:$F,'High Court Raw Data'!$B:$B,"Q2",'High Court Raw Data'!$A:$A,"2019/20") -> 241 | F31: =SUMIFS('High Court Raw Data'!$G:$G,'High Court Raw Data'!$B:$B,"Q2",'High Court Raw Data'!$A:$A,"2019/20") -> 114 | G31: =SUMIFS('High Court Raw Data'!$H:$H,'High Court Raw Data'!$B:$B,"Q2",'High Court Raw Data'!$A:$A,"2019/20") -> 22 | H31: =SUMIFS('High Court Raw Data'!$I:$I,'High Court Raw Data'!$B:$B,"Q2",'High Court Raw Data'!$A:$A,"2019/20") -> 219 | I31: =SUMIFS('High Court Raw Data'!$J:$J,'High Court Raw Data'!$B:$B,"Q2",'High Court Raw Data'!$A:$A,"2019/20") -> 146 | J31: =SUMIFS('High Court Raw Data'!$K:$K,'High Court Raw Data'!$B:$B,"Q2",'High Court Raw Data'!$A:$A,"2019/20") -> 4 | K31: 0.01826484018 | L31: =SUMIFS('High Court Raw Data'!$L:$L,'High Court Raw Data'!$B:$B,"Q2",'High Court Raw Data'!$A:$A,"2019/20") -> 304 | M31: =SUMIFS('High Court Raw Data'!$M:$M,'High Court Raw Data'!$B:$B,"Q2",'High Court Raw Data'!$A:$A,"2019/20") -> 241
C32: Quarter 3 | D32: =SUMIFS('High Court Raw Data'!$E:$E,'High Court Raw Data'!$B:$B,"Q3",'High Court Raw Data'!$A:$A,"2019/20") -> 274 | E32: =SUMIFS('High Court Raw Data'!$F:$F,'High Court Raw Data'!$B:$B,"Q3",'High Court Raw Data'!$A:$A,"2019/20") -> 267 | F32: =SUMIFS('High Court Raw Data'!$G:$G,'High Court Raw Data'!$B:$B,"Q3",'High Court Raw Data'!$A:$A,"2019/20") -> 115 | G32: =SUMIFS('High Court Raw Data'!$H:$H,'High Court Raw Data'!$B:$B,"Q3",'High Court Raw Data'!$A:$A,"2019/20") -> 24 | H32: =SUMIFS('High Court Raw Data'!$I:$I,'High Court Raw Data'!$B:$B,"Q3",'High Court Raw Data'!$A:$A,"2019/20") -> 190 | I32: =SUMIFS('High Court Raw Data'!$J:$J,'High Court Raw Data'!$B:$B,"Q3",'High Court Raw Data'!$A:$A,"2019/20") -> 120 | J32: =SUMIFS('High Court Raw Data'!$K:$K,'High Court Raw Data'!$B:$B,"Q3",'High Court Raw Data'!$A:$A,"2019/20") -> 22 | K32: 0.1157894737 | L32: =SUMIFS('High Court Raw Data'!$L:$L,'High Court Raw Data'!$B:$B,"Q3",'High Court Raw Data'!$A:$A,"2019/20") -> 369 | M32: =SUMIFS('High Court Raw Data'!$M:$M,'High Court Raw Data'!$B:$B,"Q3",'High Court Raw Data'!$A:$A,"2019/20") -> 206
C33: Quarter 4 | D33: =SUMIFS('High Court Raw Data'!$E:$E,'High Court Raw Data'!$B:$B,"Q4",'High Court Raw Data'!$A:$A,"2019/20") -> 230 | E33: =SUMIFS('High Court Raw Data'!$F:$F,'High Court Raw Data'!$B:$B,"Q4",'High Court Raw Data'!$A:$A,"2019/20") -> 220 | F33: =SUMIFS('High Court Raw Data'!$G:$G,'High Court Raw Data'!$B:$B,"Q4",'High Court Raw Data'!$A:$A,"2019/20") -> 108 | G33: =SUMIFS('High Court Raw Data'!$H:$H,'High Court Raw Data'!$B:$B,"Q4",'High Court Raw Data'!$A:$A,"2019/20") -> 23 | H33: =SUMIFS('High Court Raw Data'!$I:$I,'High Court Raw Data'!$B:$B,"Q4",'High Court Raw Data'!$A:$A,"2019/20") -> 235 | I33: =SUMIFS('High Court Raw Data'!$J:$J,'High Court Raw Data'!$B:$B,"Q4",'High Court Raw Data'!$A:$A,"2019/20") -> 125 | J33: =SUMIFS('High Court Raw Data'!$K:$K,'High Court Raw Data'!$B:$B,"Q4",'High Court Raw Data'!$A:$A,"2019/20") -> 18 | K33: 0.07659574468 | L33: =SUMIFS('High Court Raw Data'!$L:$L,'High Court Raw Data'!$B:$B,"Q4",'High Court Raw Data'!$A:$A,"2019/20") -> 390 | M33: =SUMIFS('High Court Raw Data'!$M:$M,'High Court Raw Data'!$B:$B,"Q4",'High Court Raw Data'!$A:$A,"2019/20") -> 177
C34: Full Year | D34: =SUM(D30:D33) -> 1024 | E34: 981 | F34: 437 | G34: 94 | H34: 812 | I34: 498 | J34: 49 | K34: 0.06034482759 | L34: =L33 -> 390 | M34: =SUM(M30:M33) -> 806
B35: 2020/21 | C35: Quarter 1 | D35: =SUMIFS('High Court Raw Data'!$E:$E,'High Court Raw Data'!$B:$B,"Q1",'High Court Raw Data'!$A:$A,"2020/21") -> 231 | E35: =SUMIFS('High Court Raw Data'!$F:$F,'High Court Raw Data'!$B:$B,"Q1",'High Court Raw Data'!$A:$A,"2020/21") -> 92 | F35: =SUMIFS('High Court Raw Data'!$G:$G,'High Court Raw Data'!$B:$B,"Q1",'High Court Raw Data'!$A:$A,"2020/21") -> 40 | G35: =SUMIFS('High Court Raw Data'!$H:$H,'High Court Raw Data'!$B:$B,"Q1",'High Court Raw Data'!$A:$A,"2020/21") -> 17 | H35: =SUMIFS('High Court Raw Data'!$I:$I,'High Court Raw Data'!$B:$B,"Q1",'High Court Raw Data'!$A:$A,"2020/21") -> 0 | I35: =SUMIFS('High Court Raw Data'!$J:$J,'High Court Raw Data'!$B:$B,"Q1",'High Court Raw Data'!$A:$A,"2020/21") -> 0 | J35: =SUMIFS('High Court Raw Data'!$K:$K,'High Court Raw Data'!$B:$B,"Q1",'High Court Raw Data'!$A:$A,"2020/21") -> 0 | K35: 0.0% | L35: =SUMIFS('High Court Raw Data'!$L:$L,'High Court Raw Data'!$B:$B,"Q1",'High Court Raw Data'!$A:$A,"2020/21") -> 390 | M35: =SUMIFS('High Court Raw Data'!$M:$M,'High Court Raw Data'!$B:$B,"Q1",'High Court Raw Data'!$A:$A,"2020/21") -> 30
C36: Quarter 2 | D36: =SUMIFS('High Court Raw Data'!$E:$E,'High Court Raw Data'!$B:$B,"Q2",'High Court Raw Data'!$A:$A,"2020/21") -> 177 | E36: =SUMIFS('High Court Raw Data'!$F:$F,'High Court Raw Data'!$B:$B,"Q2",'High Court Raw Data'!$A:$A,"2020/21") -> 314 | F36: =SUMIFS('High Court Raw Data'!$G:$G,'High Court Raw Data'!$B:$B,"Q2",'High Court Raw Data'!$A:$A,"2020/21") -> 289 | G36: =SUMIFS('High Court Raw Data'!$H:$H,'High Court Raw Data'!$B:$B,"Q2",'High Court Raw Data'!$A:$A,"2020/21") -> 26 | H36: =SUMIFS('High Court Raw Data'!$I:$I,'High Court Raw Data'!$B:$B,"Q2",'High Court Raw Data'!$A:$A,"2020/21") -> 44 | I36: =SUMIFS('High Court Raw Data'!$J:$J,'High Court Raw Data'!$B:$B,"Q2",'High Court Raw Data'!$A:$A,"2020/21") -> 36 | J36: =SUMIFS('High Court Raw Data'!$K:$K,'High Court Raw Data'!$B:$B,"Q2",'High Court Raw Data'!$A:$A,"2020/21") -> 0 | K36: 0 | L36: =SUMIFS('High Court Raw Data'!$L:$L,'High Court Raw Data'!$B:$B,"Q2",'High Court Raw Data'!$A:$A,"2020/21") -> 360 | M36: =SUMIFS('High Court Raw Data'!$M:$M,'High Court Raw Data'!$B:$B,"Q2",'High Court Raw Data'!$A:$A,"2020/21") -> 87
C37: Quarter 3 | D37: =SUMIFS('High Court Raw Data'!$E:$E,'High Court Raw Data'!$B:$B,"Q3",'High Court Raw Data'!$A:$A,"2020/21") -> 140 | E37: =SUMIFS('High Court Raw Data'!$F:$F,'High Court Raw Data'!$B:$B,"Q3",'High Court Raw Data'!$A:$A,"2020/21") -> 150 | F37: =SUMIFS('High Court Raw Data'!$G:$G,'High Court Raw Data'!$B:$B,"Q3",'High Court Raw Data'!$A:$A,"2020/21") -> 247 | G37: =SUMIFS('High Court Raw Data'!$H:$H,'High Court Raw Data'!$B:$B,"Q3",'High Court Raw Data'!$A:$A,"2020/21") -> 18 | H37: =SUMIFS('High Court Raw Data'!$I:$I,'High Court Raw Data'!$B:$B,"Q3",'High Court Raw Data'!$A:$A,"2020/21") -> 147 | I37: =SUMIFS('High Court Raw Data'!$J:$J,'High Court Raw Data'!$B:$B,"Q3",'High Court Raw Data'!$A:$A,"2020/21") -> 106 | J37: =SUMIFS('High Court Raw Data'!$K:$K,'High Court Raw Data'!$B:$B,"Q3",'High Court Raw Data'!$A:$A,"2020/21") -> 12 | K37: 0.08163265306 | L37: =SUMIFS('High Court Raw Data'!$L:$L,'High Court Raw Data'!$B:$B,"Q3",'High Court Raw Data'!$A:$A,"2020/21") -> 250 | M37: =SUMIFS('High Court Raw Data'!$M:$M,'High Court Raw Data'!$B:$B,"Q3",'High Court Raw Data'!$A:$A,"2020/21") -> 147
C38: Quarter 4 | D38: =SUMIFS('High Court Raw Data'!$E:$E,'High Court Raw Data'!$B:$B,"Q4",'High Court Raw Data'!$A:$A,"2020/21") -> 219 | E38: =SUMIFS('High Court Raw Data'!$F:$F,'High Court Raw Data'!$B:$B,"Q4",'High Court Raw Data'!$A:$A,"2020/21") -> 169 | F38: =SUMIFS('High Court Raw Data'!$G:$G,'High Court Raw Data'!$B:$B,"Q4",'High Court Raw Data'!$A:$A,"2020/21") -> 215 | G38: =SUMIFS('High Court Raw Data'!$H:$H,'High Court Raw Data'!$B:$B,"Q4",'High Court Raw Data'!$A:$A,"2020/21") -> 23 | H38: =SUMIFS('High Court Raw Data'!$I:$I,'High Court Raw Data'!$B:$B,"Q4",'High Court Raw Data'!$A:$A,"2020/21") -> 186 | I38: ='High Court Raw Data'!X32 -> 0 | J38: =SUMIFS('High Court Raw Data'!$K:$K,'High Court Raw Data'!$B:$B,"Q4",'High Court Raw Data'!$A:$A,"2020/21") -> 0 | K38: 0 | L38: =SUMIFS('High Court Raw Data'!$L:$L,'High Court Raw Data'!$B:$B,"Q4",'High Court Raw Data'!$A:$A,"2020/21") -> 267 | M38: =SUMIFS('High Court Raw Data'!$M:$M,'High Court Raw Data'!$B:$B,"Q4",'High Court Raw Data'!$A:$A,"2020/21") -> 191
C39: Full Year | D39: =SUM(D35:D38) -> 767 | E39: 725 | F39: 791 | G39: 84 | H39: 377 | I39: 142 | J39: 12 | K39: 0.03183023873 | L39: =L38 -> 267 | M39: =SUM(M35:M38) -> 455
B40: 2021/22 | C40: Quarter 1 | D40: =SUMIFS('High Court Raw Data'!$E:$E,'High Court Raw Data'!$B:$B,"Q1",'High Court Raw Data'!$A:$A,"2021/22") -> 155 | E40: =SUMIFS('High Court Raw Data'!$F:$F,'High Court Raw Data'!$B:$B,"Q1",'High Court Raw Data'!$A:$A,"2021/22") -> 173 | F40: =SUMIFS('High Court Raw Data'!$G:$G,'High Court Raw Data'!$B:$B,"Q1",'High Court Raw Data'!$A:$A,"2021/22") -> 185 | G40: =SUMIFS('High Court Raw Data'!$H:$H,'High Court Raw Data'!$B:$B,"Q1",'High Court Raw Data'!$A:$A,"2021/22") -> 19 | H40: =SUMIFS('High Court Raw Data'!$I:$I,'High Court Raw Data'!$B:$B,"Q1",'High Court Raw Data'!$A:$A,"2021/22") -> 173 | I40: =SUMIFS('High Court Raw Data'!$J:$J,'High Court Raw Data'!$B:$B,"Q1",'High Court Raw Data'!$A:$A,"2021/22") -> 124 | J40: =SUMIFS('High Court Raw Data'!$K:$K,'High Court Raw Data'!$B:$B,"Q1",'High Court Raw Data'!$A:$A,"2021/22") -> 11 | K40: 0.06358381503 | L40: =SUMIFS('High Court Raw Data'!$L:$L,'High Court Raw Data'!$B:$B,"Q1",'High Court Raw Data'!$A:$A,"2021/22") -> 313 | M40: =SUMIFS('High Court Raw Data'!$M:$M,'High Court Raw Data'!$B:$B,"Q1",'High Court Raw Data'!$A:$A,"2021/22") -> 173
C41: Quarter 2 | D41: =SUMIFS('High Court Raw Data'!$E:$E,'High Court Raw Data'!$B:$B,"Q2",'High Court Raw Data'!$A:$A,"2021/22") -> 160 | E41: =SUMIFS('High Court Raw Data'!$F:$F,'High Court Raw Data'!$B:$B,"Q2",'High Court Raw Data'!$A:$A,"2021/22") -> 112 | F41: =SUMIFS('High Court Raw Data'!$G:$G,'High Court Raw Data'!$B:$B,"Q2",'High Court Raw Data'!$A:$A,"2021/22") -> 228 | G41: =SUMIFS('High Court Raw Data'!$H:$H,'High Court Raw Data'!$B:$B,"Q2",'High Court Raw Data'!$A:$A,"2021/22") -> 20 | H41: =SUMIFS('High Court Raw Data'!$I:$I,'High Court Raw Data'!$B:$B,"Q2",'High Court Raw Data'!$A:$A,"2021/22") -> 196 | I41: =SUMIFS('High Court Raw Data'!$J:$J,'High Court Raw Data'!$B:$B,"Q2",'High Court Raw Data'!$A:$A,"2021/22") -> 150 | J41: =SUMIFS('High Court Raw Data'!$K:$K,'High Court Raw Data'!$B:$B,"Q2",'High Court Raw Data'!$A:$A,"2021/22") -> 5 | K41: 0.02551020408 | L41: =SUMIFS('High Court Raw Data'!$L:$L,'High Court Raw Data'!$B:$B,"Q2",'High Court Raw Data'!$A:$A,"2021/22") -> 389 | M41: =SUMIFS('High Court Raw Data'!$M:$M,'High Court Raw Data'!$B:$B,"Q2",'High Court Raw Data'!$A:$A,"2021/22") -> 196
C42: Quarter 3 | D42: =SUMIFS('High Court Raw Data'!$E:$E,'High Court Raw Data'!$B:$B,"Q3",'High Court Raw Data'!$A:$A,"2021/22") -> 192 | E42: =SUMIFS('High Court Raw Data'!$F:$F,'High Court Raw Data'!$B:$B,"Q3",'High Court Raw Data'!$A:$A,"2021/22") -> 135 | F42: =SUMIFS('High Court Raw Data'!$G:$G,'High Court Raw Data'!$B:$B,"Q3",'High Court Raw Data'!$A:$A,"2021/22") -> 169 | G42: =SUMIFS('High Court Raw Data'!$H:$H,'High Court Raw Data'!$B:$B,"Q3",'High Court Raw Data'!$A:$A,"2021/22") -> 17 | H42: =SUMIFS('High Court Raw Data'!$I:$I,'High Court Raw Data'!$B:$B,"Q3",'High Court Raw Data'!$A:$A,"2021/22") -> 184 | I42: =SUMIFS('High Court Raw Data'!$J:$J,'High Court Raw Data'!$B:$B,"Q3",'High Court Raw Data'!$A:$A,"2021/22") -> 147 | J42: =SUMIFS('High Court Raw Data'!$K:$K,'High Court Raw Data'!$B:$B,"Q3",'High Court Raw Data'!$A:$A,"2021/22") -> 0 | K42: 0 | L42: =SUMIFS('High Court Raw Data'!$L:$L,'High Court Raw Data'!$B:$B,"Q3",'High Court Raw Data'!$A:$A,"2021/22") -> 516 | M42: =SUMIFS('High Court Raw Data'!$M:$M,'High Court Raw Data'!$B:$B,"Q3",'High Court Raw Data'!$A:$A,"2021/22") -> 208
C43: Quarter 4 | D43: =SUMIFS('High Court Raw Data'!$E:$E,'High Court Raw Data'!$B:$B,"Q4",'High Court Raw Data'!$A:$A,"2021/22") -> 238 | E43: =SUMIFS('High Court Raw Data'!$F:$F,'High Court Raw Data'!$B:$B,"Q4",'High Court Raw Data'!$A:$A,"2021/22") -> 218 | F43: =SUMIFS('High Court Raw Data'!$G:$G,'High Court Raw Data'!$B:$B,"Q4",'High Court Raw Data'!$A:$A,"2021/22") -> 134 | G43: =SUMIFS('High Court Raw Data'!$H:$H,'High Court Raw Data'!$B:$B,"Q4",'High Court Raw Data'!$A:$A,"2021/22") -> 22 | H43: =SUMIFS('High Court Raw Data'!$I:$I,'High Court Raw Data'!$B:$B,"Q4",'High Court Raw Data'!$A:$A,"2021/22") -> 199 | I43: =SUMIFS('High Court Raw Data'!$J:$J,'High Court Raw Data'!$B:$B,"Q4",'High Court Raw Data'!$A:$A,"2021/22") -> 156 | J43: =SUMIFS('High Court Raw Data'!$K:$K,'High Court Raw Data'!$B:$B,"Q4",'High Court Raw Data'!$A:$A,"2021/22") -> 4 | K43: 0.02010050251 | L43: =SUMIFS('High Court Raw Data'!$L:$L,'High Court Raw Data'!$B:$B,"Q4",'High Court Raw Data'!$A:$A,"2021/22") -> 560 | M43: =SUMIFS('High Court Raw Data'!$M:$M,'High Court Raw Data'!$B:$B,"Q4",'High Court Raw Data'!$A:$A,"2021/22") -> 179
C44: Full Year | D44: =SUM(D40:D43) -> 745 | E44: 638 | F44: 716 | G44: 78 | H44: 752 | I44: 577 | J44: 20 | K44: 0.02659574468 | L44: =L43 -> 560 | M44: =SUM(M40:M43) -> 756
B45: 2022/23 | C45: Quarter 1 | D45: =SUMIFS('High Court Raw Data'!$E:$E,'High Court Raw Data'!$B:$B,"Q1",'High Court Raw Data'!$A:$A,"2022/23") -> 224 | E45: =SUMIFS('High Court Raw Data'!$F:$F,'High Court Raw Data'!$B:$B,"Q1",'High Court Raw Data'!$A:$A,"2022/23") -> 235 | F45: =SUMIFS('High Court Raw Data'!$G:$G,'High Court Raw Data'!$B:$B,"Q1",'High Court Raw Data'!$A:$A,"2022/23") -> 135 | G45: =SUMIFS('High Court Raw Data'!$H:$H,'High Court Raw Data'!$B:$B,"Q1",'High Court Raw Data'!$A:$A,"2022/23") -> 24 | H45: =SUMIFS('High Court Raw Data'!$I:$I,'High Court Raw Data'!$B:$B,"Q1",'High Court Raw Data'!$A:$A,"2022/23") -> 243 | I45: =SUMIFS('High Court Raw Data'!$J:$J,'High Court Raw Data'!$B:$B,"Q1",'High Court Raw Data'!$A:$A,"2022/23") -> 159 | J45: =SUMIFS('High Court Raw Data'!$K:$K,'High Court Raw Data'!$B:$B,"Q1",'High Court Raw Data'!$A:$A,"2022/23") -> 13 | K45: 0.05349794239 | L45: =SUMIFS('High Court Raw Data'!$L:$L,'High Court Raw Data'!$B:$B,"Q1",'High Court Raw Data'!$A:$A,"2022/23") -> 613 | M45: =SUMIFS('High Court Raw Data'!$M:$M,'High Court Raw Data'!$B:$B,"Q1",'High Court Raw Data'!$A:$A,"2022/23") -> 213
C46: Quarter 2 | D46: =SUMIFS('High Court Raw Data'!$E:$E,'High Court Raw Data'!$B:$B,"Q2",'High Court Raw Data'!$A:$A,"2022/23") -> 251 | E46: =SUMIFS('High Court Raw Data'!$F:$F,'High Court Raw Data'!$B:$B,"Q2",'High Court Raw Data'!$A:$A,"2022/23") -> 218 | F46: =SUMIFS('High Court Raw Data'!$G:$G,'High Court Raw Data'!$B:$B,"Q2",'High Court Raw Data'!$A:$A,"2022/23") -> 120 | G46: =SUMIFS('High Court Raw Data'!$H:$H,'High Court Raw Data'!$B:$B,"Q2",'High Court Raw Data'!$A:$A,"2022/23") -> 24 | H46: =SUMIFS('High Court Raw Data'!$I:$I,'High Court Raw Data'!$B:$B,"Q2",'High Court Raw Data'!$A:$A,"2022/23") -> 232 | I46: =SUMIFS('High Court Raw Data'!$J:$J,'High Court Raw Data'!$B:$B,"Q2",'High Court Raw Data'!$A:$A,"2022/23") -> 146 | J46: =SUMIFS('High Court Raw Data'!$K:$K,'High Court Raw Data'!$B:$B,"Q2",'High Court Raw Data'!$A:$A,"2022/23") -> 4 | K46: 0.01724137931 | L46: =SUMIFS('High Court Raw Data'!$L:$L,'High Court Raw Data'!$B:$B,"Q2",'High Court Raw Data'!$A:$A,"2022/23") -> 641 | M46: =SUMIFS('High Court Raw Data'!$M:$M,'High Court Raw Data'!$B:$B,"Q2",'High Court Raw Data'!$A:$A,"2022/23") -> 197
C47: Quarter 3 | D47: =SUMIFS('High Court Raw Data'!$E:$E,'High Court Raw Data'!$B:$B,"Q3",'High Court Raw Data'!$A:$A,"2022/23") -> 237 | E47: =SUMIFS('High Court Raw Data'!$F:$F,'High Court Raw Data'!$B:$B,"Q3",'High Court Raw Data'!$A:$A,"2022/23") -> 256 | F47: =SUMIFS('High Court Raw Data'!$G:$G,'High Court Raw Data'!$B:$B,"Q3",'High Court Raw Data'!$A:$A,"2022/23") -> 136 | G47: =SUMIFS('High Court Raw Data'!$H:$H,'High Court Raw Data'!$B:$B,"Q3",'High Court Raw Data'!$A:$A,"2022/23") -> 21 | H47: =SUMIFS('High Court Raw Data'!$I:$I,'High Court Raw Data'!$B:$B,"Q3",'High Court Raw Data'!$A:$A,"2022/23") -> 213 | I47: =SUMIFS('High Court Raw Data'!$J:$J,'High Court Raw Data'!$B:$B,"Q3",'High Court Raw Data'!$A:$A,"2022/23") -> 136 | J47: =SUMIFS('High Court Raw Data'!$K:$K,'High Court Raw Data'!$B:$B,"Q3",'High Court Raw Data'!$A:$A,"2022/23") -> 3 | K47: 0.01408450704 | L47: =SUMIFS('High Court Raw Data'!$L:$L,'High Court Raw Data'!$B:$B,"Q3",'High Court Raw Data'!$A:$A,"2022/23") -> 698 | M47: =SUMIFS('High Court Raw Data'!$M:$M,'High Court Raw Data'!$B:$B,"Q3",'High Court Raw Data'!$A:$A,"2022/23") -> 195
C48: Quarter 4 | D48: =SUMIFS('High Court Raw Data'!$E:$E,'High Court Raw Data'!$B:$B,"Q4",'High Court Raw Data'!$A:$A,"2022/23") -> 227 | E48: =SUMIFS('High Court Raw Data'!$F:$F,'High Court Raw Data'!$B:$B,"Q4",'High Court Raw Data'!$A:$A,"2022/23") -> 228 | F48: =SUMIFS('High Court Raw Data'!$G:$G,'High Court Raw Data'!$B:$B,"Q4",'High Court Raw Data'!$A:$A,"2022/23") -> 117 | G48: =SUMIFS('High Court Raw Data'!$H:$H,'High Court Raw Data'!$B:$B,"Q4",'High Court Raw Data'!$A:$A,"2022/23") -> 30 | H48: =SUMIFS('High Court Raw Data'!$I:$I,'High Court Raw Data'!$B:$B,"Q4",'High Court Raw Data'!$A:$A,"2022/23") -> 206 | I48: =SUMIFS('High Court Raw Data'!$J:$J,'High Court Raw Data'!$B:$B,"Q4",'High Court Raw Data'!$A:$A,"2022/23") -> 170 | J48: =SUMIFS('High Court Raw Data'!$K:$K,'High Court Raw Data'!$B:$B,"Q4",'High Court Raw Data'!$A:$A,"2022/23") -> 4 | K48: 0.01941747573 | L48: =SUMIFS('High Court Raw Data'!$L:$L,'High Court Raw Data'!$B:$B,"Q4",'High Court Raw Data'!$A:$A,"2022/23") -> 687 | M48: =SUMIFS('High Court Raw Data'!$M:$M,'High Court Raw Data'!$B:$B,"Q4",'High Court Raw Data'!$A:$A,"2022/23") -> 210
C49: Full Year | D49: =SUM(D45:D48) -> 939 | E49: 937 | F49: 508 | G49: 99 | H49: 894 | I49: 611 | J49: 24 | K49: 0.02684563758 | L49: =L48 -> 687 | M49: =SUM(M45:M48) -> 815
B50: 2023/24 | C50: Quarter 1 | D50: =SUMIFS('High Court Raw Data'!$E:$E,'High Court Raw Data'!$B:$B,"Q1",'High Court Raw Data'!$A:$A,"2023/24") -> 203 | E50: =SUMIFS('High Court Raw Data'!$F:$F,'High Court Raw Data'!$B:$B,"Q1",'High Court Raw Data'!$A:$A,"2023/24") -> 224 | F50: =SUMIFS('High Court Raw Data'!$G:$G,'High Court Raw Data'!$B:$B,"Q1",'High Court Raw Data'!$A:$A,"2023/24") -> 104 | G50: =SUMIFS('High Court Raw Data'!$H:$H,'High Court Raw Data'!$B:$B,"Q1",'High Court Raw Data'!$A:$A,"2023/24") -> 31 | H50: =SUMIFS('High Court Raw Data'!$I:$I,'High Court Raw Data'!$B:$B,"Q1",'High Court Raw Data'!$A:$A,"2023/24") -> 253 | I50: =SUMIFS('High Court Raw Data'!$J:$J,'High Court Raw Data'!$B:$B,"Q1",'High Court Raw Data'!$A:$A,"2023/24") -> 190 | J50: =SUMIFS('High Court Raw Data'!$K:$K,'High Court Raw Data'!$B:$B,"Q1",'High Court Raw Data'!$A:$A,"2023/24") -> 4 | K50: =IFERROR(SUM(J50/H50),"0.0%") -> 0.01581027668 | L50: =SUMIFS('High Court Raw Data'!$L:$L,'High Court Raw Data'!$B:$B,"Q1",'High Court Raw Data'!$A:$A,"2023/24") -> 654 | M50: =SUMIFS('High Court Raw Data'!$M:$M,'High Court Raw Data'!$B:$B,"Q1",'High Court Raw Data'!$A:$A,"2023/24") -> 273
C51: Quarter 2 | D51: =SUMIFS('High Court Raw Data'!$E:$E,'High Court Raw Data'!$B:$B,"Q2",'High Court Raw Data'!$A:$A,"2023/24") -> 222 | E51: =SUMIFS('High Court Raw Data'!$F:$F,'High Court Raw Data'!$B:$B,"Q2",'High Court Raw Data'!$A:$A,"2023/24") -> 215 | F51: =SUMIFS('High Court Raw Data'!$G:$G,'High Court Raw Data'!$B:$B,"Q2",'High Court Raw Data'!$A:$A,"2023/24") -> 107 | G51: =SUMIFS('High Court Raw Data'!$H:$H,'High Court Raw Data'!$B:$B,"Q2",'High Court Raw Data'!$A:$A,"2023/24") -> 34 | H51: =SUMIFS('High Court Raw Data'!$I:$I,'High Court Raw Data'!$B:$B,"Q2",'High Court Raw Data'!$A:$A,"2023/24") -> 230 | I51: =SUMIFS('High Court Raw Data'!$J:$J,'High Court Raw Data'!$B:$B,"Q2",'High Court Raw Data'!$A:$A,"2023/24") -> 168 | J51: =SUMIFS('High Court Raw Data'!$K:$K,'High Court Raw Data'!$B:$B,"Q2",'High Court Raw Data'!$A:$A,"2023/24") -> 13 | K51: 0.05652173913 | L51: =SUMIFS('High Court Raw Data'!$L:$L,'High Court Raw Data'!$B:$B,"Q2",'High Court Raw Data'!$A:$A,"2023/24") -> 651 | M51: =SUMIFS('High Court Raw Data'!$M:$M,'High Court Raw Data'!$B:$B,"Q2",'High Court Raw Data'!$A:$A,"2023/24") -> 245
C52: Quarter 3 | D52: =SUMIFS('High Court Raw Data'!$E:$E,'High Court Raw Data'!$B:$B,"Q3",'High Court Raw Data'!$A:$A,"2023/24") -> 248 | E52: =SUMIFS('High Court Raw Data'!$F:$F,'High Court Raw Data'!$B:$B,"Q3",'High Court Raw Data'!$A:$A,"2023/24") -> 233 | F52: =SUMIFS('High Court Raw Data'!$G:$G,'High Court Raw Data'!$B:$B,"Q3",'High Court Raw Data'!$A:$A,"2023/24") -> 121 | G52: =SUMIFS('High Court Raw Data'!$H:$H,'High Court Raw Data'!$B:$B,"Q3",'High Court Raw Data'!$A:$A,"2023/24") -> 21 | H52: =SUMIFS('High Court Raw Data'!$I:$I,'High Court Raw Data'!$B:$B,"Q3",'High Court Raw Data'!$A:$A,"2023/24") -> 204 | I52: =SUMIFS('High Court Raw Data'!$J:$J,'High Court Raw Data'!$B:$B,"Q3",'High Court Raw Data'!$A:$A,"2023/24") -> 154 | J52: =SUMIFS('High Court Raw Data'!$K:$K,'High Court Raw Data'!$B:$B,"Q3",'High Court Raw Data'!$A:$A,"2023/24") -> 2 | K52: =IFERROR(SUM(J52/H52),"0.0%") -> 0.009803921569 | L52: =SUMIFS('High Court Raw Data'!$L:$L,'High Court Raw Data'!$B:$B,"Q3",'High Court Raw Data'!$A:$A,"2023/24") -> 649 | M52: =SUMIFS('High Court Raw Data'!$M:$M,'High Court Raw Data'!$B:$B,"Q3",'High Court Raw Data'!$A:$A,"2023/24") -> 241
C53: Quarter 4 | D53: =SUMIFS('High Court Raw Data'!$E:$E,'High Court Raw Data'!$B:$B,"Q4",'High Court Raw Data'!$A:$A,"2023/24") -> 0 | E53: =SUMIFS('High Court Raw Data'!$F:$F,'High Court Raw Data'!$B:$B,"Q4",'High Court Raw Data'!$A:$A,"2023/24") -> 0 | F53: =SUMIFS('High Court Raw Data'!$G:$G,'High Court Raw Data'!$B:$B,"Q4",'High Court Raw Data'!$A:$A,"2023/24") -> 0 | G53: =SUMIFS('High Court Raw Data'!$H:$H,'High Court Raw Data'!$B:$B,"Q4",'High Court Raw Data'!$A:$A,"2023/24") -> 0 | H53: =SUMIFS('High Court Raw Data'!$I:$I,'High Court Raw Data'!$B:$B,"Q4",'High Court Raw Data'!$A:$A,"2023/24") -> 0 | I53: =SUMIFS('High Court Raw Data'!$J:$J,'High Court Raw Data'!$B:$B,"Q4",'High Court Raw Data'!$A:$A,"2023/24") -> 0 | J53: =SUMIFS('High Court Raw Data'!$K:$K,'High Court Raw Data'!$B:$B,"Q4",'High Court Raw Data'!$A:$A,"2023/24") -> 0 | K53: 0.0% | L53: =SUMIFS('High Court Raw Data'!$L:$L,'High Court Raw Data'!$B:$B,"Q4",'High Court Raw Data'!$A:$A,"2023/24") -> 0 | M53: =SUMIFS('High Court Raw Data'!$M:$M,'High Court Raw Data'!$B:$B,"Q4",'High Court Raw Data'!$A:$A,"2023/24") -> 0
C54: Full Year | D54: =SUM(D50:D53) -> 673 | E54: 672 | F54: 332 | G54: 86 | H54: 687 | I54: 512 | J54: 19 | K54: 0.02765647744 | L54: =IF(L53<>0, L53, IF(L52<>0, L52, IF(L51<>0, L51, L50))) -> 649 | M54: =SUM(M50:M53) -> 759
B56: Notes
B57: 1) Figures produced for 'Indictments concluded' in the High Court for the years 2014/15 to 2016/17 are estimates

Sheet 2b
F2: Back to Index
F4: Chart instructions

Sheet High Court Raw Data (hidden)
A1: This data is only for The Scottish Courts and Tribunals Service Internal use. Please go to the index tab and navigate as required.
A2: FINANCIAL_YEAR | B2: QUARTER | C2: COURT_REF | D2: COURT_NAME | E2: INDICTMENTS_REG | F2: INDICTMENTS_PH | G2: INDICTMENTS_CALLED_CPH | H2: S76_INDICTMENTS | I2: TRIALS_CALLED | J2: TRIALS_ELED | K2: TRIALS_LOCT | L2: TRIALS_OUTSTANDING | M2: SOL_CASES_FULLY_DISPOSED | O2: Current Year | P2: Current Quarter
A3: 2017/18 | B3: Q4 | C3: 2 | D3: HIGH CT | E3: 202 | F3: 167 | G3: 81 | H3: 20 | I3: 190 | J3: 129 | K3: 0 | L3: 1 | M3: 147 | O3: =LOOKUP(2,1/($A:$A<>""),$A:$A) -> 2023/24 | P3: =LOOKUP(2,1/($B:$B<>""),$B:$B) -> Q3
A4: 2017/18 | B4: Q3 | C4: 2 | D4: HIGH CT | E4: 165 | F4: 121 | G4: 74 | H4: 18 | I4: 150 | J4: 103 | K4: 0 | L4: 0 | M4: 148
A5: 2017/18 | B5: Q2 | C5: 2 | D5: HIGH CT | E5: 198 | F5: 158 | G5: 58 | H5: 17 | I5: 168 | J5: 114 | K5: 0 | L5: 4 | M5: 167
A6: 2017/18 | B6: Q1 | C6: 2 | D6: HIGH CT | E6: 153 | F6: 152 | G6: 60 | H6: 19 | I6: 181 | J6: 115 | K6: 0 | L6: 6 | M6: 168
A7: 2016/17 | B7: Q4 | C7: 2 | D7: HIGH CT | E7: 183 | F7: 154 | G7: 54 | H7: 19 | I7: 185 | J7: 137 | K7: 1 | L7: 3 | M7: 179
A8: 2016/17 | B8: Q3 | C8: 2 | D8: HIGH CT | E8: 110 | F8: 138 | G8: 66 | H8: 19 | I8: 149 | J8: 111 | K8: 0 | L8: 8 | M8: 139
A9: 2016/17 | B9: Q2 | C9: 2 | D9: HIGH CT | E9: 133 | F9: 139 | G9: 71 | H9: 16 | I9: 156 | J9: 100 | K9: 13 | L9: 17 | M9: 132
A10: 2016/17 | B10: Q1 | C10: 2 | D10: HIGH CT | E10: 161 | F10: 184 | G10: 60 | H10: 30 | I10: 142 | J10: 95 | K10: 13 | L10: 21 | M10: 136
A11: 2015/16 | B11: Q4 | C11: 2 | D11: HIGH CT | E11: 181 | F11: 184 | G11: 75 | H11: 29 | I11: 149 | J11: 95 | K11: 5 | L11: 28 | M11: 187
A12: 2015/16 | B12: Q3 | C12: 2 | D12: HIGH CT | E12: 136 | F12: 170 | G12: 53 | H12: 33 | I12: 145 | J12: 88 | K12: 0 | L12: 35 | M12: 170
A13: 2015/16 | B13: Q2 | C13: 2 | D13: HIGH CT | E13: 143 | F13: 147 | G13: 60 | H13: 32 | I13: 172 | J13: 112 | K13: 3 | L13: 43 | M13: 159
A14: 2015/16 | B14: Q1 | C14: 2 | D14: HIGH CT | E14: 179 | F14: 182 | G14: 61 | H14: 15 | I14: 150 | J14: 108 | K14: 1 | L14: 49 | M14: 187
A15: 2014/15 | B15: Q4 | C15: 2 | D15: HIGH CT | E15: 163 | F15: 187 | G15: 93 | H15: 25 | I15: 179 | J15: 125 | K15: 3 | L15: 51 | M15: 193
A16: 2014/15 | B16: Q3 | C16: 2 | D16: HIGH CT | E16: 164 | F16: 186 | G16: 115 | H16: 34 | I16: 148 | J16: 100 | K16: 8 | L16: 59 | M16: 189
A17: 2014/15 | B17: Q2 | C17: 2 | D17: HIGH CT | E17: 206 | F17: 187 | G17: 110 | H17: 21 | I17: 173 | J17: 114 | K17: 2 | L17: 65 | M17: 177
A18: 2014/15 | B18: Q1 | C18: 2 | D18: HIGH CT | E18: 170 | F18: 184 | G18: 113 | H18: 29 | I18: 142 | J18: 104 | K18: 1 | L18: 72 | M18: 173
A19: 2018/19 | B19: Q1 | C19: 2 | D19: HIGH CT | E19: 228 | F19: 232 | G19: 116 | H19: 20 | I19: 190 | J19: 131 | K19: 2 | L19: 192 | M19: 183
A20: 2018/19 | B20: Q2 | C20: 2 | D20: HIGH CT | E20: 240 | F20: 228 | G20: 101 | H20: 24 | I20: 183 | J20: 142 | K20: 3 | L20: 215 | M20: 240
A21: 2018/19 | B21: Q3 | C21: 2 | D21: HIGH CT | E21: 210 | F21: 204 | G21: 92 | H21: 23 | I21: 163 | J21: 113 | K21: 0 | L21: 236 | M21: 198
A22: 2018/19 | B22: Q4 | C22: 2 | D22: HIGH CT | E22: 233 | F22: 223 | G22: 125 | H22: 21 | I22: 181 | J22: 121 | K22: 6 | L22: 268 | M22: 201
A23: 2019/20 | B23: Q1 | C23: 2 | D23: HIGH CT | E23: 248 | F23: 253 | G23: 100 | H23: 25 | I23: 168 | J23: 107 | K23: 5 | L23: 315 | M23: 182
A24: 2019/20 | B24: Q2 | C24: 2 | D24: HIGH CT | E24: 272 | F24: 241 | G24: 114 | H24: 22 | I24: 219 | J24: 146 | K24: 4 | L24: 304 | M24: 241
A25: 2019/20 | B25: Q3 | C25: 2 | D25: HIGH CT | E25: 274 | F25: 267 | G25: 115 | H25: 24 | I25: 190 | J25: 120 | K25: 22 | L25: 369 | M25: 206
A26: 2019/20 | B26: Q4 | C26: 2 | D26: HIGH CT | E26: 230 | F26: 220 | G26: 108 | H26: 23 | I26: 235 | J26: 125 | K26: 18 | L26: 390 | M26: 177
A27: 2020/21 | B27: Q1 | C27: 2 | D27: HIGH CT | E27: 231 | F27: 92 | G27: 40 | H27: 17 | I27: 0 | J27: 0 | K27: 0 | L27: 390 | M27: 30
A28: 2020/21 | B28: Q2 | C28: 2 | D28: HIGH CT | E28: 177 | F28: 314 | G28: 289 | H28: 26 | I28: 44 | J28: 36 | K28: 0 | L28: 360 | M28: 87
A29: 2020/21 | B29: Q3 | C29: 2 | D29: HIGH CT | E29: 140 | F29: 150 | G29: 247 | H29: 18 | I29: 147 | J29: 106 | K29: 12 | L29: 250 | M29: 147
A30: 2020/21 | B30: Q4 | C30: 2 | D30: HIGH CT | E30: 219 | F30: 169 | G30: 215 | H30: 23 | I30: 186 | J30: 136 | K30: 0 | L30: 267 | M30: 191
A31: 2021/22 | B31: Q1 | C31: 2 | D31: HIGH CT | E31: 155 | F31: 173 | G31: 185 | H31: 19 | I31: 173 | J31: 124 | K31: 11 | L31: 313 | M31: 173
A32: 2021/22 | B32: Q2 | C32: 2 | D32: HIGH CT | E32: 160 | F32: 112 | G32: 228 | H32: 20 | I32: 196 | J32: 150 | K32: 5 | L32: 389 | M32: 196
A33: 2021/22 | B33: Q3 | C33: 2 | D33: HIGH CT | E33: 192 | F33: 135 | G33: 169 | H33: 17 | I33: 184 | J33: 147 | K33: 0 | L33: 516 | M33: 208
A34: 2021/22 | B34: Q4 | C34: 2 | D34: HIGH CT | E34: 238 | F34: 218 | G34: 134 | H34: 22 | I34: 199 | J34: 156 | K34: 4 | L34: 560 | M34: 179
A35: 2022/23 | B35: Q1 | C35: 2 | D35: HIGH CT | E35: 224 | F35: 235 | G35: 135 | H35: 24 | I35: 243 | J35: 159 | K35: 13 | L35: 613 | M35: 213
A36: 2022/23 | B36: Q2 | C36: 2 | D36: HIGH CT | E36: 251 | F36: 218 | G36: 120 | H36: 24 | I36: 232 | J36: 146 | K36: 4 | L36: 641 | M36: 197
A37: 2022/23 | B37: Q3 | C37: 2 | D37: HIGH CT | E37: 237 | F37: 256 | G37: 136 | H37: 21 | I37: 213 | J37: 136 | K37: 3 | L37: 698 | M37: 195
A38: 2022/23 | B38: Q4 | C38: 2 | D38: HIGH CT | E38: 227 | F38: 228 | G38: 117 | H38: 30 | I38: 206 | J38: 170 | K38: 4 | L38: 687 | M38: 210 | O38: Section 76 updated manually
A39: 2023/24 | B39: Q1 | C39: 2 | D39: HIGH CT | E39: 203 | F39: 224 | G39: 104 | H39: 31 | I39: 253 | J39: 190 | K39: 4 | L39: 654 | M39: 273
A40: 2023/24 | B40: Q2 | C40: 2 | D40: HIGH CT | E40: 222 | F40: 215 | G40: 107 | H40: 34 | I40: 230 | J40: 168 | K40: 13 | L40: 651 | M40: 245
A41: 2023/24 | B41: Q3 | C41: 2 | D41: HIGH CT | E41: 248 | F41: 233 | G41: 121 | H41: 21 | I41: 204 | J41: 154 | K41: 2 | L41: 649 | M41: 241

Sheet High Court Chart Data (hidden)
A1: Financial Year | B1: QUARTER | C1: COURT_REF | D1: COURT | E1: INDICTMENTS_REG | F1: INDICTMENTS_PH | G1: INDICTMENTS_CALLED_CPH | H1: S76_INDICTMENTS | I1: TRIALS_CALLED | J1: TRIALS_ELED | K1: TRIALS_LOCT | L1: % LOCT1 | M1: TRIALS_OUTSTANDING | N1: SOL_CASES_FULLY_DISPOSED | O1: Trial delay | P1: % LOCT
A2: 2017/18 | B2: Q4 | C2: 2 | D2: HIGH CT | E2: 202 | F2: 167 | G2: 81 | H2: 20 | I2: 190 | J2: 129 | K2: 0 | L2: =IFERROR(HighChart[[#This Row],[TRIALS_LOCT]]/HighChart[[#This Row],[TRIALS_CALLED]],NA()) -> 0 | N2: 147 | P2: =IF(I2=0,0,K2/I2) -> 0
A3: 2017/18 | B3: Q3 | C3: 2 | D3: HIGH CT | E3: 165 | F3: 121 | G3: 74 | H3: 18 | I3: 150 | J3: 103 | K3: 0 | L3: =IFERROR(HighChart[[#This Row],[TRIALS_LOCT]]/HighChart[[#This Row],[TRIALS_CALLED]],NA()) -> 0 | N3: 148 | P3: 0
A4: 2017/18 | B4: Q2 | C4: 2 | D4: HIGH CT | E4: 198 | F4: 158 | G4: 58 | H4: 17 | I4: 168 | J4: 114 | K4: 0 | L4: =IFERROR(HighChart[[#This Row],[TRIALS_LOCT]]/HighChart[[#This Row],[TRIALS_CALLED]],NA()) -> 0 | N4: 167 | P4: 0
A5: 2017/18 | B5: Q1 | C5: 2 | D5: HIGH CT | E5: 153 | F5: 152 | G5: 60 | H5: 19 | I5: 181 | J5: 115 | K5: 0 | L5: =IFERROR(HighChart[[#This Row],[TRIALS_LOCT]]/HighChart[[#This Row],[TRIALS_CALLED]],NA()) -> 0 | N5: 168 | P5: 0
A6: 2016/17 | B6: Q4 | C6: 2 | D6: HIGH CT | E6: 183 | F6: 154 | G6: 54 | H6: 19 | I6: 185 | J6: 137 | K6: 1 | L6: =IFERROR(HighChart[[#This Row],[TRIALS_LOCT]]/HighChart[[#This Row],[TRIALS_CALLED]],NA()) -> 0.005405405405 | N6: 179 | P6: 0.005405405405
A7: 2016/17 | B7: Q3 | C7: 2 | D7: HIGH CT | E7: 110 | F7: 138 | G7: 66 | H7: 19 | I7: 149 | J7: 111 | K7: 0 | L7: =IFERROR(HighChart[[#This Row],[TRIALS_LOCT]]/HighChart[[#This Row],[TRIALS_CALLED]],NA()) -> 0 | N7: 139 | P7: 0
A8: 2016/17 | B8: Q2 | C8: 2 | D8: HIGH CT | E8: 133 | F8: 139 | G8: 71 | H8: 16 | I8: 156 | J8: 100 | K8: 13 | L8: =IFERROR(HighChart[[#This Row],[TRIALS_LOCT]]/HighChart[[#This Row],[TRIALS_CALLED]],NA()) -> 0.08333333333 | N8: 132 | P8: 0.08333333333
A9: 2016/17 | B9: Q1 | C9: 2 | D9: HIGH CT | E9: 161 | F9: 184 | G9: 60 | H9: 30 | I9: 142 | J9: 95 | K9: 13 | L9: =IFERROR(HighChart[[#This Row],[TRIALS_LOCT]]/HighChart[[#This Row],[TRIALS_CALLED]],NA()) -> 0.09154929577 | N9: 136 | P9: 0.09154929577
A10: 2015/16 | B10: Q4 | C10: 2 | D10: HIGH CT | E10: 181 | F10: 184 | G10: 75 | H10: 29 | I10: 149 | J10: 95 | K10: 5 | L10: =IFERROR(HighChart[[#This Row],[TRIALS_LOCT]]/HighChart[[#This Row],[TRIALS_CALLED]],NA()) -> 0.03355704698 | N10: 187 | P10: 0.03355704698
A11: 2015/16 | B11: Q3 | C11: 2 | D11: HIGH CT | E11: 136 | F11: 170 | G11: 53 | H11: 33 | I11: 145 | J11: 88 | K11: 0 | L11: =IFERROR(HighChart[[#This Row],[TRIALS_LOCT]]/HighChart[[#This Row],[TRIALS_CALLED]],NA()) -> 0 | N11: 170 | P11: 0
A12: 2015/16 | B12: Q2 | C12: 2 | D12: HIGH CT | E12: 143 | F12: 147 | G12: 60 | H12: 32 | I12: 172 | J12: 112 | K12: 3 | L12: =IFERROR(HighChart[[#This Row],[TRIALS_LOCT]]/HighChart[[#This Row],[TRIALS_CALLED]],NA()) -> 0.01744186047 | N12: 159 | P12: 0.01744186047
A13: 2015/16 | B13: Q1 | C13: 2 | D13: HIGH CT | E13: 179 | F13: 182 | G13: 61 | H13: 15 | I13: 150 | J13: 108 | K13: 1 | L13: =IFERROR(HighChart[[#This Row],[TRIALS_LOCT]]/HighChart[[#This Row],[TRIALS_CALLED]],NA()) -> 0.006666666667 | N13: 187 | P13: 0.006666666667
A14: 2014/15 | B14: Q4 | C14: 2 | D14: HIGH CT | E14: 163 | F14: 187 | G14: 93 | H14: 25 | I14: 179 | J14: 125 | K14: 3 | L14: =IFERROR(HighChart[[#This Row],[TRIALS_LOCT]]/HighChart[[#This Row],[TRIALS_CALLED]],NA()) -> 0.01675977654 | N14: 193 | P14: 0.01675977654
A15: 2014/15 | B15: Q3 | C15: 2 | D15: HIGH CT | E15: 164 | F15: 186 | G15: 115 | H15: 34 | I15: 148 | J15: 100 | K15: 8 | L15: =IFERROR(HighChart[[#This Row],[TRIALS_LOCT]]/HighChart[[#This Row],[TRIALS_CALLED]],NA()) -> 0.05405405405 | N15: 189 | P15: 0.05405405405
A16: 2014/15 | B16: Q2 | C16: 2 | D16: HIGH CT | E16: 206 | F16: 187 | G16: 110 | H16: 21 | I16: 173 | J16: 114 | K16: 2 | L16: =IFERROR(HighChart[[#This Row],[TRIALS_LOCT]]/HighChart[[#This Row],[TRIALS_CALLED]],NA()) -> 0.01156069364 | N16: 177 | P16: 0.01156069364
A17: 2014/15 | B17: Q1 | C17: 2 | D17: HIGH CT | E17: 170 | F17: 184 | G17: 113 | H17: 29 | I17: 142 | J17: 104 | K17: 1 | L17: =IFERROR(HighChart[[#This Row],[TRIALS_LOCT]]/HighChart[[#This Row],[TRIALS_CALLED]],NA()) -> 0.007042253521 | N17: 173 | P17: 0.007042253521
A18: 2018/19 | B18: Q1 | C18: 2 | D18: HIGH CT | E18: 228 | F18: 232 | G18: 116 | H18: 20 | I18: 190 | J18: 131 | K18: 2 | L18: =IFERROR(HighChart[[#This Row],[TRIALS_LOCT]]/HighChart[[#This Row],[TRIALS_CALLED]],NA()) -> 0.01052631579 | M18: 192 | N18: 183 | P18: 0.01052631579
A19: 2018/19 | B19: Q2 | C19: 2 | D19: HIGH CT | E19: 240 | F19: 228 | G19: 101 | H19: 24 | I19: 183 | J19: 142 | K19: 3 | L19: =IFERROR(HighChart[[#This Row],[TRIALS_LOCT]]/HighChart[[#This Row],[TRIALS_CALLED]],NA()) -> 0.01639344262 | M19: 215 | N19: 240 | P19: 0.01639344262
A20: 2018/19 | B20: Q3 | C20: 2 | D20: HIGH CT | E20: 210 | F20: 204 | G20: 92 | H20: 23 | I20: 163 | J20: 113 | K20: 0 | L20: =IFERROR(HighChart[[#This Row],[TRIALS_LOCT]]/HighChart[[#This Row],[TRIALS_CALLED]],NA()) -> 0 | M20: 236 | N20: 198 | P20: 0
A21: 2018/19 | B21: Q4 | C21: 2 | D21: HIGH CT | E21: 233 | F21: 223 | G21: 125 | H21: 21 | I21: 181 | J21: 121 | K21: 1 | L21: =IFERROR(HighChart[[#This Row],[TRIALS_LOCT]]/HighChart[[#This Row],[TRIALS_CALLED]],NA()) -> 0.005524861878 | M21: 268 | N21: 201 | P21: 0.005524861878
A22: 2019/20 | B22: Q1 | C22: 2 | D22: HIGH CT | E22: 248 | F22: 253 | G22: 100 | H22: 25 | I22: 168 | J22: 107 | K22: 5 | L22: =IFERROR(HighChart[[#This Row],[TRIALS_LOCT]]/HighChart[[#This Row],[TRIALS_CALLED]],NA()) -> 0.02976190476 | M22: 315 | N22: 182 | P22: 0.02976190476
A23: 2019/20 | B23: Q2 | C23: 2 | D23: HIGH CT | E23: 272 | F23: 241 | G23: 114 | H23: 22 | I23: 219 | J23: 146 | K23: 4 | L23: =IFERROR(HighChart[[#This Row],[TRIALS_LOCT]]/HighChart[[#This Row],[TRIALS_CALLED]],NA()) -> 0.01826484018 | M23: 304 | N23: 241 | P23: 0.01826484018
A24: 2019/20 | B24: Q3 | C24: 2 | D24: HIGH CT | E24: 274 | F24: 267 | G24: 115 | H24: 24 | I24: 190 | J24: 120 | K24: 22 | L24: =IFERROR(HighChart[[#This Row],[TRIALS_LOCT]]/HighChart[[#This Row],[TRIALS_CALLED]],NA()) -> 0.1157894737 | M24: 369 | N24: 206 | P24: 0.1157894737
A25: 2019/20 | B25: Q4 | C25: 2 | D25: HIGH CT | E25: 230 | F25: 220 | G25: 108 | H25: 23 | I25: 235 | J25: 125 | K25: 18 | L25: =IFERROR(HighChart[[#This Row],[TRIALS_LOCT]]/HighChart[[#This Row],[TRIALS_CALLED]],NA()) -> 0.07659574468 | M25: 390 | N25: 177 | P25: 0.07659574468
A26: 2020/21 | B26: Q1 | C26: 2 | D26: HIGH CT | E26: 231 | F26: 92 | G26: 40 | H26: 17 | I26: 0 | J26: 0 | K26: 0 | L26: =IFERROR(HighChart[[#This Row],[TRIALS_LOCT]]/HighChart[[#This Row],[TRIALS_CALLED]],NA()) ->  | M26: 390 | N26: 30 | P26: 0
A27: 2020/21 | B27: Q2 | C27: 2 | D27: HIGH CT | E27: 177 | F27: 314 | G27: 289 | H27: 26 | I27: 44 | J27: 36 | K27: 0 | L27: =IFERROR(HighChart[[#This Row],[TRIALS_LOCT]]/HighChart[[#This Row],[TRIALS_CALLED]],NA()) -> 0 | M27: 360 | N27: 87 | P27: =IF(I27=0,0,K27/I27) -> 0
A28: 2020/21 | B28: Q3 | C28: 2 | D28: HIGH CT | E28: 140 | F28: 150 | G28: 247 | H28: 18 | I28: 147 | J28: 106 | K28: 12 | L28: =IFERROR(HighChart[[#This Row],[TRIALS_LOCT]]/HighChart[[#This Row],[TRIALS_CALLED]],NA()) -> 0.08163265306 | M28: 250 | N28: 147 | P28: 0.08163265306
A29: 2020/21 | B29: Q4 | C29: 2 | D29: HIGH CT | E29: 219 | F29: 169 | G29: 215 | H29: 23 | I29: 186 | J29: 136 | K29: 0 | L29: =IFERROR(HighChart[[#This Row],[TRIALS_LOCT]]/HighChart[[#This Row],[TRIALS_CALLED]],NA()) -> 0 | M29: 267 | N29: 191 | P29: 0
A30: 2021/22 | B30: Q1 | C30: 2 | D30: HIGH CT | E30: 155 | F30: 173 | G30: 185 | H30: 19 | I30: 173 | J30: 124 | K30: 11 | L30: =IFERROR(HighChart[[#This Row],[TRIALS_LOCT]]/HighChart[[#This Row],[TRIALS_CALLED]],NA()) -> 0.06358381503 | M30: 313 | N30: 173 | P30: 0.06358381503
A31: 2021/22 | B31: Q2 | C31: 2 | D31: HIGH CT | E31: 160 | F31: 112 | G31: 228 | H31: 20 | I31: 196 | J31: 150 | K31: 5 | L31: =IFERROR(HighChart[[#This Row],[TRIALS_LOCT]]/HighChart[[#This Row],[TRIALS_CALLED]],NA()) -> 0.02551020408 | M31: 389 | N31: 196 | P31: 0.02551020408
A32: 2021/22 | B32: Q3 | C32: 2 | D32: HIGH CT | E32: 192 | F32: 135 | G32: 169 | H32: 17 | I32: 184 | J32: 147 | K32: 0 | L32: =IFERROR(HighChart[[#This Row],[TRIALS_LOCT]]/HighChart[[#This Row],[TRIALS_CALLED]],NA()) -> 0 | M32: 516 | N32: 208 | P32: 0
A33: 2021/22 | B33: Q4 | C33: 2 | D33: HIGH CT | E33: 238 | F33: 218 | G33: 134 | H33: 22 | I33: 199 | J33: 156 | K33: 4 | L33: =IFERROR(HighChart[[#This Row],[TRIALS_LOCT]]/HighChart[[#This Row],[TRIALS_CALLED]],NA()) -> 0.02010050251 | M33: 560 | N33: 179 | P33: 0.02010050251
A34: 2022/23 | B34: Q1 | C34: 2 | D34: HIGH CT | E34: 224 | F34: 235 | G34: 135 | H34: 24 | I34: 243 | J34: 159 | K34: 13 | L34: =IFERROR(HighChart[[#This Row],[TRIALS_LOCT]]/HighChart[[#This Row],[TRIALS_CALLED]],NA()) -> 0.05349794239 | M34: 613 | N34: 213 | P34: 0.05349794239
A35: 2022/23 | B35: Q2 | C35: 2 | D35: HIGH CT | E35: 251 | F35: 218 | G35: 120 | H35: 24 | I35: 232 | J35: 146 | K35: 4 | L35: =IFERROR(HighChart[[#This Row],[TRIALS_LOCT]]/HighChart[[#This Row],[TRIALS_CALLED]],NA()) -> 0.01724137931 | M35: 641 | N35: 197 | P35: 0.01724137931
A36: 2022/23 | B36: Q3 | C36: 2 | D36: HIGH CT | E36: 237 | F36: 256 | G36: 136 | H36: 21 | I36: 213 | J36: 136 | K36: 3 | L36: =IFERROR(HighChart[[#This Row],[TRIALS_LOCT]]/HighChart[[#This Row],[TRIALS_CALLED]],NA()) -> 0.01408450704 | M36: 698 | N36: 195 | P36: 0.01408450704
A37: 2022/23 | B37: Q4 | C37: 2 | D37: HIGH CT | E37: 227 | F37: 228 | G37: 117 | H37: 29 | I37: 206 | J37: 170 | K37: 4 | L37: =IFERROR(HighChart[[#This Row],[TRIALS_LOCT]]/HighChart[[#This Row],[TRIALS_CALLED]],NA()) -> 0.01941747573 | M37: 687 | N37: 210 | P37: 0.01941747573
A38: 2023/24 | B38: Q1 | C38: 2 | D38: HIGH CT | E38: 203 | F38: 224 | G38: 104 | H38: 31 | I38: 253 | J38: 190 | K38: 4 | L38: =IFERROR(HighChart[[#This Row],[TRIALS_LOCT]]/HighChart[[#This Row],[TRIALS_CALLED]],NA()) -> 0.01581027668 | M38: 654 | N38: 273 | P38: 0.01581027668
A39: 2023/24 | B39: Q2 | C39: 2 | D39: HIGH CT | E39: 222 | F39: 215 | G39: 107 | H39: 34 | I39: 230 | J39: 168 | K39: 13 | L39: =IFERROR(HighChart[[#This Row],[TRIALS_LOCT]]/HighChart[[#This Row],[TRIALS_CALLED]],NA()) -> 0.05652173913 | M39: 651 | N39: 245 | P39: 0.05652173913
A40: 2023/24 | B40: Q3 | C40: 2 | D40: HIGH CT | E40: 248 | F40: 233 | G40: 121 | H40: 21 | I40: 204 | J40: 154 | K40: 2 | L40: =IFERROR(HighChart[[#This Row],[TRIALS_LOCT]]/HighChart[[#This Row],[TRIALS_CALLED]],NA()) -> 0.009803921569 | M40: 649 | N40: 241 | P40: 0.009803921569
A41: 2023/24 | B41: Q4 | C41: 2 | D41: HIGH CT
A45: This data is only for The Scottish Courts and Tribunals Service Internal use. Please go to the index tab and navigate as required.

Sheet High Court Chart Pivot Tables (hidden)
A1: Indictments Registered | D1: This data is only for The Scottish Courts and Tribunals Service Internal use. Please go to the index tab and navigate as required. | G1: High Court Pre Trial and Trial Callings
A2: Row Labels | B2: Indictments Registered | G2: Row Labels | H2: Indictments called for Preliminary Hearing | I2: Indictments called for Continued Preliminary Hearing | J2: Indictment called for S76 Hearing | K2: Trials Called
A3: 2014/15 | G3: 2014/15
A4: Q1 | B4: 170 | G4: Q1 | H4: 184 | I4: 113 | J4: 29 | K4: 142
A5: Q2 | B5: 206 | G5: Q2 | H5: 187 | I5: 110 | J5: 21 | K5: 173
A6: Q3 | B6: 164 | G6: Q3 | H6: 186 | I6: 115 | J6: 34 | K6: 148
A7: Q4 | B7: 163 | G7: Q4 | H7: 187 | I7: 93 | J7: 25 | K7: 179
A8: 2015/16 | G8: 2015/16
A9: Q1 | B9: 179 | G9: Q1 | H9: 182 | I9: 61 | J9: 15 | K9: 150
A10: Q2 | B10: 143 | G10: Q2 | H10: 147 | I10: 60 | J10: 32 | K10: 172
A11: Q3 | B11: 136 | G11: Q3 | H11: 170 | I11: 53 | J11: 33 | K11: 145
A12: Q4 | B12: 181 | G12: Q4 | H12: 184 | I12: 75 | J12: 29 | K12: 149
A13: 2016/17 | G13: 2016/17
A14: Q1 | B14: 161 | G14: Q1 | H14: 184 | I14: 60 | J14: 30 | K14: 142
A15: Q2 | B15: 133 | G15: Q2 | H15: 139 | I15: 71 | J15: 16 | K15: 156
A16: Q3 | B16: 110 | G16: Q3 | H16: 138 | I16: 66 | J16: 19 | K16: 149
A17: Q4 | B17: 183 | G17: Q4 | H17: 154 | I17: 54 | J17: 19 | K17: 185
A18: 2017/18 | G18: 2017/18
A19: Q1 | B19: 153 | G19: Q1 | H19: 152 | I19: 60 | J19: 19 | K19: 181
A20: Q2 | B20: 198 | G20: Q2 | H20: 158 | I20: 58 | J20: 17 | K20: 168
A21: Q3 | B21: 165 | G21: Q3 | H21: 121 | I21: 74 | J21: 18 | K21: 150
A22: Q4 | B22: 202 | G22: Q4 | H22: 167 | I22: 81 | J22: 20 | K22: 190
A23: 2018/19 | G23: 2018/19
A24: Q1 | B24: 228 | G24: Q1 | H24: 232 | I24: 116 | J24: 20 | K24: 190
A25: Q2 | B25: 240 | G25: Q2 | H25: 228 | I25: 101 | J25: 24 | K25: 183
A26: Q3 | B26: 210 | G26: Q3 | H26: 204 | I26: 92 | J26: 23 | K26: 163
A27: Q4 | B27: 233 | G27: Q4 | H27: 223 | I27: 125 | J27: 21 | K27: 181
A28: 2019/20 | G28: 2019/20
A29: Q1 | B29: 248 | G29: Q1 | H29: 253 | I29: 100 | J29: 25 | K29: 168
A30: Q2 | B30: 272 | G30: Q2 | H30: 241 | I30: 114 | J30: 22 | K30: 219
A31: Q3 | B31: 274 | G31: Q3 | H31: 267 | I31: 115 | J31: 24 | K31: 190
A32: Q4 | B32: 230 | G32: Q4 | H32: 220 | I32: 108 | J32: 23 | K32: 235
A33: 2020/21 | G33: 2020/21
A34: Q1 | B34: 231 | G34: Q1 | H34: 92 | I34: 40 | J34: 17 | K34: 0
A35: Q2 | B35: 177 | G35: Q2 | H35: 314 | I35: 289 | J35: 26 | K35: 44
A36: Q3 | B36: 140 | G36: Q3 | H36: 150 | I36: 247 | J36: 18 | K36: 147
A37: Q4 | B37: 219 | G37: Q4 | H37: 169 | I37: 215 | J37: 23 | K37: 186
A38: 2021/22 | G38: 2021/22
A39: Q1 | B39: 155 | G39: Q1 | H39: 173 | I39: 185 | J39: 19 | K39: 173
A40: Q2 | B40: 160 | G40: Q2 | H40: 112 | I40: 228 | J40: 20 | K40: 196
A41: Q3 | B41: 192 | G41: Q3 | H41: 135 | I41: 169 | J41: 17 | K41: 184
A42: Q4 | B42: 238 | G42: Q4 | H42: 218 | I42: 134 | J42: 22 | K42: 199
A43: 2022/23 | G43: 2022/23
A44: Q1 | B44: 224 | G44: Q1 | H44: 235 | I44: 135 | J44: 24 | K44: 243
A45: Q2 | B45: 251 | G45: Q2 | H45: 218 | I45: 120 | J45: 24 | K45: 232
A46: Q3 | B46: 237 | G46: Q3 | H46: 256 | I46: 136 | J46: 21 | K46: 213
A47: Q4 | B47: 227 | G47: Q4 | H47: 228 | I47: 117 | J47: 29 | K47: 206
A48: 2023/24 | G48: 2023/24
A49: Q1 | B49: 203 | G49: Q1 | H49: 224 | I49: 104 | J49: 31 | K49: 253
A50: Q2 | B50: 222 | G50: Q2 | H50: 215 | I50: 107 | J50: 34 | K50: 230
A51: Q3 | B51: 248 | G51: Q3 | H51: 233 | I51: 121 | J51: 21 | K51: 204
A52: Q4 | G52: Q4
A53: Grand Total | B53: 7706 | G53: Grand Total | H53: 7480 | I53: 4422 | J53: 904 | K53: 6818
A69: Trials Called Evidence Led | G69: LOCT with %
A70: Row Labels | B70: Indictments called for Trial | C70: Evidence Led | G70: Row Labels | H70: Trial Indictments adjourned due to lack of court time | I70: % Trial Indictments adjourned due to lack of court time
A71: 2014/15 | G71: 2014/15
A72: Q1 | B72: 142 | C72: 104 | G72: Q1 | H72: 1 | I72: 0.007042253521
A73: Q2 | B73: 173 | C73: 114 | G73: Q2 | H73: 2 | I73: 0.01156069364
A74: Q3 | B74: 148 | C74: 100 | G74: Q3 | H74: 8 | I74: 0.05405405405
A75: Q4 | B75: 179 | C75: 125 | G75: Q4 | H75: 3 | I75: 0.01675977654
A76: 2015/16 | G76: 2015/16
A77: Q1 | B77: 150 | C77: 108 | G77: Q1 | H77: 1 | I77: 0.006666666667
A78: Q2 | B78: 172 | C78: 112 | G78: Q2 | H78: 3 | I78: 0.01744186047
A79: Q3 | B79: 145 | C79: 88 | G79: Q3 | H79: 0 | I79: 0
A80: Q4 | B80: 149 | C80: 95 | G80: Q4 | H80: 5 | I80: 0.03355704698
A81: 2016/17 | G81: 2016/17
A82: Q1 | B82: 142 | C82: 95 | G82: Q1 | H82: 13 | I82: 0.09154929577
A83: Q2 | B83: 156 | C83: 100 | G83: Q2 | H83: 13 | I83: 0.08333333333
A84: Q3 | B84: 149 | C84: 111 | G84: Q3 | H84: 0 | I84: 0
A85: Q4 | B85: 185 | C85: 137 | G85: Q4 | H85: 1 | I85: 0.005405405405
A86: 2017/18 | G86: 2017/18
A87: Q1 | B87: 181 | C87: 115 | G87: Q1 | H87: 0 | I87: 0
A88: Q2 | B88: 168 | C88: 114 | G88: Q2 | H88: 0 | I88: 0
A89: Q3 | B89: 150 | C89: 103 | G89: Q3 | H89: 0 | I89: 0
A90: Q4 | B90: 190 | C90: 129 | G90: Q4 | H90: 0 | I90: 0
A91: 2018/19 | G91: 2018/19
A92: Q1 | B92: 190 | C92: 131 | G92: Q1 | H92: 2 | I92: 0.01052631579
A93: Q2 | B93: 183 | C93: 142 | G93: Q2 | H93: 3 | I93: 0.01639344262
A94: Q3 | B94: 163 | C94: 113 | G94: Q3 | H94: 0 | I94: 0
A95: Q4 | B95: 181 | C95: 121 | G95: Q4 | H95: 1 | I95: 0.005524861878
A96: 2019/20 | G96: 2019/20
A97: Q1 | B97: 168 | C97: 107 | G97: Q1 | H97: 5 | I97: 0.02976190476
A98: Q2 | B98: 219 | C98: 146 | G98: Q2 | H98: 4 | I98: 0.01826484018
A99: Q3 | B99: 190 | C99: 120 | G99: Q3 | H99: 22 | I99: 0.1157894737
A100: Q4 | B100: 235 | C100: 125 | G100: Q4 | H100: 18 | I100: 0.07659574468
A101: 2020/21 | G101: 2020/21
A102: Q1 | B102: 0 | C102: 0 | G102: Q1 | H102: 0 | I102: 0
A103: Q2 | B103: 44 | C103: 36 | G103: Q2 | H103: 0 | I103: 0
A104: Q3 | B104: 147 | C104: 106 | G104: Q3 | H104: 12 | I104: 0.08163265306
A105: Q4 | B105: 186 | C105: 136 | G105: Q4 | H105: 0 | I105: 0
A106: 2021/22 | G106: 2021/22
A107: Q1 | B107: 173 | C107: 124 | G107: Q1 | H107: 11 | I107: 0.06358381503
A108: Q2 | B108: 196 | C108: 150 | G108: Q2 | H108: 5 | I108: 0.02551020408
A109: Q3 | B109: 184 | C109: 147 | G109: Q3 | H109: 0 | I109: 0
A110: Q4 | B110: 199 | C110: 156 | G110: Q4 | H110: 4 | I110: 0.02010050251
A111: 2022/23 | G111: 2022/23
A112: Q1 | B112: 243 | C112: 159 | G112: Q1 | H112: 13 | I112: 0.05349794239
A113: Q2 | B113: 232 | C113: 146 | G113: Q2 | H113: 4 | I113: 0.01724137931
A114: Q3 | B114: 213 | C114: 136 | G114: Q3 | H114: 3 | I114: 0.01408450704
A115: Q4 | B115: 206 | C115: 170 | G115: Q4 | H115: 4 | I115: 0.01941747573
A116: 2023/24 | G116: 2023/24
A117: Q1 | B117: 253 | C117: 190 | G117: Q1 | H117: 4 | I117: 0.01581027668
A118: Q2 | B118: 230 | C118: 168 | G118: Q2 | H118: 13 | I118: 0.05652173913
A119: Q3 | B119: 204 | C119: 154 | G119: Q3 | H119: 2 | I119: 0.009803921569
A120: Q4 | G120: Q4
A121: Grand Total | B121: 6818 | C121: 4733 | G121: Grand Total | H121: 180 | I121: 0.9774313865
A137: Indictments Scheduled
A138: Row Labels | B138: Indictments Scheduled
A139: 2017/18
A140: Q1
A141: Q2 | G141: Indictments Disposed
A142: Q3 | G142: Row Labels | H142: Indictments Disposed
A143: Q4 | G143: 2014/15
A144: 2016/17 | G144: Q1 | H144: 173
A145: Q1 | G145: Q2 | H145: 177
A146: Q2 | G146: Q3 | H146: 189
A147: Q3 | G147: Q4 | H147: 193
A148: Q4 | G148: 2015/16
A149: 2015/16 | G149: Q1 | H149: 187
A150: Q1 | G150: Q2 | H150: 159
A151: Q2 | G151: Q3 | H151: 170
A152: Q3 | G152: Q4 | H152: 187
A153: Q4 | G153: 2016/17
A154: 2014/15 | G154: Q1 | H154: 136
A155: Q1 | G155: Q2 | H155: 132
A156: Q2 | G156: Q3 | H156: 139
A157: Q3 | G157: Q4 | H157: 179
A158: Q4 | G158: 2017/18
A159: 2018/19 | G159: Q1 | H159: 168
A160: Q1 | B160: 192 | G160: Q2 | H160: 167
A161: Q2 | B161: 215 | G161: Q3 | H161: 148
A162: Q3 | B162: 236 | G162: Q4 | H162: 147
A163: Q4 | B163: 268 | G163: 2018/19
A164: 2019/20 | G164: Q1 | H164: 183
A165: Q1 | B165: 315 | G165: Q2 | H165: 240
A166: Q2 | B166: 304 | G166: Q3 | H166: 198
A167: Q3 | B167: 369 | G167: Q4 | H167: 201
A168: Q4 | B168: 390 | G168: 2019/20
A169: 2020/21 | G169: Q1 | H169: 182
A170: Q1 | B170: 390 | G170: Q2 | H170: 241
A171: Q2 | B171: 360 | G171: Q3 | H171: 206
A172: Q3 | B172: 250 | G172: Q4 | H172: 177
A173: Q4 | B173: 267 | G173: 2020/21
A174: 2021/22 | G174: Q1 | H174: 30
A175: Q1 | B175: 313 | G175: Q2 | H175: 87
A176: Q2 | B176: 389 | G176: Q3 | H176: 147
A177: Q3 | B177: 516 | G177: Q4 | H177: 191
A178: Q4 | B178: 560 | G178: 2021/22
A179: 2022/23 | G179: Q1 | H179: 173
A180: Q1 | B180: 613 | G180: Q2 | H180: 196
A181: Q2 | B181: 641 | G181: Q3 | H181: 208
A182: Q3 | B182: 698 | G182: Q4 | H182: 179
A183: Q4 | B183: 687 | G183: 2022/23
A184: 2023/24 | G184: Q1 | H184: 213
A185: Q1 | B185: 654 | G185: Q2 | H185: 197
A186: Q2 | B186: 651 | G186: Q3 | H186: 195
A187: Q3 | B187: 649 | G187: Q4 | H187: 210
A188: Q4 | G188: 2023/24
A189: Grand Total | B189: 9927 | G189: Q1 | H189: 273
G190: Q2 | H190: 245
G191: Q3 | H191: 241
G192: Q4
G193: Grand Total | H193: 7064
A203: Row Labels | B203: Sum of TRIALS_OUTSTANDING
A204: 2018/19 | B204: 911
A205: Q1 | B205: 192
A206: Q2 | B206: 215
A207: Q3 | B207: 236
A208: Q4 | B208: 268
A209: 2019/20 | B209: 1378
A210: Q1 | B210: 315
A211: Q2 | B211: 304
A212: Q3 | B212: 369
A213: Q4 | B213: 390
A214: 2020/21 | B214: 1267
A215: Q1 | B215: 390
A216: Q2 | B216: 360
A217: Q3 | B217: 250
A218: Q4 | B218: 267
A219: 2021/22 | B219: 1778
A220: Q1 | B220: 313
A221: Q2 | B221: 389
A222: Q3 | B222: 516
A223: Q4 | B223: 560
A224: 2022/23 | B224: 2639
A225: Q1 | B225: 613
A226: Q2 | B226: 641
A227: Q3 | B227: 698
A228: Q4 | B228: 687
A229: 2023/24 | B229: 1954
A230: Q1 | B230: 654
A231: Q2 | B231: 651
A232: Q3 | B232: 649
A233: Q4
A234: Grand Total | B234: 9927

Sheet 3a
B1: Back to Index
B2: =VLOOKUP($B$3,'Sheriff Court lookup'!$B$2:$C$58,1,FALSE) -> National
B3: National | D3: Click on yellow box in B3 to select court using dropdown1
D5: Sheriff Court / Solemn business
D6: Petitions registered | E6: Indictments registered | F6: Indictments called at First Diet | G6: Indictments called at Continued First Diet | H6: Section 76 Indictments | I6: Trials Called | J6: Trials Called - Evidence Led | K6: Trials adjourned due to lack of court time | L6: Trials adjourned due to lack of court time (%) | M6: Trials scheduled at end of period | N6: Indictments concluded
B7: 2014/15 | C7: Quarter 1 | D7: =IF($B$2="Fort william", SUMIFS('JP SC Raw Data'!$G:$G,'JP SC Raw Data'!$C:$C,"Q1",'JP SC Raw Data'!$F:$F,"S",'JP SC Raw Data'!$B:$B,"2014/15",'JP SC Raw Data'!$E:$E,$B$2), IF(IFERROR(FIND(" ",$B$2),"")="",SUMIFS('JP SC Raw Data'!$G:$G,'JP SC Raw Data'!$C:$C,"Q1",'JP SC Raw Data'!$F:$F,"S",'JP SC Raw Data'!$B:$B,"2014/15",'JP SC Raw Data'!$E:$E,$B$2),SUMIFS('JP SC Raw Data'!$G:$G,'JP SC Raw Data'!$C:$C,"Q1",'JP SC Raw Data'!$F:$F,"S",'JP SC Raw Data'!$B:$B,"2014/15",'JP SC Raw Data'!$A:$A,$B$2))) -> 2608 | E7: =IF($B$2="Fort William", SUMIFS('JP SC Raw Data'!$H:$H,'JP SC Raw Data'!$C:$C,"Q1",'JP SC Raw Data'!$F:$F,"S",'JP SC Raw Data'!$B:$B,"2014/15",'JP SC Raw Data'!$E:$E,$B$2), IF(IFERROR(FIND(" ",$B$2),"")="",SUMIFS('JP SC Raw Data'!$H:$H,'JP SC Raw Data'!$C:$C,"Q1",'JP SC Raw Data'!$F:$F,"S",'JP SC Raw Data'!$B:$B,"2014/15",'JP SC Raw Data'!$E:$E,$B$2),SUMIFS('JP SC Raw Data'!$H:$H,'JP SC Raw Data'!$C:$C,"Q1",'JP SC Raw Data'!$F:$F,"S",'JP SC Raw Data'!$B:$B,"2014/15",'JP SC Raw Data'!$A:$A,$B$2))) -> 1656 | F7: =IF($B$2="Fort William", SUMIFS('JP SC Raw Data'!$I:$I,'JP SC Raw Data'!$C:$C,"Q1",'JP SC Raw Data'!$F:$F,"S",'JP SC Raw Data'!$B:$B,"2014/15",'JP SC Raw Data'!$E:$E,$B$2), IF(IFERROR(FIND(" ",$B$2),"")="",SUMIFS('JP SC Raw Data'!$I:$I,'JP SC Raw Data'!$C:$C,"Q1",'JP SC Raw Data'!$F:$F,"S",'JP SC Raw Data'!$B:$B,"2014/15",'JP SC Raw Data'!$E:$E,$B$2),SUMIFS('JP SC Raw Data'!$I:$I,'JP SC Raw Data'!$C:$C,"Q1",'JP SC Raw Data'!$F:$F,"S",'JP SC Raw Data'!$B:$B,"2014/15",'JP SC Raw Data'!$A:$A,$B$2))) -> 2201 | G7: =IF($B$2="Fort William", SUMIFS('JP SC Raw Data'!$J:$J,'JP SC Raw Data'!$C:$C,"Q1",'JP SC Raw Data'!$F:$F,"S",'JP SC Raw Data'!$B:$B,"2014/15",'JP SC Raw Data'!$E:$E,$B$2), IF(IFERROR(FIND(" ",$B$2),"")="",SUMIFS('JP SC Raw Data'!$J:$J,'JP SC Raw Data'!$C:$C,"Q1",'JP SC Raw Data'!$F:$F,"S",'JP SC Raw Data'!$B:$B,"2014/15",'JP SC Raw Data'!$E:$E,$B$2),SUMIFS('JP SC Raw Data'!$J:$J,'JP SC Raw Data'!$C:$C,"Q1",'JP SC Raw Data'!$F:$F,"S",'JP SC Raw Data'!$B:$B,"2014/15",'JP SC Raw Data'!$A:$A,$B$2))) -> 1275 | H7: =IF($B$2="Fort William", SUMIFS('JP SC Raw Data'!$K:$K,'JP SC Raw Data'!$C:$C,"Q1",'JP SC Raw Data'!$F:$F,"S",'JP SC Raw Data'!$B:$B,"2014/15",'JP SC Raw Data'!$E:$E,$B$2), IF(IFERROR(FIND(" ",$B$2),"")="",SUMIFS('JP SC Raw Data'!$K:$K,'JP SC Raw Data'!$C:$C,"Q1",'JP SC Raw Data'!$F:$F,"S",'JP SC Raw Data'!$B:$B,"2014/15",'JP SC Raw Data'!$E:$E,$B$2),SUMIFS('JP SC Raw Data'!$K:$K,'JP SC Raw Data'!$C:$C,"Q1",'JP SC Raw Data'!$F:$F,"S",'JP SC Raw Data'!$B:$B,"2014/15",'JP SC Raw Data'!$A:$A,$B$2))) -> 291 | I7: =IF($B$2="Fort William", SUMIFS('JP SC Raw Data'!$L:$L,'JP SC Raw Data'!$C:$C,"Q1",'JP SC Raw Data'!$F:$F,"S",'JP SC Raw Data'!$B:$B,"2014/15",'JP SC Raw Data'!$E:$E,$B$2), IF(IFERROR(FIND(" ",$B$2),"")="",SUMIFS('JP SC Raw Data'!$L:$L,'JP SC Raw Data'!$C:$C,"Q1",'JP SC Raw Data'!$F:$F,"S",'JP SC Raw Data'!$B:$B,"2014/15",'JP SC Raw Data'!$E:$E,$B$2),SUMIFS('JP SC Raw Data'!$L:$L,'JP SC Raw Data'!$C:$C,"Q1",'JP SC Raw Data'!$F:$F,"S",'JP SC Raw Data'!$B:$B,"2014/15",'JP SC Raw Data'!$A:$A,$B$2))) -> 1221 | J7: =IF($B$2="Fort William", SUMIFS('JP SC Raw Data'!$M:$M,'JP SC Raw Data'!$C:$C,"Q1",'JP SC Raw Data'!$F:$F,"S",'JP SC Raw Data'!$B:$B,"2014/15",'JP SC Raw Data'!$E:$E,$B$2), IF(IFERROR(FIND(" ",$B$2),"")="",SUMIFS('JP SC Raw Data'!$M:$M,'JP SC Raw Data'!$C:$C,"Q1",'JP SC Raw Data'!$F:$F,"S",'JP SC Raw Data'!$B:$B,"2014/15",'JP SC Raw Data'!$E:$E,$B$2),SUMIFS('JP SC Raw Data'!$M:$M,'JP SC Raw Data'!$C:$C,"Q1",'JP SC Raw Data'!$F:$F,"S",'JP SC Raw Data'!$B:$B,"2014/15",'JP SC Raw Data'!$A:$A,$B$2))) -> 345 | K7: =IF($B$2="Fort William", SUMIFS('JP SC Raw Data'!$N:$N,'JP SC Raw Data'!$C:$C,"Q1",'JP SC Raw Data'!$F:$F,"S",'JP SC Raw Data'!$B:$B,"2014/15",'JP SC Raw Data'!$E:$E,$B$2), IF(IFERROR(FIND(" ",$B$2),"")="",SUMIFS('JP SC Raw Data'!$N:$N,'JP SC Raw Data'!$C:$C,"Q1",'JP SC Raw Data'!$F:$F,"S",'JP SC Raw Data'!$B:$B,"2014/15",'JP SC Raw Data'!$E:$E,$B$2),SUMIFS('JP SC Raw Data'!$N:$N,'JP SC Raw Data'!$C:$C,"Q1",'JP SC Raw Data'!$F:$F,"S",'JP SC Raw Data'!$B:$B,"2014/15",'JP SC Raw Data'!$A:$A,$B$2))) -> 56 | L7: =IFERROR(SUM(K7/I7),"0.0%") -> 0.04586404586 | M7: =IF($B$2="Fort William", SUMIFS('JP SC Raw Data'!$O:$O,'JP SC Raw Data'!$C:$C,"Q1",'JP SC Raw Data'!$F:$F,"S",'JP SC Raw Data'!$B:$B,"2014/15",'JP SC Raw Data'!$E:$E,$B$2), IF(IFERROR(FIND(" ",$B$2),"")="",SUMIFS('JP SC Raw Data'!$O:$O,'JP SC Raw Data'!$C:$C,"Q1",'JP SC Raw Data'!$F:$F,"S",'JP SC Raw Data'!$B:$B,"2014/15",'JP SC Raw Data'!$E:$E,$B$2),SUMIFS('JP SC Raw Data'!$O:$O,'JP SC Raw Data'!$C:$C,"Q1",'JP SC Raw Data'!$F:$F,"S",'JP SC Raw Data'!$B:$B,"2014/15",'JP SC Raw Data'!$A:$A,$B$2))) -> 597 | N7: =IF($B$2="Fort William", SUMIFS('JP SC Raw Data'!$P:$P,'JP SC Raw Data'!$C:$C,"Q1",'JP SC Raw Data'!$F:$F,"S",'JP SC Raw Data'!$B:$B,"2014/15",'JP SC Raw Data'!$E:$E,$B$2), IF(IFERROR(FIND(" ",$B$2),"")="",SUMIFS('JP SC Raw Data'!$P:$P,'JP SC Raw Data'!$C:$C,"Q1",'JP SC Raw Data'!$F:$F,"S",'JP SC Raw Data'!$B:$B,"2014/15",'JP SC Raw Data'!$E:$E,$B$2),SUMIFS('JP SC Raw Data'!$P:$P,'JP SC Raw Data'!$C:$C,"Q1",'JP SC Raw Data'!$F:$F,"S",'JP SC Raw Data'!$B:$B,"2014/15",'JP SC Raw Data'!$A:$A,$B$2))) -> 1323
C8: Quarter 2 | D8: =IF($B$2="Fort william", SUMIFS('JP SC Raw Data'!$G:$G,'JP SC Raw Data'!$C:$C,"Q2",'JP SC Raw Data'!$F:$F,"S",'JP SC Raw Data'!$B:$B,"2014/15",'JP SC Raw Data'!$E:$E,$B$2), IF(IFERROR(FIND(" ",$B$2),"")="",SUMIFS('JP SC Raw Data'!$G:$G,'JP SC Raw Data'!$C:$C,"Q2",'JP SC Raw Data'!$F:$F,"S",'JP SC Raw Data'!$B:$B,"2014/15",'JP SC Raw Data'!$E:$E,$B$2),SUMIFS('JP SC Raw Data'!$G:$G,'JP SC Raw Data'!$C:$C,"Q2",'JP SC Raw Data'!$F:$F,"S",'JP SC Raw Data'!$B:$B,"2014/15",'JP SC Raw Data'!$A:$A,$B$2))) -> 2738 | E8: =IF($B$2="Fort William", SUMIFS('JP SC Raw Data'!$H:$H,'JP SC Raw Data'!$C:$C,"Q2",'JP SC Raw Data'!$F:$F,"S",'JP SC Raw Data'!$B:$B,"2014/15",'JP SC Raw Data'!$E:$E,$B$2), IF(IFERROR(FIND(" ",$B$2),"")="",SUMIFS('JP SC Raw Data'!$H:$H,'JP SC Raw Data'!$C:$C,"Q2",'JP SC Raw Data'!$F:$F,"S",'JP SC Raw Data'!$B:$B,"2014/15",'JP SC Raw Data'!$E:$E,$B$2),SUMIFS('JP SC Raw Data'!$H:$H,'JP SC Raw Data'!$C:$C,"Q2",'JP SC Raw Data'!$F:$F,"S",'JP SC Raw Data'!$B:$B,"2014/15",'JP SC Raw Data'!$A:$A,$B$2))) -> 1748 | F8: =IF($B$2="Fort William", SUMIFS('JP SC Raw Data'!$I:$I,'JP SC Raw Data'!$C:$C,"Q2",'JP SC Raw Data'!$F:$F,"S",'JP SC Raw Data'!$B:$B,"2014/15",'JP SC Raw Data'!$E:$E,$B$2), IF(IFERROR(FIND(" ",$B$2),"")="",SUMIFS('JP SC Raw Data'!$I:$I,'JP SC Raw Data'!$C:$C,"Q2",'JP SC Raw Data'!$F:$F,"S",'JP SC Raw Data'!$B:$B,"2014/15",'JP SC Raw Data'!$E:$E,$B$2),SUMIFS('JP SC Raw Data'!$I:$I,'JP SC Raw Data'!$C:$C,"Q2",'JP SC Raw Data'!$F:$F,"S",'JP SC Raw Data'!$B:$B,"2014/15",'JP SC Raw Data'!$A:$A,$B$2))) -> 2282 | G8: =IF($B$2="Fort William", SUMIFS('JP SC Raw Data'!$J:$J,'JP SC Raw Data'!$C:$C,"Q2",'JP SC Raw Data'!$F:$F,"S",'JP SC Raw Data'!$B:$B,"2014/15",'JP SC Raw Data'!$E:$E,$B$2), IF(IFERROR(FIND(" ",$B$2),"")="",SUMIFS('JP SC Raw Data'!$J:$J,'JP SC Raw Data'!$C:$C,"Q2",'JP SC Raw Data'!$F:$F,"S",'JP SC Raw Data'!$B:$B,"2014/15",'JP SC Raw Data'!$E:$E,$B$2),SUMIFS('JP SC Raw Data'!$J:$J,'JP SC Raw Data'!$C:$C,"Q2",'JP SC Raw Data'!$F:$F,"S",'JP SC Raw Data'!$B:$B,"2014/15",'JP SC Raw Data'!$A:$A,$B$2))) -> 1289 | H8: =IF($B$2="Fort William", SUMIFS('JP SC Raw Data'!$K:$K,'JP SC Raw Data'!$C:$C,"Q2",'JP SC Raw Data'!$F:$F,"S",'JP SC Raw Data'!$B:$B,"2014/15",'JP SC Raw Data'!$E:$E,$B$2), IF(IFERROR(FIND(" ",$B$2),"")="",SUMIFS('JP SC Raw Data'!$K:$K,'JP SC Raw Data'!$C:$C,"Q2",'JP SC Raw Data'!$F:$F,"S",'JP SC Raw Data'!$B:$B,"2014/15",'JP SC Raw Data'!$E:$E,$B$2),SUMIFS('JP SC Raw Data'!$K:$K,'JP SC Raw Data'!$C:$C,"Q2",'JP SC Raw Data'!$F:$F,"S",'JP SC Raw Data'!$B:$B,"2014/15",'JP SC Raw Data'!$A:$A,$B$2))) -> 358 | I8: =IF($B$2="Fort William", SUMIFS('JP SC Raw Data'!$L:$L,'JP SC Raw Data'!$C:$C,"Q2",'JP SC Raw Data'!$F:$F,"S",'JP SC Raw Data'!$B:$B,"2014/15",'JP SC Raw Data'!$E:$E,$B$2), IF(IFERROR(FIND(" ",$B$2),"")="",SUMIFS('JP SC Raw Data'!$L:$L,'JP SC Raw Data'!$C:$C,"Q2",'JP SC Raw Data'!$F:$F,"S",'JP SC Raw Data'!$B:$B,"2014/15",'JP SC Raw Data'!$E:$E,$B$2),SUMIFS('JP SC Raw Data'!$L:$L,'JP SC Raw Data'!$C:$C,"Q2",'JP SC Raw Data'!$F:$F,"S",'JP SC Raw Data'!$B:$B,"2014/15",'JP SC Raw Data'!$A:$A,$B$2))) -> 1168 | J8: =IF($B$2="Fort William", SUMIFS('JP SC Raw Data'!$M:$M,'JP SC Raw Data'!$C:$C,"Q2",'JP SC Raw Data'!$F:$F,"S",'JP SC Raw Data'!$B:$B,"2014/15",'JP SC Raw Data'!$E:$E,$B$2), IF(IFERROR(FIND(" ",$B$2),"")="",SUMIFS('JP SC Raw Data'!$M:$M,'JP SC Raw Data'!$C:$C,"Q2",'JP SC Raw Data'!$F:$F,"S",'JP SC Raw Data'!$B:$B,"2014/15",'JP SC Raw Data'!$E:$E,$B$2),SUMIFS('JP SC Raw Data'!$M:$M,'JP SC Raw Data'!$C:$C,"Q2",'JP SC Raw Data'!$F:$F,"S",'JP SC Raw Data'!$B:$B,"2014/15",'JP SC Raw Data'!$A:$A,$B$2))) -> 344 | K8: =IF($B$2="Fort William", SUMIFS('JP SC Raw Data'!$N:$N,'JP SC Raw Data'!$C:$C,"Q2",'JP SC Raw Data'!$F:$F,"S",'JP SC Raw Data'!$B:$B,"2014/15",'JP SC Raw Data'!$E:$E,$B$2), IF(IFERROR(FIND(" ",$B$2),"")="",SUMIFS('JP SC Raw Data'!$N:$N,'JP SC Raw Data'!$C:$C,"Q2",'JP SC Raw Data'!$F:$F,"S",'JP SC Raw Data'!$B:$B,"2014/15",'JP SC Raw Data'!$E:$E,$B$2),SUMIFS('JP SC Raw Data'!$N:$N,'JP SC Raw Data'!$C:$C,"Q2",'JP SC Raw Data'!$F:$F,"S",'JP SC Raw Data'!$B:$B,"2014/15",'JP SC Raw Data'!$A:$A,$B$2))) -> 101 | L8: 0.08647260274 | M8: =IF($B$2="Fort William", SUMIFS('JP SC Raw Data'!$O:$O,'JP SC Raw Data'!$C:$C,"Q2",'JP SC Raw Data'!$F:$F,"S",'JP SC Raw Data'!$B:$B,"2014/15",'JP SC Raw Data'!$E:$E,$B$2), IF(IFERROR(FIND(" ",$B$2),"")="",SUMIFS('JP SC Raw Data'!$O:$O,'JP SC Raw Data'!$C:$C,"Q2",'JP SC Raw Data'!$F:$F,"S",'JP SC Raw Data'!$B:$B,"2014/15",'JP SC Raw Data'!$E:$E,$B$2),SUMIFS('JP SC Raw Data'!$O:$O,'JP SC Raw Data'!$C:$C,"Q2",'JP SC Raw Data'!$F:$F,"S",'JP SC Raw Data'!$B:$B,"2014/15",'JP SC Raw Data'!$A:$A,$B$2))) -> 642 | N8: =IF($B$2="Fort William", SUMIFS('JP SC Raw Data'!$P:$P,'JP SC Raw Data'!$C:$C,"Q2",'JP SC Raw Data'!$F:$F,"S",'JP SC Raw Data'!$B:$B,"2014/15",'JP SC Raw Data'!$E:$E,$B$2), IF(IFERROR(FIND(" ",$B$2),"")="",SUMIFS('JP SC Raw Data'!$P:$P,'JP SC Raw Data'!$C:$C,"Q2",'JP SC Raw Data'!$F:$F,"S",'JP SC Raw Data'!$B:$B,"2014/15",'JP SC Raw Data'!$E:$E,$B$2),SUMIFS('JP SC Raw Data'!$P:$P,'JP SC Raw Data'!$C:$C,"Q2",'JP SC Raw Data'!$F:$F,"S",'JP SC Raw Data'!$B:$B,"2014/15",'JP SC Raw Data'!$A:$A,$B$2))) -> 1408
C9: Quarter 3 | D9: =IF($B$2="Fort william", SUMIFS('JP SC Raw Data'!$G:$G,'JP SC Raw Data'!$C:$C,"Q3",'JP SC Raw Data'!$F:$F,"S",'JP SC Raw Data'!$B:$B,"2014/15",'JP SC Raw Data'!$E:$E,$B$2), IF(IFERROR(FIND(" ",$B$2),"")="",SUMIFS('JP SC Raw Data'!$G:$G,'JP SC Raw Data'!$C:$C,"Q3",'JP SC Raw Data'!$F:$F,"S",'JP SC Raw Data'!$B:$B,"2014/15",'JP SC Raw Data'!$E:$E,$B$2),SUMIFS('JP SC Raw Data'!$G:$G,'JP SC Raw Data'!$C:$C,"Q3",'JP SC Raw Data'!$F:$F,"S",'JP SC Raw Data'!$B:$B,"2014/15",'JP SC Raw Data'!$A:$A,$B$2))) -> 2512 | E9: =IF($B$2="Fort William", SUMIFS('JP SC Raw Data'!$H:$H,'JP SC Raw Data'!$C:$C,"Q3",'JP SC Raw Data'!$F:$F,"S",'JP SC Raw Data'!$B:$B,"2014/15",'JP SC Raw Data'!$E:$E,$B$2), IF(IFERROR(FIND(" ",$B$2),"")="",SUMIFS('JP SC Raw Data'!$H:$H,'JP SC Raw Data'!$C:$C,"Q3",'JP SC Raw Data'!$F:$F,"S",'JP SC Raw Data'!$B:$B,"2014/15",'JP SC Raw Data'!$E:$E,$B$2),SUMIFS('JP SC Raw Data'!$H:$H,'JP SC Raw Data'!$C:$C,"Q3",'JP SC Raw Data'!$F:$F,"S",'JP SC Raw Data'!$B:$B,"2014/15",'JP SC Raw Data'!$A:$A,$B$2))) -> 1716 | F9: =IF($B$2="Fort William", SUMIFS('JP SC Raw Data'!$I:$I,'JP SC Raw Data'!$C:$C,"Q3",'JP SC Raw Data'!$F:$F,"S",'JP SC Raw Data'!$B:$B,"2014/15",'JP SC Raw Data'!$E:$E,$B$2), IF(IFERROR(FIND(" ",$B$2),"")="",SUMIFS('JP SC Raw Data'!$I:$I,'JP SC Raw Data'!$C:$C,"Q3",'JP SC Raw Data'!$F:$F,"S",'JP SC Raw Data'!$B:$B,"2014/15",'JP SC Raw Data'!$E:$E,$B$2),SUMIFS('JP SC Raw Data'!$I:$I,'JP SC Raw Data'!$C:$C,"Q3",'JP SC Raw Data'!$F:$F,"S",'JP SC Raw Data'!$B:$B,"2014/15",'JP SC Raw Data'!$A:$A,$B$2))) -> 2137 | G9: =IF($B$2="Fort William", SUMIFS('JP SC Raw Data'!$J:$J,'JP SC Raw Data'!$C:$C,"Q3",'JP SC Raw Data'!$F:$F,"S",'JP SC Raw Data'!$B:$B,"2014/15",'JP SC Raw Data'!$E:$E,$B$2), IF(IFERROR(FIND(" ",$B$2),"")="",SUMIFS('JP SC Raw Data'!$J:$J,'JP SC Raw Data'!$C:$C,"Q3",'JP SC Raw Data'!$F:$F,"S",'JP SC Raw Data'!$B:$B,"2014/15",'JP SC Raw Data'!$E:$E,$B$2),SUMIFS('JP SC Raw Data'!$J:$J,'JP SC Raw Data'!$C:$C,"Q3",'JP SC Raw Data'!$F:$F,"S",'JP SC Raw Data'!$B:$B,"2014/15",'JP SC Raw Data'!$A:$A,$B$2))) -> 1140 | H9: =IF($B$2="Fort William", SUMIFS('JP SC Raw Data'!$K:$K,'JP SC Raw Data'!$C:$C,"Q3",'JP SC Raw Data'!$F:$F,"S",'JP SC Raw Data'!$B:$B,"2014/15",'JP SC Raw Data'!$E:$E,$B$2), IF(IFERROR(FIND(" ",$B$2),"")="",SUMIFS('JP SC Raw Data'!$K:$K,'JP SC Raw Data'!$C:$C,"Q3",'JP SC Raw Data'!$F:$F,"S",'JP SC Raw Data'!$B:$B,"2014/15",'JP SC Raw Data'!$E:$E,$B$2),SUMIFS('JP SC Raw Data'!$K:$K,'JP SC Raw Data'!$C:$C,"Q3",'JP SC Raw Data'!$F:$F,"S",'JP SC Raw Data'!$B:$B,"2014/15",'JP SC Raw Data'!$A:$A,$B$2))) -> 299 | I9: =IF($B$2="Fort William", SUMIFS('JP SC Raw Data'!$L:$L,'JP SC Raw Data'!$C:$C,"Q3",'JP SC Raw Data'!$F:$F,"S",'JP SC Raw Data'!$B:$B,"2014/15",'JP SC Raw Data'!$E:$E,$B$2), IF(IFERROR(FIND(" ",$B$2),"")="",SUMIFS('JP SC Raw Data'!$L:$L,'JP SC Raw Data'!$C:$C,"Q3",'JP SC Raw Data'!$F:$F,"S",'JP SC Raw Data'!$B:$B,"2014/15",'JP SC Raw Data'!$E:$E,$B$2),SUMIFS('JP SC Raw Data'!$L:$L,'JP SC Raw Data'!$C:$C,"Q3",'JP SC Raw Data'!$F:$F,"S",'JP SC Raw Data'!$B:$B,"2014/15",'JP SC Raw Data'!$A:$A,$B$2))) -> 1259 | J9: =IF($B$2="Fort William", SUMIFS('JP SC Raw Data'!$M:$M,'JP SC Raw Data'!$C:$C,"Q3",'JP SC Raw Data'!$F:$F,"S",'JP SC Raw Data'!$B:$B,"2014/15",'JP SC Raw Data'!$E:$E,$B$2), IF(IFERROR(FIND(" ",$B$2),"")="",SUMIFS('JP SC Raw Data'!$M:$M,'JP SC Raw Data'!$C:$C,"Q3",'JP SC Raw Data'!$F:$F,"S",'JP SC Raw Data'!$B:$B,"2014/15",'JP SC Raw Data'!$E:$E,$B$2),SUMIFS('JP SC Raw Data'!$M:$M,'JP SC Raw Data'!$C:$C,"Q3",'JP SC Raw Data'!$F:$F,"S",'JP SC Raw Data'!$B:$B,"2014/15",'JP SC Raw Data'!$A:$A,$B$2))) -> 350 | K9: =IF($B$2="Fort William", SUMIFS('JP SC Raw Data'!$N:$N,'JP SC Raw Data'!$C:$C,"Q3",'JP SC Raw Data'!$F:$F,"S",'JP SC Raw Data'!$B:$B,"2014/15",'JP SC Raw Data'!$E:$E,$B$2), IF(IFERROR(FIND(" ",$B$2),"")="",SUMIFS('JP SC Raw Data'!$N:$N,'JP SC Raw Data'!$C:$C,"Q3",'JP SC Raw Data'!$F:$F,"S",'JP SC Raw Data'!$B:$B,"2014/15",'JP SC Raw Data'!$E:$E,$B$2),SUMIFS('JP SC Raw Data'!$N:$N,'JP SC Raw Data'!$C:$C,"Q3",'JP SC Raw Data'!$F:$F,"S",'JP SC Raw Data'!$B:$B,"2014/15",'JP SC Raw Data'!$A:$A,$B$2))) -> 84 | L9: 0.06671961875 | M9: =IF($B$2="Fort William", SUMIFS('JP SC Raw Data'!$O:$O,'JP SC Raw Data'!$C:$C,"Q3",'JP SC Raw Data'!$F:$F,"S",'JP SC Raw Data'!$B:$B,"2014/15",'JP SC Raw Data'!$E:$E,$B$2), IF(IFERROR(FIND(" ",$B$2),"")="",SUMIFS('JP SC Raw Data'!$O:$O,'JP SC Raw Data'!$C:$C,"Q3",'JP SC Raw Data'!$F:$F,"S",'JP SC Raw Data'!$B:$B,"2014/15",'JP SC Raw Data'!$E:$E,$B$2),SUMIFS('JP SC Raw Data'!$O:$O,'JP SC Raw Data'!$C:$C,"Q3",'JP SC Raw Data'!$F:$F,"S",'JP SC Raw Data'!$B:$B,"2014/15",'JP SC Raw Data'!$A:$A,$B$2))) -> 971 | N9: =IF($B$2="Fort William", SUMIFS('JP SC Raw Data'!$P:$P,'JP SC Raw Data'!$C:$C,"Q3",'JP SC Raw Data'!$F:$F,"S",'JP SC Raw Data'!$B:$B,"2014/15",'JP SC Raw Data'!$E:$E,$B$2), IF(IFERROR(FIND(" ",$B$2),"")="",SUMIFS('JP SC Raw Data'!$P:$P,'JP SC Raw Data'!$C:$C,"Q3",'JP SC Raw Data'!$F:$F,"S",'JP SC Raw Data'!$B:$B,"2014/15",'JP SC Raw Data'!$E:$E,$B$2),SUMIFS('JP SC Raw Data'!$P:$P,'JP SC Raw Data'!$C:$C,"Q3",'JP SC Raw Data'!$F:$F,"S",'JP SC Raw Data'!$B:$B,"2014/15",'JP SC Raw Data'!$A:$A,$B$2))) -> 1386
C10: Quarter 4 | D10: =IF($B$2="Fort william", SUMIFS('JP SC Raw Data'!$G:$G,'JP SC Raw Data'!$C:$C,"Q4",'JP SC Raw Data'!$F:$F,"S",'JP SC Raw Data'!$B:$B,"2014/15",'JP SC Raw Data'!$E:$E,$B$2), IF(IFERROR(FIND(" ",$B$2),"")="",SUMIFS('JP SC Raw Data'!$G:$G,'JP SC Raw Data'!$C:$C,"Q4",'JP SC Raw Data'!$F:$F,"S",'JP SC Raw Data'!$B:$B,"2014/15",'JP SC Raw Data'!$E:$E,$B$2),SUMIFS('JP SC Raw Data'!$G:$G,'JP SC Raw Data'!$C:$C,"Q4",'JP SC Raw Data'!$F:$F,"S",'JP SC Raw Data'!$B:$B,"2014/15",'JP SC Raw Data'!$A:$A,$B$2))) -> 2464 | E10: =IF($B$2="Fort William", SUMIFS('JP SC Raw Data'!$H:$H,'JP SC Raw Data'!$C:$C,"Q4",'JP SC Raw Data'!$F:$F,"S",'JP SC Raw Data'!$B:$B,"2014/15",'JP SC Raw Data'!$E:$E,$B$2), IF(IFERROR(FIND(" ",$B$2),"")="",SUMIFS('JP SC Raw Data'!$H:$H,'JP SC Raw Data'!$C:$C,"Q4",'JP SC Raw Data'!$F:$F,"S",'JP SC Raw Data'!$B:$B,"2014/15",'JP SC Raw Data'!$E:$E,$B$2),SUMIFS('JP SC Raw Data'!$H:$H,'JP SC Raw Data'!$C:$C,"Q4",'JP SC Raw Data'!$F:$F,"S",'JP SC Raw Data'!$B:$B,"2014/15",'JP SC Raw Data'!$A:$A,$B$2))) -> 1800 | F10: =IF($B$2="Fort William", SUMIFS('JP SC Raw Data'!$I:$I,'JP SC Raw Data'!$C:$C,"Q4",'JP SC Raw Data'!$F:$F,"S",'JP SC Raw Data'!$B:$B,"2014/15",'JP SC Raw Data'!$E:$E,$B$2), IF(IFERROR(FIND(" ",$B$2),"")="",SUMIFS('JP SC Raw Data'!$I:$I,'JP SC Raw Data'!$C:$C,"Q4",'JP SC Raw Data'!$F:$F,"S",'JP SC Raw Data'!$B:$B,"2014/15",'JP SC Raw Data'!$E:$E,$B$2),SUMIFS('JP SC Raw Data'!$I:$I,'JP SC Raw Data'!$C:$C,"Q4",'JP SC Raw Data'!$F:$F,"S",'JP SC Raw Data'!$B:$B,"2014/15",'JP SC Raw Data'!$A:$A,$B$2))) -> 2434 | G10: =IF($B$2="Fort William", SUMIFS('JP SC Raw Data'!$J:$J,'JP SC Raw Data'!$C:$C,"Q4",'JP SC Raw Data'!$F:$F,"S",'JP SC Raw Data'!$B:$B,"2014/15",'JP SC Raw Data'!$E:$E,$B$2), IF(IFERROR(FIND(" ",$B$2),"")="",SUMIFS('JP SC Raw Data'!$J:$J,'JP SC Raw Data'!$C:$C,"Q4",'JP SC Raw Data'!$F:$F,"S",'JP SC Raw Data'!$B:$B,"2014/15",'JP SC Raw Data'!$E:$E,$B$2),SUMIFS('JP SC Raw Data'!$J:$J,'JP SC Raw Data'!$C:$C,"Q4",'JP SC Raw Data'!$F:$F,"S",'JP SC Raw Data'!$B:$B,"2014/15",'JP SC Raw Data'!$A:$A,$B$2))) -> 1280 | H10: =IF($B$2="Fort William", SUMIFS('JP SC Raw Data'!$K:$K,'JP SC Raw Data'!$C:$C,"Q4",'JP SC Raw Data'!$F:$F,"S",'JP SC Raw Data'!$B:$B,"2014/15",'JP SC Raw Data'!$E:$E,$B$2), IF(IFERROR(FIND(" ",$B$2),"")="",SUMIFS('JP SC Raw Data'!$K:$K,'JP SC Raw Data'!$C:$C,"Q4",'JP SC Raw Data'!$F:$F,"S",'JP SC Raw Data'!$B:$B,"2014/15",'JP SC Raw Data'!$E:$E,$B$2),SUMIFS('JP SC Raw Data'!$K:$K,'JP SC Raw Data'!$C:$C,"Q4",'JP SC Raw Data'!$F:$F,"S",'JP SC Raw Data'!$B:$B,"2014/15",'JP SC Raw Data'!$A:$A,$B$2))) -> 312 | I10: =IF($B$2="Fort William", SUMIFS('JP SC Raw Data'!$L:$L,'JP SC Raw Data'!$C:$C,"Q4",'JP SC Raw Data'!$F:$F,"S",'JP SC Raw Data'!$B:$B,"2014/15",'JP SC Raw Data'!$E:$E,$B$2), IF(IFERROR(FIND(" ",$B$2),"")="",SUMIFS('JP SC Raw Data'!$L:$L,'JP SC Raw Data'!$C:$C,"Q4",'JP SC Raw Data'!$F:$F,"S",'JP SC Raw Data'!$B:$B,"2014/15",'JP SC Raw Data'!$E:$E,$B$2),SUMIFS('JP SC Raw Data'!$L:$L,'JP SC Raw Data'!$C:$C,"Q4",'JP SC Raw Data'!$F:$F,"S",'JP SC Raw Data'!$B:$B,"2014/15",'JP SC Raw Data'!$A:$A,$B$2))) -> 1352 | J10: =IF($B$2="Fort William", SUMIFS('JP SC Raw Data'!$M:$M,'JP SC Raw Data'!$C:$C,"Q4",'JP SC Raw Data'!$F:$F,"S",'JP SC Raw Data'!$B:$B,"2014/15",'JP SC Raw Data'!$E:$E,$B$2), IF(IFERROR(FIND(" ",$B$2),"")="",SUMIFS('JP SC Raw Data'!$M:$M,'JP SC Raw Data'!$C:$C,"Q4",'JP SC Raw Data'!$F:$F,"S",'JP SC Raw Data'!$B:$B,"2014/15",'JP SC Raw Data'!$E:$E,$B$2),SUMIFS('JP SC Raw Data'!$M:$M,'JP SC Raw Data'!$C:$C,"Q4",'JP SC Raw Data'!$F:$F,"S",'JP SC Raw Data'!$B:$B,"2014/15",'JP SC Raw Data'!$A:$A,$B$2))) -> 391 | K10: =IF($B$2="Fort William", SUMIFS('JP SC Raw Data'!$N:$N,'JP SC Raw Data'!$C:$C,"Q4",'JP SC Raw Data'!$F:$F,"S",'JP SC Raw Data'!$B:$B,"2014/15",'JP SC Raw Data'!$E:$E,$B$2), IF(IFERROR(FIND(" ",$B$2),"")="",SUMIFS('JP SC Raw Data'!$N:$N,'JP SC Raw Data'!$C:$C,"Q4",'JP SC Raw Data'!$F:$F,"S",'JP SC Raw Data'!$B:$B,"2014/15",'JP SC Raw Data'!$E:$E,$B$2),SUMIFS('JP SC Raw Data'!$N:$N,'JP SC Raw Data'!$C:$C,"Q4",'JP SC Raw Data'!$F:$F,"S",'JP SC Raw Data'!$B:$B,"2014/15",'JP SC Raw Data'!$A:$A,$B$2))) -> 112 | L10: 0.08284023669 | M10: =IF($B$2="Fort William", SUMIFS('JP SC Raw Data'!$O:$O,'JP SC Raw Data'!$C:$C,"Q4",'JP SC Raw Data'!$F:$F,"S",'JP SC Raw Data'!$B:$B,"2014/15",'JP SC Raw Data'!$E:$E,$B$2), IF(IFERROR(FIND(" ",$B$2),"")="",SUMIFS('JP SC Raw Data'!$O:$O,'JP SC Raw Data'!$C:$C,"Q4",'JP SC Raw Data'!$F:$F,"S",'JP SC Raw Data'!$B:$B,"2014/15",'JP SC Raw Data'!$E:$E,$B$2),SUMIFS('JP SC Raw Data'!$O:$O,'JP SC Raw Data'!$C:$C,"Q4",'JP SC Raw Data'!$F:$F,"S",'JP SC Raw Data'!$B:$B,"2014/15",'JP SC Raw Data'!$A:$A,$B$2))) -> 886 | N10: =IF($B$2="Fort William", SUMIFS('JP SC Raw Data'!$P:$P,'JP SC Raw Data'!$C:$C,"Q4",'JP SC Raw Data'!$F:$F,"S",'JP SC Raw Data'!$B:$B,"2014/15",'JP SC Raw Data'!$E:$E,$B$2), IF(IFERROR(FIND(" ",$B$2),"")="",SUMIFS('JP SC Raw Data'!$P:$P,'JP SC Raw Data'!$C:$C,"Q4",'JP SC Raw Data'!$F:$F,"S",'JP SC Raw Data'!$B:$B,"2014/15",'JP SC Raw Data'!$E:$E,$B$2),SUMIFS('JP SC Raw Data'!$P:$P,'JP SC Raw Data'!$C:$C,"Q4",'JP SC Raw Data'!$F:$F,"S",'JP SC Raw Data'!$B:$B,"2014/15",'JP SC Raw Data'!$A:$A,$B$2))) -> 1490
C11: Full Year | D11: =SUM(D7:D10) -> 10322 | E11: 6920 | F11: 9054 | G11: 4984 | H11: 1260 | I11: 5000 | J11: 1430 | K11: 353 | L11: 0.0706 | M11: =M10 -> 886 | N11: =SUM(N7:N10) -> 5607
B12: 2015/16 | C12: Quarter 1 | D12: =IF($B$2="Fort william", SUMIFS('JP SC Raw Data'!$G:$G,'JP SC Raw Data'!$C:$C,"Q1",'JP SC Raw Data'!$F:$F,"S",'JP SC Raw Data'!$B:$B,"2015/16",'JP SC Raw Data'!$E:$E,$B$2), IF(IFERROR(FIND(" ",$B$2),"")="",SUMIFS('JP SC Raw Data'!$G:$G,'JP SC Raw Data'!$C:$C,"Q1",'JP SC Raw Data'!$F:$F,"S",'JP SC Raw Data'!$B:$B,"2015/16",'JP SC Raw Data'!$E:$E,$B$2),SUMIFS('JP SC Raw Data'!$G:$G,'JP SC Raw Data'!$C:$C,"Q1",'JP SC Raw Data'!$F:$F,"S",'JP SC Raw Data'!$B:$B,"2015/16",'JP SC Raw Data'!$A:$A,$B$2))) -> 2370 | E12: =IF($B$2="Fort William", SUMIFS('JP SC Raw Data'!$H:$H,'JP SC Raw Data'!$C:$C,"Q1",'JP SC Raw Data'!$F:$F,"S",'JP SC Raw Data'!$B:$B,"2015/16",'JP SC Raw Data'!$E:$E,$B$2), IF(IFERROR(FIND(" ",$B$2),"")="",SUMIFS('JP SC Raw Data'!$H:$H,'JP SC Raw Data'!$C:$C,"Q1",'JP SC Raw Data'!$F:$F,"S",'JP SC Raw Data'!$B:$B,"2015/16",'JP SC Raw Data'!$E:$E,$B$2),SUMIFS('JP SC Raw Data'!$H:$H,'JP SC Raw Data'!$C:$C,"Q1",'JP SC Raw Data'!$F:$F,"S",'JP SC Raw Data'!$B:$B,"2015/16",'JP SC Raw Data'!$A:$A,$B$2))) -> 1652 | F12: =IF($B$2="Fort William", SUMIFS('JP SC Raw Data'!$I:$I,'JP SC Raw Data'!$C:$C,"Q1",'JP SC Raw Data'!$F:$F,"S",'JP SC Raw Data'!$B:$B,"2015/16",'JP SC Raw Data'!$E:$E,$B$2), IF(IFERROR(FIND(" ",$B$2),"")="",SUMIFS('JP SC Raw Data'!$I:$I,'JP SC Raw Data'!$C:$C,"Q1",'JP SC Raw Data'!$F:$F,"S",'JP SC Raw Data'!$B:$B,"2015/16",'JP SC Raw Data'!$E:$E,$B$2),SUMIFS('JP SC Raw Data'!$I:$I,'JP SC Raw Data'!$C:$C,"Q1",'JP SC Raw Data'!$F:$F,"S",'JP SC Raw Data'!$B:$B,"2015/16",'JP SC Raw Data'!$A:$A,$B$2))) -> 2339 | G12: =IF($B$2="Fort William", SUMIFS('JP SC Raw Data'!$J:$J,'JP SC Raw Data'!$C:$C,"Q1",'JP SC Raw Data'!$F:$F,"S",'JP SC Raw Data'!$B:$B,"2015/16",'JP SC Raw Data'!$E:$E,$B$2), IF(IFERROR(FIND(" ",$B$2),"")="",SUMIFS('JP SC Raw Data'!$J:$J,'JP SC Raw Data'!$C:$C,"Q1",'JP SC Raw Data'!$F:$F,"S",'JP SC Raw Data'!$B:$B,"2015/16",'JP SC Raw Data'!$E:$E,$B$2),SUMIFS('JP SC Raw Data'!$J:$J,'JP SC Raw Data'!$C:$C,"Q1",'JP SC Raw Data'!$F:$F,"S",'JP SC Raw Data'!$B:$B,"2015/16",'JP SC Raw Data'!$A:$A,$B$2))) -> 1246 | H12: =IF($B$2="Fort William", SUMIFS('JP SC Raw Data'!$K:$K,'JP SC Raw Data'!$C:$C,"Q1",'JP SC Raw Data'!$F:$F,"S",'JP SC Raw Data'!$B:$B,"2015/16",'JP SC Raw Data'!$E:$E,$B$2), IF(IFERROR(FIND(" ",$B$2),"")="",SUMIFS('JP SC Raw Data'!$K:$K,'JP SC Raw Data'!$C:$C,"Q1",'JP SC Raw Data'!$F:$F,"S",'JP SC Raw Data'!$B:$B,"2015/16",'JP SC Raw Data'!$E:$E,$B$2),SUMIFS('JP SC Raw Data'!$K:$K,'JP SC Raw Data'!$C:$C,"Q1",'JP SC Raw Data'!$F:$F,"S",'JP SC Raw Data'!$B:$B,"2015/16",'JP SC Raw Data'!$A:$A,$B$2))) -> 281 | I12: =IF($B$2="Fort William", SUMIFS('JP SC Raw Data'!$L:$L,'JP SC Raw Data'!$C:$C,"Q1",'JP SC Raw Data'!$F:$F,"S",'JP SC Raw Data'!$B:$B,"2015/16",'JP SC Raw Data'!$E:$E,$B$2), IF(IFERROR(FIND(" ",$B$2),"")="",SUMIFS('JP SC Raw Data'!$L:$L,'JP SC Raw Data'!$C:$C,"Q1",'JP SC Raw Data'!$F:$F,"S",'JP SC Raw Data'!$B:$B,"2015/16",'JP SC Raw Data'!$E:$E,$B$2),SUMIFS('JP SC Raw Data'!$L:$L,'JP SC Raw Data'!$C:$C,"Q1",'JP SC Raw Data'!$F:$F,"S",'JP SC Raw Data'!$B:$B,"2015/16",'JP SC Raw Data'!$A:$A,$B$2))) -> 1477 | J12: =IF($B$2="Fort William", SUMIFS('JP SC Raw Data'!$M:$M,'JP SC Raw Data'!$C:$C,"Q1",'JP SC Raw Data'!$F:$F,"S",'JP SC Raw Data'!$B:$B,"2015/16",'JP SC Raw Data'!$E:$E,$B$2), IF(IFERROR(FIND(" ",$B$2),"")="",SUMIFS('JP SC Raw Data'!$M:$M,'JP SC Raw Data'!$C:$C,"Q1",'JP SC Raw Data'!$F:$F,"S",'JP SC Raw Data'!$B:$B,"2015/16",'JP SC Raw Data'!$E:$E,$B$2),SUMIFS('JP SC Raw Data'!$M:$M,'JP SC Raw Data'!$C:$C,"Q1",'JP SC Raw Data'!$F:$F,"S",'JP SC Raw Data'!$B:$B,"2015/16",'JP SC Raw Data'!$A:$A,$B$2))) -> 377 | K12: =IF($B$2="Fort William", SUMIFS('JP SC Raw Data'!$N:$N,'JP SC Raw Data'!$C:$C,"Q1",'JP SC Raw Data'!$F:$F,"S",'JP SC Raw Data'!$B:$B,"2015/16",'JP SC Raw Data'!$E:$E,$B$2), IF(IFERROR(FIND(" ",$B$2),"")="",SUMIFS('JP SC Raw Data'!$N:$N,'JP SC Raw Data'!$C:$C,"Q1",'JP SC Raw Data'!$F:$F,"S",'JP SC Raw Data'!$B:$B,"2015/16",'JP SC Raw Data'!$E:$E,$B$2),SUMIFS('JP SC Raw Data'!$N:$N,'JP SC Raw Data'!$C:$C,"Q1",'JP SC Raw Data'!$F:$F,"S",'JP SC Raw Data'!$B:$B,"2015/16",'JP SC Raw Data'!$A:$A,$B$2))) -> 95 | L12: 0.06431956669 | M12: =IF($B$2="Fort William", SUMIFS('JP SC Raw Data'!$O:$O,'JP SC Raw Data'!$C:$C,"Q1",'JP SC Raw Data'!$F:$F,"S",'JP SC Raw Data'!$B:$B,"2015/16",'JP SC Raw Data'!$E:$E,$B$2), IF(IFERROR(FIND(" ",$B$2),"")="",SUMIFS('JP SC Raw Data'!$O:$O,'JP SC Raw Data'!$C:$C,"Q1",'JP SC Raw Data'!$F:$F,"S",'JP SC Raw Data'!$B:$B,"2015/16",'JP SC Raw Data'!$E:$E,$B$2),SUMIFS('JP SC Raw Data'!$O:$O,'JP SC Raw Data'!$C:$C,"Q1",'JP SC Raw Data'!$F:$F,"S",'JP SC Raw Data'!$B:$B,"2015/16",'JP SC Raw Data'!$A:$A,$B$2))) -> 968 | N12: =IF($B$2="Fort William", SUMIFS('JP SC Raw Data'!$P:$P,'JP SC Raw Data'!$C:$C,"Q1",'JP SC Raw Data'!$F:$F,"S",'JP SC Raw Data'!$B:$B,"2015/16",'JP SC Raw Data'!$E:$E,$B$2), IF(IFERROR(FIND(" ",$B$2),"")="",SUMIFS('JP SC Raw Data'!$P:$P,'JP SC Raw Data'!$C:$C,"Q1",'JP SC Raw Data'!$F:$F,"S",'JP SC Raw Data'!$B:$B,"2015/16",'JP SC Raw Data'!$E:$E,$B$2),SUMIFS('JP SC Raw Data'!$P:$P,'JP SC Raw Data'!$C:$C,"Q1",'JP SC Raw Data'!$F:$F,"S",'JP SC Raw Data'!$B:$B,"2015/16",'JP SC Raw Data'!$A:$A,$B$2))) -> 1440
C13: Quarter 2 | D13: =IF($B$2="Fort william", SUMIFS('JP SC Raw Data'!$G:$G,'JP SC Raw Data'!$C:$C,"Q2",'JP SC Raw Data'!$F:$F,"S",'JP SC Raw Data'!$B:$B,"2015/16",'JP SC Raw Data'!$E:$E,$B$2), IF(IFERROR(FIND(" ",$B$2),"")="",SUMIFS('JP SC Raw Data'!$G:$G,'JP SC Raw Data'!$C:$C,"Q2",'JP SC Raw Data'!$F:$F,"S",'JP SC Raw Data'!$B:$B,"2015/16",'JP SC Raw Data'!$E:$E,$B$2),SUMIFS('JP SC Raw Data'!$G:$G,'JP SC Raw Data'!$C:$C,"Q2",'JP SC Raw Data'!$F:$F,"S",'JP SC Raw Data'!$B:$B,"2015/16",'JP SC Raw Data'!$A:$A,$B$2))) -> 2503 | E13: =IF($B$2="Fort William", SUMIFS('JP SC Raw Data'!$H:$H,'JP SC Raw Data'!$C:$C,"Q2",'JP SC Raw Data'!$F:$F,"S",'JP SC Raw Data'!$B:$B,"2015/16",'JP SC Raw Data'!$E:$E,$B$2), IF(IFERROR(FIND(" ",$B$2),"")="",SUMIFS('JP SC Raw Data'!$H:$H,'JP SC Raw Data'!$C:$C,"Q2",'JP SC Raw Data'!$F:$F,"S",'JP SC Raw Data'!$B:$B,"2015/16",'JP SC Raw Data'!$E:$E,$B$2),SUMIFS('JP SC Raw Data'!$H:$H,'JP SC Raw Data'!$C:$C,"Q2",'JP SC Raw Data'!$F:$F,"S",'JP SC Raw Data'!$B:$B,"2015/16",'JP SC Raw Data'!$A:$A,$B$2))) -> 1721 | F13: =IF($B$2="Fort William", SUMIFS('JP SC Raw Data'!$I:$I,'JP SC Raw Data'!$C:$C,"Q2",'JP SC Raw Data'!$F:$F,"S",'JP SC Raw Data'!$B:$B,"2015/16",'JP SC Raw Data'!$E:$E,$B$2), IF(IFERROR(FIND(" ",$B$2),"")="",SUMIFS('JP SC Raw Data'!$I:$I,'JP SC Raw Data'!$C:$C,"Q2",'JP SC Raw Data'!$F:$F,"S",'JP SC Raw Data'!$B:$B,"2015/16",'JP SC Raw Data'!$E:$E,$B$2),SUMIFS('JP SC Raw Data'!$I:$I,'JP SC Raw Data'!$C:$C,"Q2",'JP SC Raw Data'!$F:$F,"S",'JP SC Raw Data'!$B:$B,"2015/16",'JP SC Raw Data'!$A:$A,$B$2))) -> 2447 | G13: =IF($B$2="Fort William", SUMIFS('JP SC Raw Data'!$J:$J,'JP SC Raw Data'!$C:$C,"Q2",'JP SC Raw Data'!$F:$F,"S",'JP SC Raw Data'!$B:$B,"2015/16",'JP SC Raw Data'!$E:$E,$B$2), IF(IFERROR(FIND(" ",$B$2),"")="",SUMIFS('JP SC Raw Data'!$J:$J,'JP SC Raw Data'!$C:$C,"Q2",'JP SC Raw Data'!$F:$F,"S",'JP SC Raw Data'!$B:$B,"2015/16",'JP SC Raw Data'!$E:$E,$B$2),SUMIFS('JP SC Raw Data'!$J:$J,'JP SC Raw Data'!$C:$C,"Q2",'JP SC Raw Data'!$F:$F,"S",'JP SC Raw Data'!$B:$B,"2015/16",'JP SC Raw Data'!$A:$A,$B$2))) -> 1151 | H13: =IF($B$2="Fort William", SUMIFS('JP SC Raw Data'!$K:$K,'JP SC Raw Data'!$C:$C,"Q2",'JP SC Raw Data'!$F:$F,"S",'JP SC Raw Data'!$B:$B,"2015/16",'JP SC Raw Data'!$E:$E,$B$2), IF(IFERROR(FIND(" ",$B$2),"")="",SUMIFS('JP SC Raw Data'!$K:$K,'JP SC Raw Data'!$C:$C,"Q2",'JP SC Raw Data'!$F:$F,"S",'JP SC Raw Data'!$B:$B,"2015/16",'JP SC Raw Data'!$E:$E,$B$2),SUMIFS('JP SC Raw Data'!$K:$K,'JP SC Raw Data'!$C:$C,"Q2",'JP SC Raw Data'!$F:$F,"S",'JP SC Raw Data'!$B:$B,"2015/16",'JP SC Raw Data'!$A:$A,$B$2))) -> 244 | I13: =IF($B$2="Fort William", SUMIFS('JP SC Raw Data'!$L:$L,'JP SC Raw Data'!$C:$C,"Q2",'JP SC Raw Data'!$F:$F,"S",'JP SC Raw Data'!$B:$B,"2015/16",'JP SC Raw Data'!$E:$E,$B$2), IF(IFERROR(FIND(" ",$B$2),"")="",SUMIFS('JP SC Raw Data'!$L:$L,'JP SC Raw Data'!$C:$C,"Q2",'JP SC Raw Data'!$F:$F,"S",'JP SC Raw Data'!$B:$B,"2015/16",'JP SC Raw Data'!$E:$E,$B$2),SUMIFS('JP SC Raw Data'!$L:$L,'JP SC Raw Data'!$C:$C,"Q2",'JP SC Raw Data'!$F:$F,"S",'JP SC Raw Data'!$B:$B,"2015/16",'JP SC Raw Data'!$A:$A,$B$2))) -> 1429 | J13: =IF($B$2="Fort William", SUMIFS('JP SC Raw Data'!$M:$M,'JP SC Raw Data'!$C:$C,"Q2",'JP SC Raw Data'!$F:$F,"S",'JP SC Raw Data'!$B:$B,"2015/16",'JP SC Raw Data'!$E:$E,$B$2), IF(IFERROR(FIND(" ",$B$2),"")="",SUMIFS('JP SC Raw Data'!$M:$M,'JP SC Raw Data'!$C:$C,"Q2",'JP SC Raw Data'!$F:$F,"S",'JP SC Raw Data'!$B:$B,"2015/16",'JP SC Raw Data'!$E:$E,$B$2),SUMIFS('JP SC Raw Data'!$M:$M,'JP SC Raw Data'!$C:$C,"Q2",'JP SC Raw Data'!$F:$F,"S",'JP SC Raw Data'!$B:$B,"2015/16",'JP SC Raw Data'!$A:$A,$B$2))) -> 398 | K13: =IF($B$2="Fort William", SUMIFS('JP SC Raw Data'!$N:$N,'JP SC Raw Data'!$C:$C,"Q2",'JP SC Raw Data'!$F:$F,"S",'JP SC Raw Data'!$B:$B,"2015/16",'JP SC Raw Data'!$E:$E,$B$2), IF(IFERROR(FIND(" ",$B$2),"")="",SUMIFS('JP SC Raw Data'!$N:$N,'JP SC Raw Data'!$C:$C,"Q2",'JP SC Raw Data'!$F:$F,"S",'JP SC Raw Data'!$B:$B,"2015/16",'JP SC Raw Data'!$E:$E,$B$2),SUMIFS('JP SC Raw Data'!$N:$N,'JP SC Raw Data'!$C:$C,"Q2",'JP SC Raw Data'!$F:$F,"S",'JP SC Raw Data'!$B:$B,"2015/16",'JP SC Raw Data'!$A:$A,$B$2))) -> 83 | L13: 0.05808257523 | M13: =IF($B$2="Fort William", SUMIFS('JP SC Raw Data'!$O:$O,'JP SC Raw Data'!$C:$C,"Q2",'JP SC Raw Data'!$F:$F,"S",'JP SC Raw Data'!$B:$B,"2015/16",'JP SC Raw Data'!$E:$E,$B$2), IF(IFERROR(FIND(" ",$B$2),"")="",SUMIFS('JP SC Raw Data'!$O:$O,'JP SC Raw Data'!$C:$C,"Q2",'JP SC Raw Data'!$F:$F,"S",'JP SC Raw Data'!$B:$B,"2015/16",'JP SC Raw Data'!$E:$E,$B$2),SUMIFS('JP SC Raw Data'!$O:$O,'JP SC Raw Data'!$C:$C,"Q2",'JP SC Raw Data'!$F:$F,"S",'JP SC Raw Data'!$B:$B,"2015/16",'JP SC Raw Data'!$A:$A,$B$2))) -> 900 | N13: =IF($B$2="Fort William", SUMIFS('JP SC Raw Data'!$P:$P,'JP SC Raw Data'!$C:$C,"Q2",'JP SC Raw Data'!$F:$F,"S",'JP SC Raw Data'!$B:$B,"2015/16",'JP SC Raw Data'!$E:$E,$B$2), IF(IFERROR(FIND(" ",$B$2),"")="",SUMIFS('JP SC Raw Data'!$P:$P,'JP SC Raw Data'!$C:$C,"Q2",'JP SC Raw Data'!$F:$F,"S",'JP SC Raw Data'!$B:$B,"2015/16",'JP SC Raw Data'!$E:$E,$B$2),SUMIFS('JP SC Raw Data'!$P:$P,'JP SC Raw Data'!$C:$C,"Q2",'JP SC Raw Data'!$F:$F,"S",'JP SC Raw Data'!$B:$B,"2015/16",'JP SC Raw Data'!$A:$A,$B$2))) -> 1436
C14: Quarter 3 | D14: =IF($B$2="Fort william", SUMIFS('JP SC Raw Data'!$G:$G,'JP SC Raw Data'!$C:$C,"Q3",'JP SC Raw Data'!$F:$F,"S",'JP SC Raw Data'!$B:$B,"2015/16",'JP SC Raw Data'!$E:$E,$B$2), IF(IFERROR(FIND(" ",$B$2),"")="",SUMIFS('JP SC Raw Data'!$G:$G,'JP SC Raw Data'!$C:$C,"Q3",'JP SC Raw Data'!$F:$F,"S",'JP SC Raw Data'!$B:$B,"2015/16",'JP SC Raw Data'!$E:$E,$B$2),SUMIFS('JP SC Raw Data'!$G:$G,'JP SC Raw Data'!$C:$C,"Q3",'JP SC Raw Data'!$F:$F,"S",'JP SC Raw Data'!$B:$B,"2015/16",'JP SC Raw Data'!$A:$A,$B$2))) -> 2523 | E14: =IF($B$2="Fort William", SUMIFS('JP SC Raw Data'!$H:$H,'JP SC Raw Data'!$C:$C,"Q3",'JP SC Raw Data'!$F:$F,"S",'JP SC Raw Data'!$B:$B,"2015/16",'JP SC Raw Data'!$E:$E,$B$2), IF(IFERROR(FIND(" ",$B$2),"")="",SUMIFS('JP SC Raw Data'!$H:$H,'JP SC Raw Data'!$C:$C,"Q3",'JP SC Raw Data'!$F:$F,"S",'JP SC Raw Data'!$B:$B,"2015/16",'JP SC Raw Data'!$E:$E,$B$2),SUMIFS('JP SC Raw Data'!$H:$H,'JP SC Raw Data'!$C:$C,"Q3",'JP SC Raw Data'!$F:$F,"S",'JP SC Raw Data'!$B:$B,"2015/16",'JP SC Raw Data'!$A:$A,$B$2))) -> 1559 | F14: =IF($B$2="Fort William", SUMIFS('JP SC Raw Data'!$I:$I,'JP SC Raw Data'!$C:$C,"Q3",'JP SC Raw Data'!$F:$F,"S",'JP SC Raw Data'!$B:$B,"2015/16",'JP SC Raw Data'!$E:$E,$B$2), IF(IFERROR(FIND(" ",$B$2),"")="",SUMIFS('JP SC Raw Data'!$I:$I,'JP SC Raw Data'!$C:$C,"Q3",'JP SC Raw Data'!$F:$F,"S",'JP SC Raw Data'!$B:$B,"2015/16",'JP SC Raw Data'!$E:$E,$B$2),SUMIFS('JP SC Raw Data'!$I:$I,'JP SC Raw Data'!$C:$C,"Q3",'JP SC Raw Data'!$F:$F,"S",'JP SC Raw Data'!$B:$B,"2015/16",'JP SC Raw Data'!$A:$A,$B$2))) -> 2005 | G14: =IF($B$2="Fort William", SUMIFS('JP SC Raw Data'!$J:$J,'JP SC Raw Data'!$C:$C,"Q3",'JP SC Raw Data'!$F:$F,"S",'JP SC Raw Data'!$B:$B,"2015/16",'JP SC Raw Data'!$E:$E,$B$2), IF(IFERROR(FIND(" ",$B$2),"")="",SUMIFS('JP SC Raw Data'!$J:$J,'JP SC Raw Data'!$C:$C,"Q3",'JP SC Raw Data'!$F:$F,"S",'JP SC Raw Data'!$B:$B,"2015/16",'JP SC Raw Data'!$E:$E,$B$2),SUMIFS('JP SC Raw Data'!$J:$J,'JP SC Raw Data'!$C:$C,"Q3",'JP SC Raw Data'!$F:$F,"S",'JP SC Raw Data'!$B:$B,"2015/16",'JP SC Raw Data'!$A:$A,$B$2))) -> 935 | H14: =IF($B$2="Fort William", SUMIFS('JP SC Raw Data'!$K:$K,'JP SC Raw Data'!$C:$C,"Q3",'JP SC Raw Data'!$F:$F,"S",'JP SC Raw Data'!$B:$B,"2015/16",'JP SC Raw Data'!$E:$E,$B$2), IF(IFERROR(FIND(" ",$B$2),"")="",SUMIFS('JP SC Raw Data'!$K:$K,'JP SC Raw Data'!$C:$C,"Q3",'JP SC Raw Data'!$F:$F,"S",'JP SC Raw Data'!$B:$B,"2015/16",'JP SC Raw Data'!$E:$E,$B$2),SUMIFS('JP SC Raw Data'!$K:$K,'JP SC Raw Data'!$C:$C,"Q3",'JP SC Raw Data'!$F:$F,"S",'JP SC Raw Data'!$B:$B,"2015/16",'JP SC Raw Data'!$A:$A,$B$2))) -> 277 | I14: =IF($B$2="Fort William", SUMIFS('JP SC Raw Data'!$L:$L,'JP SC Raw Data'!$C:$C,"Q3",'JP SC Raw Data'!$F:$F,"S",'JP SC Raw Data'!$B:$B,"2015/16",'JP SC Raw Data'!$E:$E,$B$2), IF(IFERROR(FIND(" ",$B$2),"")="",SUMIFS('JP SC Raw Data'!$L:$L,'JP SC Raw Data'!$C:$C,"Q3",'JP SC Raw Data'!$F:$F,"S",'JP SC Raw Data'!$B:$B,"2015/16",'JP SC Raw Data'!$E:$E,$B$2),SUMIFS('JP SC Raw Data'!$L:$L,'JP SC Raw Data'!$C:$C,"Q3",'JP SC Raw Data'!$F:$F,"S",'JP SC Raw Data'!$B:$B,"2015/16",'JP SC Raw Data'!$A:$A,$B$2))) -> 1365 | J14: =IF($B$2="Fort William", SUMIFS('JP SC Raw Data'!$M:$M,'JP SC Raw Data'!$C:$C,"Q3",'JP SC Raw Data'!$F:$F,"S",'JP SC Raw Data'!$B:$B,"2015/16",'JP SC Raw Data'!$E:$E,$B$2), IF(IFERROR(FIND(" ",$B$2),"")="",SUMIFS('JP SC Raw Data'!$M:$M,'JP SC Raw Data'!$C:$C,"Q3",'JP SC Raw Data'!$F:$F,"S",'JP SC Raw Data'!$B:$B,"2015/16",'JP SC Raw Data'!$E:$E,$B$2),SUMIFS('JP SC Raw Data'!$M:$M,'JP SC Raw Data'!$C:$C,"Q3",'JP SC Raw Data'!$F:$F,"S",'JP SC Raw Data'!$B:$B,"2015/16",'JP SC Raw Data'!$A:$A,$B$2))) -> 334 | K14: =IF($B$2="Fort William", SUMIFS('JP SC Raw Data'!$N:$N,'JP SC Raw Data'!$C:$C,"Q3",'JP SC Raw Data'!$F:$F,"S",'JP SC Raw Data'!$B:$B,"2015/16",'JP SC Raw Data'!$E:$E,$B$2), IF(IFERROR(FIND(" ",$B$2),"")="",SUMIFS('JP SC Raw Data'!$N:$N,'JP SC Raw Data'!$C:$C,"Q3",'JP SC Raw Data'!$F:$F,"S",'JP SC Raw Data'!$B:$B,"2015/16",'JP SC Raw Data'!$E:$E,$B$2),SUMIFS('JP SC Raw Data'!$N:$N,'JP SC Raw Data'!$C:$C,"Q3",'JP SC Raw Data'!$F:$F,"S",'JP SC Raw Data'!$B:$B,"2015/16",'JP SC Raw Data'!$A:$A,$B$2))) -> 92 | L14: 0.0673992674 | M14: =IF($B$2="Fort William", SUMIFS('JP SC Raw Data'!$O:$O,'JP SC Raw Data'!$C:$C,"Q3",'JP SC Raw Data'!$F:$F,"S",'JP SC Raw Data'!$B:$B,"2015/16",'JP SC Raw Data'!$E:$E,$B$2), IF(IFERROR(FIND(" ",$B$2),"")="",SUMIFS('JP SC Raw Data'!$O:$O,'JP SC Raw Data'!$C:$C,"Q3",'JP SC Raw Data'!$F:$F,"S",'JP SC Raw Data'!$B:$B,"2015/16",'JP SC Raw Data'!$E:$E,$B$2),SUMIFS('JP SC Raw Data'!$O:$O,'JP SC Raw Data'!$C:$C,"Q3",'JP SC Raw Data'!$F:$F,"S",'JP SC Raw Data'!$B:$B,"2015/16",'JP SC Raw Data'!$A:$A,$B$2))) -> 904 | N14: =IF($B$2="Fort William", SUMIFS('JP SC Raw Data'!$P:$P,'JP SC Raw Data'!$C:$C,"Q3",'JP SC Raw Data'!$F:$F,"S",'JP SC Raw Data'!$B:$B,"2015/16",'JP SC Raw Data'!$E:$E,$B$2), IF(IFERROR(FIND(" ",$B$2),"")="",SUMIFS('JP SC Raw Data'!$P:$P,'JP SC Raw Data'!$C:$C,"Q3",'JP SC Raw Data'!$F:$F,"S",'JP SC Raw Data'!$B:$B,"2015/16",'JP SC Raw Data'!$E:$E,$B$2),SUMIFS('JP SC Raw Data'!$P:$P,'JP SC Raw Data'!$C:$C,"Q3",'JP SC Raw Data'!$F:$F,"S",'JP SC Raw Data'!$B:$B,"2015/16",'JP SC Raw Data'!$A:$A,$B$2))) -> 1434
C15: Quarter 4 | D15: =IF($B$2="Fort william", SUMIFS('JP SC Raw Data'!$G:$G,'JP SC Raw Data'!$C:$C,"Q4",'JP SC Raw Data'!$F:$F,"S",'JP SC Raw Data'!$B:$B,"2015/16",'JP SC Raw Data'!$E:$E,$B$2), IF(IFERROR(FIND(" ",$B$2),"")="",SUMIFS('JP SC Raw Data'!$G:$G,'JP SC Raw Data'!$C:$C,"Q4",'JP SC Raw Data'!$F:$F,"S",'JP SC Raw Data'!$B:$B,"2015/16",'JP SC Raw Data'!$E:$E,$B$2),SUMIFS('JP SC Raw Data'!$G:$G,'JP SC Raw Data'!$C:$C,"Q4",'JP SC Raw Data'!$F:$F,"S",'JP SC Raw Data'!$B:$B,"2015/16",'JP SC Raw Data'!$A:$A,$B$2))) -> 2298 | E15: =IF($B$2="Fort William", SUMIFS('JP SC Raw Data'!$H:$H,'JP SC Raw Data'!$C:$C,"Q4",'JP SC Raw Data'!$F:$F,"S",'JP SC Raw Data'!$B:$B,"2015/16",'JP SC Raw Data'!$E:$E,$B$2), IF(IFERROR(FIND(" ",$B$2),"")="",SUMIFS('JP SC Raw Data'!$H:$H,'JP SC Raw Data'!$C:$C,"Q4",'JP SC Raw Data'!$F:$F,"S",'JP SC Raw Data'!$B:$B,"2015/16",'JP SC Raw Data'!$E:$E,$B$2),SUMIFS('JP SC Raw Data'!$H:$H,'JP SC Raw Data'!$C:$C,"Q4",'JP SC Raw Data'!$F:$F,"S",'JP SC Raw Data'!$B:$B,"2015/16",'JP SC Raw Data'!$A:$A,$B$2))) -> 1529 | F15: =IF($B$2="Fort William", SUMIFS('JP SC Raw Data'!$I:$I,'JP SC Raw Data'!$C:$C,"Q4",'JP SC Raw Data'!$F:$F,"S",'JP SC Raw Data'!$B:$B,"2015/16",'JP SC Raw Data'!$E:$E,$B$2), IF(IFERROR(FIND(" ",$B$2),"")="",SUMIFS('JP SC Raw Data'!$I:$I,'JP SC Raw Data'!$C:$C,"Q4",'JP SC Raw Data'!$F:$F,"S",'JP SC Raw Data'!$B:$B,"2015/16",'JP SC Raw Data'!$E:$E,$B$2),SUMIFS('JP SC Raw Data'!$I:$I,'JP SC Raw Data'!$C:$C,"Q4",'JP SC Raw Data'!$F:$F,"S",'JP SC Raw Data'!$B:$B,"2015/16",'JP SC Raw Data'!$A:$A,$B$2))) -> 1981 | G15: =IF($B$2="Fort William", SUMIFS('JP SC Raw Data'!$J:$J,'JP SC Raw Data'!$C:$C,"Q4",'JP SC Raw Data'!$F:$F,"S",'JP SC Raw Data'!$B:$B,"2015/16",'JP SC Raw Data'!$E:$E,$B$2), IF(IFERROR(FIND(" ",$B$2),"")="",SUMIFS('JP SC Raw Data'!$J:$J,'JP SC Raw Data'!$C:$C,"Q4",'JP SC Raw Data'!$F:$F,"S",'JP SC Raw Data'!$B:$B,"2015/16",'JP SC Raw Data'!$E:$E,$B$2),SUMIFS('JP SC Raw Data'!$J:$J,'JP SC Raw Data'!$C:$C,"Q4",'JP SC Raw Data'!$F:$F,"S",'JP SC Raw Data'!$B:$B,"2015/16",'JP SC Raw Data'!$A:$A,$B$2))) -> 666 | H15: =IF($B$2="Fort William", SUMIFS('JP SC Raw Data'!$K:$K,'JP SC Raw Data'!$C:$C,"Q4",'JP SC Raw Data'!$F:$F,"S",'JP SC Raw Data'!$B:$B,"2015/16",'JP SC Raw Data'!$E:$E,$B$2), IF(IFERROR(FIND(" ",$B$2),"")="",SUMIFS('JP SC Raw Data'!$K:$K,'JP SC Raw Data'!$C:$C,"Q4",'JP SC Raw Data'!$F:$F,"S",'JP SC Raw Data'!$B:$B,"2015/16",'JP SC Raw Data'!$E:$E,$B$2),SUMIFS('JP SC Raw Data'!$K:$K,'JP SC Raw Data'!$C:$C,"Q4",'JP SC Raw Data'!$F:$F,"S",'JP SC Raw Data'!$B:$B,"2015/16",'JP SC Raw Data'!$A:$A,$B$2))) -> 290 | I15: =IF($B$2="Fort William", SUMIFS('JP SC Raw Data'!$L:$L,'JP SC Raw Data'!$C:$C,"Q4",'JP SC Raw Data'!$F:$F,"S",'JP SC Raw Data'!$B:$B,"2015/16",'JP SC Raw Data'!$E:$E,$B$2), IF(IFERROR(FIND(" ",$B$2),"")="",SUMIFS('JP SC Raw Data'!$L:$L,'JP SC Raw Data'!$C:$C,"Q4",'JP SC Raw Data'!$F:$F,"S",'JP SC Raw Data'!$B:$B,"2015/16",'JP SC Raw Data'!$E:$E,$B$2),SUMIFS('JP SC Raw Data'!$L:$L,'JP SC Raw Data'!$C:$C,"Q4",'JP SC Raw Data'!$F:$F,"S",'JP SC Raw Data'!$B:$B,"2015/16",'JP SC Raw Data'!$A:$A,$B$2))) -> 1291 | J15: =IF($B$2="Fort William", SUMIFS('JP SC Raw Data'!$M:$M,'JP SC Raw Data'!$C:$C,"Q4",'JP SC Raw Data'!$F:$F,"S",'JP SC Raw Data'!$B:$B,"2015/16",'JP SC Raw Data'!$E:$E,$B$2), IF(IFERROR(FIND(" ",$B$2),"")="",SUMIFS('JP SC Raw Data'!$M:$M,'JP SC Raw Data'!$C:$C,"Q4",'JP SC Raw Data'!$F:$F,"S",'JP SC Raw Data'!$B:$B,"2015/16",'JP SC Raw Data'!$E:$E,$B$2),SUMIFS('JP SC Raw Data'!$M:$M,'JP SC Raw Data'!$C:$C,"Q4",'JP SC Raw Data'!$F:$F,"S",'JP SC Raw Data'!$B:$B,"2015/16",'JP SC Raw Data'!$A:$A,$B$2))) -> 388 | K15: =IF($B$2="Fort William", SUMIFS('JP SC Raw Data'!$N:$N,'JP SC Raw Data'!$C:$C,"Q4",'JP SC Raw Data'!$F:$F,"S",'JP SC Raw Data'!$B:$B,"2015/16",'JP SC Raw Data'!$E:$E,$B$2), IF(IFERROR(FIND(" ",$B$2),"")="",SUMIFS('JP SC Raw Data'!$N:$N,'JP SC Raw Data'!$C:$C,"Q4",'JP SC Raw Data'!$F:$F,"S",'JP SC Raw Data'!$B:$B,"2015/16",'JP SC Raw Data'!$E:$E,$B$2),SUMIFS('JP SC Raw Data'!$N:$N,'JP SC Raw Data'!$C:$C,"Q4",'JP SC Raw Data'!$F:$F,"S",'JP SC Raw Data'!$B:$B,"2015/16",'JP SC Raw Data'!$A:$A,$B$2))) -> 73 | L15: 0.05654531371 | M15: =IF($B$2="Fort William", SUMIFS('JP SC Raw Data'!$O:$O,'JP SC Raw Data'!$C:$C,"Q4",'JP SC Raw Data'!$F:$F,"S",'JP SC Raw Data'!$B:$B,"2015/16",'JP SC Raw Data'!$E:$E,$B$2), IF(IFERROR(FIND(" ",$B$2),"")="",SUMIFS('JP SC Raw Data'!$O:$O,'JP SC Raw Data'!$C:$C,"Q4",'JP SC Raw Data'!$F:$F,"S",'JP SC Raw Data'!$B:$B,"2015/16",'JP SC Raw Data'!$E:$E,$B$2),SUMIFS('JP SC Raw Data'!$O:$O,'JP SC Raw Data'!$C:$C,"Q4",'JP SC Raw Data'!$F:$F,"S",'JP SC Raw Data'!$B:$B,"2015/16",'JP SC Raw Data'!$A:$A,$B$2))) -> 787 | N15: =IF($B$2="Fort William", SUMIFS('JP SC Raw Data'!$P:$P,'JP SC Raw Data'!$C:$C,"Q4",'JP SC Raw Data'!$F:$F,"S",'JP SC Raw Data'!$B:$B,"2015/16",'JP SC Raw Data'!$E:$E,$B$2), IF(IFERROR(FIND(" ",$B$2),"")="",SUMIFS('JP SC Raw Data'!$P:$P,'JP SC Raw Data'!$C:$C,"Q4",'JP SC Raw Data'!$F:$F,"S",'JP SC Raw Data'!$B:$B,"2015/16",'JP SC Raw Data'!$E:$E,$B$2),SUMIFS('JP SC Raw Data'!$P:$P,'JP SC Raw Data'!$C:$C,"Q4",'JP SC Raw Data'!$F:$F,"S",'JP SC Raw Data'!$B:$B,"2015/16",'JP SC Raw Data'!$A:$A,$B$2))) -> 1391
C16: Full Year | D16: =SUM(D12:D15) -> 9694 | E16: 6461 | F16: 8772 | G16: 3998 | H16: 1092 | I16: 5562 | J16: 1497 | K16: 343 | L16: 0.06166846458 | M16: =M15 -> 787 | N16: =SUM(N12:N15) -> 5701
B17: 2016/17 | C17: Quarter 1 | D17: =IF($B$2="Fort william", SUMIFS('JP SC Raw Data'!$G:$G,'JP SC Raw Data'!$C:$C,"Q1",'JP SC Raw Data'!$F:$F,"S",'JP SC Raw Data'!$B:$B,"2016/17",'JP SC Raw Data'!$E:$E,$B$2), IF(IFERROR(FIND(" ",$B$2),"")="",SUMIFS('JP SC Raw Data'!$G:$G,'JP SC Raw Data'!$C:$C,"Q1",'JP SC Raw Data'!$F:$F,"S",'JP SC Raw Data'!$B:$B,"2016/17",'JP SC Raw Data'!$E:$E,$B$2),SUMIFS('JP SC Raw Data'!$G:$G,'JP SC Raw Data'!$C:$C,"Q1",'JP SC Raw Data'!$F:$F,"S",'JP SC Raw Data'!$B:$B,"2016/17",'JP SC Raw Data'!$A:$A,$B$2))) -> 2416 | E17: =IF($B$2="Fort William", SUMIFS('JP SC Raw Data'!$H:$H,'JP SC Raw Data'!$C:$C,"Q1",'JP SC Raw Data'!$F:$F,"S",'JP SC Raw Data'!$B:$B,"2016/17",'JP SC Raw Data'!$E:$E,$B$2), IF(IFERROR(FIND(" ",$B$2),"")="",SUMIFS('JP SC Raw Data'!$H:$H,'JP SC Raw Data'!$C:$C,"Q1",'JP SC Raw Data'!$F:$F,"S",'JP SC Raw Data'!$B:$B,"2016/17",'JP SC Raw Data'!$E:$E,$B$2),SUMIFS('JP SC Raw Data'!$H:$H,'JP SC Raw Data'!$C:$C,"Q1",'JP SC Raw Data'!$F:$F,"S",'JP SC Raw Data'!$B:$B,"2016/17",'JP SC Raw Data'!$A:$A,$B$2))) -> 1498 | F17: =IF($B$2="Fort William", SUMIFS('JP SC Raw Data'!$I:$I,'JP SC Raw Data'!$C:$C,"Q1",'JP SC Raw Data'!$F:$F,"S",'JP SC Raw Data'!$B:$B,"2016/17",'JP SC Raw Data'!$E:$E,$B$2), IF(IFERROR(FIND(" ",$B$2),"")="",SUMIFS('JP SC Raw Data'!$I:$I,'JP SC Raw Data'!$C:$C,"Q1",'JP SC Raw Data'!$F:$F,"S",'JP SC Raw Data'!$B:$B,"2016/17",'JP SC Raw Data'!$E:$E,$B$2),SUMIFS('JP SC Raw Data'!$I:$I,'JP SC Raw Data'!$C:$C,"Q1",'JP SC Raw Data'!$F:$F,"S",'JP SC Raw Data'!$B:$B,"2016/17",'JP SC Raw Data'!$A:$A,$B$2))) -> 1764 | G17: =IF($B$2="Fort William", SUMIFS('JP SC Raw Data'!$J:$J,'JP SC Raw Data'!$C:$C,"Q1",'JP SC Raw Data'!$F:$F,"S",'JP SC Raw Data'!$B:$B,"2016/17",'JP SC Raw Data'!$E:$E,$B$2), IF(IFERROR(FIND(" ",$B$2),"")="",SUMIFS('JP SC Raw Data'!$J:$J,'JP SC Raw Data'!$C:$C,"Q1",'JP SC Raw Data'!$F:$F,"S",'JP SC Raw Data'!$B:$B,"2016/17",'JP SC Raw Data'!$E:$E,$B$2),SUMIFS('JP SC Raw Data'!$J:$J,'JP SC Raw Data'!$C:$C,"Q1",'JP SC Raw Data'!$F:$F,"S",'JP SC Raw Data'!$B:$B,"2016/17",'JP SC Raw Data'!$A:$A,$B$2))) -> 653 | H17: =IF($B$2="Fort William", SUMIFS('JP SC Raw Data'!$K:$K,'JP SC Raw Data'!$C:$C,"Q1",'JP SC Raw Data'!$F:$F,"S",'JP SC Raw Data'!$B:$B,"2016/17",'JP SC Raw Data'!$E:$E,$B$2), IF(IFERROR(FIND(" ",$B$2),"")="",SUMIFS('JP SC Raw Data'!$K:$K,'JP SC Raw Data'!$C:$C,"Q1",'JP SC Raw Data'!$F:$F,"S",'JP SC Raw Data'!$B:$B,"2016/17",'JP SC Raw Data'!$E:$E,$B$2),SUMIFS('JP SC Raw Data'!$K:$K,'JP SC Raw Data'!$C:$C,"Q1",'JP SC Raw Data'!$F:$F,"S",'JP SC Raw Data'!$B:$B,"2016/17",'JP SC Raw Data'!$A:$A,$B$2))) -> 298 | I17: =IF($B$2="Fort William", SUMIFS('JP SC Raw Data'!$L:$L,'JP SC Raw Data'!$C:$C,"Q1",'JP SC Raw Data'!$F:$F,"S",'JP SC Raw Data'!$B:$B,"2016/17",'JP SC Raw Data'!$E:$E,$B$2), IF(IFERROR(FIND(" ",$B$2),"")="",SUMIFS('JP SC Raw Data'!$L:$L,'JP SC Raw Data'!$C:$C,"Q1",'JP SC Raw Data'!$F:$F,"S",'JP SC Raw Data'!$B:$B,"2016/17",'JP SC Raw Data'!$E:$E,$B$2),SUMIFS('JP SC Raw Data'!$L:$L,'JP SC Raw Data'!$C:$C,"Q1",'JP SC Raw Data'!$F:$F,"S",'JP SC Raw Data'!$B:$B,"2016/17",'JP SC Raw Data'!$A:$A,$B$2))) -> 1205 | J17: =IF($B$2="Fort William", SUMIFS('JP SC Raw Data'!$M:$M,'JP SC Raw Data'!$C:$C,"Q1",'JP SC Raw Data'!$F:$F,"S",'JP SC Raw Data'!$B:$B,"2016/17",'JP SC Raw Data'!$E:$E,$B$2), IF(IFERROR(FIND(" ",$B$2),"")="",SUMIFS('JP SC Raw Data'!$M:$M,'JP SC Raw Data'!$C:$C,"Q1",'JP SC Raw Data'!$F:$F,"S",'JP SC Raw Data'!$B:$B,"2016/17",'JP SC Raw Data'!$E:$E,$B$2),SUMIFS('JP SC Raw Data'!$M:$M,'JP SC Raw Data'!$C:$C,"Q1",'JP SC Raw Data'!$F:$F,"S",'JP SC Raw Data'!$B:$B,"2016/17",'JP SC Raw Data'!$A:$A,$B$2))) -> 350 | K17: =IF($B$2="Fort William", SUMIFS('JP SC Raw Data'!$N:$N,'JP SC Raw Data'!$C:$C,"Q1",'JP SC Raw Data'!$F:$F,"S",'JP SC Raw Data'!$B:$B,"2016/17",'JP SC Raw Data'!$E:$E,$B$2), IF(IFERROR(FIND(" ",$B$2),"")="",SUMIFS('JP SC Raw Data'!$N:$N,'JP SC Raw Data'!$C:$C,"Q1",'JP SC Raw Data'!$F:$F,"S",'JP SC Raw Data'!$B:$B,"2016/17",'JP SC Raw Data'!$E:$E,$B$2),SUMIFS('JP SC Raw Data'!$N:$N,'JP SC Raw Data'!$C:$C,"Q1",'JP SC Raw Data'!$F:$F,"S",'JP SC Raw Data'!$B:$B,"2016/17",'JP SC Raw Data'!$A:$A,$B$2))) -> 71 | L17: 0.05892116183 | M17: =IF($B$2="Fort William", SUMIFS('JP SC Raw Data'!$O:$O,'JP SC Raw Data'!$C:$C,"Q1",'JP SC Raw Data'!$F:$F,"S",'JP SC Raw Data'!$B:$B,"2016/17",'JP SC Raw Data'!$E:$E,$B$2), IF(IFERROR(FIND(" ",$B$2),"")="",SUMIFS('JP SC Raw Data'!$O:$O,'JP SC Raw Data'!$C:$C,"Q1",'JP SC Raw Data'!$F:$F,"S",'JP SC Raw Data'!$B:$B,"2016/17",'JP SC Raw Data'!$E:$E,$B$2),SUMIFS('JP SC Raw Data'!$O:$O,'JP SC Raw Data'!$C:$C,"Q1",'JP SC Raw Data'!$F:$F,"S",'JP SC Raw Data'!$B:$B,"2016/17",'JP SC Raw Data'!$A:$A,$B$2))) -> 663 | N17: =IF($B$2="Fort William", SUMIFS('JP SC Raw Data'!$P:$P,'JP SC Raw Data'!$C:$C,"Q1",'JP SC Raw Data'!$F:$F,"S",'JP SC Raw Data'!$B:$B,"2016/17",'JP SC Raw Data'!$E:$E,$B$2), IF(IFERROR(FIND(" ",$B$2),"")="",SUMIFS('JP SC Raw Data'!$P:$P,'JP SC Raw Data'!$C:$C,"Q1",'JP SC Raw Data'!$F:$F,"S",'JP SC Raw Data'!$B:$B,"2016/17",'JP SC Raw Data'!$E:$E,$B$2),SUMIFS('JP SC Raw Data'!$P:$P,'JP SC Raw Data'!$C:$C,"Q1",'JP SC Raw Data'!$F:$F,"S",'JP SC Raw Data'!$B:$B,"2016/17",'JP SC Raw Data'!$A:$A,$B$2))) -> 1390
C18: Quarter 2 | D18: =IF($B$2="Fort william", SUMIFS('JP SC Raw Data'!$G:$G,'JP SC Raw Data'!$C:$C,"Q2",'JP SC Raw Data'!$F:$F,"S",'JP SC Raw Data'!$B:$B,"2016/17",'JP SC Raw Data'!$E:$E,$B$2), IF(IFERROR(FIND(" ",$B$2),"")="",SUMIFS('JP SC Raw Data'!$G:$G,'JP SC Raw Data'!$C:$C,"Q2",'JP SC Raw Data'!$F:$F,"S",'JP SC Raw Data'!$B:$B,"2016/17",'JP SC Raw Data'!$E:$E,$B$2),SUMIFS('JP SC Raw Data'!$G:$G,'JP SC Raw Data'!$C:$C,"Q2",'JP SC Raw Data'!$F:$F,"S",'JP SC Raw Data'!$B:$B,"2016/17",'JP SC Raw Data'!$A:$A,$B$2))) -> 2206 | E18: =IF($B$2="Fort William", SUMIFS('JP SC Raw Data'!$H:$H,'JP SC Raw Data'!$C:$C,"Q2",'JP SC Raw Data'!$F:$F,"S",'JP SC Raw Data'!$B:$B,"2016/17",'JP SC Raw Data'!$E:$E,$B$2), IF(IFERROR(FIND(" ",$B$2),"")="",SUMIFS('JP SC Raw Data'!$H:$H,'JP SC Raw Data'!$C:$C,"Q2",'JP SC Raw Data'!$F:$F,"S",'JP SC Raw Data'!$B:$B,"2016/17",'JP SC Raw Data'!$E:$E,$B$2),SUMIFS('JP SC Raw Data'!$H:$H,'JP SC Raw Data'!$C:$C,"Q2",'JP SC Raw Data'!$F:$F,"S",'JP SC Raw Data'!$B:$B,"2016/17",'JP SC Raw Data'!$A:$A,$B$2))) -> 1482 | F18: =IF($B$2="Fort William", SUMIFS('JP SC Raw Data'!$I:$I,'JP SC Raw Data'!$C:$C,"Q2",'JP SC Raw Data'!$F:$F,"S",'JP SC Raw Data'!$B:$B,"2016/17",'JP SC Raw Data'!$E:$E,$B$2), IF(IFERROR(FIND(" ",$B$2),"")="",SUMIFS('JP SC Raw Data'!$I:$I,'JP SC Raw Data'!$C:$C,"Q2",'JP SC Raw Data'!$F:$F,"S",'JP SC Raw Data'!$B:$B,"2016/17",'JP SC Raw Data'!$E:$E,$B$2),SUMIFS('JP SC Raw Data'!$I:$I,'JP SC Raw Data'!$C:$C,"Q2",'JP SC Raw Data'!$F:$F,"S",'JP SC Raw Data'!$B:$B,"2016/17",'JP SC Raw Data'!$A:$A,$B$2))) -> 1919 | G18: =IF($B$2="Fort William", SUMIFS('JP SC Raw Data'!$J:$J,'JP SC Raw Data'!$C:$C,"Q2",'JP SC Raw Data'!$F:$F,"S",'JP SC Raw Data'!$B:$B,"2016/17",'JP SC Raw Data'!$E:$E,$B$2), IF(IFERROR(FIND(" ",$B$2),"")="",SUMIFS('JP SC Raw Data'!$J:$J,'JP SC Raw Data'!$C:$C,"Q2",'JP SC Raw Data'!$F:$F,"S",'JP SC Raw Data'!$B:$B,"2016/17",'JP SC Raw Data'!$E:$E,$B$2),SUMIFS('JP SC Raw Data'!$J:$J,'JP SC Raw Data'!$C:$C,"Q2",'JP SC Raw Data'!$F:$F,"S",'JP SC Raw Data'!$B:$B,"2016/17",'JP SC Raw Data'!$A:$A,$B$2))) -> 719 | H18: =IF($B$2="Fort William", SUMIFS('JP SC Raw Data'!$K:$K,'JP SC Raw Data'!$C:$C,"Q2",'JP SC Raw Data'!$F:$F,"S",'JP SC Raw Data'!$B:$B,"2016/17",'JP SC Raw Data'!$E:$E,$B$2), IF(IFERROR(FIND(" ",$B$2),"")="",SUMIFS('JP SC Raw Data'!$K:$K,'JP SC Raw Data'!$C:$C,"Q2",'JP SC Raw Data'!$F:$F,"S",'JP SC Raw Data'!$B:$B,"2016/17",'JP SC Raw Data'!$E:$E,$B$2),SUMIFS('JP SC Raw Data'!$K:$K,'JP SC Raw Data'!$C:$C,"Q2",'JP SC Raw Data'!$F:$F,"S",'JP SC Raw Data'!$B:$B,"2016/17",'JP SC Raw Data'!$A:$A,$B$2))) -> 304 | I18: =IF($B$2="Fort William", SUMIFS('JP SC Raw Data'!$L:$L,'JP SC Raw Data'!$C:$C,"Q2",'JP SC Raw Data'!$F:$F,"S",'JP SC Raw Data'!$B:$B,"2016/17",'JP SC Raw Data'!$E:$E,$B$2), IF(IFERROR(FIND(" ",$B$2),"")="",SUMIFS('JP SC Raw Data'!$L:$L,'JP SC Raw Data'!$C:$C,"Q2",'JP SC Raw Data'!$F:$F,"S",'JP SC Raw Data'!$B:$B,"2016/17",'JP SC Raw Data'!$E:$E,$B$2),SUMIFS('JP SC Raw Data'!$L:$L,'JP SC Raw Data'!$C:$C,"Q2",'JP SC Raw Data'!$F:$F,"S",'JP SC Raw Data'!$B:$B,"2016/17",'JP SC Raw Data'!$A:$A,$B$2))) -> 1112 | J18: =IF($B$2="Fort William", SUMIFS('JP SC Raw Data'!$M:$M,'JP SC Raw Data'!$C:$C,"Q2",'JP SC Raw Data'!$F:$F,"S",'JP SC Raw Data'!$B:$B,"2016/17",'JP SC Raw Data'!$E:$E,$B$2), IF(IFERROR(FIND(" ",$B$2),"")="",SUMIFS('JP SC Raw Data'!$M:$M,'JP SC Raw Data'!$C:$C,"Q2",'JP SC Raw Data'!$F:$F,"S",'JP SC Raw Data'!$B:$B,"2016/17",'JP SC Raw Data'!$E:$E,$B$2),SUMIFS('JP SC Raw Data'!$M:$M,'JP SC Raw Data'!$C:$C,"Q2",'JP SC Raw Data'!$F:$F,"S",'JP SC Raw Data'!$B:$B,"2016/17",'JP SC Raw Data'!$A:$A,$B$2))) -> 353 | K18: =IF($B$2="Fort William", SUMIFS('JP SC Raw Data'!$N:$N,'JP SC Raw Data'!$C:$C,"Q2",'JP SC Raw Data'!$F:$F,"S",'JP SC Raw Data'!$B:$B,"2016/17",'JP SC Raw Data'!$E:$E,$B$2), IF(IFERROR(FIND(" ",$B$2),"")="",SUMIFS('JP SC Raw Data'!$N:$N,'JP SC Raw Data'!$C:$C,"Q2",'JP SC Raw Data'!$F:$F,"S",'JP SC Raw Data'!$B:$B,"2016/17",'JP SC Raw Data'!$E:$E,$B$2),SUMIFS('JP SC Raw Data'!$N:$N,'JP SC Raw Data'!$C:$C,"Q2",'JP SC Raw Data'!$F:$F,"S",'JP SC Raw Data'!$B:$B,"2016/17",'JP SC Raw Data'!$A:$A,$B$2))) -> 53 | L18: 0.0476618705 | M18: =IF($B$2="Fort William", SUMIFS('JP SC Raw Data'!$O:$O,'JP SC Raw Data'!$C:$C,"Q2",'JP SC Raw Data'!$F:$F,"S",'JP SC Raw Data'!$B:$B,"2016/17",'JP SC Raw Data'!$E:$E,$B$2), IF(IFERROR(FIND(" ",$B$2),"")="",SUMIFS('JP SC Raw Data'!$O:$O,'JP SC Raw Data'!$C:$C,"Q2",'JP SC Raw Data'!$F:$F,"S",'JP SC Raw Data'!$B:$B,"2016/17",'JP SC Raw Data'!$E:$E,$B$2),SUMIFS('JP SC Raw Data'!$O:$O,'JP SC Raw Data'!$C:$C,"Q2",'JP SC Raw Data'!$F:$F,"S",'JP SC Raw Data'!$B:$B,"2016/17",'JP SC Raw Data'!$A:$A,$B$2))) -> 613 | N18: =IF($B$2="Fort William", SUMIFS('JP SC Raw Data'!$P:$P,'JP SC Raw Data'!$C:$C,"Q2",'JP SC Raw Data'!$F:$F,"S",'JP SC Raw Data'!$B:$B,"2016/17",'JP SC Raw Data'!$E:$E,$B$2), IF(IFERROR(FIND(" ",$B$2),"")="",SUMIFS('JP SC Raw Data'!$P:$P,'JP SC Raw Data'!$C:$C,"Q2",'JP SC Raw Data'!$F:$F,"S",'JP SC Raw Data'!$B:$B,"2016/17",'JP SC Raw Data'!$E:$E,$B$2),SUMIFS('JP SC Raw Data'!$P:$P,'JP SC Raw Data'!$C:$C,"Q2",'JP SC Raw Data'!$F:$F,"S",'JP SC Raw Data'!$B:$B,"2016/17",'JP SC Raw Data'!$A:$A,$B$2))) -> 1334
C19: Quarter 3 | D19: =IF($B$2="Fort william", SUMIFS('JP SC Raw Data'!$G:$G,'JP SC Raw Data'!$C:$C,"Q3",'JP SC Raw Data'!$F:$F,"S",'JP SC Raw Data'!$B:$B,"2016/17",'JP SC Raw Data'!$E:$E,$B$2), IF(IFERROR(FIND(" ",$B$2),"")="",SUMIFS('JP SC Raw Data'!$G:$G,'JP SC Raw Data'!$C:$C,"Q3",'JP SC Raw Data'!$F:$F,"S",'JP SC Raw Data'!$B:$B,"2016/17",'JP SC Raw Data'!$E:$E,$B$2),SUMIFS('JP SC Raw Data'!$G:$G,'JP SC Raw Data'!$C:$C,"Q3",'JP SC Raw Data'!$F:$F,"S",'JP SC Raw Data'!$B:$B,"2016/17",'JP SC Raw Data'!$A:$A,$B$2))) -> 2155 | E19: =IF($B$2="Fort William", SUMIFS('JP SC Raw Data'!$H:$H,'JP SC Raw Data'!$C:$C,"Q3",'JP SC Raw Data'!$F:$F,"S",'JP SC Raw Data'!$B:$B,"2016/17",'JP SC Raw Data'!$E:$E,$B$2), IF(IFERROR(FIND(" ",$B$2),"")="",SUMIFS('JP SC Raw Data'!$H:$H,'JP SC Raw Data'!$C:$C,"Q3",'JP SC Raw Data'!$F:$F,"S",'JP SC Raw Data'!$B:$B,"2016/17",'JP SC Raw Data'!$E:$E,$B$2),SUMIFS('JP SC Raw Data'!$H:$H,'JP SC Raw Data'!$C:$C,"Q3",'JP SC Raw Data'!$F:$F,"S",'JP SC Raw Data'!$B:$B,"2016/17",'JP SC Raw Data'!$A:$A,$B$2))) -> 1504 | F19: =IF($B$2="Fort William", SUMIFS('JP SC Raw Data'!$I:$I,'JP SC Raw Data'!$C:$C,"Q3",'JP SC Raw Data'!$F:$F,"S",'JP SC Raw Data'!$B:$B,"2016/17",'JP SC Raw Data'!$E:$E,$B$2), IF(IFERROR(FIND(" ",$B$2),"")="",SUMIFS('JP SC Raw Data'!$I:$I,'JP SC Raw Data'!$C:$C,"Q3",'JP SC Raw Data'!$F:$F,"S",'JP SC Raw Data'!$B:$B,"2016/17",'JP SC Raw Data'!$E:$E,$B$2),SUMIFS('JP SC Raw Data'!$I:$I,'JP SC Raw Data'!$C:$C,"Q3",'JP SC Raw Data'!$F:$F,"S",'JP SC Raw Data'!$B:$B,"2016/17",'JP SC Raw Data'!$A:$A,$B$2))) -> 1659 | G19: =IF($B$2="Fort William", SUMIFS('JP SC Raw Data'!$J:$J,'JP SC Raw Data'!$C:$C,"Q3",'JP SC Raw Data'!$F:$F,"S",'JP SC Raw Data'!$B:$B,"2016/17",'JP SC Raw Data'!$E:$E,$B$2), IF(IFERROR(FIND(" ",$B$2),"")="",SUMIFS('JP SC Raw Data'!$J:$J,'JP SC Raw Data'!$C:$C,"Q3",'JP SC Raw Data'!$F:$F,"S",'JP SC Raw Data'!$B:$B,"2016/17",'JP SC Raw Data'!$E:$E,$B$2),SUMIFS('JP SC Raw Data'!$J:$J,'JP SC Raw Data'!$C:$C,"Q3",'JP SC Raw Data'!$F:$F,"S",'JP SC Raw Data'!$B:$B,"2016/17",'JP SC Raw Data'!$A:$A,$B$2))) -> 578 | H19: =IF($B$2="Fort William", SUMIFS('JP SC Raw Data'!$K:$K,'JP SC Raw Data'!$C:$C,"Q3",'JP SC Raw Data'!$F:$F,"S",'JP SC Raw Data'!$B:$B,"2016/17",'JP SC Raw Data'!$E:$E,$B$2), IF(IFERROR(FIND(" ",$B$2),"")="",SUMIFS('JP SC Raw Data'!$K:$K,'JP SC Raw Data'!$C:$C,"Q3",'JP SC Raw Data'!$F:$F,"S",'JP SC Raw Data'!$B:$B,"2016/17",'JP SC Raw Data'!$E:$E,$B$2),SUMIFS('JP SC Raw Data'!$K:$K,'JP SC Raw Data'!$C:$C,"Q3",'JP SC Raw Data'!$F:$F,"S",'JP SC Raw Data'!$B:$B,"2016/17",'JP SC Raw Data'!$A:$A,$B$2))) -> 277 | I19: =IF($B$2="Fort William", SUMIFS('JP SC Raw Data'!$L:$L,'JP SC Raw Data'!$C:$C,"Q3",'JP SC Raw Data'!$F:$F,"S",'JP SC Raw Data'!$B:$B,"2016/17",'JP SC Raw Data'!$E:$E,$B$2), IF(IFERROR(FIND(" ",$B$2),"")="",SUMIFS('JP SC Raw Data'!$L:$L,'JP SC Raw Data'!$C:$C,"Q3",'JP SC Raw Data'!$F:$F,"S",'JP SC Raw Data'!$B:$B,"2016/17",'JP SC Raw Data'!$E:$E,$B$2),SUMIFS('JP SC Raw Data'!$L:$L,'JP SC Raw Data'!$C:$C,"Q3",'JP SC Raw Data'!$F:$F,"S",'JP SC Raw Data'!$B:$B,"2016/17",'JP SC Raw Data'!$A:$A,$B$2))) -> 988 | J19: =IF($B$2="Fort William", SUMIFS('JP SC Raw Data'!$M:$M,'JP SC Raw Data'!$C:$C,"Q3",'JP SC Raw Data'!$F:$F,"S",'JP SC Raw Data'!$B:$B,"2016/17",'JP SC Raw Data'!$E:$E,$B$2), IF(IFERROR(FIND(" ",$B$2),"")="",SUMIFS('JP SC Raw Data'!$M:$M,'JP SC Raw Data'!$C:$C,"Q3",'JP SC Raw Data'!$F:$F,"S",'JP SC Raw Data'!$B:$B,"2016/17",'JP SC Raw Data'!$E:$E,$B$2),SUMIFS('JP SC Raw Data'!$M:$M,'JP SC Raw Data'!$C:$C,"Q3",'JP SC Raw Data'!$F:$F,"S",'JP SC Raw Data'!$B:$B,"2016/17",'JP SC Raw Data'!$A:$A,$B$2))) -> 292 | K19: =IF($B$2="Fort William", SUMIFS('JP SC Raw Data'!$N:$N,'JP SC Raw Data'!$C:$C,"Q3",'JP SC Raw Data'!$F:$F,"S",'JP SC Raw Data'!$B:$B,"2016/17",'JP SC Raw Data'!$E:$E,$B$2), IF(IFERROR(FIND(" ",$B$2),"")="",SUMIFS('JP SC Raw Data'!$N:$N,'JP SC Raw Data'!$C:$C,"Q3",'JP SC Raw Data'!$F:$F,"S",'JP SC Raw Data'!$B:$B,"2016/17",'JP SC Raw Data'!$E:$E,$B$2),SUMIFS('JP SC Raw Data'!$N:$N,'JP SC Raw Data'!$C:$C,"Q3",'JP SC Raw Data'!$F:$F,"S",'JP SC Raw Data'!$B:$B,"2016/17",'JP SC Raw Data'!$A:$A,$B$2))) -> 42 | L19: 0.04251012146 | M19: =IF($B$2="Fort William", SUMIFS('JP SC Raw Data'!$O:$O,'JP SC Raw Data'!$C:$C,"Q3",'JP SC Raw Data'!$F:$F,"S",'JP SC Raw Data'!$B:$B,"2016/17",'JP SC Raw Data'!$E:$E,$B$2), IF(IFERROR(FIND(" ",$B$2),"")="",SUMIFS('JP SC Raw Data'!$O:$O,'JP SC Raw Data'!$C:$C,"Q3",'JP SC Raw Data'!$F:$F,"S",'JP SC Raw Data'!$B:$B,"2016/17",'JP SC Raw Data'!$E:$E,$B$2),SUMIFS('JP SC Raw Data'!$O:$O,'JP SC Raw Data'!$C:$C,"Q3",'JP SC Raw Data'!$F:$F,"S",'JP SC Raw Data'!$B:$B,"2016/17",'JP SC Raw Data'!$A:$A,$B$2))) -> 593 | N19: =IF($B$2="Fort William", SUMIFS('JP SC Raw Data'!$P:$P,'JP SC Raw Data'!$C:$C,"Q3",'JP SC Raw Data'!$F:$F,"S",'JP SC Raw Data'!$B:$B,"2016/17",'JP SC Raw Data'!$E:$E,$B$2), IF(IFERROR(FIND(" ",$B$2),"")="",SUMIFS('JP SC Raw Data'!$P:$P,'JP SC Raw Data'!$C:$C,"Q3",'JP SC Raw Data'!$F:$F,"S",'JP SC Raw Data'!$B:$B,"2016/17",'JP SC Raw Data'!$E:$E,$B$2),SUMIFS('JP SC Raw Data'!$P:$P,'JP SC Raw Data'!$C:$C,"Q3",'JP SC Raw Data'!$F:$F,"S",'JP SC Raw Data'!$B:$B,"2016/17",'JP SC Raw Data'!$A:$A,$B$2))) -> 1341
C20: Quarter 4 | D20: =IF($B$2="Fort william", SUMIFS('JP SC Raw Data'!$G:$G,'JP SC Raw Data'!$C:$C,"Q4",'JP SC Raw Data'!$F:$F,"S",'JP SC Raw Data'!$B:$B,"2016/17",'JP SC Raw Data'!$E:$E,$B$2), IF(IFERROR(FIND(" ",$B$2),"")="",SUMIFS('JP SC Raw Data'!$G:$G,'JP SC Raw Data'!$C:$C,"Q4",'JP SC Raw Data'!$F:$F,"S",'JP SC Raw Data'!$B:$B,"2016/17",'JP SC Raw Data'!$E:$E,$B$2),SUMIFS('JP SC Raw Data'!$G:$G,'JP SC Raw Data'!$C:$C,"Q4",'JP SC Raw Data'!$F:$F,"S",'JP SC Raw Data'!$B:$B,"2016/17",'JP SC Raw Data'!$A:$A,$B$2))) -> 2169 | E20: =IF($B$2="Fort William", SUMIFS('JP SC Raw Data'!$H:$H,'JP SC Raw Data'!$C:$C,"Q4",'JP SC Raw Data'!$F:$F,"S",'JP SC Raw Data'!$B:$B,"2016/17",'JP SC Raw Data'!$E:$E,$B$2), IF(IFERROR(FIND(" ",$B$2),"")="",SUMIFS('JP SC Raw Data'!$H:$H,'JP SC Raw Data'!$C:$C,"Q4",'JP SC Raw Data'!$F:$F,"S",'JP SC Raw Data'!$B:$B,"2016/17",'JP SC Raw Data'!$E:$E,$B$2),SUMIFS('JP SC Raw Data'!$H:$H,'JP SC Raw Data'!$C:$C,"Q4",'JP SC Raw Data'!$F:$F,"S",'JP SC Raw Data'!$B:$B,"2016/17",'JP SC Raw Data'!$A:$A,$B$2))) -> 1415 | F20: =IF($B$2="Fort William", SUMIFS('JP SC Raw Data'!$I:$I,'JP SC Raw Data'!$C:$C,"Q4",'JP SC Raw Data'!$F:$F,"S",'JP SC Raw Data'!$B:$B,"2016/17",'JP SC Raw Data'!$E:$E,$B$2), IF(IFERROR(FIND(" ",$B$2),"")="",SUMIFS('JP SC Raw Data'!$I:$I,'JP SC Raw Data'!$C:$C,"Q4",'JP SC Raw Data'!$F:$F,"S",'JP SC Raw Data'!$B:$B,"2016/17",'JP SC Raw Data'!$E:$E,$B$2),SUMIFS('JP SC Raw Data'!$I:$I,'JP SC Raw Data'!$C:$C,"Q4",'JP SC Raw Data'!$F:$F,"S",'JP SC Raw Data'!$B:$B,"2016/17",'JP SC Raw Data'!$A:$A,$B$2))) -> 1705 | G20: =IF($B$2="Fort William", SUMIFS('JP SC Raw Data'!$J:$J,'JP SC Raw Data'!$C:$C,"Q4",'JP SC Raw Data'!$F:$F,"S",'JP SC Raw Data'!$B:$B,"2016/17",'JP SC Raw Data'!$E:$E,$B$2), IF(IFERROR(FIND(" ",$B$2),"")="",SUMIFS('JP SC Raw Data'!$J:$J,'JP SC Raw Data'!$C:$C,"Q4",'JP SC Raw Data'!$F:$F,"S",'JP SC Raw Data'!$B:$B,"2016/17",'JP SC Raw Data'!$E:$E,$B$2),SUMIFS('JP SC Raw Data'!$J:$J,'JP SC Raw Data'!$C:$C,"Q4",'JP SC Raw Data'!$F:$F,"S",'JP SC Raw Data'!$B:$B,"2016/17",'JP SC Raw Data'!$A:$A,$B$2))) -> 645 | H20: =IF($B$2="Fort William", SUMIFS('JP SC Raw Data'!$K:$K,'JP SC Raw Data'!$C:$C,"Q4",'JP SC Raw Data'!$F:$F,"S",'JP SC Raw Data'!$B:$B,"2016/17",'JP SC Raw Data'!$E:$E,$B$2), IF(IFERROR(FIND(" ",$B$2),"")="",SUMIFS('JP SC Raw Data'!$K:$K,'JP SC Raw Data'!$C:$C,"Q4",'JP SC Raw Data'!$F:$F,"S",'JP SC Raw Data'!$B:$B,"2016/17",'JP SC Raw Data'!$E:$E,$B$2),SUMIFS('JP SC Raw Data'!$K:$K,'JP SC Raw Data'!$C:$C,"Q4",'JP SC Raw Data'!$F:$F,"S",'JP SC Raw Data'!$B:$B,"2016/17",'JP SC Raw Data'!$A:$A,$B$2))) -> 225 | I20: =IF($B$2="Fort William", SUMIFS('JP SC Raw Data'!$L:$L,'JP SC Raw Data'!$C:$C,"Q4",'JP SC Raw Data'!$F:$F,"S",'JP SC Raw Data'!$B:$B,"2016/17",'JP SC Raw Data'!$E:$E,$B$2), IF(IFERROR(FIND(" ",$B$2),"")="",SUMIFS('JP SC Raw Data'!$L:$L,'JP SC Raw Data'!$C:$C,"Q4",'JP SC Raw Data'!$F:$F,"S",'JP SC Raw Data'!$B:$B,"2016/17",'JP SC Raw Data'!$E:$E,$B$2),SUMIFS('JP SC Raw Data'!$L:$L,'JP SC Raw Data'!$C:$C,"Q4",'JP SC Raw Data'!$F:$F,"S",'JP SC Raw Data'!$B:$B,"2016/17",'JP SC Raw Data'!$A:$A,$B$2))) -> 989 | J20: =IF($B$2="Fort William", SUMIFS('JP SC Raw Data'!$M:$M,'JP SC Raw Data'!$C:$C,"Q4",'JP SC Raw Data'!$F:$F,"S",'JP SC Raw Data'!$B:$B,"2016/17",'JP SC Raw Data'!$E:$E,$B$2), IF(IFERROR(FIND(" ",$B$2),"")="",SUMIFS('JP SC Raw Data'!$M:$M,'JP SC Raw Data'!$C:$C,"Q4",'JP SC Raw Data'!$F:$F,"S",'JP SC Raw Data'!$B:$B,"2016/17",'JP SC Raw Data'!$E:$E,$B$2),SUMIFS('JP SC Raw Data'!$M:$M,'JP SC Raw Data'!$C:$C,"Q4",'JP SC Raw Data'!$F:$F,"S",'JP SC Raw Data'!$B:$B,"2016/17",'JP SC Raw Data'!$A:$A,$B$2))) -> 319 | K20: =IF($B$2="Fort William", SUMIFS('JP SC Raw Data'!$N:$N,'JP SC Raw Data'!$C:$C,"Q4",'JP SC Raw Data'!$F:$F,"S",'JP SC Raw Data'!$B:$B,"2016/17",'JP SC Raw Data'!$E:$E,$B$2), IF(IFERROR(FIND(" ",$B$2),"")="",SUMIFS('JP SC Raw Data'!$N:$N,'JP SC Raw Data'!$C:$C,"Q4",'JP SC Raw Data'!$F:$F,"S",'JP SC Raw Data'!$B:$B,"2016/17",'JP SC Raw Data'!$E:$E,$B$2),SUMIFS('JP SC Raw Data'!$N:$N,'JP SC Raw Data'!$C:$C,"Q4",'JP SC Raw Data'!$F:$F,"S",'JP SC Raw Data'!$B:$B,"2016/17",'JP SC Raw Data'!$A:$A,$B$2))) -> 49 | L20: 0.04954499494 | M20: =IF($B$2="Fort William", SUMIFS('JP SC Raw Data'!$O:$O,'JP SC Raw Data'!$C:$C,"Q4",'JP SC Raw Data'!$F:$F,"S",'JP SC Raw Data'!$B:$B,"2016/17",'JP SC Raw Data'!$E:$E,$B$2), IF(IFERROR(FIND(" ",$B$2),"")="",SUMIFS('JP SC Raw Data'!$O:$O,'JP SC Raw Data'!$C:$C,"Q4",'JP SC Raw Data'!$F:$F,"S",'JP SC Raw Data'!$B:$B,"2016/17",'JP SC Raw Data'!$E:$E,$B$2),SUMIFS('JP SC Raw Data'!$O:$O,'JP SC Raw Data'!$C:$C,"Q4",'JP SC Raw Data'!$F:$F,"S",'JP SC Raw Data'!$B:$B,"2016/17",'JP SC Raw Data'!$A:$A,$B$2))) -> 510 | N20: =IF($B$2="Fort William", SUMIFS('JP SC Raw Data'!$P:$P,'JP SC Raw Data'!$C:$C,"Q4",'JP SC Raw Data'!$F:$F,"S",'JP SC Raw Data'!$B:$B,"2016/17",'JP SC Raw Data'!$E:$E,$B$2), IF(IFERROR(FIND(" ",$B$2),"")="",SUMIFS('JP SC Raw Data'!$P:$P,'JP SC Raw Data'!$C:$C,"Q4",'JP SC Raw Data'!$F:$F,"S",'JP SC Raw Data'!$B:$B,"2016/17",'JP SC Raw Data'!$E:$E,$B$2),SUMIFS('JP SC Raw Data'!$P:$P,'JP SC Raw Data'!$C:$C,"Q4",'JP SC Raw Data'!$F:$F,"S",'JP SC Raw Data'!$B:$B,"2016/17",'JP SC Raw Data'!$A:$A,$B$2))) -> 1270
C21: Full Year | D21: =SUM(D17:D20) -> 8946 | E21: 5899 | F21: 7047 | G21: 2595 | H21: 1104 | I21: 4294 | J21: 1314 | K21: 215 | L21: 0.05006986493 | M21: =M20 -> 510 | N21: =SUM(N17:N20) -> 5335
B22: 2017/18 | C22: Quarter 1 | D22: =IF($B$2="Fort william", SUMIFS('JP SC Raw Data'!$G:$G,'JP SC Raw Data'!$C:$C,"Q1",'JP SC Raw Data'!$F:$F,"S",'JP SC Raw Data'!$B:$B,"2017/18",'JP SC Raw Data'!$E:$E,$B$2), IF(IFERROR(FIND(" ",$B$2),"")="",SUMIFS('JP SC Raw Data'!$G:$G,'JP SC Raw Data'!$C:$C,"Q1",'JP SC Raw Data'!$F:$F,"S",'JP SC Raw Data'!$B:$B,"2017/18",'JP SC Raw Data'!$E:$E,$B$2),SUMIFS('JP SC Raw Data'!$G:$G,'JP SC Raw Data'!$C:$C,"Q1",'JP SC Raw Data'!$F:$F,"S",'JP SC Raw Data'!$B:$B,"2017/18",'JP SC Raw Data'!$A:$A,$B$2))) -> 2188 | E22: =IF($B$2="Fort William", SUMIFS('JP SC Raw Data'!$H:$H,'JP SC Raw Data'!$C:$C,"Q1",'JP SC Raw Data'!$F:$F,"S",'JP SC Raw Data'!$B:$B,"2017/18",'JP SC Raw Data'!$E:$E,$B$2), IF(IFERROR(FIND(" ",$B$2),"")="",SUMIFS('JP SC Raw Data'!$H:$H,'JP SC Raw Data'!$C:$C,"Q1",'JP SC Raw Data'!$F:$F,"S",'JP SC Raw Data'!$B:$B,"2017/18",'JP SC Raw Data'!$E:$E,$B$2),SUMIFS('JP SC Raw Data'!$H:$H,'JP SC Raw Data'!$C:$C,"Q1",'JP SC Raw Data'!$F:$F,"S",'JP SC Raw Data'!$B:$B,"2017/18",'JP SC Raw Data'!$A:$A,$B$2))) -> 1391 | F22: =IF($B$2="Fort William", SUMIFS('JP SC Raw Data'!$I:$I,'JP SC Raw Data'!$C:$C,"Q1",'JP SC Raw Data'!$F:$F,"S",'JP SC Raw Data'!$B:$B,"2017/18",'JP SC Raw Data'!$E:$E,$B$2), IF(IFERROR(FIND(" ",$B$2),"")="",SUMIFS('JP SC Raw Data'!$I:$I,'JP SC Raw Data'!$C:$C,"Q1",'JP SC Raw Data'!$F:$F,"S",'JP SC Raw Data'!$B:$B,"2017/18",'JP SC Raw Data'!$E:$E,$B$2),SUMIFS('JP SC Raw Data'!$I:$I,'JP SC Raw Data'!$C:$C,"Q1",'JP SC Raw Data'!$F:$F,"S",'JP SC Raw Data'!$B:$B,"2017/18",'JP SC Raw Data'!$A:$A,$B$2))) -> 1530 | G22: =IF($B$2="Fort William", SUMIFS('JP SC Raw Data'!$J:$J,'JP SC Raw Data'!$C:$C,"Q1",'JP SC Raw Data'!$F:$F,"S",'JP SC Raw Data'!$B:$B,"2017/18",'JP SC Raw Data'!$E:$E,$B$2), IF(IFERROR(FIND(" ",$B$2),"")="",SUMIFS('JP SC Raw Data'!$J:$J,'JP SC Raw Data'!$C:$C,"Q1",'JP SC Raw Data'!$F:$F,"S",'JP SC Raw Data'!$B:$B,"2017/18",'JP SC Raw Data'!$E:$E,$B$2),SUMIFS('JP SC Raw Data'!$J:$J,'JP SC Raw Data'!$C:$C,"Q1",'JP SC Raw Data'!$F:$F,"S",'JP SC Raw Data'!$B:$B,"2017/18",'JP SC Raw Data'!$A:$A,$B$2))) -> 573 | H22: =IF($B$2="Fort William", SUMIFS('JP SC Raw Data'!$K:$K,'JP SC Raw Data'!$C:$C,"Q1",'JP SC Raw Data'!$F:$F,"S",'JP SC Raw Data'!$B:$B,"2017/18",'JP SC Raw Data'!$E:$E,$B$2), IF(IFERROR(FIND(" ",$B$2),"")="",SUMIFS('JP SC Raw Data'!$K:$K,'JP SC Raw Data'!$C:$C,"Q1",'JP SC Raw Data'!$F:$F,"S",'JP SC Raw Data'!$B:$B,"2017/18",'JP SC Raw Data'!$E:$E,$B$2),SUMIFS('JP SC Raw Data'!$K:$K,'JP SC Raw Data'!$C:$C,"Q1",'JP SC Raw Data'!$F:$F,"S",'JP SC Raw Data'!$B:$B,"2017/18",'JP SC Raw Data'!$A:$A,$B$2))) -> 272 | I22: =IF($B$2="Fort William", SUMIFS('JP SC Raw Data'!$L:$L,'JP SC Raw Data'!$C:$C,"Q1",'JP SC Raw Data'!$F:$F,"S",'JP SC Raw Data'!$B:$B,"2017/18",'JP SC Raw Data'!$E:$E,$B$2), IF(IFERROR(FIND(" ",$B$2),"")="",SUMIFS('JP SC Raw Data'!$L:$L,'JP SC Raw Data'!$C:$C,"Q1",'JP SC Raw Data'!$F:$F,"S",'JP SC Raw Data'!$B:$B,"2017/18",'JP SC Raw Data'!$E:$E,$B$2),SUMIFS('JP SC Raw Data'!$L:$L,'JP SC Raw Data'!$C:$C,"Q1",'JP SC Raw Data'!$F:$F,"S",'JP SC Raw Data'!$B:$B,"2017/18",'JP SC Raw Data'!$A:$A,$B$2))) -> 912 | J22: =IF($B$2="Fort William", SUMIFS('JP SC Raw Data'!$M:$M,'JP SC Raw Data'!$C:$C,"Q1",'JP SC Raw Data'!$F:$F,"S",'JP SC Raw Data'!$B:$B,"2017/18",'JP SC Raw Data'!$E:$E,$B$2), IF(IFERROR(FIND(" ",$B$2),"")="",SUMIFS('JP SC Raw Data'!$M:$M,'JP SC Raw Data'!$C:$C,"Q1",'JP SC Raw Data'!$F:$F,"S",'JP SC Raw Data'!$B:$B,"2017/18",'JP SC Raw Data'!$E:$E,$B$2),SUMIFS('JP SC Raw Data'!$M:$M,'JP SC Raw Data'!$C:$C,"Q1",'JP SC Raw Data'!$F:$F,"S",'JP SC Raw Data'!$B:$B,"2017/18",'JP SC Raw Data'!$A:$A,$B$2))) -> 311 | K22: =IF($B$2="Fort William", SUMIFS('JP SC Raw Data'!$N:$N,'JP SC Raw Data'!$C:$C,"Q1",'JP SC Raw Data'!$F:$F,"S",'JP SC Raw Data'!$B:$B,"2017/18",'JP SC Raw Data'!$E:$E,$B$2), IF(IFERROR(FIND(" ",$B$2),"")="",SUMIFS('JP SC Raw Data'!$N:$N,'JP SC Raw Data'!$C:$C,"Q1",'JP SC Raw Data'!$F:$F,"S",'JP SC Raw Data'!$B:$B,"2017/18",'JP SC Raw Data'!$E:$E,$B$2),SUMIFS('JP SC Raw Data'!$N:$N,'JP SC Raw Data'!$C:$C,"Q1",'JP SC Raw Data'!$F:$F,"S",'JP SC Raw Data'!$B:$B,"2017/18",'JP SC Raw Data'!$A:$A,$B$2))) -> 47 | L22: 0.05153508772 | M22: =IF($B$2="Fort William", SUMIFS('JP SC Raw Data'!$O:$O,'JP SC Raw Data'!$C:$C,"Q1",'JP SC Raw Data'!$F:$F,"S",'JP SC Raw Data'!$B:$B,"2017/18",'JP SC Raw Data'!$E:$E,$B$2), IF(IFERROR(FIND(" ",$B$2),"")="",SUMIFS('JP SC Raw Data'!$O:$O,'JP SC Raw Data'!$C:$C,"Q1",'JP SC Raw Data'!$F:$F,"S",'JP SC Raw Data'!$B:$B,"2017/18",'JP SC Raw Data'!$E:$E,$B$2),SUMIFS('JP SC Raw Data'!$O:$O,'JP SC Raw Data'!$C:$C,"Q1",'JP SC Raw Data'!$F:$F,"S",'JP SC Raw Data'!$B:$B,"2017/18",'JP SC Raw Data'!$A:$A,$B$2))) -> 411 | N22: =IF($B$2="Fort William", SUMIFS('JP SC Raw Data'!$P:$P,'JP SC Raw Data'!$C:$C,"Q1",'JP SC Raw Data'!$F:$F,"S",'JP SC Raw Data'!$B:$B,"2017/18",'JP SC Raw Data'!$E:$E,$B$2), IF(IFERROR(FIND(" ",$B$2),"")="",SUMIFS('JP SC Raw Data'!$P:$P,'JP SC Raw Data'!$C:$C,"Q1",'JP SC Raw Data'!$F:$F,"S",'JP SC Raw Data'!$B:$B,"2017/18",'JP SC Raw Data'!$E:$E,$B$2),SUMIFS('JP SC Raw Data'!$P:$P,'JP SC Raw Data'!$C:$C,"Q1",'JP SC Raw Data'!$F:$F,"S",'JP SC Raw Data'!$B:$B,"2017/18",'JP SC Raw Data'!$A:$A,$B$2))) -> 1229
C23: Quarter 2 | D23: =IF($B$2="Fort william", SUMIFS('JP SC Raw Data'!$G:$G,'JP SC Raw Data'!$C:$C,"Q2",'JP SC Raw Data'!$F:$F,"S",'JP SC Raw Data'!$B:$B,"2017/18",'JP SC Raw Data'!$E:$E,$B$2), IF(IFERROR(FIND(" ",$B$2),"")="",SUMIFS('JP SC Raw Data'!$G:$G,'JP SC Raw Data'!$C:$C,"Q2",'JP SC Raw Data'!$F:$F,"S",'JP SC Raw Data'!$B:$B,"2017/18",'JP SC Raw Data'!$E:$E,$B$2),SUMIFS('JP SC Raw Data'!$G:$G,'JP SC Raw Data'!$C:$C,"Q2",'JP SC Raw Data'!$F:$F,"S",'JP SC Raw Data'!$B:$B,"2017/18",'JP SC Raw Data'!$A:$A,$B$2))) -> 2249 | E23: =IF($B$2="Fort William", SUMIFS('JP SC Raw Data'!$H:$H,'JP SC Raw Data'!$C:$C,"Q2",'JP SC Raw Data'!$F:$F,"S",'JP SC Raw Data'!$B:$B,"2017/18",'JP SC Raw Data'!$E:$E,$B$2), IF(IFERROR(FIND(" ",$B$2),"")="",SUMIFS('JP SC Raw Data'!$H:$H,'JP SC Raw Data'!$C:$C,"Q2",'JP SC Raw Data'!$F:$F,"S",'JP SC Raw Data'!$B:$B,"2017/18",'JP SC Raw Data'!$E:$E,$B$2),SUMIFS('JP SC Raw Data'!$H:$H,'JP SC Raw Data'!$C:$C,"Q2",'JP SC Raw Data'!$F:$F,"S",'JP SC Raw Data'!$B:$B,"2017/18",'JP SC Raw Data'!$A:$A,$B$2))) -> 1217 | F23: =IF($B$2="Fort William", SUMIFS('JP SC Raw Data'!$I:$I,'JP SC Raw Data'!$C:$C,"Q2",'JP SC Raw Data'!$F:$F,"S",'JP SC Raw Data'!$B:$B,"2017/18",'JP SC Raw Data'!$E:$E,$B$2), IF(IFERROR(FIND(" ",$B$2),"")="",SUMIFS('JP SC Raw Data'!$I:$I,'JP SC Raw Data'!$C:$C,"Q2",'JP SC Raw Data'!$F:$F,"S",'JP SC Raw Data'!$B:$B,"2017/18",'JP SC Raw Data'!$E:$E,$B$2),SUMIFS('JP SC Raw Data'!$I:$I,'JP SC Raw Data'!$C:$C,"Q2",'JP SC Raw Data'!$F:$F,"S",'JP SC Raw Data'!$B:$B,"2017/18",'JP SC Raw Data'!$A:$A,$B$2))) -> 1279 | G23: =IF($B$2="Fort William", SUMIFS('JP SC Raw Data'!$J:$J,'JP SC Raw Data'!$C:$C,"Q2",'JP SC Raw Data'!$F:$F,"S",'JP SC Raw Data'!$B:$B,"2017/18",'JP SC Raw Data'!$E:$E,$B$2), IF(IFERROR(FIND(" ",$B$2),"")="",SUMIFS('JP SC Raw Data'!$J:$J,'JP SC Raw Data'!$C:$C,"Q2",'JP SC Raw Data'!$F:$F,"S",'JP SC Raw Data'!$B:$B,"2017/18",'JP SC Raw Data'!$E:$E,$B$2),SUMIFS('JP SC Raw Data'!$J:$J,'JP SC Raw Data'!$C:$C,"Q2",'JP SC Raw Data'!$F:$F,"S",'JP SC Raw Data'!$B:$B,"2017/18",'JP SC Raw Data'!$A:$A,$B$2))) -> 571 | H23: =IF($B$2="Fort William", SUMIFS('JP SC Raw Data'!$K:$K,'JP SC Raw Data'!$C:$C,"Q2",'JP SC Raw Data'!$F:$F,"S",'JP SC Raw Data'!$B:$B,"2017/18",'JP SC Raw Data'!$E:$E,$B$2), IF(IFERROR(FIND(" ",$B$2),"")="",SUMIFS('JP SC Raw Data'!$K:$K,'JP SC Raw Data'!$C:$C,"Q2",'JP SC Raw Data'!$F:$F,"S",'JP SC Raw Data'!$B:$B,"2017/18",'JP SC Raw Data'!$E:$E,$B$2),SUMIFS('JP SC Raw Data'!$K:$K,'JP SC Raw Data'!$C:$C,"Q2",'JP SC Raw Data'!$F:$F,"S",'JP SC Raw Data'!$B:$B,"2017/18",'JP SC Raw Data'!$A:$A,$B$2))) -> 275 | I23: =IF($B$2="Fort William", SUMIFS('JP SC Raw Data'!$L:$L,'JP SC Raw Data'!$C:$C,"Q2",'JP SC Raw Data'!$F:$F,"S",'JP SC Raw Data'!$B:$B,"2017/18",'JP SC Raw Data'!$E:$E,$B$2), IF(IFERROR(FIND(" ",$B$2),"")="",SUMIFS('JP SC Raw Data'!$L:$L,'JP SC Raw Data'!$C:$C,"Q2",'JP SC Raw Data'!$F:$F,"S",'JP SC Raw Data'!$B:$B,"2017/18",'JP SC Raw Data'!$E:$E,$B$2),SUMIFS('JP SC Raw Data'!$L:$L,'JP SC Raw Data'!$C:$C,"Q2",'JP SC Raw Data'!$F:$F,"S",'JP SC Raw Data'!$B:$B,"2017/18",'JP SC Raw Data'!$A:$A,$B$2))) -> 698 | J23: =IF($B$2="Fort William", SUMIFS('JP SC Raw Data'!$M:$M,'JP SC Raw Data'!$C:$C,"Q2",'JP SC Raw Data'!$F:$F,"S",'JP SC Raw Data'!$B:$B,"2017/18",'JP SC Raw Data'!$E:$E,$B$2), IF(IFERROR(FIND(" ",$B$2),"")="",SUMIFS('JP SC Raw Data'!$M:$M,'JP SC Raw Data'!$C:$C,"Q2",'JP SC Raw Data'!$F:$F,"S",'JP SC Raw Data'!$B:$B,"2017/18",'JP SC Raw Data'!$E:$E,$B$2),SUMIFS('JP SC Raw Data'!$M:$M,'JP SC Raw Data'!$C:$C,"Q2",'JP SC Raw Data'!$F:$F,"S",'JP SC Raw Data'!$B:$B,"2017/18",'JP SC Raw Data'!$A:$A,$B$2))) -> 257 | K23: =IF($B$2="Fort William", SUMIFS('JP SC Raw Data'!$N:$N,'JP SC Raw Data'!$C:$C,"Q2",'JP SC Raw Data'!$F:$F,"S",'JP SC Raw Data'!$B:$B,"2017/18",'JP SC Raw Data'!$E:$E,$B$2), IF(IFERROR(FIND(" ",$B$2),"")="",SUMIFS('JP SC Raw Data'!$N:$N,'JP SC Raw Data'!$C:$C,"Q2",'JP SC Raw Data'!$F:$F,"S",'JP SC Raw Data'!$B:$B,"2017/18",'JP SC Raw Data'!$E:$E,$B$2),SUMIFS('JP SC Raw Data'!$N:$N,'JP SC Raw Data'!$C:$C,"Q2",'JP SC Raw Data'!$F:$F,"S",'JP SC Raw Data'!$B:$B,"2017/18",'JP SC Raw Data'!$A:$A,$B$2))) -> 25 | L23: 0.03581661891 | M23: =IF($B$2="Fort William", SUMIFS('JP SC Raw Data'!$O:$O,'JP SC Raw Data'!$C:$C,"Q2",'JP SC Raw Data'!$F:$F,"S",'JP SC Raw Data'!$B:$B,"2017/18",'JP SC Raw Data'!$E:$E,$B$2), IF(IFERROR(FIND(" ",$B$2),"")="",SUMIFS('JP SC Raw Data'!$O:$O,'JP SC Raw Data'!$C:$C,"Q2",'JP SC Raw Data'!$F:$F,"S",'JP SC Raw Data'!$B:$B,"2017/18",'JP SC Raw Data'!$E:$E,$B$2),SUMIFS('JP SC Raw Data'!$O:$O,'JP SC Raw Data'!$C:$C,"Q2",'JP SC Raw Data'!$F:$F,"S",'JP SC Raw Data'!$B:$B,"2017/18",'JP SC Raw Data'!$A:$A,$B$2))) -> 286 | N23: =IF($B$2="Fort William", SUMIFS('JP SC Raw Data'!$P:$P,'JP SC Raw Data'!$C:$C,"Q2",'JP SC Raw Data'!$F:$F,"S",'JP SC Raw Data'!$B:$B,"2017/18",'JP SC Raw Data'!$E:$E,$B$2), IF(IFERROR(FIND(" ",$B$2),"")="",SUMIFS('JP SC Raw Data'!$P:$P,'JP SC Raw Data'!$C:$C,"Q2",'JP SC Raw Data'!$F:$F,"S",'JP SC Raw Data'!$B:$B,"2017/18",'JP SC Raw Data'!$E:$E,$B$2),SUMIFS('JP SC Raw Data'!$P:$P,'JP SC Raw Data'!$C:$C,"Q2",'JP SC Raw Data'!$F:$F,"S",'JP SC Raw Data'!$B:$B,"2017/18",'JP SC Raw Data'!$A:$A,$B$2))) -> 1133
C24: Quarter 3 | D24: =IF($B$2="Fort william", SUMIFS('JP SC Raw Data'!$G:$G,'JP SC Raw Data'!$C:$C,"Q3",'JP SC Raw Data'!$F:$F,"S",'JP SC Raw Data'!$B:$B,"2017/18",'JP SC Raw Data'!$E:$E,$B$2), IF(IFERROR(FIND(" ",$B$2),"")="",SUMIFS('JP SC Raw Data'!$G:$G,'JP SC Raw Data'!$C:$C,"Q3",'JP SC Raw Data'!$F:$F,"S",'JP SC Raw Data'!$B:$B,"2017/18",'JP SC Raw Data'!$E:$E,$B$2),SUMIFS('JP SC Raw Data'!$G:$G,'JP SC Raw Data'!$C:$C,"Q3",'JP SC Raw Data'!$F:$F,"S",'JP SC Raw Data'!$B:$B,"2017/18",'JP SC Raw Data'!$A:$A,$B$2))) -> 2091 | E24: =IF($B$2="Fort William", SUMIFS('JP SC Raw Data'!$H:$H,'JP SC Raw Data'!$C:$C,"Q3",'JP SC Raw Data'!$F:$F,"S",'JP SC Raw Data'!$B:$B,"2017/18",'JP SC Raw Data'!$E:$E,$B$2), IF(IFERROR(FIND(" ",$B$2),"")="",SUMIFS('JP SC Raw Data'!$H:$H,'JP SC Raw Data'!$C:$C,"Q3",'JP SC Raw Data'!$F:$F,"S",'JP SC Raw Data'!$B:$B,"2017/18",'JP SC Raw Data'!$E:$E,$B$2),SUMIFS('JP SC Raw Data'!$H:$H,'JP SC Raw Data'!$C:$C,"Q3",'JP SC Raw Data'!$F:$F,"S",'JP SC Raw Data'!$B:$B,"2017/18",'JP SC Raw Data'!$A:$A,$B$2))) -> 1171 | F24: =IF($B$2="Fort William", SUMIFS('JP SC Raw Data'!$I:$I,'JP SC Raw Data'!$C:$C,"Q3",'JP SC Raw Data'!$F:$F,"S",'JP SC Raw Data'!$B:$B,"2017/18",'JP SC Raw Data'!$E:$E,$B$2), IF(IFERROR(FIND(" ",$B$2),"")="",SUMIFS('JP SC Raw Data'!$I:$I,'JP SC Raw Data'!$C:$C,"Q3",'JP SC Raw Data'!$F:$F,"S",'JP SC Raw Data'!$B:$B,"2017/18",'JP SC Raw Data'!$E:$E,$B$2),SUMIFS('JP SC Raw Data'!$I:$I,'JP SC Raw Data'!$C:$C,"Q3",'JP SC Raw Data'!$F:$F,"S",'JP SC Raw Data'!$B:$B,"2017/18",'JP SC Raw Data'!$A:$A,$B$2))) -> 1094 | G24: =IF($B$2="Fort William", SUMIFS('JP SC Raw Data'!$J:$J,'JP SC Raw Data'!$C:$C,"Q3",'JP SC Raw Data'!$F:$F,"S",'JP SC Raw Data'!$B:$B,"2017/18",'JP SC Raw Data'!$E:$E,$B$2), IF(IFERROR(FIND(" ",$B$2),"")="",SUMIFS('JP SC Raw Data'!$J:$J,'JP SC Raw Data'!$C:$C,"Q3",'JP SC Raw Data'!$F:$F,"S",'JP SC Raw Data'!$B:$B,"2017/18",'JP SC Raw Data'!$E:$E,$B$2),SUMIFS('JP SC Raw Data'!$J:$J,'JP SC Raw Data'!$C:$C,"Q3",'JP SC Raw Data'!$F:$F,"S",'JP SC Raw Data'!$B:$B,"2017/18",'JP SC Raw Data'!$A:$A,$B$2))) -> 520 | H24: =IF($B$2="Fort William", SUMIFS('JP SC Raw Data'!$K:$K,'JP SC Raw Data'!$C:$C,"Q3",'JP SC Raw Data'!$F:$F,"S",'JP SC Raw Data'!$B:$B,"2017/18",'JP SC Raw Data'!$E:$E,$B$2), IF(IFERROR(FIND(" ",$B$2),"")="",SUMIFS('JP SC Raw Data'!$K:$K,'JP SC Raw Data'!$C:$C,"Q3",'JP SC Raw Data'!$F:$F,"S",'JP SC Raw Data'!$B:$B,"2017/18",'JP SC Raw Data'!$E:$E,$B$2),SUMIFS('JP SC Raw Data'!$K:$K,'JP SC Raw Data'!$C:$C,"Q3",'JP SC Raw Data'!$F:$F,"S",'JP SC Raw Data'!$B:$B,"2017/18",'JP SC Raw Data'!$A:$A,$B$2))) -> 233 | I24: =IF($B$2="Fort William", SUMIFS('JP SC Raw Data'!$L:$L,'JP SC Raw Data'!$C:$C,"Q3",'JP SC Raw Data'!$F:$F,"S",'JP SC Raw Data'!$B:$B,"2017/18",'JP SC Raw Data'!$E:$E,$B$2), IF(IFERROR(FIND(" ",$B$2),"")="",SUMIFS('JP SC Raw Data'!$L:$L,'JP SC Raw Data'!$C:$C,"Q3",'JP SC Raw Data'!$F:$F,"S",'JP SC Raw Data'!$B:$B,"2017/18",'JP SC Raw Data'!$E:$E,$B$2),SUMIFS('JP SC Raw Data'!$L:$L,'JP SC Raw Data'!$C:$C,"Q3",'JP SC Raw Data'!$F:$F,"S",'JP SC Raw Data'!$B:$B,"2017/18",'JP SC Raw Data'!$A:$A,$B$2))) -> 558 | J24: =IF($B$2="Fort William", SUMIFS('JP SC Raw Data'!$M:$M,'JP SC Raw Data'!$C:$C,"Q3",'JP SC Raw Data'!$F:$F,"S",'JP SC Raw Data'!$B:$B,"2017/18",'JP SC Raw Data'!$E:$E,$B$2), IF(IFERROR(FIND(" ",$B$2),"")="",SUMIFS('JP SC Raw Data'!$M:$M,'JP SC Raw Data'!$C:$C,"Q3",'JP SC Raw Data'!$F:$F,"S",'JP SC Raw Data'!$B:$B,"2017/18",'JP SC Raw Data'!$E:$E,$B$2),SUMIFS('JP SC Raw Data'!$M:$M,'JP SC Raw Data'!$C:$C,"Q3",'JP SC Raw Data'!$F:$F,"S",'JP SC Raw Data'!$B:$B,"2017/18",'JP SC Raw Data'!$A:$A,$B$2))) -> 222 | K24: =IF($B$2="Fort William", SUMIFS('JP SC Raw Data'!$N:$N,'JP SC Raw Data'!$C:$C,"Q3",'JP SC Raw Data'!$F:$F,"S",'JP SC Raw Data'!$B:$B,"2017/18",'JP SC Raw Data'!$E:$E,$B$2), IF(IFERROR(FIND(" ",$B$2),"")="",SUMIFS('JP SC Raw Data'!$N:$N,'JP SC Raw Data'!$C:$C,"Q3",'JP SC Raw Data'!$F:$F,"S",'JP SC Raw Data'!$B:$B,"2017/18",'JP SC Raw Data'!$E:$E,$B$2),SUMIFS('JP SC Raw Data'!$N:$N,'JP SC Raw Data'!$C:$C,"Q3",'JP SC Raw Data'!$F:$F,"S",'JP SC Raw Data'!$B:$B,"2017/18",'JP SC Raw Data'!$A:$A,$B$2))) -> 11 | L24: 0.01971326165 | M24: =IF($B$2="Fort William", SUMIFS('JP SC Raw Data'!$O:$O,'JP SC Raw Data'!$C:$C,"Q3",'JP SC Raw Data'!$F:$F,"S",'JP SC Raw Data'!$B:$B,"2017/18",'JP SC Raw Data'!$E:$E,$B$2), IF(IFERROR(FIND(" ",$B$2),"")="",SUMIFS('JP SC Raw Data'!$O:$O,'JP SC Raw Data'!$C:$C,"Q3",'JP SC Raw Data'!$F:$F,"S",'JP SC Raw Data'!$B:$B,"2017/18",'JP SC Raw Data'!$E:$E,$B$2),SUMIFS('JP SC Raw Data'!$O:$O,'JP SC Raw Data'!$C:$C,"Q3",'JP SC Raw Data'!$F:$F,"S",'JP SC Raw Data'!$B:$B,"2017/18",'JP SC Raw Data'!$A:$A,$B$2))) -> 347 | N24: =IF($B$2="Fort William", SUMIFS('JP SC Raw Data'!$P:$P,'JP SC Raw Data'!$C:$C,"Q3",'JP SC Raw Data'!$F:$F,"S",'JP SC Raw Data'!$B:$B,"2017/18",'JP SC Raw Data'!$E:$E,$B$2), IF(IFERROR(FIND(" ",$B$2),"")="",SUMIFS('JP SC Raw Data'!$P:$P,'JP SC Raw Data'!$C:$C,"Q3",'JP SC Raw Data'!$F:$F,"S",'JP SC Raw Data'!$B:$B,"2017/18",'JP SC Raw Data'!$E:$E,$B$2),SUMIFS('JP SC Raw Data'!$P:$P,'JP SC Raw Data'!$C:$C,"Q3",'JP SC Raw Data'!$F:$F,"S",'JP SC Raw Data'!$B:$B,"2017/18",'JP SC Raw Data'!$A:$A,$B$2))) -> 1102
C25: Quarter 4 | D25: =IF($B$2="Fort william", SUMIFS('JP SC Raw Data'!$G:$G,'JP SC Raw Data'!$C:$C,"Q4",'JP SC Raw Data'!$F:$F,"S",'JP SC Raw Data'!$B:$B,"2017/18",'JP SC Raw Data'!$E:$E,$B$2), IF(IFERROR(FIND(" ",$B$2),"")="",SUMIFS('JP SC Raw Data'!$G:$G,'JP SC Raw Data'!$C:$C,"Q4",'JP SC Raw Data'!$F:$F,"S",'JP SC Raw Data'!$B:$B,"2017/18",'JP SC Raw Data'!$E:$E,$B$2),SUMIFS('JP SC Raw Data'!$G:$G,'JP SC Raw Data'!$C:$C,"Q4",'JP SC Raw Data'!$F:$F,"S",'JP SC Raw Data'!$B:$B,"2017/18",'JP SC Raw Data'!$A:$A,$B$2))) -> 2011 | E25: =IF($B$2="Fort William", SUMIFS('JP SC Raw Data'!$H:$H,'JP SC Raw Data'!$C:$C,"Q4",'JP SC Raw Data'!$F:$F,"S",'JP SC Raw Data'!$B:$B,"2017/18",'JP SC Raw Data'!$E:$E,$B$2), IF(IFERROR(FIND(" ",$B$2),"")="",SUMIFS('JP SC Raw Data'!$H:$H,'JP SC Raw Data'!$C:$C,"Q4",'JP SC Raw Data'!$F:$F,"S",'JP SC Raw Data'!$B:$B,"2017/18",'JP SC Raw Data'!$E:$E,$B$2),SUMIFS('JP SC Raw Data'!$H:$H,'JP SC Raw Data'!$C:$C,"Q4",'JP SC Raw Data'!$F:$F,"S",'JP SC Raw Data'!$B:$B,"2017/18",'JP SC Raw Data'!$A:$A,$B$2))) -> 1200 | F25: =IF($B$2="Fort William", SUMIFS('JP SC Raw Data'!$I:$I,'JP SC Raw Data'!$C:$C,"Q4",'JP SC Raw Data'!$F:$F,"S",'JP SC Raw Data'!$B:$B,"2017/18",'JP SC Raw Data'!$E:$E,$B$2), IF(IFERROR(FIND(" ",$B$2),"")="",SUMIFS('JP SC Raw Data'!$I:$I,'JP SC Raw Data'!$C:$C,"Q4",'JP SC Raw Data'!$F:$F,"S",'JP SC Raw Data'!$B:$B,"2017/18",'JP SC Raw Data'!$E:$E,$B$2),SUMIFS('JP SC Raw Data'!$I:$I,'JP SC Raw Data'!$C:$C,"Q4",'JP SC Raw Data'!$F:$F,"S",'JP SC Raw Data'!$B:$B,"2017/18",'JP SC Raw Data'!$A:$A,$B$2))) -> 1019 | G25: =IF($B$2="Fort William", SUMIFS('JP SC Raw Data'!$J:$J,'JP SC Raw Data'!$C:$C,"Q4",'JP SC Raw Data'!$F:$F,"S",'JP SC Raw Data'!$B:$B,"2017/18",'JP SC Raw Data'!$E:$E,$B$2), IF(IFERROR(FIND(" ",$B$2),"")="",SUMIFS('JP SC Raw Data'!$J:$J,'JP SC Raw Data'!$C:$C,"Q4",'JP SC Raw Data'!$F:$F,"S",'JP SC Raw Data'!$B:$B,"2017/18",'JP SC Raw Data'!$E:$E,$B$2),SUMIFS('JP SC Raw Data'!$J:$J,'JP SC Raw Data'!$C:$C,"Q4",'JP SC Raw Data'!$F:$F,"S",'JP SC Raw Data'!$B:$B,"2017/18",'JP SC Raw Data'!$A:$A,$B$2))) -> 756 | H25: =IF($B$2="Fort William", SUMIFS('JP SC Raw Data'!$K:$K,'JP SC Raw Data'!$C:$C,"Q4",'JP SC Raw Data'!$F:$F,"S",'JP SC Raw Data'!$B:$B,"2017/18",'JP SC Raw Data'!$E:$E,$B$2), IF(IFERROR(FIND(" ",$B$2),"")="",SUMIFS('JP SC Raw Data'!$K:$K,'JP SC Raw Data'!$C:$C,"Q4",'JP SC Raw Data'!$F:$F,"S",'JP SC Raw Data'!$B:$B,"2017/18",'JP SC Raw Data'!$E:$E,$B$2),SUMIFS('JP SC Raw Data'!$K:$K,'JP SC Raw Data'!$C:$C,"Q4",'JP SC Raw Data'!$F:$F,"S",'JP SC Raw Data'!$B:$B,"2017/18",'JP SC Raw Data'!$A:$A,$B$2))) -> 254 | I25: =IF($B$2="Fort William", SUMIFS('JP SC Raw Data'!$L:$L,'JP SC Raw Data'!$C:$C,"Q4",'JP SC Raw Data'!$F:$F,"S",'JP SC Raw Data'!$B:$B,"2017/18",'JP SC Raw Data'!$E:$E,$B$2), IF(IFERROR(FIND(" ",$B$2),"")="",SUMIFS('JP SC Raw Data'!$L:$L,'JP SC Raw Data'!$C:$C,"Q4",'JP SC Raw Data'!$F:$F,"S",'JP SC Raw Data'!$B:$B,"2017/18",'JP SC Raw Data'!$E:$E,$B$2),SUMIFS('JP SC Raw Data'!$L:$L,'JP SC Raw Data'!$C:$C,"Q4",'JP SC Raw Data'!$F:$F,"S",'JP SC Raw Data'!$B:$B,"2017/18",'JP SC Raw Data'!$A:$A,$B$2))) -> 665 | J25: =IF($B$2="Fort William", SUMIFS('JP SC Raw Data'!$M:$M,'JP SC Raw Data'!$C:$C,"Q4",'JP SC Raw Data'!$F:$F,"S",'JP SC Raw Data'!$B:$B,"2017/18",'JP SC Raw Data'!$E:$E,$B$2), IF(IFERROR(FIND(" ",$B$2),"")="",SUMIFS('JP SC Raw Data'!$M:$M,'JP SC Raw Data'!$C:$C,"Q4",'JP SC Raw Data'!$F:$F,"S",'JP SC Raw Data'!$B:$B,"2017/18",'JP SC Raw Data'!$E:$E,$B$2),SUMIFS('JP SC Raw Data'!$M:$M,'JP SC Raw Data'!$C:$C,"Q4",'JP SC Raw Data'!$F:$F,"S",'JP SC Raw Data'!$B:$B,"2017/18",'JP SC Raw Data'!$A:$A,$B$2))) -> 251 | K25: =IF($B$2="Fort William", SUMIFS('JP SC Raw Data'!$N:$N,'JP SC Raw Data'!$C:$C,"Q4",'JP SC Raw Data'!$F:$F,"S",'JP SC Raw Data'!$B:$B,"2017/18",'JP SC Raw Data'!$E:$E,$B$2), IF(IFERROR(FIND(" ",$B$2),"")="",SUMIFS('JP SC Raw Data'!$N:$N,'JP SC Raw Data'!$C:$C,"Q4",'JP SC Raw Data'!$F:$F,"S",'JP SC Raw Data'!$B:$B,"2017/18",'JP SC Raw Data'!$E:$E,$B$2),SUMIFS('JP SC Raw Data'!$N:$N,'JP SC Raw Data'!$C:$C,"Q4",'JP SC Raw Data'!$F:$F,"S",'JP SC Raw Data'!$B:$B,"2017/18",'JP SC Raw Data'!$A:$A,$B$2))) -> 25 | L25: 0.03759398496 | M25: =IF($B$2="Fort William", SUMIFS('JP SC Raw Data'!$O:$O,'JP SC Raw Data'!$C:$C,"Q4",'JP SC Raw Data'!$F:$F,"S",'JP SC Raw Data'!$B:$B,"2017/18",'JP SC Raw Data'!$E:$E,$B$2), IF(IFERROR(FIND(" ",$B$2),"")="",SUMIFS('JP SC Raw Data'!$O:$O,'JP SC Raw Data'!$C:$C,"Q4",'JP SC Raw Data'!$F:$F,"S",'JP SC Raw Data'!$B:$B,"2017/18",'JP SC Raw Data'!$E:$E,$B$2),SUMIFS('JP SC Raw Data'!$O:$O,'JP SC Raw Data'!$C:$C,"Q4",'JP SC Raw Data'!$F:$F,"S",'JP SC Raw Data'!$B:$B,"2017/18",'JP SC Raw Data'!$A:$A,$B$2))) -> 355 | N25: =IF($B$2="Fort William", SUMIFS('JP SC Raw Data'!$P:$P,'JP SC Raw Data'!$C:$C,"Q4",'JP SC Raw Data'!$F:$F,"S",'JP SC Raw Data'!$B:$B,"2017/18",'JP SC Raw Data'!$E:$E,$B$2), IF(IFERROR(FIND(" ",$B$2),"")="",SUMIFS('JP SC Raw Data'!$P:$P,'JP SC Raw Data'!$C:$C,"Q4",'JP SC Raw Data'!$F:$F,"S",'JP SC Raw Data'!$B:$B,"2017/18",'JP SC Raw Data'!$E:$E,$B$2),SUMIFS('JP SC Raw Data'!$P:$P,'JP SC Raw Data'!$C:$C,"Q4",'JP SC Raw Data'!$F:$F,"S",'JP SC Raw Data'!$B:$B,"2017/18",'JP SC Raw Data'!$A:$A,$B$2))) -> 1069
C26: Full Year | D26: =SUM(D22:D25) -> 8539 | E26: 4979 | F26: 4922 | G26: 2420 | H26: 1034 | I26: 2833 | J26: 1041 | K26: 108 | L26: 0.03812213202 | M26: =M25 -> 355 | N26: =SUM(N22:N25) -> 4533
B27: 2018/19 | C27: Quarter 1 | D27: =IF($B$2="Fort william", SUMIFS('JP SC Raw Data'!$G:$G,'JP SC Raw Data'!$C:$C,"Q1",'JP SC Raw Data'!$F:$F,"S",'JP SC Raw Data'!$B:$B,"2018/19",'JP SC Raw Data'!$E:$E,$B$2), IF(IFERROR(FIND(" ",$B$2),"")="",SUMIFS('JP SC Raw Data'!$G:$G,'JP SC Raw Data'!$C:$C,"Q1",'JP SC Raw Data'!$F:$F,"S",'JP SC Raw Data'!$B:$B,"2018/19",'JP SC Raw Data'!$E:$E,$B$2),SUMIFS('JP SC Raw Data'!$G:$G,'JP SC Raw Data'!$C:$C,"Q1",'JP SC Raw Data'!$F:$F,"S",'JP SC Raw Data'!$B:$B,"2018/19",'JP SC Raw Data'!$A:$A,$B$2))) -> 2279 | E27: =IF($B$2="Fort William", SUMIFS('JP SC Raw Data'!$H:$H,'JP SC Raw Data'!$C:$C,"Q1",'JP SC Raw Data'!$F:$F,"S",'JP SC Raw Data'!$B:$B,"2018/19",'JP SC Raw Data'!$E:$E,$B$2), IF(IFERROR(FIND(" ",$B$2),"")="",SUMIFS('JP SC Raw Data'!$H:$H,'JP SC Raw Data'!$C:$C,"Q1",'JP SC Raw Data'!$F:$F,"S",'JP SC Raw Data'!$B:$B,"2018/19",'JP SC Raw Data'!$E:$E,$B$2),SUMIFS('JP SC Raw Data'!$H:$H,'JP SC Raw Data'!$C:$C,"Q1",'JP SC Raw Data'!$F:$F,"S",'JP SC Raw Data'!$B:$B,"2018/19",'JP SC Raw Data'!$A:$A,$B$2))) -> 1309 | F27: =IF($B$2="Fort William", SUMIFS('JP SC Raw Data'!$I:$I,'JP SC Raw Data'!$C:$C,"Q1",'JP SC Raw Data'!$F:$F,"S",'JP SC Raw Data'!$B:$B,"2018/19",'JP SC Raw Data'!$E:$E,$B$2), IF(IFERROR(FIND(" ",$B$2),"")="",SUMIFS('JP SC Raw Data'!$I:$I,'JP SC Raw Data'!$C:$C,"Q1",'JP SC Raw Data'!$F:$F,"S",'JP SC Raw Data'!$B:$B,"2018/19",'JP SC Raw Data'!$E:$E,$B$2),SUMIFS('JP SC Raw Data'!$I:$I,'JP SC Raw Data'!$C:$C,"Q1",'JP SC Raw Data'!$F:$F,"S",'JP SC Raw Data'!$B:$B,"2018/19",'JP SC Raw Data'!$A:$A,$B$2))) -> 1153 | G27: =IF($B$2="Fort William", SUMIFS('JP SC Raw Data'!$J:$J,'JP SC Raw Data'!$C:$C,"Q1",'JP SC Raw Data'!$F:$F,"S",'JP SC Raw Data'!$B:$B,"2018/19",'JP SC Raw Data'!$E:$E,$B$2), IF(IFERROR(FIND(" ",$B$2),"")="",SUMIFS('JP SC Raw Data'!$J:$J,'JP SC Raw Data'!$C:$C,"Q1",'JP SC Raw Data'!$F:$F,"S",'JP SC Raw Data'!$B:$B,"2018/19",'JP SC Raw Data'!$E:$E,$B$2),SUMIFS('JP SC Raw Data'!$J:$J,'JP SC Raw Data'!$C:$C,"Q1",'JP SC Raw Data'!$F:$F,"S",'JP SC Raw Data'!$B:$B,"2018/19",'JP SC Raw Data'!$A:$A,$B$2))) -> 676 | H27: =IF($B$2="Fort William", SUMIFS('JP SC Raw Data'!$K:$K,'JP SC Raw Data'!$C:$C,"Q1",'JP SC Raw Data'!$F:$F,"S",'JP SC Raw Data'!$B:$B,"2018/19",'JP SC Raw Data'!$E:$E,$B$2), IF(IFERROR(FIND(" ",$B$2),"")="",SUMIFS('JP SC Raw Data'!$K:$K,'JP SC Raw Data'!$C:$C,"Q1",'JP SC Raw Data'!$F:$F,"S",'JP SC Raw Data'!$B:$B,"2018/19",'JP SC Raw Data'!$E:$E,$B$2),SUMIFS('JP SC Raw Data'!$K:$K,'JP SC Raw Data'!$C:$C,"Q1",'JP SC Raw Data'!$F:$F,"S",'JP SC Raw Data'!$B:$B,"2018/19",'JP SC Raw Data'!$A:$A,$B$2))) -> 272 | I27: =IF($B$2="Fort William", SUMIFS('JP SC Raw Data'!$L:$L,'JP SC Raw Data'!$C:$C,"Q1",'JP SC Raw Data'!$F:$F,"S",'JP SC Raw Data'!$B:$B,"2018/19",'JP SC Raw Data'!$E:$E,$B$2), IF(IFERROR(FIND(" ",$B$2),"")="",SUMIFS('JP SC Raw Data'!$L:$L,'JP SC Raw Data'!$C:$C,"Q1",'JP SC Raw Data'!$F:$F,"S",'JP SC Raw Data'!$B:$B,"2018/19",'JP SC Raw Data'!$E:$E,$B$2),SUMIFS('JP SC Raw Data'!$L:$L,'JP SC Raw Data'!$C:$C,"Q1",'JP SC Raw Data'!$F:$F,"S",'JP SC Raw Data'!$B:$B,"2018/19",'JP SC Raw Data'!$A:$A,$B$2))) -> 664 | J27: =IF($B$2="Fort William", SUMIFS('JP SC Raw Data'!$M:$M,'JP SC Raw Data'!$C:$C,"Q1",'JP SC Raw Data'!$F:$F,"S",'JP SC Raw Data'!$B:$B,"2018/19",'JP SC Raw Data'!$E:$E,$B$2), IF(IFERROR(FIND(" ",$B$2),"")="",SUMIFS('JP SC Raw Data'!$M:$M,'JP SC Raw Data'!$C:$C,"Q1",'JP SC Raw Data'!$F:$F,"S",'JP SC Raw Data'!$B:$B,"2018/19",'JP SC Raw Data'!$E:$E,$B$2),SUMIFS('JP SC Raw Data'!$M:$M,'JP SC Raw Data'!$C:$C,"Q1",'JP SC Raw Data'!$F:$F,"S",'JP SC Raw Data'!$B:$B,"2018/19",'JP SC Raw Data'!$A:$A,$B$2))) -> 273 | K27: =IF($B$2="Fort William", SUMIFS('JP SC Raw Data'!$N:$N,'JP SC Raw Data'!$C:$C,"Q1",'JP SC Raw Data'!$F:$F,"S",'JP SC Raw Data'!$B:$B,"2018/19",'JP SC Raw Data'!$E:$E,$B$2), IF(IFERROR(FIND(" ",$B$2),"")="",SUMIFS('JP SC Raw Data'!$N:$N,'JP SC Raw Data'!$C:$C,"Q1",'JP SC Raw Data'!$F:$F,"S",'JP SC Raw Data'!$B:$B,"2018/19",'JP SC Raw Data'!$E:$E,$B$2),SUMIFS('JP SC Raw Data'!$N:$N,'JP SC Raw Data'!$C:$C,"Q1",'JP SC Raw Data'!$F:$F,"S",'JP SC Raw Data'!$B:$B,"2018/19",'JP SC Raw Data'!$A:$A,$B$2))) -> 19 | L27: 0.02861445783 | M27: =IF($B$2="Fort William", SUMIFS('JP SC Raw Data'!$O:$O,'JP SC Raw Data'!$C:$C,"Q1",'JP SC Raw Data'!$F:$F,"S",'JP SC Raw Data'!$B:$B,"2018/19",'JP SC Raw Data'!$E:$E,$B$2), IF(IFERROR(FIND(" ",$B$2),"")="",SUMIFS('JP SC Raw Data'!$O:$O,'JP SC Raw Data'!$C:$C,"Q1",'JP SC Raw Data'!$F:$F,"S",'JP SC Raw Data'!$B:$B,"2018/19",'JP SC Raw Data'!$E:$E,$B$2),SUMIFS('JP SC Raw Data'!$O:$O,'JP SC Raw Data'!$C:$C,"Q1",'JP SC Raw Data'!$F:$F,"S",'JP SC Raw Data'!$B:$B,"2018/19",'JP SC Raw Data'!$A:$A,$B$2))) -> 384 | N27: =IF($B$2="Fort William", SUMIFS('JP SC Raw Data'!$P:$P,'JP SC Raw Data'!$C:$C,"Q1",'JP SC Raw Data'!$F:$F,"S",'JP SC Raw Data'!$B:$B,"2018/19",'JP SC Raw Data'!$E:$E,$B$2), IF(IFERROR(FIND(" ",$B$2),"")="",SUMIFS('JP SC Raw Data'!$P:$P,'JP SC Raw Data'!$C:$C,"Q1",'JP SC Raw Data'!$F:$F,"S",'JP SC Raw Data'!$B:$B,"2018/19",'JP SC Raw Data'!$E:$E,$B$2),SUMIFS('JP SC Raw Data'!$P:$P,'JP SC Raw Data'!$C:$C,"Q1",'JP SC Raw Data'!$F:$F,"S",'JP SC Raw Data'!$B:$B,"2018/19",'JP SC Raw Data'!$A:$A,$B$2))) -> 1180
C28: Quarter 2 | D28: =IF($B$2="Fort william", SUMIFS('JP SC Raw Data'!$G:$G,'JP SC Raw Data'!$C:$C,"Q2",'JP SC Raw Data'!$F:$F,"S",'JP SC Raw Data'!$B:$B,"2018/19",'JP SC Raw Data'!$E:$E,$B$2), IF(IFERROR(FIND(" ",$B$2),"")="",SUMIFS('JP SC Raw Data'!$G:$G,'JP SC Raw Data'!$C:$C,"Q2",'JP SC Raw Data'!$F:$F,"S",'JP SC Raw Data'!$B:$B,"2018/19",'JP SC Raw Data'!$E:$E,$B$2),SUMIFS('JP SC Raw Data'!$G:$G,'JP SC Raw Data'!$C:$C,"Q2",'JP SC Raw Data'!$F:$F,"S",'JP SC Raw Data'!$B:$B,"2018/19",'JP SC Raw Data'!$A:$A,$B$2))) -> 2144 | E28: =IF($B$2="Fort William", SUMIFS('JP SC Raw Data'!$H:$H,'JP SC Raw Data'!$C:$C,"Q2",'JP SC Raw Data'!$F:$F,"S",'JP SC Raw Data'!$B:$B,"2018/19",'JP SC Raw Data'!$E:$E,$B$2), IF(IFERROR(FIND(" ",$B$2),"")="",SUMIFS('JP SC Raw Data'!$H:$H,'JP SC Raw Data'!$C:$C,"Q2",'JP SC Raw Data'!$F:$F,"S",'JP SC Raw Data'!$B:$B,"2018/19",'JP SC Raw Data'!$E:$E,$B$2),SUMIFS('JP SC Raw Data'!$H:$H,'JP SC Raw Data'!$C:$C,"Q2",'JP SC Raw Data'!$F:$F,"S",'JP SC Raw Data'!$B:$B,"2018/19",'JP SC Raw Data'!$A:$A,$B$2))) -> 1264 | F28: =IF($B$2="Fort William", SUMIFS('JP SC Raw Data'!$I:$I,'JP SC Raw Data'!$C:$C,"Q2",'JP SC Raw Data'!$F:$F,"S",'JP SC Raw Data'!$B:$B,"2018/19",'JP SC Raw Data'!$E:$E,$B$2), IF(IFERROR(FIND(" ",$B$2),"")="",SUMIFS('JP SC Raw Data'!$I:$I,'JP SC Raw Data'!$C:$C,"Q2",'JP SC Raw Data'!$F:$F,"S",'JP SC Raw Data'!$B:$B,"2018/19",'JP SC Raw Data'!$E:$E,$B$2),SUMIFS('JP SC Raw Data'!$I:$I,'JP SC Raw Data'!$C:$C,"Q2",'JP SC Raw Data'!$F:$F,"S",'JP SC Raw Data'!$B:$B,"2018/19",'JP SC Raw Data'!$A:$A,$B$2))) -> 1162 | G28: =IF($B$2="Fort William", SUMIFS('JP SC Raw Data'!$J:$J,'JP SC Raw Data'!$C:$C,"Q2",'JP SC Raw Data'!$F:$F,"S",'JP SC Raw Data'!$B:$B,"2018/19",'JP SC Raw Data'!$E:$E,$B$2), IF(IFERROR(FIND(" ",$B$2),"")="",SUMIFS('JP SC Raw Data'!$J:$J,'JP SC Raw Data'!$C:$C,"Q2",'JP SC Raw Data'!$F:$F,"S",'JP SC Raw Data'!$B:$B,"2018/19",'JP SC Raw Data'!$E:$E,$B$2),SUMIFS('JP SC Raw Data'!$J:$J,'JP SC Raw Data'!$C:$C,"Q2",'JP SC Raw Data'!$F:$F,"S",'JP SC Raw Data'!$B:$B,"2018/19",'JP SC Raw Data'!$A:$A,$B$2))) -> 655 | H28: =IF($B$2="Fort William", SUMIFS('JP SC Raw Data'!$K:$K,'JP SC Raw Data'!$C:$C,"Q2",'JP SC Raw Data'!$F:$F,"S",'JP SC Raw Data'!$B:$B,"2018/19",'JP SC Raw Data'!$E:$E,$B$2), IF(IFERROR(FIND(" ",$B$2),"")="",SUMIFS('JP SC Raw Data'!$K:$K,'JP SC Raw Data'!$C:$C,"Q2",'JP SC Raw Data'!$F:$F,"S",'JP SC Raw Data'!$B:$B,"2018/19",'JP SC Raw Data'!$E:$E,$B$2),SUMIFS('JP SC Raw Data'!$K:$K,'JP SC Raw Data'!$C:$C,"Q2",'JP SC Raw Data'!$F:$F,"S",'JP SC Raw Data'!$B:$B,"2018/19",'JP SC Raw Data'!$A:$A,$B$2))) -> 268 | I28: =IF($B$2="Fort William", SUMIFS('JP SC Raw Data'!$L:$L,'JP SC Raw Data'!$C:$C,"Q2",'JP SC Raw Data'!$F:$F,"S",'JP SC Raw Data'!$B:$B,"2018/19",'JP SC Raw Data'!$E:$E,$B$2), IF(IFERROR(FIND(" ",$B$2),"")="",SUMIFS('JP SC Raw Data'!$L:$L,'JP SC Raw Data'!$C:$C,"Q2",'JP SC Raw Data'!$F:$F,"S",'JP SC Raw Data'!$B:$B,"2018/19",'JP SC Raw Data'!$E:$E,$B$2),SUMIFS('JP SC Raw Data'!$L:$L,'JP SC Raw Data'!$C:$C,"Q2",'JP SC Raw Data'!$F:$F,"S",'JP SC Raw Data'!$B:$B,"2018/19",'JP SC Raw Data'!$A:$A,$B$2))) -> 701 | J28: =IF($B$2="Fort William", SUMIFS('JP SC Raw Data'!$M:$M,'JP SC Raw Data'!$C:$C,"Q2",'JP SC Raw Data'!$F:$F,"S",'JP SC Raw Data'!$B:$B,"2018/19",'JP SC Raw Data'!$E:$E,$B$2), IF(IFERROR(FIND(" ",$B$2),"")="",SUMIFS('JP SC Raw Data'!$M:$M,'JP SC Raw Data'!$C:$C,"Q2",'JP SC Raw Data'!$F:$F,"S",'JP SC Raw Data'!$B:$B,"2018/19",'JP SC Raw Data'!$E:$E,$B$2),SUMIFS('JP SC Raw Data'!$M:$M,'JP SC Raw Data'!$C:$C,"Q2",'JP SC Raw Data'!$F:$F,"S",'JP SC Raw Data'!$B:$B,"2018/19",'JP SC Raw Data'!$A:$A,$B$2))) -> 284 | K28: =IF($B$2="Fort William", SUMIFS('JP SC Raw Data'!$N:$N,'JP SC Raw Data'!$C:$C,"Q2",'JP SC Raw Data'!$F:$F,"S",'JP SC Raw Data'!$B:$B,"2018/19",'JP SC Raw Data'!$E:$E,$B$2), IF(IFERROR(FIND(" ",$B$2),"")="",SUMIFS('JP SC Raw Data'!$N:$N,'JP SC Raw Data'!$C:$C,"Q2",'JP SC Raw Data'!$F:$F,"S",'JP SC Raw Data'!$B:$B,"2018/19",'JP SC Raw Data'!$E:$E,$B$2),SUMIFS('JP SC Raw Data'!$N:$N,'JP SC Raw Data'!$C:$C,"Q2",'JP SC Raw Data'!$F:$F,"S",'JP SC Raw Data'!$B:$B,"2018/19",'JP SC Raw Data'!$A:$A,$B$2))) -> 18 | L28: 0.02567760342 | M28: =IF($B$2="Fort William", SUMIFS('JP SC Raw Data'!$O:$O,'JP SC Raw Data'!$C:$C,"Q2",'JP SC Raw Data'!$F:$F,"S",'JP SC Raw Data'!$B:$B,"2018/19",'JP SC Raw Data'!$E:$E,$B$2), IF(IFERROR(FIND(" ",$B$2),"")="",SUMIFS('JP SC Raw Data'!$O:$O,'JP SC Raw Data'!$C:$C,"Q2",'JP SC Raw Data'!$F:$F,"S",'JP SC Raw Data'!$B:$B,"2018/19",'JP SC Raw Data'!$E:$E,$B$2),SUMIFS('JP SC Raw Data'!$O:$O,'JP SC Raw Data'!$C:$C,"Q2",'JP SC Raw Data'!$F:$F,"S",'JP SC Raw Data'!$B:$B,"2018/19",'JP SC Raw Data'!$A:$A,$B$2))) -> 427 | N28: =IF($B$2="Fort William", SUMIFS('JP SC Raw Data'!$P:$P,'JP SC Raw Data'!$C:$C,"Q2",'JP SC Raw Data'!$F:$F,"S",'JP SC Raw Data'!$B:$B,"2018/19",'JP SC Raw Data'!$E:$E,$B$2), IF(IFERROR(FIND(" ",$B$2),"")="",SUMIFS('JP SC Raw Data'!$P:$P,'JP SC Raw Data'!$C:$C,"Q2",'JP SC Raw Data'!$F:$F,"S",'JP SC Raw Data'!$B:$B,"2018/19",'JP SC Raw Data'!$E:$E,$B$2),SUMIFS('JP SC Raw Data'!$P:$P,'JP SC Raw Data'!$C:$C,"Q2",'JP SC Raw Data'!$F:$F,"S",'JP SC Raw Data'!$B:$B,"2018/19",'JP SC Raw Data'!$A:$A,$B$2))) -> 1177
C29: Quarter 3 | D29: =IF($B$2="Fort william", SUMIFS('JP SC Raw Data'!$G:$G,'JP SC Raw Data'!$C:$C,"Q3",'JP SC Raw Data'!$F:$F,"S",'JP SC Raw Data'!$B:$B,"2018/19",'JP SC Raw Data'!$E:$E,$B$2), IF(IFERROR(FIND(" ",$B$2),"")="",SUMIFS('JP SC Raw Data'!$G:$G,'JP SC Raw Data'!$C:$C,"Q3",'JP SC Raw Data'!$F:$F,"S",'JP SC Raw Data'!$B:$B,"2018/19",'JP SC Raw Data'!$E:$E,$B$2),SUMIFS('JP SC Raw Data'!$G:$G,'JP SC Raw Data'!$C:$C,"Q3",'JP SC Raw Data'!$F:$F,"S",'JP SC Raw Data'!$B:$B,"2018/19",'JP SC Raw Data'!$A:$A,$B$2))) -> 2307 | E29: =IF($B$2="Fort William", SUMIFS('JP SC Raw Data'!$H:$H,'JP SC Raw Data'!$C:$C,"Q3",'JP SC Raw Data'!$F:$F,"S",'JP SC Raw Data'!$B:$B,"2018/19",'JP SC Raw Data'!$E:$E,$B$2), IF(IFERROR(FIND(" ",$B$2),"")="",SUMIFS('JP SC Raw Data'!$H:$H,'JP SC Raw Data'!$C:$C,"Q3",'JP SC Raw Data'!$F:$F,"S",'JP SC Raw Data'!$B:$B,"2018/19",'JP SC Raw Data'!$E:$E,$B$2),SUMIFS('JP SC Raw Data'!$H:$H,'JP SC Raw Data'!$C:$C,"Q3",'JP SC Raw Data'!$F:$F,"S",'JP SC Raw Data'!$B:$B,"2018/19",'JP SC Raw Data'!$A:$A,$B$2))) -> 1276 | F29: =IF($B$2="Fort William", SUMIFS('JP SC Raw Data'!$I:$I,'JP SC Raw Data'!$C:$C,"Q3",'JP SC Raw Data'!$F:$F,"S",'JP SC Raw Data'!$B:$B,"2018/19",'JP SC Raw Data'!$E:$E,$B$2), IF(IFERROR(FIND(" ",$B$2),"")="",SUMIFS('JP SC Raw Data'!$I:$I,'JP SC Raw Data'!$C:$C,"Q3",'JP SC Raw Data'!$F:$F,"S",'JP SC Raw Data'!$B:$B,"2018/19",'JP SC Raw Data'!$E:$E,$B$2),SUMIFS('JP SC Raw Data'!$I:$I,'JP SC Raw Data'!$C:$C,"Q3",'JP SC Raw Data'!$F:$F,"S",'JP SC Raw Data'!$B:$B,"2018/19",'JP SC Raw Data'!$A:$A,$B$2))) -> 1074 | G29: =IF($B$2="Fort William", SUMIFS('JP SC Raw Data'!$J:$J,'JP SC Raw Data'!$C:$C,"Q3",'JP SC Raw Data'!$F:$F,"S",'JP SC Raw Data'!$B:$B,"2018/19",'JP SC Raw Data'!$E:$E,$B$2), IF(IFERROR(FIND(" ",$B$2),"")="",SUMIFS('JP SC Raw Data'!$J:$J,'JP SC Raw Data'!$C:$C,"Q3",'JP SC Raw Data'!$F:$F,"S",'JP SC Raw Data'!$B:$B,"2018/19",'JP SC Raw Data'!$E:$E,$B$2),SUMIFS('JP SC Raw Data'!$J:$J,'JP SC Raw Data'!$C:$C,"Q3",'JP SC Raw Data'!$F:$F,"S",'JP SC Raw Data'!$B:$B,"2018/19",'JP SC Raw Data'!$A:$A,$B$2))) -> 609 | H29: =IF($B$2="Fort William", SUMIFS('JP SC Raw Data'!$K:$K,'JP SC Raw Data'!$C:$C,"Q3",'JP SC Raw Data'!$F:$F,"S",'JP SC Raw Data'!$B:$B,"2018/19",'JP SC Raw Data'!$E:$E,$B$2), IF(IFERROR(FIND(" ",$B$2),"")="",SUMIFS('JP SC Raw Data'!$K:$K,'JP SC Raw Data'!$C:$C,"Q3",'JP SC Raw Data'!$F:$F,"S",'JP SC Raw Data'!$B:$B,"2018/19",'JP SC Raw Data'!$E:$E,$B$2),SUMIFS('JP SC Raw Data'!$K:$K,'JP SC Raw Data'!$C:$C,"Q3",'JP SC Raw Data'!$F:$F,"S",'JP SC Raw Data'!$B:$B,"2018/19",'JP SC Raw Data'!$A:$A,$B$2))) -> 288 | I29: =IF($B$2="Fort William", SUMIFS('JP SC Raw Data'!$L:$L,'JP SC Raw Data'!$C:$C,"Q3",'JP SC Raw Data'!$F:$F,"S",'JP SC Raw Data'!$B:$B,"2018/19",'JP SC Raw Data'!$E:$E,$B$2), IF(IFERROR(FIND(" ",$B$2),"")="",SUMIFS('JP SC Raw Data'!$L:$L,'JP SC Raw Data'!$C:$C,"Q3",'JP SC Raw Data'!$F:$F,"S",'JP SC Raw Data'!$B:$B,"2018/19",'JP SC Raw Data'!$E:$E,$B$2),SUMIFS('JP SC Raw Data'!$L:$L,'JP SC Raw Data'!$C:$C,"Q3",'JP SC Raw Data'!$F:$F,"S",'JP SC Raw Data'!$B:$B,"2018/19",'JP SC Raw Data'!$A:$A,$B$2))) -> 721 | J29: =IF($B$2="Fort William", SUMIFS('JP SC Raw Data'!$M:$M,'JP SC Raw Data'!$C:$C,"Q3",'JP SC Raw Data'!$F:$F,"S",'JP SC Raw Data'!$B:$B,"2018/19",'JP SC Raw Data'!$E:$E,$B$2), IF(IFERROR(FIND(" ",$B$2),"")="",SUMIFS('JP SC Raw Data'!$M:$M,'JP SC Raw Data'!$C:$C,"Q3",'JP SC Raw Data'!$F:$F,"S",'JP SC Raw Data'!$B:$B,"2018/19",'JP SC Raw Data'!$E:$E,$B$2),SUMIFS('JP SC Raw Data'!$M:$M,'JP SC Raw Data'!$C:$C,"Q3",'JP SC Raw Data'!$F:$F,"S",'JP SC Raw Data'!$B:$B,"2018/19",'JP SC Raw Data'!$A:$A,$B$2))) -> 275 | K29: =IF($B$2="Fort William", SUMIFS('JP SC Raw Data'!$N:$N,'JP SC Raw Data'!$C:$C,"Q3",'JP SC Raw Data'!$F:$F,"S",'JP SC Raw Data'!$B:$B,"2018/19",'JP SC Raw Data'!$E:$E,$B$2), IF(IFERROR(FIND(" ",$B$2),"")="",SUMIFS('JP SC Raw Data'!$N:$N,'JP SC Raw Data'!$C:$C,"Q3",'JP SC Raw Data'!$F:$F,"S",'JP SC Raw Data'!$B:$B,"2018/19",'JP SC Raw Data'!$E:$E,$B$2),SUMIFS('JP SC Raw Data'!$N:$N,'JP SC Raw Data'!$C:$C,"Q3",'JP SC Raw Data'!$F:$F,"S",'JP SC Raw Data'!$B:$B,"2018/19",'JP SC Raw Data'!$A:$A,$B$2))) -> 11 | L29: 0.01525658807 | M29: =IF($B$2="Fort William", SUMIFS('JP SC Raw Data'!$O:$O,'JP SC Raw Data'!$C:$C,"Q3",'JP SC Raw Data'!$F:$F,"S",'JP SC Raw Data'!$B:$B,"2018/19",'JP SC Raw Data'!$E:$E,$B$2), IF(IFERROR(FIND(" ",$B$2),"")="",SUMIFS('JP SC Raw Data'!$O:$O,'JP SC Raw Data'!$C:$C,"Q3",'JP SC Raw Data'!$F:$F,"S",'JP SC Raw Data'!$B:$B,"2018/19",'JP SC Raw Data'!$E:$E,$B$2),SUMIFS('JP SC Raw Data'!$O:$O,'JP SC Raw Data'!$C:$C,"Q3",'JP SC Raw Data'!$F:$F,"S",'JP SC Raw Data'!$B:$B,"2018/19",'JP SC Raw Data'!$A:$A,$B$2))) -> 445 | N29: =IF($B$2="Fort William", SUMIFS('JP SC Raw Data'!$P:$P,'JP SC Raw Data'!$C:$C,"Q3",'JP SC Raw Data'!$F:$F,"S",'JP SC Raw Data'!$B:$B,"2018/19",'JP SC Raw Data'!$E:$E,$B$2), IF(IFERROR(FIND(" ",$B$2),"")="",SUMIFS('JP SC Raw Data'!$P:$P,'JP SC Raw Data'!$C:$C,"Q3",'JP SC Raw Data'!$F:$F,"S",'JP SC Raw Data'!$B:$B,"2018/19",'JP SC Raw Data'!$E:$E,$B$2),SUMIFS('JP SC Raw Data'!$P:$P,'JP SC Raw Data'!$C:$C,"Q3",'JP SC Raw Data'!$F:$F,"S",'JP SC Raw Data'!$B:$B,"2018/19",'JP SC Raw Data'!$A:$A,$B$2))) -> 1277
C30: Quarter 4 | D30: =IF($B$2="Fort william", SUMIFS('JP SC Raw Data'!$G:$G,'JP SC Raw Data'!$C:$C,"Q4",'JP SC Raw Data'!$F:$F,"S",'JP SC Raw Data'!$B:$B,"2018/19",'JP SC Raw Data'!$E:$E,$B$2), IF(IFERROR(FIND(" ",$B$2),"")="",SUMIFS('JP SC Raw Data'!$G:$G,'JP SC Raw Data'!$C:$C,"Q4",'JP SC Raw Data'!$F:$F,"S",'JP SC Raw Data'!$B:$B,"2018/19",'JP SC Raw Data'!$E:$E,$B$2),SUMIFS('JP SC Raw Data'!$G:$G,'JP SC Raw Data'!$C:$C,"Q4",'JP SC Raw Data'!$F:$F,"S",'JP SC Raw Data'!$B:$B,"2018/19",'JP SC Raw Data'!$A:$A,$B$2))) -> 2430 | E30: =IF($B$2="Fort William", SUMIFS('JP SC Raw Data'!$H:$H,'JP SC Raw Data'!$C:$C,"Q4",'JP SC Raw Data'!$F:$F,"S",'JP SC Raw Data'!$B:$B,"2018/19",'JP SC Raw Data'!$E:$E,$B$2), IF(IFERROR(FIND(" ",$B$2),"")="",SUMIFS('JP SC Raw Data'!$H:$H,'JP SC Raw Data'!$C:$C,"Q4",'JP SC Raw Data'!$F:$F,"S",'JP SC Raw Data'!$B:$B,"2018/19",'JP SC Raw Data'!$E:$E,$B$2),SUMIFS('JP SC Raw Data'!$H:$H,'JP SC Raw Data'!$C:$C,"Q4",'JP SC Raw Data'!$F:$F,"S",'JP SC Raw Data'!$B:$B,"2018/19",'JP SC Raw Data'!$A:$A,$B$2))) -> 1333 | F30: =IF($B$2="Fort William", SUMIFS('JP SC Raw Data'!$I:$I,'JP SC Raw Data'!$C:$C,"Q4",'JP SC Raw Data'!$F:$F,"S",'JP SC Raw Data'!$B:$B,"2018/19",'JP SC Raw Data'!$E:$E,$B$2), IF(IFERROR(FIND(" ",$B$2),"")="",SUMIFS('JP SC Raw Data'!$I:$I,'JP SC Raw Data'!$C:$C,"Q4",'JP SC Raw Data'!$F:$F,"S",'JP SC Raw Data'!$B:$B,"2018/19",'JP SC Raw Data'!$E:$E,$B$2),SUMIFS('JP SC Raw Data'!$I:$I,'JP SC Raw Data'!$C:$C,"Q4",'JP SC Raw Data'!$F:$F,"S",'JP SC Raw Data'!$B:$B,"2018/19",'JP SC Raw Data'!$A:$A,$B$2))) -> 1176 | G30: =IF($B$2="Fort William", SUMIFS('JP SC Raw Data'!$J:$J,'JP SC Raw Data'!$C:$C,"Q4",'JP SC Raw Data'!$F:$F,"S",'JP SC Raw Data'!$B:$B,"2018/19",'JP SC Raw Data'!$E:$E,$B$2), IF(IFERROR(FIND(" ",$B$2),"")="",SUMIFS('JP SC Raw Data'!$J:$J,'JP SC Raw Data'!$C:$C,"Q4",'JP SC Raw Data'!$F:$F,"S",'JP SC Raw Data'!$B:$B,"2018/19",'JP SC Raw Data'!$E:$E,$B$2),SUMIFS('JP SC Raw Data'!$J:$J,'JP SC Raw Data'!$C:$C,"Q4",'JP SC Raw Data'!$F:$F,"S",'JP SC Raw Data'!$B:$B,"2018/19",'JP SC Raw Data'!$A:$A,$B$2))) -> 682 | H30: =IF($B$2="Fort William", SUMIFS('JP SC Raw Data'!$K:$K,'JP SC Raw Data'!$C:$C,"Q4",'JP SC Raw Data'!$F:$F,"S",'JP SC Raw Data'!$B:$B,"2018/19",'JP SC Raw Data'!$E:$E,$B$2), IF(IFERROR(FIND(" ",$B$2),"")="",SUMIFS('JP SC Raw Data'!$K:$K,'JP SC Raw Data'!$C:$C,"Q4",'JP SC Raw Data'!$F:$F,"S",'JP SC Raw Data'!$B:$B,"2018/19",'JP SC Raw Data'!$E:$E,$B$2),SUMIFS('JP SC Raw Data'!$K:$K,'JP SC Raw Data'!$C:$C,"Q4",'JP SC Raw Data'!$F:$F,"S",'JP SC Raw Data'!$B:$B,"2018/19",'JP SC Raw Data'!$A:$A,$B$2))) -> 291 | I30: =IF($B$2="Fort William", SUMIFS('JP SC Raw Data'!$L:$L,'JP SC Raw Data'!$C:$C,"Q4",'JP SC Raw Data'!$F:$F,"S",'JP SC Raw Data'!$B:$B,"2018/19",'JP SC Raw Data'!$E:$E,$B$2), IF(IFERROR(FIND(" ",$B$2),"")="",SUMIFS('JP SC Raw Data'!$L:$L,'JP SC Raw Data'!$C:$C,"Q4",'JP SC Raw Data'!$F:$F,"S",'JP SC Raw Data'!$B:$B,"2018/19",'JP SC Raw Data'!$E:$E,$B$2),SUMIFS('JP SC Raw Data'!$L:$L,'JP SC Raw Data'!$C:$C,"Q4",'JP SC Raw Data'!$F:$F,"S",'JP SC Raw Data'!$B:$B,"2018/19",'JP SC Raw Data'!$A:$A,$B$2))) -> 762 | J30: =IF($B$2="Fort William", SUMIFS('JP SC Raw Data'!$M:$M,'JP SC Raw Data'!$C:$C,"Q4",'JP SC Raw Data'!$F:$F,"S",'JP SC Raw Data'!$B:$B,"2018/19",'JP SC Raw Data'!$E:$E,$B$2), IF(IFERROR(FIND(" ",$B$2),"")="",SUMIFS('JP SC Raw Data'!$M:$M,'JP SC Raw Data'!$C:$C,"Q4",'JP SC Raw Data'!$F:$F,"S",'JP SC Raw Data'!$B:$B,"2018/19",'JP SC Raw Data'!$E:$E,$B$2),SUMIFS('JP SC Raw Data'!$M:$M,'JP SC Raw Data'!$C:$C,"Q4",'JP SC Raw Data'!$F:$F,"S",'JP SC Raw Data'!$B:$B,"2018/19",'JP SC Raw Data'!$A:$A,$B$2))) -> 287 | K30: =IF($B$2="Fort William", SUMIFS('JP SC Raw Data'!$N:$N,'JP SC Raw Data'!$C:$C,"Q4",'JP SC Raw Data'!$F:$F,"S",'JP SC Raw Data'!$B:$B,"2018/19",'JP SC Raw Data'!$E:$E,$B$2), IF(IFERROR(FIND(" ",$B$2),"")="",SUMIFS('JP SC Raw Data'!$N:$N,'JP SC Raw Data'!$C:$C,"Q4",'JP SC Raw Data'!$F:$F,"S",'JP SC Raw Data'!$B:$B,"2018/19",'JP SC Raw Data'!$E:$E,$B$2),SUMIFS('JP SC Raw Data'!$N:$N,'JP SC Raw Data'!$C:$C,"Q4",'JP SC Raw Data'!$F:$F,"S",'JP SC Raw Data'!$B:$B,"2018/19",'JP SC Raw Data'!$A:$A,$B$2))) -> 8 | L30: 0.01049868766 | M30: =IF($B$2="Fort William", SUMIFS('JP SC Raw Data'!$O:$O,'JP SC Raw Data'!$C:$C,"Q4",'JP SC Raw Data'!$F:$F,"S",'JP SC Raw Data'!$B:$B,"2018/19",'JP SC Raw Data'!$E:$E,$B$2), IF(IFERROR(FIND(" ",$B$2),"")="",SUMIFS('JP SC Raw Data'!$O:$O,'JP SC Raw Data'!$C:$C,"Q4",'JP SC Raw Data'!$F:$F,"S",'JP SC Raw Data'!$B:$B,"2018/19",'JP SC Raw Data'!$E:$E,$B$2),SUMIFS('JP SC Raw Data'!$O:$O,'JP SC Raw Data'!$C:$C,"Q4",'JP SC Raw Data'!$F:$F,"S",'JP SC Raw Data'!$B:$B,"2018/19",'JP SC Raw Data'!$A:$A,$B$2))) -> 496 | N30: =IF($B$2="Fort William", SUMIFS('JP SC Raw Data'!$P:$P,'JP SC Raw Data'!$C:$C,"Q4",'JP SC Raw Data'!$F:$F,"S",'JP SC Raw Data'!$B:$B,"2018/19",'JP SC Raw Data'!$E:$E,$B$2), IF(IFERROR(FIND(" ",$B$2),"")="",SUMIFS('JP SC Raw Data'!$P:$P,'JP SC Raw Data'!$C:$C,"Q4",'JP SC Raw Data'!$F:$F,"S",'JP SC Raw Data'!$B:$B,"2018/19",'JP SC Raw Data'!$E:$E,$B$2),SUMIFS('JP SC Raw Data'!$P:$P,'JP SC Raw Data'!$C:$C,"Q4",'JP SC Raw Data'!$F:$F,"S",'JP SC Raw Data'!$B:$B,"2018/19",'JP SC Raw Data'!$A:$A,$B$2))) -> 1165
C31: Full Year | D31: =SUM(D27:D30) -> 9160 | E31: 5182 | F31: 4565 | G31: 2622 | H31: 1119 | I31: 2848 | J31: 1119 | K31: 56 | L31: 0.01966292135 | M31: =M30 -> 496 | N31: =SUM(N27:N30) -> 4799
B32: 2019/20 | C32: Quarter 1 | D32: =IF($B$2="Fort william", SUMIFS('JP SC Raw Data'!$G:$G,'JP SC Raw Data'!$C:$C,"Q1",'JP SC Raw Data'!$F:$F,"S",'JP SC Raw Data'!$B:$B,"2019/20",'JP SC Raw Data'!$E:$E,$B$2), IF(IFERROR(FIND(" ",$B$2),"")="",SUMIFS('JP SC Raw Data'!$G:$G,'JP SC Raw Data'!$C:$C,"Q1",'JP SC Raw Data'!$F:$F,"S",'JP SC Raw Data'!$B:$B,"2019/20",'JP SC Raw Data'!$E:$E,$B$2),SUMIFS('JP SC Raw Data'!$G:$G,'JP SC Raw Data'!$C:$C,"Q1",'JP SC Raw Data'!$F:$F,"S",'JP SC Raw Data'!$B:$B,"2019/20",'JP SC Raw Data'!$A:$A,$B$2))) -> 2502 | E32: =IF($B$2="Fort William", SUMIFS('JP SC Raw Data'!$H:$H,'JP SC Raw Data'!$C:$C,"Q1",'JP SC Raw Data'!$F:$F,"S",'JP SC Raw Data'!$B:$B,"2019/20",'JP SC Raw Data'!$E:$E,$B$2), IF(IFERROR(FIND(" ",$B$2),"")="",SUMIFS('JP SC Raw Data'!$H:$H,'JP SC Raw Data'!$C:$C,"Q1",'JP SC Raw Data'!$F:$F,"S",'JP SC Raw Data'!$B:$B,"2019/20",'JP SC Raw Data'!$E:$E,$B$2),SUMIFS('JP SC Raw Data'!$H:$H,'JP SC Raw Data'!$C:$C,"Q1",'JP SC Raw Data'!$F:$F,"S",'JP SC Raw Data'!$B:$B,"2019/20",'JP SC Raw Data'!$A:$A,$B$2))) -> 1385 | F32: =IF($B$2="Fort William", SUMIFS('JP SC Raw Data'!$I:$I,'JP SC Raw Data'!$C:$C,"Q1",'JP SC Raw Data'!$F:$F,"S",'JP SC Raw Data'!$B:$B,"2019/20",'JP SC Raw Data'!$E:$E,$B$2), IF(IFERROR(FIND(" ",$B$2),"")="",SUMIFS('JP SC Raw Data'!$I:$I,'JP SC Raw Data'!$C:$C,"Q1",'JP SC Raw Data'!$F:$F,"S",'JP SC Raw Data'!$B:$B,"2019/20",'JP SC Raw Data'!$E:$E,$B$2),SUMIFS('JP SC Raw Data'!$I:$I,'JP SC Raw Data'!$C:$C,"Q1",'JP SC Raw Data'!$F:$F,"S",'JP SC Raw Data'!$B:$B,"2019/20",'JP SC Raw Data'!$A:$A,$B$2))) -> 1241 | G32: =IF($B$2="Fort William", SUMIFS('JP SC Raw Data'!$J:$J,'JP SC Raw Data'!$C:$C,"Q1",'JP SC Raw Data'!$F:$F,"S",'JP SC Raw Data'!$B:$B,"2019/20",'JP SC Raw Data'!$E:$E,$B$2), IF(IFERROR(FIND(" ",$B$2),"")="",SUMIFS('JP SC Raw Data'!$J:$J,'JP SC Raw Data'!$C:$C,"Q1",'JP SC Raw Data'!$F:$F,"S",'JP SC Raw Data'!$B:$B,"2019/20",'JP SC Raw Data'!$E:$E,$B$2),SUMIFS('JP SC Raw Data'!$J:$J,'JP SC Raw Data'!$C:$C,"Q1",'JP SC Raw Data'!$F:$F,"S",'JP SC Raw Data'!$B:$B,"2019/20",'JP SC Raw Data'!$A:$A,$B$2))) -> 699 | H32: =IF($B$2="Fort William", SUMIFS('JP SC Raw Data'!$K:$K,'JP SC Raw Data'!$C:$C,"Q1",'JP SC Raw Data'!$F:$F,"S",'JP SC Raw Data'!$B:$B,"2019/20",'JP SC Raw Data'!$E:$E,$B$2), IF(IFERROR(FIND(" ",$B$2),"")="",SUMIFS('JP SC Raw Data'!$K:$K,'JP SC Raw Data'!$C:$C,"Q1",'JP SC Raw Data'!$F:$F,"S",'JP SC Raw Data'!$B:$B,"2019/20",'JP SC Raw Data'!$E:$E,$B$2),SUMIFS('JP SC Raw Data'!$K:$K,'JP SC Raw Data'!$C:$C,"Q1",'JP SC Raw Data'!$F:$F,"S",'JP SC Raw Data'!$B:$B,"2019/20",'JP SC Raw Data'!$A:$A,$B$2))) -> 246 | I32: =IF($B$2="Fort William", SUMIFS('JP SC Raw Data'!$L:$L,'JP SC Raw Data'!$C:$C,"Q1",'JP SC Raw Data'!$F:$F,"S",'JP SC Raw Data'!$B:$B,"2019/20",'JP SC Raw Data'!$E:$E,$B$2), IF(IFERROR(FIND(" ",$B$2),"")="",SUMIFS('JP SC Raw Data'!$L:$L,'JP SC Raw Data'!$C:$C,"Q1",'JP SC Raw Data'!$F:$F,"S",'JP SC Raw Data'!$B:$B,"2019/20",'JP SC Raw Data'!$E:$E,$B$2),SUMIFS('JP SC Raw Data'!$L:$L,'JP SC Raw Data'!$C:$C,"Q1",'JP SC Raw Data'!$F:$F,"S",'JP SC Raw Data'!$B:$B,"2019/20",'JP SC Raw Data'!$A:$A,$B$2))) -> 835 | J32: =IF($B$2="Fort William", SUMIFS('JP SC Raw Data'!$M:$M,'JP SC Raw Data'!$C:$C,"Q1",'JP SC Raw Data'!$F:$F,"S",'JP SC Raw Data'!$B:$B,"2019/20",'JP SC Raw Data'!$E:$E,$B$2), IF(IFERROR(FIND(" ",$B$2),"")="",SUMIFS('JP SC Raw Data'!$M:$M,'JP SC Raw Data'!$C:$C,"Q1",'JP SC Raw Data'!$F:$F,"S",'JP SC Raw Data'!$B:$B,"2019/20",'JP SC Raw Data'!$E:$E,$B$2),SUMIFS('JP SC Raw Data'!$M:$M,'JP SC Raw Data'!$C:$C,"Q1",'JP SC Raw Data'!$F:$F,"S",'JP SC Raw Data'!$B:$B,"2019/20",'JP SC Raw Data'!$A:$A,$B$2))) -> 299 | K32: =IF($B$2="Fort William", SUMIFS('JP SC Raw Data'!$N:$N,'JP SC Raw Data'!$C:$C,"Q1",'JP SC Raw Data'!$F:$F,"S",'JP SC Raw Data'!$B:$B,"2019/20",'JP SC Raw Data'!$E:$E,$B$2), IF(IFERROR(FIND(" ",$B$2),"")="",SUMIFS('JP SC Raw Data'!$N:$N,'JP SC Raw Data'!$C:$C,"Q1",'JP SC Raw Data'!$F:$F,"S",'JP SC Raw Data'!$B:$B,"2019/20",'JP SC Raw Data'!$E:$E,$B$2),SUMIFS('JP SC Raw Data'!$N:$N,'JP SC Raw Data'!$C:$C,"Q1",'JP SC Raw Data'!$F:$F,"S",'JP SC Raw Data'!$B:$B,"2019/20",'JP SC Raw Data'!$A:$A,$B$2))) -> 19 | L32: 0.02275449102 | M32: =IF($B$2="Fort William", SUMIFS('JP SC Raw Data'!$O:$O,'JP SC Raw Data'!$C:$C,"Q1",'JP SC Raw Data'!$F:$F,"S",'JP SC Raw Data'!$B:$B,"2019/20",'JP SC Raw Data'!$E:$E,$B$2), IF(IFERROR(FIND(" ",$B$2),"")="",SUMIFS('JP SC Raw Data'!$O:$O,'JP SC Raw Data'!$C:$C,"Q1",'JP SC Raw Data'!$F:$F,"S",'JP SC Raw Data'!$B:$B,"2019/20",'JP SC Raw Data'!$E:$E,$B$2),SUMIFS('JP SC Raw Data'!$O:$O,'JP SC Raw Data'!$C:$C,"Q1",'JP SC Raw Data'!$F:$F,"S",'JP SC Raw Data'!$B:$B,"2019/20",'JP SC Raw Data'!$A:$A,$B$2))) -> 449 | N32: =IF($B$2="Fort William", SUMIFS('JP SC Raw Data'!$P:$P,'JP SC Raw Data'!$C:$C,"Q1",'JP SC Raw Data'!$F:$F,"S",'JP SC Raw Data'!$B:$B,"2019/20",'JP SC Raw Data'!$E:$E,$B$2), IF(IFERROR(FIND(" ",$B$2),"")="",SUMIFS('JP SC Raw Data'!$P:$P,'JP SC Raw Data'!$C:$C,"Q1",'JP SC Raw Data'!$F:$F,"S",'JP SC Raw Data'!$B:$B,"2019/20",'JP SC Raw Data'!$E:$E,$B$2),SUMIFS('JP SC Raw Data'!$P:$P,'JP SC Raw Data'!$C:$C,"Q1",'JP SC Raw Data'!$F:$F,"S",'JP SC Raw Data'!$B:$B,"2019/20",'JP SC Raw Data'!$A:$A,$B$2))) -> 1499
C33: Quarter 2 | D33: =IF($B$2="Fort william", SUMIFS('JP SC Raw Data'!$G:$G,'JP SC Raw Data'!$C:$C,"Q2",'JP SC Raw Data'!$F:$F,"S",'JP SC Raw Data'!$B:$B,"2019/20",'JP SC Raw Data'!$E:$E,$B$2), IF(IFERROR(FIND(" ",$B$2),"")="",SUMIFS('JP SC Raw Data'!$G:$G,'JP SC Raw Data'!$C:$C,"Q2",'JP SC Raw Data'!$F:$F,"S",'JP SC Raw Data'!$B:$B,"2019/20",'JP SC Raw Data'!$E:$E,$B$2),SUMIFS('JP SC Raw Data'!$G:$G,'JP SC Raw Data'!$C:$C,"Q2",'JP SC Raw Data'!$F:$F,"S",'JP SC Raw Data'!$B:$B,"2019/20",'JP SC Raw Data'!$A:$A,$B$2))) -> 2506 | E33: =IF($B$2="Fort William", SUMIFS('JP SC Raw Data'!$H:$H,'JP SC Raw Data'!$C:$C,"Q2",'JP SC Raw Data'!$F:$F,"S",'JP SC Raw Data'!$B:$B,"2019/20",'JP SC Raw Data'!$E:$E,$B$2), IF(IFERROR(FIND(" ",$B$2),"")="",SUMIFS('JP SC Raw Data'!$H:$H,'JP SC Raw Data'!$C:$C,"Q2",'JP SC Raw Data'!$F:$F,"S",'JP SC Raw Data'!$B:$B,"2019/20",'JP SC Raw Data'!$E:$E,$B$2),SUMIFS('JP SC Raw Data'!$H:$H,'JP SC Raw Data'!$C:$C,"Q2",'JP SC Raw Data'!$F:$F,"S",'JP SC Raw Data'!$B:$B,"2019/20",'JP SC Raw Data'!$A:$A,$B$2))) -> 1327 | F33: =IF($B$2="Fort William", SUMIFS('JP SC Raw Data'!$I:$I,'JP SC Raw Data'!$C:$C,"Q2",'JP SC Raw Data'!$F:$F,"S",'JP SC Raw Data'!$B:$B,"2019/20",'JP SC Raw Data'!$E:$E,$B$2), IF(IFERROR(FIND(" ",$B$2),"")="",SUMIFS('JP SC Raw Data'!$I:$I,'JP SC Raw Data'!$C:$C,"Q2",'JP SC Raw Data'!$F:$F,"S",'JP SC Raw Data'!$B:$B,"2019/20",'JP SC Raw Data'!$E:$E,$B$2),SUMIFS('JP SC Raw Data'!$I:$I,'JP SC Raw Data'!$C:$C,"Q2",'JP SC Raw Data'!$F:$F,"S",'JP SC Raw Data'!$B:$B,"2019/20",'JP SC Raw Data'!$A:$A,$B$2))) -> 1288 | G33: =IF($B$2="Fort William", SUMIFS('JP SC Raw Data'!$J:$J,'JP SC Raw Data'!$C:$C,"Q2",'JP SC Raw Data'!$F:$F,"S",'JP SC Raw Data'!$B:$B,"2019/20",'JP SC Raw Data'!$E:$E,$B$2), IF(IFERROR(FIND(" ",$B$2),"")="",SUMIFS('JP SC Raw Data'!$J:$J,'JP SC Raw Data'!$C:$C,"Q2",'JP SC Raw Data'!$F:$F,"S",'JP SC Raw Data'!$B:$B,"2019/20",'JP SC Raw Data'!$E:$E,$B$2),SUMIFS('JP SC Raw Data'!$J:$J,'JP SC Raw Data'!$C:$C,"Q2",'JP SC Raw Data'!$F:$F,"S",'JP SC Raw Data'!$B:$B,"2019/20",'JP SC Raw Data'!$A:$A,$B$2))) -> 773 | H33: =IF($B$2="Fort William", SUMIFS('JP SC Raw Data'!$K:$K,'JP SC Raw Data'!$C:$C,"Q2",'JP SC Raw Data'!$F:$F,"S",'JP SC Raw Data'!$B:$B,"2019/20",'JP SC Raw Data'!$E:$E,$B$2), IF(IFERROR(FIND(" ",$B$2),"")="",SUMIFS('JP SC Raw Data'!$K:$K,'JP SC Raw Data'!$C:$C,"Q2",'JP SC Raw Data'!$F:$F,"S",'JP SC Raw Data'!$B:$B,"2019/20",'JP SC Raw Data'!$E:$E,$B$2),SUMIFS('JP SC Raw Data'!$K:$K,'JP SC Raw Data'!$C:$C,"Q2",'JP SC Raw Data'!$F:$F,"S",'JP SC Raw Data'!$B:$B,"2019/20",'JP SC Raw Data'!$A:$A,$B$2))) -> 278 | I33: =IF($B$2="Fort William", SUMIFS('JP SC Raw Data'!$L:$L,'JP SC Raw Data'!$C:$C,"Q2",'JP SC Raw Data'!$F:$F,"S",'JP SC Raw Data'!$B:$B,"2019/20",'JP SC Raw Data'!$E:$E,$B$2), IF(IFERROR(FIND(" ",$B$2),"")="",SUMIFS('JP SC Raw Data'!$L:$L,'JP SC Raw Data'!$C:$C,"Q2",'JP SC Raw Data'!$F:$F,"S",'JP SC Raw Data'!$B:$B,"2019/20",'JP SC Raw Data'!$E:$E,$B$2),SUMIFS('JP SC Raw Data'!$L:$L,'JP SC Raw Data'!$C:$C,"Q2",'JP SC Raw Data'!$F:$F,"S",'JP SC Raw Data'!$B:$B,"2019/20",'JP SC Raw Data'!$A:$A,$B$2))) -> 792 | J33: =IF($B$2="Fort William", SUMIFS('JP SC Raw Data'!$M:$M,'JP SC Raw Data'!$C:$C,"Q2",'JP SC Raw Data'!$F:$F,"S",'JP SC Raw Data'!$B:$B,"2019/20",'JP SC Raw Data'!$E:$E,$B$2), IF(IFERROR(FIND(" ",$B$2),"")="",SUMIFS('JP SC Raw Data'!$M:$M,'JP SC Raw Data'!$C:$C,"Q2",'JP SC Raw Data'!$F:$F,"S",'JP SC Raw Data'!$B:$B,"2019/20",'JP SC Raw Data'!$E:$E,$B$2),SUMIFS('JP SC Raw Data'!$M:$M,'JP SC Raw Data'!$C:$C,"Q2",'JP SC Raw Data'!$F:$F,"S",'JP SC Raw Data'!$B:$B,"2019/20",'JP SC Raw Data'!$A:$A,$B$2))) -> 291 | K33: =IF($B$2="Fort William", SUMIFS('JP SC Raw Data'!$N:$N,'JP SC Raw Data'!$C:$C,"Q2",'JP SC Raw Data'!$F:$F,"S",'JP SC Raw Data'!$B:$B,"2019/20",'JP SC Raw Data'!$E:$E,$B$2), IF(IFERROR(FIND(" ",$B$2),"")="",SUMIFS('JP SC Raw Data'!$N:$N,'JP SC Raw Data'!$C:$C,"Q2",'JP SC Raw Data'!$F:$F,"S",'JP SC Raw Data'!$B:$B,"2019/20",'JP SC Raw Data'!$E:$E,$B$2),SUMIFS('JP SC Raw Data'!$N:$N,'JP SC Raw Data'!$C:$C,"Q2",'JP SC Raw Data'!$F:$F,"S",'JP SC Raw Data'!$B:$B,"2019/20",'JP SC Raw Data'!$A:$A,$B$2))) -> 9 | L33: 0.01136363636 | M33: =IF($B$2="Fort William", SUMIFS('JP SC Raw Data'!$O:$O,'JP SC Raw Data'!$C:$C,"Q2",'JP SC Raw Data'!$F:$F,"S",'JP SC Raw Data'!$B:$B,"2019/20",'JP SC Raw Data'!$E:$E,$B$2), IF(IFERROR(FIND(" ",$B$2),"")="",SUMIFS('JP SC Raw Data'!$O:$O,'JP SC Raw Data'!$C:$C,"Q2",'JP SC Raw Data'!$F:$F,"S",'JP SC Raw Data'!$B:$B,"2019/20",'JP SC Raw Data'!$E:$E,$B$2),SUMIFS('JP SC Raw Data'!$O:$O,'JP SC Raw Data'!$C:$C,"Q2",'JP SC Raw Data'!$F:$F,"S",'JP SC Raw Data'!$B:$B,"2019/20",'JP SC Raw Data'!$A:$A,$B$2))) -> 488 | N33: =IF($B$2="Fort William", SUMIFS('JP SC Raw Data'!$P:$P,'JP SC Raw Data'!$C:$C,"Q2",'JP SC Raw Data'!$F:$F,"S",'JP SC Raw Data'!$B:$B,"2019/20",'JP SC Raw Data'!$E:$E,$B$2), IF(IFERROR(FIND(" ",$B$2),"")="",SUMIFS('JP SC Raw Data'!$P:$P,'JP SC Raw Data'!$C:$C,"Q2",'JP SC Raw Data'!$F:$F,"S",'JP SC Raw Data'!$B:$B,"2019/20",'JP SC Raw Data'!$E:$E,$B$2),SUMIFS('JP SC Raw Data'!$P:$P,'JP SC Raw Data'!$C:$C,"Q2",'JP SC Raw Data'!$F:$F,"S",'JP SC Raw Data'!$B:$B,"2019/20",'JP SC Raw Data'!$A:$A,$B$2))) -> 1570
C34: Quarter 3 | D34: =IF($B$2="Fort william", SUMIFS('JP SC Raw Data'!$G:$G,'JP SC Raw Data'!$C:$C,"Q3",'JP SC Raw Data'!$F:$F,"S",'JP SC Raw Data'!$B:$B,"2019/20",'JP SC Raw Data'!$E:$E,$B$2), IF(IFERROR(FIND(" ",$B$2),"")="",SUMIFS('JP SC Raw Data'!$G:$G,'JP SC Raw Data'!$C:$C,"Q3",'JP SC Raw Data'!$F:$F,"S",'JP SC Raw Data'!$B:$B,"2019/20",'JP SC Raw Data'!$E:$E,$B$2),SUMIFS('JP SC Raw Data'!$G:$G,'JP SC Raw Data'!$C:$C,"Q3",'JP SC Raw Data'!$F:$F,"S",'JP SC Raw Data'!$B:$B,"2019/20",'JP SC Raw Data'!$A:$A,$B$2))) -> 2492 | E34: =IF($B$2="Fort William", SUMIFS('JP SC Raw Data'!$H:$H,'JP SC Raw Data'!$C:$C,"Q3",'JP SC Raw Data'!$F:$F,"S",'JP SC Raw Data'!$B:$B,"2019/20",'JP SC Raw Data'!$E:$E,$B$2), IF(IFERROR(FIND(" ",$B$2),"")="",SUMIFS('JP SC Raw Data'!$H:$H,'JP SC Raw Data'!$C:$C,"Q3",'JP SC Raw Data'!$F:$F,"S",'JP SC Raw Data'!$B:$B,"2019/20",'JP SC Raw Data'!$E:$E,$B$2),SUMIFS('JP SC Raw Data'!$H:$H,'JP SC Raw Data'!$C:$C,"Q3",'JP SC Raw Data'!$F:$F,"S",'JP SC Raw Data'!$B:$B,"2019/20",'JP SC Raw Data'!$A:$A,$B$2))) -> 1438 | F34: =IF($B$2="Fort William", SUMIFS('JP SC Raw Data'!$I:$I,'JP SC Raw Data'!$C:$C,"Q3",'JP SC Raw Data'!$F:$F,"S",'JP SC Raw Data'!$B:$B,"2019/20",'JP SC Raw Data'!$E:$E,$B$2), IF(IFERROR(FIND(" ",$B$2),"")="",SUMIFS('JP SC Raw Data'!$I:$I,'JP SC Raw Data'!$C:$C,"Q3",'JP SC Raw Data'!$F:$F,"S",'JP SC Raw Data'!$B:$B,"2019/20",'JP SC Raw Data'!$E:$E,$B$2),SUMIFS('JP SC Raw Data'!$I:$I,'JP SC Raw Data'!$C:$C,"Q3",'JP SC Raw Data'!$F:$F,"S",'JP SC Raw Data'!$B:$B,"2019/20",'JP SC Raw Data'!$A:$A,$B$2))) -> 1188 | G34: =IF($B$2="Fort William", SUMIFS('JP SC Raw Data'!$J:$J,'JP SC Raw Data'!$C:$C,"Q3",'JP SC Raw Data'!$F:$F,"S",'JP SC Raw Data'!$B:$B,"2019/20",'JP SC Raw Data'!$E:$E,$B$2), IF(IFERROR(FIND(" ",$B$2),"")="",SUMIFS('JP SC Raw Data'!$J:$J,'JP SC Raw Data'!$C:$C,"Q3",'JP SC Raw Data'!$F:$F,"S",'JP SC Raw Data'!$B:$B,"2019/20",'JP SC Raw Data'!$E:$E,$B$2),SUMIFS('JP SC Raw Data'!$J:$J,'JP SC Raw Data'!$C:$C,"Q3",'JP SC Raw Data'!$F:$F,"S",'JP SC Raw Data'!$B:$B,"2019/20",'JP SC Raw Data'!$A:$A,$B$2))) -> 720 | H34: =IF($B$2="Fort William", SUMIFS('JP SC Raw Data'!$K:$K,'JP SC Raw Data'!$C:$C,"Q3",'JP SC Raw Data'!$F:$F,"S",'JP SC Raw Data'!$B:$B,"2019/20",'JP SC Raw Data'!$E:$E,$B$2), IF(IFERROR(FIND(" ",$B$2),"")="",SUMIFS('JP SC Raw Data'!$K:$K,'JP SC Raw Data'!$C:$C,"Q3",'JP SC Raw Data'!$F:$F,"S",'JP SC Raw Data'!$B:$B,"2019/20",'JP SC Raw Data'!$E:$E,$B$2),SUMIFS('JP SC Raw Data'!$K:$K,'JP SC Raw Data'!$C:$C,"Q3",'JP SC Raw Data'!$F:$F,"S",'JP SC Raw Data'!$B:$B,"2019/20",'JP SC Raw Data'!$A:$A,$B$2))) -> 283 | I34: =IF($B$2="Fort William", SUMIFS('JP SC Raw Data'!$L:$L,'JP SC Raw Data'!$C:$C,"Q3",'JP SC Raw Data'!$F:$F,"S",'JP SC Raw Data'!$B:$B,"2019/20",'JP SC Raw Data'!$E:$E,$B$2), IF(IFERROR(FIND(" ",$B$2),"")="",SUMIFS('JP SC Raw Data'!$L:$L,'JP SC Raw Data'!$C:$C,"Q3",'JP SC Raw Data'!$F:$F,"S",'JP SC Raw Data'!$B:$B,"2019/20",'JP SC Raw Data'!$E:$E,$B$2),SUMIFS('JP SC Raw Data'!$L:$L,'JP SC Raw Data'!$C:$C,"Q3",'JP SC Raw Data'!$F:$F,"S",'JP SC Raw Data'!$B:$B,"2019/20",'JP SC Raw Data'!$A:$A,$B$2))) -> 749 | J34: =IF($B$2="Fort William", SUMIFS('JP SC Raw Data'!$M:$M,'JP SC Raw Data'!$C:$C,"Q3",'JP SC Raw Data'!$F:$F,"S",'JP SC Raw Data'!$B:$B,"2019/20",'JP SC Raw Data'!$E:$E,$B$2), IF(IFERROR(FIND(" ",$B$2),"")="",SUMIFS('JP SC Raw Data'!$M:$M,'JP SC Raw Data'!$C:$C,"Q3",'JP SC Raw Data'!$F:$F,"S",'JP SC Raw Data'!$B:$B,"2019/20",'JP SC Raw Data'!$E:$E,$B$2),SUMIFS('JP SC Raw Data'!$M:$M,'JP SC Raw Data'!$C:$C,"Q3",'JP SC Raw Data'!$F:$F,"S",'JP SC Raw Data'!$B:$B,"2019/20",'JP SC Raw Data'!$A:$A,$B$2))) -> 292 | K34: =IF($B$2="Fort William", SUMIFS('JP SC Raw Data'!$N:$N,'JP SC Raw Data'!$C:$C,"Q3",'JP SC Raw Data'!$F:$F,"S",'JP SC Raw Data'!$B:$B,"2019/20",'JP SC Raw Data'!$E:$E,$B$2), IF(IFERROR(FIND(" ",$B$2),"")="",SUMIFS('JP SC Raw Data'!$N:$N,'JP SC Raw Data'!$C:$C,"Q3",'JP SC Raw Data'!$F:$F,"S",'JP SC Raw Data'!$B:$B,"2019/20",'JP SC Raw Data'!$E:$E,$B$2),SUMIFS('JP SC Raw Data'!$N:$N,'JP SC Raw Data'!$C:$C,"Q3",'JP SC Raw Data'!$F:$F,"S",'JP SC Raw Data'!$B:$B,"2019/20",'JP SC Raw Data'!$A:$A,$B$2))) -> 14 | L34: 0.01869158879 | M34: =IF($B$2="Fort William", SUMIFS('JP SC Raw Data'!$O:$O,'JP SC Raw Data'!$C:$C,"Q3",'JP SC Raw Data'!$F:$F,"S",'JP SC Raw Data'!$B:$B,"2019/20",'JP SC Raw Data'!$E:$E,$B$2), IF(IFERROR(FIND(" ",$B$2),"")="",SUMIFS('JP SC Raw Data'!$O:$O,'JP SC Raw Data'!$C:$C,"Q3",'JP SC Raw Data'!$F:$F,"S",'JP SC Raw Data'!$B:$B,"2019/20",'JP SC Raw Data'!$E:$E,$B$2),SUMIFS('JP SC Raw Data'!$O:$O,'JP SC Raw Data'!$C:$C,"Q3",'JP SC Raw Data'!$F:$F,"S",'JP SC Raw Data'!$B:$B,"2019/20",'JP SC Raw Data'!$A:$A,$B$2))) -> 482 | N34: =IF($B$2="Fort William", SUMIFS('JP SC Raw Data'!$P:$P,'JP SC Raw Data'!$C:$C,"Q3",'JP SC Raw Data'!$F:$F,"S",'JP SC Raw Data'!$B:$B,"2019/20",'JP SC Raw Data'!$E:$E,$B$2), IF(IFERROR(FIND(" ",$B$2),"")="",SUMIFS('JP SC Raw Data'!$P:$P,'JP SC Raw Data'!$C:$C,"Q3",'JP SC Raw Data'!$F:$F,"S",'JP SC Raw Data'!$B:$B,"2019/20",'JP SC Raw Data'!$E:$E,$B$2),SUMIFS('JP SC Raw Data'!$P:$P,'JP SC Raw Data'!$C:$C,"Q3",'JP SC Raw Data'!$F:$F,"S",'JP SC Raw Data'!$B:$B,"2019/20",'JP SC Raw Data'!$A:$A,$B$2))) -> 1411
C35: Quarter 4 | D35: =IF($B$2="Fort william", SUMIFS('JP SC Raw Data'!$G:$G,'JP SC Raw Data'!$C:$C,"Q4",'JP SC Raw Data'!$F:$F,"S",'JP SC Raw Data'!$B:$B,"2019/20",'JP SC Raw Data'!$E:$E,$B$2), IF(IFERROR(FIND(" ",$B$2),"")="",SUMIFS('JP SC Raw Data'!$G:$G,'JP SC Raw Data'!$C:$C,"Q4",'JP SC Raw Data'!$F:$F,"S",'JP SC Raw Data'!$B:$B,"2019/20",'JP SC Raw Data'!$E:$E,$B$2),SUMIFS('JP SC Raw Data'!$G:$G,'JP SC Raw Data'!$C:$C,"Q4",'JP SC Raw Data'!$F:$F,"S",'JP SC Raw Data'!$B:$B,"2019/20",'JP SC Raw Data'!$A:$A,$B$2))) -> 2280 | E35: =IF($B$2="Fort William", SUMIFS('JP SC Raw Data'!$H:$H,'JP SC Raw Data'!$C:$C,"Q4",'JP SC Raw Data'!$F:$F,"S",'JP SC Raw Data'!$B:$B,"2019/20",'JP SC Raw Data'!$E:$E,$B$2), IF(IFERROR(FIND(" ",$B$2),"")="",SUMIFS('JP SC Raw Data'!$H:$H,'JP SC Raw Data'!$C:$C,"Q4",'JP SC Raw Data'!$F:$F,"S",'JP SC Raw Data'!$B:$B,"2019/20",'JP SC Raw Data'!$E:$E,$B$2),SUMIFS('JP SC Raw Data'!$H:$H,'JP SC Raw Data'!$C:$C,"Q4",'JP SC Raw Data'!$F:$F,"S",'JP SC Raw Data'!$B:$B,"2019/20",'JP SC Raw Data'!$A:$A,$B$2))) -> 1302 | F35: =IF($B$2="Fort William", SUMIFS('JP SC Raw Data'!$I:$I,'JP SC Raw Data'!$C:$C,"Q4",'JP SC Raw Data'!$F:$F,"S",'JP SC Raw Data'!$B:$B,"2019/20",'JP SC Raw Data'!$E:$E,$B$2), IF(IFERROR(FIND(" ",$B$2),"")="",SUMIFS('JP SC Raw Data'!$I:$I,'JP SC Raw Data'!$C:$C,"Q4",'JP SC Raw Data'!$F:$F,"S",'JP SC Raw Data'!$B:$B,"2019/20",'JP SC Raw Data'!$E:$E,$B$2),SUMIFS('JP SC Raw Data'!$I:$I,'JP SC Raw Data'!$C:$C,"Q4",'JP SC Raw Data'!$F:$F,"S",'JP SC Raw Data'!$B:$B,"2019/20",'JP SC Raw Data'!$A:$A,$B$2))) -> 1397 | G35: =IF($B$2="Fort William", SUMIFS('JP SC Raw Data'!$J:$J,'JP SC Raw Data'!$C:$C,"Q4",'JP SC Raw Data'!$F:$F,"S",'JP SC Raw Data'!$B:$B,"2019/20",'JP SC Raw Data'!$E:$E,$B$2), IF(IFERROR(FIND(" ",$B$2),"")="",SUMIFS('JP SC Raw Data'!$J:$J,'JP SC Raw Data'!$C:$C,"Q4",'JP SC Raw Data'!$F:$F,"S",'JP SC Raw Data'!$B:$B,"2019/20",'JP SC Raw Data'!$E:$E,$B$2),SUMIFS('JP SC Raw Data'!$J:$J,'JP SC Raw Data'!$C:$C,"Q4",'JP SC Raw Data'!$F:$F,"S",'JP SC Raw Data'!$B:$B,"2019/20",'JP SC Raw Data'!$A:$A,$B$2))) -> 771 | H35: =IF($B$2="Fort William", SUMIFS('JP SC Raw Data'!$K:$K,'JP SC Raw Data'!$C:$C,"Q4",'JP SC Raw Data'!$F:$F,"S",'JP SC Raw Data'!$B:$B,"2019/20",'JP SC Raw Data'!$E:$E,$B$2), IF(IFERROR(FIND(" ",$B$2),"")="",SUMIFS('JP SC Raw Data'!$K:$K,'JP SC Raw Data'!$C:$C,"Q4",'JP SC Raw Data'!$F:$F,"S",'JP SC Raw Data'!$B:$B,"2019/20",'JP SC Raw Data'!$E:$E,$B$2),SUMIFS('JP SC Raw Data'!$K:$K,'JP SC Raw Data'!$C:$C,"Q4",'JP SC Raw Data'!$F:$F,"S",'JP SC Raw Data'!$B:$B,"2019/20",'JP SC Raw Data'!$A:$A,$B$2))) -> 241 | I35: =IF($B$2="Fort William", SUMIFS('JP SC Raw Data'!$L:$L,'JP SC Raw Data'!$C:$C,"Q4",'JP SC Raw Data'!$F:$F,"S",'JP SC Raw Data'!$B:$B,"2019/20",'JP SC Raw Data'!$E:$E,$B$2), IF(IFERROR(FIND(" ",$B$2),"")="",SUMIFS('JP SC Raw Data'!$L:$L,'JP SC Raw Data'!$C:$C,"Q4",'JP SC Raw Data'!$F:$F,"S",'JP SC Raw Data'!$B:$B,"2019/20",'JP SC Raw Data'!$E:$E,$B$2),SUMIFS('JP SC Raw Data'!$L:$L,'JP SC Raw Data'!$C:$C,"Q4",'JP SC Raw Data'!$F:$F,"S",'JP SC Raw Data'!$B:$B,"2019/20",'JP SC Raw Data'!$A:$A,$B$2))) -> 766 | J35: =IF($B$2="Fort William", SUMIFS('JP SC Raw Data'!$M:$M,'JP SC Raw Data'!$C:$C,"Q4",'JP SC Raw Data'!$F:$F,"S",'JP SC Raw Data'!$B:$B,"2019/20",'JP SC Raw Data'!$E:$E,$B$2), IF(IFERROR(FIND(" ",$B$2),"")="",SUMIFS('JP SC Raw Data'!$M:$M,'JP SC Raw Data'!$C:$C,"Q4",'JP SC Raw Data'!$F:$F,"S",'JP SC Raw Data'!$B:$B,"2019/20",'JP SC Raw Data'!$E:$E,$B$2),SUMIFS('JP SC Raw Data'!$M:$M,'JP SC Raw Data'!$C:$C,"Q4",'JP SC Raw Data'!$F:$F,"S",'JP SC Raw Data'!$B:$B,"2019/20",'JP SC Raw Data'!$A:$A,$B$2))) -> 252 | K35: =IF($B$2="Fort William", SUMIFS('JP SC Raw Data'!$N:$N,'JP SC Raw Data'!$C:$C,"Q4",'JP SC Raw Data'!$F:$F,"S",'JP SC Raw Data'!$B:$B,"2019/20",'JP SC Raw Data'!$E:$E,$B$2), IF(IFERROR(FIND(" ",$B$2),"")="",SUMIFS('JP SC Raw Data'!$N:$N,'JP SC Raw Data'!$C:$C,"Q4",'JP SC Raw Data'!$F:$F,"S",'JP SC Raw Data'!$B:$B,"2019/20",'JP SC Raw Data'!$E:$E,$B$2),SUMIFS('JP SC Raw Data'!$N:$N,'JP SC Raw Data'!$C:$C,"Q4",'JP SC Raw Data'!$F:$F,"S",'JP SC Raw Data'!$B:$B,"2019/20",'JP SC Raw Data'!$A:$A,$B$2))) -> 15 | L35: 0.01958224543 | M35: =IF($B$2="Fort William", SUMIFS('JP SC Raw Data'!$O:$O,'JP SC Raw Data'!$C:$C,"Q4",'JP SC Raw Data'!$F:$F,"S",'JP SC Raw Data'!$B:$B,"2019/20",'JP SC Raw Data'!$E:$E,$B$2), IF(IFERROR(FIND(" ",$B$2),"")="",SUMIFS('JP SC Raw Data'!$O:$O,'JP SC Raw Data'!$C:$C,"Q4",'JP SC Raw Data'!$F:$F,"S",'JP SC Raw Data'!$B:$B,"2019/20",'JP SC Raw Data'!$E:$E,$B$2),SUMIFS('JP SC Raw Data'!$O:$O,'JP SC Raw Data'!$C:$C,"Q4",'JP SC Raw Data'!$F:$F,"S",'JP SC Raw Data'!$B:$B,"2019/20",'JP SC Raw Data'!$A:$A,$B$2))) -> 497 | N35: =IF($B$2="Fort William", SUMIFS('JP SC Raw Data'!$P:$P,'JP SC Raw Data'!$C:$C,"Q4",'JP SC Raw Data'!$F:$F,"S",'JP SC Raw Data'!$B:$B,"2019/20",'JP SC Raw Data'!$E:$E,$B$2), IF(IFERROR(FIND(" ",$B$2),"")="",SUMIFS('JP SC Raw Data'!$P:$P,'JP SC Raw Data'!$C:$C,"Q4",'JP SC Raw Data'!$F:$F,"S",'JP SC Raw Data'!$B:$B,"2019/20",'JP SC Raw Data'!$E:$E,$B$2),SUMIFS('JP SC Raw Data'!$P:$P,'JP SC Raw Data'!$C:$C,"Q4",'JP SC Raw Data'!$F:$F,"S",'JP SC Raw Data'!$B:$B,"2019/20",'JP SC Raw Data'!$A:$A,$B$2))) -> 1361
C36: Full Year | D36: =SUM(D32:D35) -> 9780 | E36: 5452 | F36: 5114 | G36: 2963 | H36: 1048 | I36: 3142 | J36: 1134 | K36: 57 | L36: 0.01814131127 | M36: =M35 -> 497 | N36: =SUM(N32:N35) -> 5841
